Workbook

Sheet Intro
A1: AEZ-EF v52 (public release)
A2: AEZ Emission Factor Model
A3: 2014-12-11
A5: Richard Plevin
A6: Institute of Transportation Studies
A7: UC Davis
A8: plevin@ucdavis.edu
A10: This model is designed for use with the GTAP model (or other AEZ-based models) of indirect land use change (ILUC) to convert changes in land use (hectares) into changes in emissions (Mg CO2). The indivual mode worksheets are described briefly below. The model uses data assembled by Holly Gibbs (U. Wisconsin-Madison) and Sahoko Yui (UC Davis) and was developed in collaboration with them, Sonia Yeh (UC Davis) and Jim Duffy (CARB). This project was funded by the California Air Resources Board. Whereas the legacy model works only with the 19 regions used by the GTAP-BIO model, the new, matrix-oriented version of the model is designed to work with any regionalization, in conjunction with a TABLO program that computes the weighted average carbon stocks for the defined regions. For complete instructions on using the model with alternative regionalization, see the accompanying documentation.
A11: Results: ILUC factor computation from total emissions by land cover conversion class, divided by total fuel production associated with the emissions.
A12: EF: Emission factors computed on the Forest and Pasture worksheets, consolidated to simplify multiplication with Transition matrices
A13: Forest: Matrix-oriented calculations of emissions related to conversion of forest land.
A14: Pasture: Matrix-oriented calculations of emissions related to conversion of pasture land.
A15: CarbonData: Matrix-oriented carbon stock data created from aggregation of base country-AEZ data to required regional boundaries. (Data compiled by Holly Gibbs, U. Wisconsin-Madison, Sahoko Yui, UC Davis, and Richard Plevin, UC Davis)
A16: IPCC: Stock-change factors from IPCC for different land-cover types (used by matrix model)
A17: Factors: Constants, parameters, and conversion factors required by the model.
A18: Tables: Look-up tables used throughout the model, including HWP values.
A19: GTAP: Data imported from GTAP model runs defining LUC by region, AEZ, and land use.
A20: Transitions: Deduces the specific land transition sequences implied by the GTAP area change results.
A21: YieldTables: Computes factors that convert from harvested crop yield to total living biomass.

Sheet Results
A1: ILUC factor
A3: GTAP data workbook | C3: =GTAP_data_workbook -> Sample_GTAP_results_v5.xlsx | E3: This workbook must be open when using AEZ-EF as it provides the GTAP area change values.
E4: Select the desired scenario on the GTAP worksheet.
A5: GTAP scenario description | C5: =GTAP_Scenario_Desc -> mixed mixed, 0 gal | Q5: Yes/No | R5: Yes | S5: No
A6: Scenario ID | C6: =GTAP_data_worksheet -> Canola-65
A7: Feedstock | C7: =GTAP!B8 -> canola
A8: Fuel | C8: =GTAP!B9 -> FAME
A9: Fuel energy density | C9: =VLOOKUP(C8,FUEL_ENERGY_DENSITY_TABLE,2,FALSE) -> 126.0474963 | D9: MJ gal-1
A10: GTAP Non-CO2 emissions | C10: =GTAP!F8 -> 0 | D10: Mg CO2e
A11: GTAP ∆ crop biomass C | C11: =-1*GTAP_CROP_BIOMASS_C_CHANGE*CO2PerC -> -2009848.271 | D11: Mg CO2e
A12: Total CO2e emissions | C12: =SUM(C10:C11,B509) -> 19921268.04 | D12: Mg CO2e
A13: Annual fuel production | C13: =GTAP_fuel_increment -> 400000000 | D13: gal
A14: Years of fuel production | C14: =AnalyticHorizon -> 30 | D14: y
A15: Total fuel production | C15: =C13*C14 -> 12000000000 | D15: gal
A16: Total fuel production | C16: =C15*C9 -> 1.512569956e+12 | D16: MJ
A17: Annualized ILUC | C17: =C12*1000000/$C$16 -> 13.17047715 | D17: g CO2e MJ-1
A20: CO2e Emissions (Mg CO2e MJ-1) | D20: Each cell in the following tables is the product of hectares changed (for each transition) and emissions factor for the specific conversion (pasture to annual crops, pasture to forest, etc.)
A22: Forestry-to-annuals
A23: AEZ | B23: =Tables!E$6 -> USA | C23: =Tables!F$6 -> EU27 | D23: =Tables!G$6 -> BRAZIL | E23: =Tables!H$6 -> CAN | F23: =Tables!I$6 -> JAPAN | G23: =Tables!J$6 -> CHIHKG | H23: =Tables!K$6 -> INDIA | I23: =Tables!L$6 -> C_C_Amer | J23: =Tables!M$6 -> S_o_Amer | K23: =Tables!N$6 -> E_Asia | L23: =Tables!O$6 -> Mala_Indo | M23: =Tables!P$6 -> R_SE_Asia | N23: =Tables!Q$6 -> R_S_Asia | O23: =Tables!R$6 -> Russia | P23: =Tables!S$6 -> Oth_CEE_CIS | Q23: =Tables!T$6 -> Oth_Europe | R23: =Tables!U$6 -> MEAS_Nafr | S23: =Tables!V$6 -> S_S_Afr | T23: =Tables!W$6 -> Oceania
A24: 1 | B24: =Transitions!B1832*EF!B5 -> 0 | C24: =Transitions!C1832*EF!C5 -> 0 | D24: =Transitions!D1832*EF!D5 -> 0 | E24: =Transitions!E1832*EF!E5 -> 0 | F24: =Transitions!F1832*EF!F5 -> 0 | G24: =Transitions!G1832*EF!G5 -> 0 | H24: =Transitions!H1832*EF!H5 -> 0 | I24: =Transitions!I1832*EF!I5 -> 0 | J24: =Transitions!J1832*EF!J5 -> 0 | K24: =Transitions!K1832*EF!K5 -> 0 | L24: =Transitions!L1832*EF!L5 -> 0 | M24: =Transitions!M1832*EF!M5 -> 0 | N24: =Transitions!N1832*EF!N5 -> 0 | O24: =Transitions!O1832*EF!O5 -> 0 | P24: =Transitions!P1832*EF!P5 -> 0 | Q24: =Transitions!Q1832*EF!Q5 -> 0 | R24: =Transitions!R1832*EF!R5 -> 0 | S24: =Transitions!S1832*EF!S5 -> 0 | T24: =Transitions!T1832*EF!T5 -> 0
A25: =A24+1 -> 2 | B25: =Transitions!B1833*EF!B6 -> 0 | C25: =Transitions!C1833*EF!C6 -> 0 | D25: =Transitions!D1833*EF!D6 -> 0 | E25: =Transitions!E1833*EF!E6 -> 0 | F25: =Transitions!F1833*EF!F6 -> 0 | G25: =Transitions!G1833*EF!G6 -> 0 | H25: =Transitions!H1833*EF!H6 -> 1424.384028 | I25: =Transitions!I1833*EF!I6 -> 0 | J25: =Transitions!J1833*EF!J6 -> 0 | K25: =Transitions!K1833*EF!K6 -> 0 | L25: =Transitions!L1833*EF!L6 -> 0 | M25: =Transitions!M1833*EF!M6 -> 0 | N25: =Transitions!N1833*EF!N6 -> 0 | O25: =Transitions!O1833*EF!O6 -> 0 | P25: =Transitions!P1833*EF!P6 -> 0 | Q25: =Transitions!Q1833*EF!Q6 -> 0 | R25: =Transitions!R1833*EF!R6 -> 0 | S25: =Transitions!S1833*EF!S6 -> 0 | T25: =Transitions!T1833*EF!T6 -> 0
A26: =A25+1 -> 3 | B26: =Transitions!B1834*EF!B7 -> 0 | C26: =Transitions!C1834*EF!C7 -> 0 | D26: =Transitions!D1834*EF!D7 -> 0 | E26: =Transitions!E1834*EF!E7 -> 0 | F26: =Transitions!F1834*EF!F7 -> 0 | G26: =Transitions!G1834*EF!G7 -> 0 | H26: =Transitions!H1834*EF!H7 -> 18083.27619 | I26: =Transitions!I1834*EF!I7 -> 0 | J26: =Transitions!J1834*EF!J7 -> 0 | K26: =Transitions!K1834*EF!K7 -> 0 | L26: =Transitions!L1834*EF!L7 -> 0 | M26: =Transitions!M1834*EF!M7 -> 0 | N26: =Transitions!N1834*EF!N7 -> 248.752392 | O26: =Transitions!O1834*EF!O7 -> 0 | P26: =Transitions!P1834*EF!P7 -> 0 | Q26: =Transitions!Q1834*EF!Q7 -> 0 | R26: =Transitions!R1834*EF!R7 -> 0 | S26: =Transitions!S1834*EF!S7 -> 3340.97072 | T26: =Transitions!T1834*EF!T7 -> 0
A27: 4 | B27: =Transitions!B1835*EF!B8 -> 0 | C27: =Transitions!C1835*EF!C8 -> 0 | D27: =Transitions!D1835*EF!D8 -> 0 | E27: =Transitions!E1835*EF!E8 -> 0 | F27: =Transitions!F1835*EF!F8 -> 0 | G27: =Transitions!G1835*EF!G8 -> 0 | H27: =Transitions!H1835*EF!H8 -> 78571.45338 | I27: =Transitions!I1835*EF!I8 -> 0 | J27: =Transitions!J1835*EF!J8 -> 0 | K27: =Transitions!K1835*EF!K8 -> 0 | L27: =Transitions!L1835*EF!L8 -> 0 | M27: =Transitions!M1835*EF!M8 -> 0 | N27: =Transitions!N1835*EF!N8 -> 11198.61305 | O27: =Transitions!O1835*EF!O8 -> 0 | P27: =Transitions!P1835*EF!P8 -> 0 | Q27: =Transitions!Q1835*EF!Q8 -> 0 | R27: =Transitions!R1835*EF!R8 -> 0 | S27: =Transitions!S1835*EF!S8 -> 52771.06635 | T27: =Transitions!T1835*EF!T8 -> 0
A28: 5 | B28: =Transitions!B1836*EF!B9 -> 0 | C28: =Transitions!C1836*EF!C9 -> 0 | D28: =Transitions!D1836*EF!D9 -> 0 | E28: =Transitions!E1836*EF!E9 -> 0 | F28: =Transitions!F1836*EF!F9 -> 0 | G28: =Transitions!G1836*EF!G9 -> 0 | H28: =Transitions!H1836*EF!H9 -> 1868.034682 | I28: =Transitions!I1836*EF!I9 -> 0 | J28: =Transitions!J1836*EF!J9 -> 0 | K28: =Transitions!K1836*EF!K9 -> 0 | L28: =Transitions!L1836*EF!L9 -> 0 | M28: =Transitions!M1836*EF!M9 -> 0 | N28: =Transitions!N1836*EF!N9 -> 42374.55714 | O28: =Transitions!O1836*EF!O9 -> 0 | P28: =Transitions!P1836*EF!P9 -> 0 | Q28: =Transitions!Q1836*EF!Q9 -> 0 | R28: =Transitions!R1836*EF!R9 -> 0 | S28: =Transitions!S1836*EF!S9 -> 0 | T28: =Transitions!T1836*EF!T9 -> 0
A29: 6 | B29: =Transitions!B1837*EF!B10 -> 0 | C29: =Transitions!C1837*EF!C10 -> 0 | D29: =Transitions!D1837*EF!D10 -> 0 | E29: =Transitions!E1837*EF!E10 -> 0 | F29: =Transitions!F1837*EF!F10 -> 0 | G29: =Transitions!G1837*EF!G10 -> 0 | H29: =Transitions!H1837*EF!H10 -> 4779.319256 | I29: =Transitions!I1837*EF!I10 -> 0 | J29: =Transitions!J1837*EF!J10 -> 0 | K29: =Transitions!K1837*EF!K10 -> 0 | L29: =Transitions!L1837*EF!L10 -> 0 | M29: =Transitions!M1837*EF!M10 -> 0 | N29: =Transitions!N1837*EF!N10 -> 2269.255279 | O29: =Transitions!O1837*EF!O10 -> 0 | P29: =Transitions!P1837*EF!P10 -> 0 | Q29: =Transitions!Q1837*EF!Q10 -> 0 | R29: =Transitions!R1837*EF!R10 -> 0 | S29: =Transitions!S1837*EF!S10 -> 1959087.15 | T29: =Transitions!T1837*EF!T10 -> 0
A30: 7 | B30: =Transitions!B1838*EF!B11 -> 17005.46826 | C30: =Transitions!C1838*EF!C11 -> 0 | D30: =Transitions!D1838*EF!D11 -> 0 | E30: =Transitions!E1838*EF!E11 -> 0 | F30: =Transitions!F1838*EF!F11 -> 0 | G30: =Transitions!G1838*EF!G11 -> 0 | H30: =Transitions!H1838*EF!H11 -> 0 | I30: =Transitions!I1838*EF!I11 -> 0 | J30: =Transitions!J1838*EF!J11 -> 0 | K30: =Transitions!K1838*EF!K11 -> 0 | L30: =Transitions!L1838*EF!L11 -> 0 | M30: =Transitions!M1838*EF!M11 -> 0 | N30: =Transitions!N1838*EF!N11 -> 0 | O30: =Transitions!O1838*EF!O11 -> 0 | P30: =Transitions!P1838*EF!P11 -> 0 | Q30: =Transitions!Q1838*EF!Q11 -> 0 | R30: =Transitions!R1838*EF!R11 -> 0 | S30: =Transitions!S1838*EF!S11 -> 0 | T30: =Transitions!T1838*EF!T11 -> 0
A31: 8 | B31: =Transitions!B1839*EF!B12 -> 27504.9007 | C31: =Transitions!C1839*EF!C12 -> 0 | D31: =Transitions!D1839*EF!D12 -> 0 | E31: =Transitions!E1839*EF!E12 -> 30623.80402 | F31: =Transitions!F1839*EF!F12 -> 0 | G31: =Transitions!G1839*EF!G12 -> 0 | H31: =Transitions!H1839*EF!H12 -> 0 | I31: =Transitions!I1839*EF!I12 -> 0 | J31: =Transitions!J1839*EF!J12 -> 0 | K31: =Transitions!K1839*EF!K12 -> 0 | L31: =Transitions!L1839*EF!L12 -> 0 | M31: =Transitions!M1839*EF!M12 -> 0 | N31: =Transitions!N1839*EF!N12 -> 0 | O31: =Transitions!O1839*EF!O12 -> 0 | P31: =Transitions!P1839*EF!P12 -> 0 | Q31: =Transitions!Q1839*EF!Q12 -> 0 | R31: =Transitions!R1839*EF!R12 -> 0 | S31: =Transitions!S1839*EF!S12 -> 0 | T31: =Transitions!T1839*EF!T12 -> 0
A32: 9 | B32: =Transitions!B1840*EF!B13 -> 12063.26144 | C32: =Transitions!C1840*EF!C13 -> 60841.39106 | D32: =Transitions!D1840*EF!D13 -> 0 | E32: =Transitions!E1840*EF!E13 -> 2789698.291 | F32: =Transitions!F1840*EF!F13 -> 962.2563189 | G32: =Transitions!G1840*EF!G13 -> 0 | H32: =Transitions!H1840*EF!H13 -> 0 | I32: =Transitions!I1840*EF!I13 -> 0 | J32: =Transitions!J1840*EF!J13 -> 0 | K32: =Transitions!K1840*EF!K13 -> 0 | L32: =Transitions!L1840*EF!L13 -> 0 | M32: =Transitions!M1840*EF!M13 -> 0 | N32: =Transitions!N1840*EF!N13 -> 0 | O32: =Transitions!O1840*EF!O13 -> 0 | P32: =Transitions!P1840*EF!P13 -> 32581.56837 | Q32: =Transitions!Q1840*EF!Q13 -> 0 | R32: =Transitions!R1840*EF!R13 -> 2320.111266 | S32: =Transitions!S1840*EF!S13 -> 0 | T32: =Transitions!T1840*EF!T13 -> 0
A33: 10 | B33: =Transitions!B1841*EF!B14 -> 0 | C33: =Transitions!C1841*EF!C14 -> 243601.8577 | D33: =Transitions!D1841*EF!D14 -> 0 | E33: =Transitions!E1841*EF!E14 -> 922960.3928 | F33: =Transitions!F1841*EF!F14 -> 26308.45793 | G33: =Transitions!G1841*EF!G14 -> 0 | H33: =Transitions!H1841*EF!H14 -> 2186.042016 | I33: =Transitions!I1841*EF!I14 -> 0 | J33: =Transitions!J1841*EF!J14 -> 0 | K33: =Transitions!K1841*EF!K14 -> 0 | L33: =Transitions!L1841*EF!L14 -> 0 | M33: =Transitions!M1841*EF!M14 -> 0 | N33: =Transitions!N1841*EF!N14 -> 11703.61391 | O33: =Transitions!O1841*EF!O14 -> 0 | P33: =Transitions!P1841*EF!P14 -> 85611.85291 | Q33: =Transitions!Q1841*EF!Q14 -> 0 | R33: =Transitions!R1841*EF!R14 -> 0 | S33: =Transitions!S1841*EF!S14 -> 22565.38631 | T33: =Transitions!T1841*EF!T14 -> 0
A34: 11 | B34: =Transitions!B1842*EF!B15 -> 0 | C34: =Transitions!C1842*EF!C15 -> 79368.93029 | D34: =Transitions!D1842*EF!D15 -> 0 | E34: =Transitions!E1842*EF!E15 -> 6437.113626 | F34: =Transitions!F1842*EF!F15 -> 16598.16408 | G34: =Transitions!G1842*EF!G15 -> 0 | H34: =Transitions!H1842*EF!H15 -> 2588.454634 | I34: =Transitions!I1842*EF!I15 -> 0 | J34: =Transitions!J1842*EF!J15 -> 0 | K34: =Transitions!K1842*EF!K15 -> 0 | L34: =Transitions!L1842*EF!L15 -> 0 | M34: =Transitions!M1842*EF!M15 -> 0 | N34: =Transitions!N1842*EF!N15 -> 543.4011156 | O34: =Transitions!O1842*EF!O15 -> 0 | P34: =Transitions!P1842*EF!P15 -> 6599.547267 | Q34: =Transitions!Q1842*EF!Q15 -> 0 | R34: =Transitions!R1842*EF!R15 -> 0 | S34: =Transitions!S1842*EF!S15 -> 11597.02833 | T34: =Transitions!T1842*EF!T15 -> 0
A35: 12 | B35: =Transitions!B1843*EF!B16 -> 0 | C35: =Transitions!C1843*EF!C16 -> 0 | D35: =Transitions!D1843*EF!D16 -> 0 | E35: =Transitions!E1843*EF!E16 -> 0 | F35: =Transitions!F1843*EF!F16 -> 8005.472513 | G35: =Transitions!G1843*EF!G16 -> 0 | H35: =Transitions!H1843*EF!H16 -> 3389.495592 | I35: =Transitions!I1843*EF!I16 -> 0 | J35: =Transitions!J1843*EF!J16 -> 0 | K35: =Transitions!K1843*EF!K16 -> 0 | L35: =Transitions!L1843*EF!L16 -> 0 | M35: =Transitions!M1843*EF!M16 -> 1692.960081 | N35: =Transitions!N1843*EF!N16 -> 0 | O35: =Transitions!O1843*EF!O16 -> 0 | P35: =Transitions!P1843*EF!P16 -> 743.5608729 | Q35: =Transitions!Q1843*EF!Q16 -> 0 | R35: =Transitions!R1843*EF!R16 -> 0 | S35: =Transitions!S1843*EF!S16 -> 12213.16671 | T35: =Transitions!T1843*EF!T16 -> 3734.742869
A36: 13 | B36: =Transitions!B1844*EF!B17 -> 10671.03949 | C36: =Transitions!C1844*EF!C17 -> 0 | D36: =Transitions!D1844*EF!D17 -> 0 | E36: =Transitions!E1844*EF!E17 -> 113572.9838 | F36: =Transitions!F1844*EF!F17 -> 0 | G36: =Transitions!G1844*EF!G17 -> 0 | H36: =Transitions!H1844*EF!H17 -> 0 | I36: =Transitions!I1844*EF!I17 -> 0 | J36: =Transitions!J1844*EF!J17 -> 0 | K36: =Transitions!K1844*EF!K17 -> 0 | L36: =Transitions!L1844*EF!L17 -> 0 | M36: =Transitions!M1844*EF!M17 -> 0 | N36: =Transitions!N1844*EF!N17 -> 0 | O36: =Transitions!O1844*EF!O17 -> 0 | P36: =Transitions!P1844*EF!P17 -> 0 | Q36: =Transitions!Q1844*EF!Q17 -> 0 | R36: =Transitions!R1844*EF!R17 -> 0 | S36: =Transitions!S1844*EF!S17 -> 0 | T36: =Transitions!T1844*EF!T17 -> 0
A37: 14 | B37: =Transitions!B1845*EF!B18 -> 3375.116686 | C37: =Transitions!C1845*EF!C18 -> 0 | D37: =Transitions!D1845*EF!D18 -> 0 | E37: =Transitions!E1845*EF!E18 -> 860157.2825 | F37: =Transitions!F1845*EF!F18 -> 0 | G37: =Transitions!G1845*EF!G18 -> 0 | H37: =Transitions!H1845*EF!H18 -> 0 | I37: =Transitions!I1845*EF!I18 -> 0 | J37: =Transitions!J1845*EF!J18 -> 0 | K37: =Transitions!K1845*EF!K18 -> 142.0795797 | L37: =Transitions!L1845*EF!L18 -> 0 | M37: =Transitions!M1845*EF!M18 -> 0 | N37: =Transitions!N1845*EF!N18 -> 0 | O37: =Transitions!O1845*EF!O18 -> 0 | P37: =Transitions!P1845*EF!P18 -> 0 | Q37: =Transitions!Q1845*EF!Q18 -> 0 | R37: =Transitions!R1845*EF!R18 -> 0 | S37: =Transitions!S1845*EF!S18 -> 0 | T37: =Transitions!T1845*EF!T18 -> 0
A38: 15 | B38: =Transitions!B1846*EF!B19 -> 0 | C38: =Transitions!C1846*EF!C19 -> 25540.59499 | D38: =Transitions!D1846*EF!D19 -> 0 | E38: =Transitions!E1846*EF!E19 -> 4266270.649 | F38: =Transitions!F1846*EF!F19 -> 628.5791781 | G38: =Transitions!G1846*EF!G19 -> 0 | H38: =Transitions!H1846*EF!H19 -> 0 | I38: =Transitions!I1846*EF!I19 -> 0 | J38: =Transitions!J1846*EF!J19 -> 0 | K38: =Transitions!K1846*EF!K19 -> 0 | L38: =Transitions!L1846*EF!L19 -> 0 | M38: =Transitions!M1846*EF!M19 -> 0 | N38: =Transitions!N1846*EF!N19 -> 0 | O38: =Transitions!O1846*EF!O19 -> 0 | P38: =Transitions!P1846*EF!P19 -> 76.18374927 | Q38: =Transitions!Q1846*EF!Q19 -> 0 | R38: =Transitions!R1846*EF!R19 -> 0 | S38: =Transitions!S1846*EF!S19 -> 0 | T38: =Transitions!T1846*EF!T19 -> 0
A39: 16 | B39: =Transitions!B1847*EF!B20 -> 0 | C39: =Transitions!C1847*EF!C20 -> 491.9135699 | D39: =Transitions!D1847*EF!D20 -> 0 | E39: =Transitions!E1847*EF!E20 -> 114877.09 | F39: =Transitions!F1847*EF!F20 -> 0 | G39: =Transitions!G1847*EF!G20 -> 0 | H39: =Transitions!H1847*EF!H20 -> 0 | I39: =Transitions!I1847*EF!I20 -> 0 | J39: =Transitions!J1847*EF!J20 -> 0 | K39: =Transitions!K1847*EF!K20 -> 0 | L39: =Transitions!L1847*EF!L20 -> 0 | M39: =Transitions!M1847*EF!M20 -> 0 | N39: =Transitions!N1847*EF!N20 -> 0 | O39: =Transitions!O1847*EF!O20 -> 0 | P39: =Transitions!P1847*EF!P20 -> 72.92738126 | Q39: =Transitions!Q1847*EF!Q20 -> 46.88311199 | R39: =Transitions!R1847*EF!R20 -> 0 | S39: =Transitions!S1847*EF!S20 -> 0 | T39: =Transitions!T1847*EF!T20 -> 0
A40: 17 | B40: =Transitions!B1848*EF!B21 -> 0 | C40: =Transitions!C1848*EF!C21 -> 0 | D40: =Transitions!D1848*EF!D21 -> 0 | E40: =Transitions!E1848*EF!E21 -> 0 | F40: =Transitions!F1848*EF!F21 -> 0 | G40: =Transitions!G1848*EF!G21 -> 0 | H40: =Transitions!H1848*EF!H21 -> 0 | I40: =Transitions!I1848*EF!I21 -> 0 | J40: =Transitions!J1848*EF!J21 -> 0 | K40: =Transitions!K1848*EF!K21 -> 0 | L40: =Transitions!L1848*EF!L21 -> 0 | M40: =Transitions!M1848*EF!M21 -> 0 | N40: =Transitions!N1848*EF!N21 -> 0 | O40: =Transitions!O1848*EF!O21 -> 0 | P40: =Transitions!P1848*EF!P21 -> 0 | Q40: =Transitions!Q1848*EF!Q21 -> 0 | R40: =Transitions!R1848*EF!R21 -> 0 | S40: =Transitions!S1848*EF!S21 -> 0 | T40: =Transitions!T1848*EF!T21 -> 0
A41: 18 | B41: =Transitions!B1849*EF!B22 -> 0 | C41: =Transitions!C1849*EF!C22 -> 0 | D41: =Transitions!D1849*EF!D22 -> 0 | E41: =Transitions!E1849*EF!E22 -> 0 | F41: =Transitions!F1849*EF!F22 -> 0 | G41: =Transitions!G1849*EF!G22 -> 0 | H41: =Transitions!H1849*EF!H22 -> 0 | I41: =Transitions!I1849*EF!I22 -> 0 | J41: =Transitions!J1849*EF!J22 -> 0 | K41: =Transitions!K1849*EF!K22 -> 0 | L41: =Transitions!L1849*EF!L22 -> 0 | M41: =Transitions!M1849*EF!M22 -> 0 | N41: =Transitions!N1849*EF!N22 -> 0 | O41: =Transitions!O1849*EF!O22 -> 0 | P41: =Transitions!P1849*EF!P22 -> 0 | Q41: =Transitions!Q1849*EF!Q22 -> 0 | R41: =Transitions!R1849*EF!R22 -> 0 | S41: =Transitions!S1849*EF!S22 -> 0 | T41: =Transitions!T1849*EF!T22 -> 0
A42: TOTAL | B42: =SUM(B24:B41) -> 70619.78657 | C42: =SUM(C24:C41) -> 409844.6876 | D42: 0 | E42: 9104597.606 | F42: 52502.93002 | G42: 0 | H42: 112890.4598 | I42: 0 | J42: 0 | K42: 142.0795797 | L42: 0 | M42: 1692.960081 | N42: 68338.19289 | O42: 0 | P42: 125685.6406 | Q42: 46.88311199 | R42: 2320.111266 | S42: 2061574.768 | T42: 3734.742869
A44: Forestry-to-perennials
A45: AEZ | B45: =Tables!E$6 -> USA | C45: =Tables!F$6 -> EU27 | D45: =Tables!G$6 -> BRAZIL | E45: =Tables!H$6 -> CAN | F45: =Tables!I$6 -> JAPAN | G45: =Tables!J$6 -> CHIHKG | H45: =Tables!K$6 -> INDIA | I45: =Tables!L$6 -> C_C_Amer | J45: =Tables!M$6 -> S_o_Amer | K45: =Tables!N$6 -> E_Asia | L45: =Tables!O$6 -> Mala_Indo | M45: =Tables!P$6 -> R_SE_Asia | N45: =Tables!Q$6 -> R_S_Asia | O45: =Tables!R$6 -> Russia | P45: =Tables!S$6 -> Oth_CEE_CIS | Q45: =Tables!T$6 -> Oth_Europe | R45: =Tables!U$6 -> MEAS_Nafr | S45: =Tables!V$6 -> S_S_Afr | T45: =Tables!W$6 -> Oceania
A46: 1 | B46: =Transitions!B1958*EF!B26 -> 0 | C46: =Transitions!C1958*EF!C26 -> 0 | D46: =Transitions!D1958*EF!D26 -> 0 | E46: =Transitions!E1958*EF!E26 -> 0 | F46: =Transitions!F1958*EF!F26 -> 0 | G46: =Transitions!G1958*EF!G26 -> 0 | H46: =Transitions!H1958*EF!H26 -> 0 | I46: =Transitions!I1958*EF!I26 -> 0 | J46: =Transitions!J1958*EF!J26 -> 0 | K46: =Transitions!K1958*EF!K26 -> 0 | L46: =Transitions!L1958*EF!L26 -> 0 | M46: =Transitions!M1958*EF!M26 -> 0 | N46: =Transitions!N1958*EF!N26 -> 0 | O46: =Transitions!O1958*EF!O26 -> 0 | P46: =Transitions!P1958*EF!P26 -> 0 | Q46: =Transitions!Q1958*EF!Q26 -> 0 | R46: =Transitions!R1958*EF!R26 -> 0 | S46: =Transitions!S1958*EF!S26 -> 0 | T46: =Transitions!T1958*EF!T26 -> 0
A47: =A46+1 -> 2 | B47: =Transitions!B1959*EF!B27 -> 0 | C47: =Transitions!C1959*EF!C27 -> 0 | D47: =Transitions!D1959*EF!D27 -> 0 | E47: =Transitions!E1959*EF!E27 -> 0 | F47: =Transitions!F1959*EF!F27 -> 0 | G47: =Transitions!G1959*EF!G27 -> 0 | H47: =Transitions!H1959*EF!H27 -> 96.40301666 | I47: =Transitions!I1959*EF!I27 -> 0 | J47: =Transitions!J1959*EF!J27 -> 0 | K47: =Transitions!K1959*EF!K27 -> 0 | L47: =Transitions!L1959*EF!L27 -> 0 | M47: =Transitions!M1959*EF!M27 -> 0 | N47: =Transitions!N1959*EF!N27 -> 0 | O47: =Transitions!O1959*EF!O27 -> 0 | P47: =Transitions!P1959*EF!P27 -> 0 | Q47: =Transitions!Q1959*EF!Q27 -> 0 | R47: =Transitions!R1959*EF!R27 -> 0 | S47: =Transitions!S1959*EF!S27 -> 424.8889143 | T47: =Transitions!T1959*EF!T27 -> 0
A48: =A47+1 -> 3 | B48: =Transitions!B1960*EF!B28 -> 0 | C48: =Transitions!C1960*EF!C28 -> 0 | D48: =Transitions!D1960*EF!D28 -> 0 | E48: =Transitions!E1960*EF!E28 -> 0 | F48: =Transitions!F1960*EF!F28 -> 0 | G48: =Transitions!G1960*EF!G28 -> 0 | H48: =Transitions!H1960*EF!H28 -> 0 | I48: =Transitions!I1960*EF!I28 -> 0 | J48: =Transitions!J1960*EF!J28 -> 0 | K48: =Transitions!K1960*EF!K28 -> 0 | L48: =Transitions!L1960*EF!L28 -> 0 | M48: =Transitions!M1960*EF!M28 -> 0 | N48: =Transitions!N1960*EF!N28 -> 0 | O48: =Transitions!O1960*EF!O28 -> 0 | P48: =Transitions!P1960*EF!P28 -> 0 | Q48: =Transitions!Q1960*EF!Q28 -> 0 | R48: =Transitions!R1960*EF!R28 -> 0 | S48: =Transitions!S1960*EF!S28 -> 16254.55009 | T48: =Transitions!T1960*EF!T28 -> 0
A49: 4 | B49: =Transitions!B1961*EF!B29 -> 0 | C49: =Transitions!C1961*EF!C29 -> 0 | D49: =Transitions!D1961*EF!D29 -> 0 | E49: =Transitions!E1961*EF!E29 -> 0 | F49: =Transitions!F1961*EF!F29 -> 0 | G49: =Transitions!G1961*EF!G29 -> 0 | H49: =Transitions!H1961*EF!H29 -> 31.16278217 | I49: =Transitions!I1961*EF!I29 -> 0 | J49: =Transitions!J1961*EF!J29 -> 0 | K49: =Transitions!K1961*EF!K29 -> 0 | L49: =Transitions!L1961*EF!L29 -> 0 | M49: =Transitions!M1961*EF!M29 -> 11201.08753 | N49: =Transitions!N1961*EF!N29 -> 0 | O49: =Transitions!O1961*EF!O29 -> 0 | P49: =Transitions!P1961*EF!P29 -> 0 | Q49: =Transitions!Q1961*EF!Q29 -> 0 | R49: =Transitions!R1961*EF!R29 -> 0 | S49: =Transitions!S1961*EF!S29 -> 231712.5275 | T49: =Transitions!T1961*EF!T29 -> 0
A50: 5 | B50: =Transitions!B1962*EF!B30 -> 0 | C50: =Transitions!C1962*EF!C30 -> 0 | D50: =Transitions!D1962*EF!D30 -> 0 | E50: =Transitions!E1962*EF!E30 -> 0 | F50: =Transitions!F1962*EF!F30 -> 0 | G50: =Transitions!G1962*EF!G30 -> 0 | H50: =Transitions!H1962*EF!H30 -> 0 | I50: =Transitions!I1962*EF!I30 -> 0 | J50: =Transitions!J1962*EF!J30 -> 0 | K50: =Transitions!K1962*EF!K30 -> 0 | L50: =Transitions!L1962*EF!L30 -> 0 | M50: =Transitions!M1962*EF!M30 -> 0 | N50: =Transitions!N1962*EF!N30 -> 0 | O50: =Transitions!O1962*EF!O30 -> 0 | P50: =Transitions!P1962*EF!P30 -> 0 | Q50: =Transitions!Q1962*EF!Q30 -> 0 | R50: =Transitions!R1962*EF!R30 -> 0 | S50: =Transitions!S1962*EF!S30 -> 1116503.84 | T50: =Transitions!T1962*EF!T30 -> 442.8631962
A51: 6 | B51: =Transitions!B1963*EF!B31 -> 0 | C51: =Transitions!C1963*EF!C31 -> 0 | D51: =Transitions!D1963*EF!D31 -> 0 | E51: =Transitions!E1963*EF!E31 -> 0 | F51: =Transitions!F1963*EF!F31 -> 0 | G51: =Transitions!G1963*EF!G31 -> 0 | H51: =Transitions!H1963*EF!H31 -> 0 | I51: =Transitions!I1963*EF!I31 -> 0 | J51: =Transitions!J1963*EF!J31 -> 0 | K51: =Transitions!K1963*EF!K31 -> 0 | L51: =Transitions!L1963*EF!L31 -> 282758.2973 | M51: =Transitions!M1963*EF!M31 -> 20994.49299 | N51: =Transitions!N1963*EF!N31 -> 0 | O51: =Transitions!O1963*EF!O31 -> 0 | P51: =Transitions!P1963*EF!P31 -> 0 | Q51: =Transitions!Q1963*EF!Q31 -> 0 | R51: =Transitions!R1963*EF!R31 -> 0 | S51: =Transitions!S1963*EF!S31 -> 830490.2496 | T51: =Transitions!T1963*EF!T31 -> 23.55514356
A52: 7 | B52: =Transitions!B1964*EF!B32 -> 0 | C52: =Transitions!C1964*EF!C32 -> 0 | D52: =Transitions!D1964*EF!D32 -> 0 | E52: =Transitions!E1964*EF!E32 -> 0 | F52: =Transitions!F1964*EF!F32 -> 0 | G52: =Transitions!G1964*EF!G32 -> 0 | H52: =Transitions!H1964*EF!H32 -> 0 | I52: =Transitions!I1964*EF!I32 -> 0 | J52: =Transitions!J1964*EF!J32 -> 0 | K52: =Transitions!K1964*EF!K32 -> 0 | L52: =Transitions!L1964*EF!L32 -> 0 | M52: =Transitions!M1964*EF!M32 -> 0 | N52: =Transitions!N1964*EF!N32 -> 0 | O52: =Transitions!O1964*EF!O32 -> 0 | P52: =Transitions!P1964*EF!P32 -> 0 | Q52: =Transitions!Q1964*EF!Q32 -> 0 | R52: =Transitions!R1964*EF!R32 -> 0 | S52: =Transitions!S1964*EF!S32 -> 0 | T52: =Transitions!T1964*EF!T32 -> 0
A53: 8 | B53: =Transitions!B1965*EF!B33 -> 0 | C53: =Transitions!C1965*EF!C33 -> 0 | D53: =Transitions!D1965*EF!D33 -> 0 | E53: =Transitions!E1965*EF!E33 -> 0 | F53: =Transitions!F1965*EF!F33 -> 0 | G53: =Transitions!G1965*EF!G33 -> 0 | H53: =Transitions!H1965*EF!H33 -> 0 | I53: =Transitions!I1965*EF!I33 -> 0 | J53: =Transitions!J1965*EF!J33 -> 0 | K53: =Transitions!K1965*EF!K33 -> 0 | L53: =Transitions!L1965*EF!L33 -> 0 | M53: =Transitions!M1965*EF!M33 -> 0 | N53: =Transitions!N1965*EF!N33 -> 0 | O53: =Transitions!O1965*EF!O33 -> 0 | P53: =Transitions!P1965*EF!P33 -> 0 | Q53: =Transitions!Q1965*EF!Q33 -> 0 | R53: =Transitions!R1965*EF!R33 -> 0 | S53: =Transitions!S1965*EF!S33 -> 0 | T53: =Transitions!T1965*EF!T33 -> 0
A54: 9 | B54: =Transitions!B1966*EF!B34 -> 0 | C54: =Transitions!C1966*EF!C34 -> 0 | D54: =Transitions!D1966*EF!D34 -> 0 | E54: =Transitions!E1966*EF!E34 -> 0 | F54: =Transitions!F1966*EF!F34 -> 0 | G54: =Transitions!G1966*EF!G34 -> 0 | H54: =Transitions!H1966*EF!H34 -> 0 | I54: =Transitions!I1966*EF!I34 -> 0 | J54: =Transitions!J1966*EF!J34 -> 0 | K54: =Transitions!K1966*EF!K34 -> 0 | L54: =Transitions!L1966*EF!L34 -> 0 | M54: =Transitions!M1966*EF!M34 -> 0 | N54: =Transitions!N1966*EF!N34 -> 0 | O54: =Transitions!O1966*EF!O34 -> 0 | P54: =Transitions!P1966*EF!P34 -> 0 | Q54: =Transitions!Q1966*EF!Q34 -> 0 | R54: =Transitions!R1966*EF!R34 -> 0 | S54: =Transitions!S1966*EF!S34 -> 0 | T54: =Transitions!T1966*EF!T34 -> 0
A55: 10 | B55: =Transitions!B1967*EF!B35 -> 0 | C55: =Transitions!C1967*EF!C35 -> 0 | D55: =Transitions!D1967*EF!D35 -> 0 | E55: =Transitions!E1967*EF!E35 -> 0 | F55: =Transitions!F1967*EF!F35 -> 0 | G55: =Transitions!G1967*EF!G35 -> 0 | H55: =Transitions!H1967*EF!H35 -> 0 | I55: =Transitions!I1967*EF!I35 -> 0 | J55: =Transitions!J1967*EF!J35 -> 0 | K55: =Transitions!K1967*EF!K35 -> 0 | L55: =Transitions!L1967*EF!L35 -> 0 | M55: =Transitions!M1967*EF!M35 -> 121.1749401 | N55: =Transitions!N1967*EF!N35 -> 0 | O55: =Transitions!O1967*EF!O35 -> 0 | P55: =Transitions!P1967*EF!P35 -> 0 | Q55: =Transitions!Q1967*EF!Q35 -> 0 | R55: =Transitions!R1967*EF!R35 -> 0 | S55: =Transitions!S1967*EF!S35 -> 62.44311809 | T55: =Transitions!T1967*EF!T35 -> 0
A56: 11 | B56: =Transitions!B1968*EF!B36 -> 0 | C56: =Transitions!C1968*EF!C36 -> 0 | D56: =Transitions!D1968*EF!D36 -> 0 | E56: =Transitions!E1968*EF!E36 -> 0 | F56: =Transitions!F1968*EF!F36 -> 0 | G56: =Transitions!G1968*EF!G36 -> 0 | H56: =Transitions!H1968*EF!H36 -> 0 | I56: =Transitions!I1968*EF!I36 -> 0 | J56: =Transitions!J1968*EF!J36 -> 0 | K56: =Transitions!K1968*EF!K36 -> 0 | L56: =Transitions!L1968*EF!L36 -> 0 | M56: =Transitions!M1968*EF!M36 -> 0 | N56: =Transitions!N1968*EF!N36 -> 0 | O56: =Transitions!O1968*EF!O36 -> 0 | P56: =Transitions!P1968*EF!P36 -> 0 | Q56: =Transitions!Q1968*EF!Q36 -> 0 | R56: =Transitions!R1968*EF!R36 -> 0 | S56: =Transitions!S1968*EF!S36 -> 3589.424156 | T56: =Transitions!T1968*EF!T36 -> 0
A57: 12 | B57: =Transitions!B1969*EF!B37 -> 0 | C57: =Transitions!C1969*EF!C37 -> 0 | D57: =Transitions!D1969*EF!D37 -> 0 | E57: =Transitions!E1969*EF!E37 -> 0 | F57: =Transitions!F1969*EF!F37 -> 0 | G57: =Transitions!G1969*EF!G37 -> 0 | H57: =Transitions!H1969*EF!H37 -> 0 | I57: =Transitions!I1969*EF!I37 -> 0 | J57: =Transitions!J1969*EF!J37 -> 0 | K57: =Transitions!K1969*EF!K37 -> 0 | L57: =Transitions!L1969*EF!L37 -> 0 | M57: =Transitions!M1969*EF!M37 -> 0 | N57: =Transitions!N1969*EF!N37 -> 0 | O57: =Transitions!O1969*EF!O37 -> 0 | P57: =Transitions!P1969*EF!P37 -> 0 | Q57: =Transitions!Q1969*EF!Q37 -> 0 | R57: =Transitions!R1969*EF!R37 -> 0 | S57: =Transitions!S1969*EF!S37 -> 6.14811704 | T57: =Transitions!T1969*EF!T37 -> 0
A58: 13 | B58: =Transitions!B1970*EF!B38 -> 0 | C58: =Transitions!C1970*EF!C38 -> 0 | D58: =Transitions!D1970*EF!D38 -> 0 | E58: =Transitions!E1970*EF!E38 -> 0 | F58: =Transitions!F1970*EF!F38 -> 0 | G58: =Transitions!G1970*EF!G38 -> 0 | H58: =Transitions!H1970*EF!H38 -> 0 | I58: =Transitions!I1970*EF!I38 -> 0 | J58: =Transitions!J1970*EF!J38 -> 0 | K58: =Transitions!K1970*EF!K38 -> 0 | L58: =Transitions!L1970*EF!L38 -> 0 | M58: =Transitions!M1970*EF!M38 -> 0 | N58: =Transitions!N1970*EF!N38 -> 0 | O58: =Transitions!O1970*EF!O38 -> 0 | P58: =Transitions!P1970*EF!P38 -> 0 | Q58: =Transitions!Q1970*EF!Q38 -> 0 | R58: =Transitions!R1970*EF!R38 -> 0 | S58: =Transitions!S1970*EF!S38 -> 0 | T58: =Transitions!T1970*EF!T38 -> 0
A59: 14 | B59: =Transitions!B1971*EF!B39 -> 0 | C59: =Transitions!C1971*EF!C39 -> 0 | D59: =Transitions!D1971*EF!D39 -> 0 | E59: =Transitions!E1971*EF!E39 -> 0 | F59: =Transitions!F1971*EF!F39 -> 0 | G59: =Transitions!G1971*EF!G39 -> 0 | H59: =Transitions!H1971*EF!H39 -> 0 | I59: =Transitions!I1971*EF!I39 -> 0 | J59: =Transitions!J1971*EF!J39 -> 0 | K59: =Transitions!K1971*EF!K39 -> 0 | L59: =Transitions!L1971*EF!L39 -> 0 | M59: =Transitions!M1971*EF!M39 -> 0 | N59: =Transitions!N1971*EF!N39 -> 0 | O59: =Transitions!O1971*EF!O39 -> 0 | P59: =Transitions!P1971*EF!P39 -> 0 | Q59: =Transitions!Q1971*EF!Q39 -> 0 | R59: =Transitions!R1971*EF!R39 -> 0 | S59: =Transitions!S1971*EF!S39 -> 0 | T59: =Transitions!T1971*EF!T39 -> 0
A60: 15 | B60: =Transitions!B1972*EF!B40 -> 0 | C60: =Transitions!C1972*EF!C40 -> 0 | D60: =Transitions!D1972*EF!D40 -> 0 | E60: =Transitions!E1972*EF!E40 -> 0 | F60: =Transitions!F1972*EF!F40 -> 0 | G60: =Transitions!G1972*EF!G40 -> 0 | H60: =Transitions!H1972*EF!H40 -> 0 | I60: =Transitions!I1972*EF!I40 -> 0 | J60: =Transitions!J1972*EF!J40 -> 0 | K60: =Transitions!K1972*EF!K40 -> 0 | L60: =Transitions!L1972*EF!L40 -> 0 | M60: =Transitions!M1972*EF!M40 -> 0 | N60: =Transitions!N1972*EF!N40 -> 0 | O60: =Transitions!O1972*EF!O40 -> 0 | P60: =Transitions!P1972*EF!P40 -> 0 | Q60: =Transitions!Q1972*EF!Q40 -> 0 | R60: =Transitions!R1972*EF!R40 -> 0 | S60: =Transitions!S1972*EF!S40 -> 0 | T60: =Transitions!T1972*EF!T40 -> 0
A61: 16 | B61: =Transitions!B1973*EF!B41 -> 0 | C61: =Transitions!C1973*EF!C41 -> 0 | D61: =Transitions!D1973*EF!D41 -> 0 | E61: =Transitions!E1973*EF!E41 -> 0 | F61: =Transitions!F1973*EF!F41 -> 0 | G61: =Transitions!G1973*EF!G41 -> 0 | H61: =Transitions!H1973*EF!H41 -> 0 | I61: =Transitions!I1973*EF!I41 -> 0 | J61: =Transitions!J1973*EF!J41 -> 0 | K61: =Transitions!K1973*EF!K41 -> 0 | L61: =Transitions!L1973*EF!L41 -> 0 | M61: =Transitions!M1973*EF!M41 -> 0 | N61: =Transitions!N1973*EF!N41 -> 0 | O61: =Transitions!O1973*EF!O41 -> 0 | P61: =Transitions!P1973*EF!P41 -> 0 | Q61: =Transitions!Q1973*EF!Q41 -> 0 | R61: =Transitions!R1973*EF!R41 -> 0 | S61: =Transitions!S1973*EF!S41 -> 0 | T61: =Transitions!T1973*EF!T41 -> 0
A62: 17 | B62: =Transitions!B1974*EF!B42 -> 0 | C62: =Transitions!C1974*EF!C42 -> 0 | D62: =Transitions!D1974*EF!D42 -> 0 | E62: =Transitions!E1974*EF!E42 -> 0 | F62: =Transitions!F1974*EF!F42 -> 0 | G62: =Transitions!G1974*EF!G42 -> 0 | H62: =Transitions!H1974*EF!H42 -> 0 | I62: =Transitions!I1974*EF!I42 -> 0 | J62: =Transitions!J1974*EF!J42 -> 0 | K62: =Transitions!K1974*EF!K42 -> 0 | L62: =Transitions!L1974*EF!L42 -> 0 | M62: =Transitions!M1974*EF!M42 -> 0 | N62: =Transitions!N1974*EF!N42 -> 0 | O62: =Transitions!O1974*EF!O42 -> 0 | P62: =Transitions!P1974*EF!P42 -> 0 | Q62: =Transitions!Q1974*EF!Q42 -> 0 | R62: =Transitions!R1974*EF!R42 -> 0 | S62: =Transitions!S1974*EF!S42 -> 0 | T62: =Transitions!T1974*EF!T42 -> 0
A63: 18 | B63: =Transitions!B1975*EF!B43 -> 0 | C63: =Transitions!C1975*EF!C43 -> 0 | D63: =Transitions!D1975*EF!D43 -> 0 | E63: =Transitions!E1975*EF!E43 -> 0 | F63: =Transitions!F1975*EF!F43 -> 0 | G63: =Transitions!G1975*EF!G43 -> 0 | H63: =Transitions!H1975*EF!H43 -> 0 | I63: =Transitions!I1975*EF!I43 -> 0 | J63: =Transitions!J1975*EF!J43 -> 0 | K63: =Transitions!K1975*EF!K43 -> 0 | L63: =Transitions!L1975*EF!L43 -> 0 | M63: =Transitions!M1975*EF!M43 -> 0 | N63: =Transitions!N1975*EF!N43 -> 0 | O63: =Transitions!O1975*EF!O43 -> 0 | P63: =Transitions!P1975*EF!P43 -> 0 | Q63: =Transitions!Q1975*EF!Q43 -> 0 | R63: =Transitions!R1975*EF!R43 -> 0 | S63: =Transitions!S1975*EF!S43 -> 0 | T63: =Transitions!T1975*EF!T43 -> 0
A64: TOTAL | B64: =SUM(B46:B63) -> 0 | C64: =SUM(C46:C63) -> 0 | D64: 0 | E64: 0 | F64: 0 | G64: 0 | H64: 127.5657988 | I64: 0 | J64: 0 | K64: 0 | L64: 282758.2973 | M64: 32316.75545 | N64: 0 | O64: 0 | P64: 0 | Q64: 0 | R64: 0 | S64: 2199044.071 | T64: 466.4183398
A66: Forestry-to-palm (on peat)
A67: AEZ | B67: =Tables!E$6 -> USA | C67: =Tables!F$6 -> EU27 | D67: =Tables!G$6 -> BRAZIL | E67: =Tables!H$6 -> CAN | F67: =Tables!I$6 -> JAPAN | G67: =Tables!J$6 -> CHIHKG | H67: =Tables!K$6 -> INDIA | I67: =Tables!L$6 -> C_C_Amer | J67: =Tables!M$6 -> S_o_Amer | K67: =Tables!N$6 -> E_Asia | L67: =Tables!O$6 -> Mala_Indo | M67: =Tables!P$6 -> R_SE_Asia | N67: =Tables!Q$6 -> R_S_Asia | O67: =Tables!R$6 -> Russia | P67: =Tables!S$6 -> Oth_CEE_CIS | Q67: =Tables!T$6 -> Oth_Europe | R67: =Tables!U$6 -> MEAS_Nafr | S67: =Tables!V$6 -> S_S_Afr | T67: =Tables!W$6 -> Oceania
A68: 1 | B68: =Transitions!B236*EF!B47 -> 0 | C68: =Transitions!C236*EF!C47 -> 0 | D68: =Transitions!D236*EF!D47 -> 0 | E68: =Transitions!E236*EF!E47 -> 0 | F68: =Transitions!F236*EF!F47 -> 0 | G68: =Transitions!G236*EF!G47 -> 0 | H68: =Transitions!H236*EF!H47 -> 0 | I68: =Transitions!I236*EF!I47 -> 0 | J68: =Transitions!J236*EF!J47 -> 0 | K68: =Transitions!K236*EF!K47 -> 0 | L68: =Transitions!L236*EF!L47 -> 0 | M68: =Transitions!M236*EF!M47 -> 0 | N68: =Transitions!N236*EF!N47 -> 0 | O68: =Transitions!O236*EF!O47 -> 0 | P68: =Transitions!P236*EF!P47 -> 0 | Q68: =Transitions!Q236*EF!Q47 -> 0 | R68: =Transitions!R236*EF!R47 -> 0 | S68: =Transitions!S236*EF!S47 -> 0 | T68: =Transitions!T236*EF!T47 -> 0
A69: =A68+1 -> 2 | B69: =Transitions!B237*EF!B48 -> 0 | C69: =Transitions!C237*EF!C48 -> 0 | D69: =Transitions!D237*EF!D48 -> 0 | E69: =Transitions!E237*EF!E48 -> 0 | F69: =Transitions!F237*EF!F48 -> 0 | G69: =Transitions!G237*EF!G48 -> 0 | H69: =Transitions!H237*EF!H48 -> 0 | I69: =Transitions!I237*EF!I48 -> 0 | J69: =Transitions!J237*EF!J48 -> 0 | K69: =Transitions!K237*EF!K48 -> 0 | L69: =Transitions!L237*EF!L48 -> 0 | M69: =Transitions!M237*EF!M48 -> 0 | N69: =Transitions!N237*EF!N48 -> 0 | O69: =Transitions!O237*EF!O48 -> 0 | P69: =Transitions!P237*EF!P48 -> 0 | Q69: =Transitions!Q237*EF!Q48 -> 0 | R69: =Transitions!R237*EF!R48 -> 0 | S69: =Transitions!S237*EF!S48 -> 0 | T69: =Transitions!T237*EF!T48 -> 0
A70: =A69+1 -> 3 | B70: =Transitions!B238*EF!B49 -> 0 | C70: =Transitions!C238*EF!C49 -> 0 | D70: =Transitions!D238*EF!D49 -> 0 | E70: =Transitions!E238*EF!E49 -> 0 | F70: =Transitions!F238*EF!F49 -> 0 | G70: =Transitions!G238*EF!G49 -> 0 | H70: =Transitions!H238*EF!H49 -> 0 | I70: =Transitions!I238*EF!I49 -> 0 | J70: =Transitions!J238*EF!J49 -> 0 | K70: =Transitions!K238*EF!K49 -> 0 | L70: =Transitions!L238*EF!L49 -> 0 | M70: =Transitions!M238*EF!M49 -> 0 | N70: =Transitions!N238*EF!N49 -> 0 | O70: =Transitions!O238*EF!O49 -> 0 | P70: =Transitions!P238*EF!P49 -> 0 | Q70: =Transitions!Q238*EF!Q49 -> 0 | R70: =Transitions!R238*EF!R49 -> 0 | S70: =Transitions!S238*EF!S49 -> 0 | T70: =Transitions!T238*EF!T49 -> 0
A71: 4 | B71: =Transitions!B239*EF!B50 -> 0 | C71: =Transitions!C239*EF!C50 -> 0 | D71: =Transitions!D239*EF!D50 -> 0 | E71: =Transitions!E239*EF!E50 -> 0 | F71: =Transitions!F239*EF!F50 -> 0 | G71: =Transitions!G239*EF!G50 -> 0 | H71: =Transitions!H239*EF!H50 -> 0 | I71: =Transitions!I239*EF!I50 -> 0 | J71: =Transitions!J239*EF!J50 -> 0 | K71: =Transitions!K239*EF!K50 -> 0 | L71: =Transitions!L239*EF!L50 -> 33180.11427 | M71: =Transitions!M239*EF!M50 -> 0 | N71: =Transitions!N239*EF!N50 -> 0 | O71: =Transitions!O239*EF!O50 -> 0 | P71: =Transitions!P239*EF!P50 -> 0 | Q71: =Transitions!Q239*EF!Q50 -> 0 | R71: =Transitions!R239*EF!R50 -> 0 | S71: =Transitions!S239*EF!S50 -> 0 | T71: =Transitions!T239*EF!T50 -> 0
A72: 5 | B72: =Transitions!B240*EF!B51 -> 0 | C72: =Transitions!C240*EF!C51 -> 0 | D72: =Transitions!D240*EF!D51 -> 0 | E72: =Transitions!E240*EF!E51 -> 0 | F72: =Transitions!F240*EF!F51 -> 0 | G72: =Transitions!G240*EF!G51 -> 0 | H72: =Transitions!H240*EF!H51 -> 0 | I72: =Transitions!I240*EF!I51 -> 0 | J72: =Transitions!J240*EF!J51 -> 0 | K72: =Transitions!K240*EF!K51 -> 0 | L72: =Transitions!L240*EF!L51 -> 33391.70058 | M72: =Transitions!M240*EF!M51 -> 0 | N72: =Transitions!N240*EF!N51 -> 0 | O72: =Transitions!O240*EF!O51 -> 0 | P72: =Transitions!P240*EF!P51 -> 0 | Q72: =Transitions!Q240*EF!Q51 -> 0 | R72: =Transitions!R240*EF!R51 -> 0 | S72: =Transitions!S240*EF!S51 -> 0 | T72: =Transitions!T240*EF!T51 -> 0
A73: 6 | B73: =Transitions!B241*EF!B52 -> 0 | C73: =Transitions!C241*EF!C52 -> 0 | D73: =Transitions!D241*EF!D52 -> 0 | E73: =Transitions!E241*EF!E52 -> 0 | F73: =Transitions!F241*EF!F52 -> 0 | G73: =Transitions!G241*EF!G52 -> 0 | H73: =Transitions!H241*EF!H52 -> 0 | I73: =Transitions!I241*EF!I52 -> 0 | J73: =Transitions!J241*EF!J52 -> 0 | K73: =Transitions!K241*EF!K52 -> 0 | L73: =Transitions!L241*EF!L52 -> 7794268.564 | M73: =Transitions!M241*EF!M52 -> 0 | N73: =Transitions!N241*EF!N52 -> 0 | O73: =Transitions!O241*EF!O52 -> 0 | P73: =Transitions!P241*EF!P52 -> 0 | Q73: =Transitions!Q241*EF!Q52 -> 0 | R73: =Transitions!R241*EF!R52 -> 0 | S73: =Transitions!S241*EF!S52 -> 0 | T73: =Transitions!T241*EF!T52 -> 0
A74: 7 | B74: =Transitions!B242*EF!B53 -> 0 | C74: =Transitions!C242*EF!C53 -> 0 | D74: =Transitions!D242*EF!D53 -> 0 | E74: =Transitions!E242*EF!E53 -> 0 | F74: =Transitions!F242*EF!F53 -> 0 | G74: =Transitions!G242*EF!G53 -> 0 | H74: =Transitions!H242*EF!H53 -> 0 | I74: =Transitions!I242*EF!I53 -> 0 | J74: =Transitions!J242*EF!J53 -> 0 | K74: =Transitions!K242*EF!K53 -> 0 | L74: =Transitions!L242*EF!L53 -> 0 | M74: =Transitions!M242*EF!M53 -> 0 | N74: =Transitions!N242*EF!N53 -> 0 | O74: =Transitions!O242*EF!O53 -> 0 | P74: =Transitions!P242*EF!P53 -> 0 | Q74: =Transitions!Q242*EF!Q53 -> 0 | R74: =Transitions!R242*EF!R53 -> 0 | S74: =Transitions!S242*EF!S53 -> 0 | T74: =Transitions!T242*EF!T53 -> 0
A75: 8 | B75: =Transitions!B243*EF!B54 -> 0 | C75: =Transitions!C243*EF!C54 -> 0 | D75: =Transitions!D243*EF!D54 -> 0 | E75: =Transitions!E243*EF!E54 -> 0 | F75: =Transitions!F243*EF!F54 -> 0 | G75: =Transitions!G243*EF!G54 -> 0 | H75: =Transitions!H243*EF!H54 -> 0 | I75: =Transitions!I243*EF!I54 -> 0 | J75: =Transitions!J243*EF!J54 -> 0 | K75: =Transitions!K243*EF!K54 -> 0 | L75: =Transitions!L243*EF!L54 -> 0 | M75: =Transitions!M243*EF!M54 -> 0 | N75: =Transitions!N243*EF!N54 -> 0 | O75: =Transitions!O243*EF!O54 -> 0 | P75: =Transitions!P243*EF!P54 -> 0 | Q75: =Transitions!Q243*EF!Q54 -> 0 | R75: =Transitions!R243*EF!R54 -> 0 | S75: =Transitions!S243*EF!S54 -> 0 | T75: =Transitions!T243*EF!T54 -> 0
A76: 9 | B76: =Transitions!B244*EF!B55 -> 0 | C76: =Transitions!C244*EF!C55 -> 0 | D76: =Transitions!D244*EF!D55 -> 0 | E76: =Transitions!E244*EF!E55 -> 0 | F76: =Transitions!F244*EF!F55 -> 0 | G76: =Transitions!G244*EF!G55 -> 0 | H76: =Transitions!H244*EF!H55 -> 0 | I76: =Transitions!I244*EF!I55 -> 0 | J76: =Transitions!J244*EF!J55 -> 0 | K76: =Transitions!K244*EF!K55 -> 0 | L76: =Transitions!L244*EF!L55 -> 0 | M76: =Transitions!M244*EF!M55 -> 0 | N76: =Transitions!N244*EF!N55 -> 0 | O76: =Transitions!O244*EF!O55 -> 0 | P76: =Transitions!P244*EF!P55 -> 0 | Q76: =Transitions!Q244*EF!Q55 -> 0 | R76: =Transitions!R244*EF!R55 -> 0 | S76: =Transitions!S244*EF!S55 -> 0 | T76: =Transitions!T244*EF!T55 -> 0
A77: 10 | B77: =Transitions!B245*EF!B56 -> 0 | C77: =Transitions!C245*EF!C56 -> 0 | D77: =Transitions!D245*EF!D56 -> 0 | E77: =Transitions!E245*EF!E56 -> 0 | F77: =Transitions!F245*EF!F56 -> 0 | G77: =Transitions!G245*EF!G56 -> 0 | H77: =Transitions!H245*EF!H56 -> 0 | I77: =Transitions!I245*EF!I56 -> 0 | J77: =Transitions!J245*EF!J56 -> 0 | K77: =Transitions!K245*EF!K56 -> 0 | L77: =Transitions!L245*EF!L56 -> 0 | M77: =Transitions!M245*EF!M56 -> 0 | N77: =Transitions!N245*EF!N56 -> 0 | O77: =Transitions!O245*EF!O56 -> 0 | P77: =Transitions!P245*EF!P56 -> 0 | Q77: =Transitions!Q245*EF!Q56 -> 0 | R77: =Transitions!R245*EF!R56 -> 0 | S77: =Transitions!S245*EF!S56 -> 0 | T77: =Transitions!T245*EF!T56 -> 0
A78: 11 | B78: =Transitions!B246*EF!B57 -> 0 | C78: =Transitions!C246*EF!C57 -> 0 | D78: =Transitions!D246*EF!D57 -> 0 | E78: =Transitions!E246*EF!E57 -> 0 | F78: =Transitions!F246*EF!F57 -> 0 | G78: =Transitions!G246*EF!G57 -> 0 | H78: =Transitions!H246*EF!H57 -> 0 | I78: =Transitions!I246*EF!I57 -> 0 | J78: =Transitions!J246*EF!J57 -> 0 | K78: =Transitions!K246*EF!K57 -> 0 | L78: =Transitions!L246*EF!L57 -> 0 | M78: =Transitions!M246*EF!M57 -> 0 | N78: =Transitions!N246*EF!N57 -> 0 | O78: =Transitions!O246*EF!O57 -> 0 | P78: =Transitions!P246*EF!P57 -> 0 | Q78: =Transitions!Q246*EF!Q57 -> 0 | R78: =Transitions!R246*EF!R57 -> 0 | S78: =Transitions!S246*EF!S57 -> 0 | T78: =Transitions!T246*EF!T57 -> 0
A79: 12 | B79: =Transitions!B247*EF!B58 -> 0 | C79: =Transitions!C247*EF!C58 -> 0 | D79: =Transitions!D247*EF!D58 -> 0 | E79: =Transitions!E247*EF!E58 -> 0 | F79: =Transitions!F247*EF!F58 -> 0 | G79: =Transitions!G247*EF!G58 -> 0 | H79: =Transitions!H247*EF!H58 -> 0 | I79: =Transitions!I247*EF!I58 -> 0 | J79: =Transitions!J247*EF!J58 -> 0 | K79: =Transitions!K247*EF!K58 -> 0 | L79: =Transitions!L247*EF!L58 -> 0 | M79: =Transitions!M247*EF!M58 -> 0 | N79: =Transitions!N247*EF!N58 -> 0 | O79: =Transitions!O247*EF!O58 -> 0 | P79: =Transitions!P247*EF!P58 -> 0 | Q79: =Transitions!Q247*EF!Q58 -> 0 | R79: =Transitions!R247*EF!R58 -> 0 | S79: =Transitions!S247*EF!S58 -> 0 | T79: =Transitions!T247*EF!T58 -> 0
A80: 13 | B80: =Transitions!B248*EF!B59 -> 0 | C80: =Transitions!C248*EF!C59 -> 0 | D80: =Transitions!D248*EF!D59 -> 0 | E80: =Transitions!E248*EF!E59 -> 0 | F80: =Transitions!F248*EF!F59 -> 0 | G80: =Transitions!G248*EF!G59 -> 0 | H80: =Transitions!H248*EF!H59 -> 0 | I80: =Transitions!I248*EF!I59 -> 0 | J80: =Transitions!J248*EF!J59 -> 0 | K80: =Transitions!K248*EF!K59 -> 0 | L80: =Transitions!L248*EF!L59 -> 0 | M80: =Transitions!M248*EF!M59 -> 0 | N80: =Transitions!N248*EF!N59 -> 0 | O80: =Transitions!O248*EF!O59 -> 0 | P80: =Transitions!P248*EF!P59 -> 0 | Q80: =Transitions!Q248*EF!Q59 -> 0 | R80: =Transitions!R248*EF!R59 -> 0 | S80: =Transitions!S248*EF!S59 -> 0 | T80: =Transitions!T248*EF!T59 -> 0
A81: 14 | B81: =Transitions!B249*EF!B60 -> 0 | C81: =Transitions!C249*EF!C60 -> 0 | D81: =Transitions!D249*EF!D60 -> 0 | E81: =Transitions!E249*EF!E60 -> 0 | F81: =Transitions!F249*EF!F60 -> 0 | G81: =Transitions!G249*EF!G60 -> 0 | H81: =Transitions!H249*EF!H60 -> 0 | I81: =Transitions!I249*EF!I60 -> 0 | J81: =Transitions!J249*EF!J60 -> 0 | K81: =Transitions!K249*EF!K60 -> 0 | L81: =Transitions!L249*EF!L60 -> 0 | M81: =Transitions!M249*EF!M60 -> 0 | N81: =Transitions!N249*EF!N60 -> 0 | O81: =Transitions!O249*EF!O60 -> 0 | P81: =Transitions!P249*EF!P60 -> 0 | Q81: =Transitions!Q249*EF!Q60 -> 0 | R81: =Transitions!R249*EF!R60 -> 0 | S81: =Transitions!S249*EF!S60 -> 0 | T81: =Transitions!T249*EF!T60 -> 0
A82: 15 | B82: =Transitions!B250*EF!B61 -> 0 | C82: =Transitions!C250*EF!C61 -> 0 | D82: =Transitions!D250*EF!D61 -> 0 | E82: =Transitions!E250*EF!E61 -> 0 | F82: =Transitions!F250*EF!F61 -> 0 | G82: =Transitions!G250*EF!G61 -> 0 | H82: =Transitions!H250*EF!H61 -> 0 | I82: =Transitions!I250*EF!I61 -> 0 | J82: =Transitions!J250*EF!J61 -> 0 | K82: =Transitions!K250*EF!K61 -> 0 | L82: =Transitions!L250*EF!L61 -> 0 | M82: =Transitions!M250*EF!M61 -> 0 | N82: =Transitions!N250*EF!N61 -> 0 | O82: =Transitions!O250*EF!O61 -> 0 | P82: =Transitions!P250*EF!P61 -> 0 | Q82: =Transitions!Q250*EF!Q61 -> 0 | R82: =Transitions!R250*EF!R61 -> 0 | S82: =Transitions!S250*EF!S61 -> 0 | T82: =Transitions!T250*EF!T61 -> 0
A83: 16 | B83: =Transitions!B251*EF!B62 -> 0 | C83: =Transitions!C251*EF!C62 -> 0 | D83: =Transitions!D251*EF!D62 -> 0 | E83: =Transitions!E251*EF!E62 -> 0 | F83: =Transitions!F251*EF!F62 -> 0 | G83: =Transitions!G251*EF!G62 -> 0 | H83: =Transitions!H251*EF!H62 -> 0 | I83: =Transitions!I251*EF!I62 -> 0 | J83: =Transitions!J251*EF!J62 -> 0 | K83: =Transitions!K251*EF!K62 -> 0 | L83: =Transitions!L251*EF!L62 -> 0 | M83: =Transitions!M251*EF!M62 -> 0 | N83: =Transitions!N251*EF!N62 -> 0 | O83: =Transitions!O251*EF!O62 -> 0 | P83: =Transitions!P251*EF!P62 -> 0 | Q83: =Transitions!Q251*EF!Q62 -> 0 | R83: =Transitions!R251*EF!R62 -> 0 | S83: =Transitions!S251*EF!S62 -> 0 | T83: =Transitions!T251*EF!T62 -> 0
A84: 17 | B84: =Transitions!B252*EF!B63 -> 0 | C84: =Transitions!C252*EF!C63 -> 0 | D84: =Transitions!D252*EF!D63 -> 0 | E84: =Transitions!E252*EF!E63 -> 0 | F84: =Transitions!F252*EF!F63 -> 0 | G84: =Transitions!G252*EF!G63 -> 0 | H84: =Transitions!H252*EF!H63 -> 0 | I84: =Transitions!I252*EF!I63 -> 0 | J84: =Transitions!J252*EF!J63 -> 0 | K84: =Transitions!K252*EF!K63 -> 0 | L84: =Transitions!L252*EF!L63 -> 0 | M84: =Transitions!M252*EF!M63 -> 0 | N84: =Transitions!N252*EF!N63 -> 0 | O84: =Transitions!O252*EF!O63 -> 0 | P84: =Transitions!P252*EF!P63 -> 0 | Q84: =Transitions!Q252*EF!Q63 -> 0 | R84: =Transitions!R252*EF!R63 -> 0 | S84: =Transitions!S252*EF!S63 -> 0 | T84: =Transitions!T252*EF!T63 -> 0
A85: 18 | B85: =Transitions!B253*EF!B64 -> 0 | C85: =Transitions!C253*EF!C64 -> 0 | D85: =Transitions!D253*EF!D64 -> 0 | E85: =Transitions!E253*EF!E64 -> 0 | F85: =Transitions!F253*EF!F64 -> 0 | G85: =Transitions!G253*EF!G64 -> 0 | H85: =Transitions!H253*EF!H64 -> 0 | I85: =Transitions!I253*EF!I64 -> 0 | J85: =Transitions!J253*EF!J64 -> 0 | K85: =Transitions!K253*EF!K64 -> 0 | L85: =Transitions!L253*EF!L64 -> 0 | M85: =Transitions!M253*EF!M64 -> 0 | N85: =Transitions!N253*EF!N64 -> 0 | O85: =Transitions!O253*EF!O64 -> 0 | P85: =Transitions!P253*EF!P64 -> 0 | Q85: =Transitions!Q253*EF!Q64 -> 0 | R85: =Transitions!R253*EF!R64 -> 0 | S85: =Transitions!S253*EF!S64 -> 0 | T85: =Transitions!T253*EF!T64 -> 0
A86: TOTAL | B86: =SUM(B68:B85) -> 0 | C86: =SUM(C68:C85) -> 0 | D86: 0 | E86: 0 | F86: 0 | G86: 0 | H86: 0 | I86: 0 | J86: 0 | K86: 0 | L86: 7860840.379 | M86: 0 | N86: 0 | O86: 0 | P86: 0 | Q86: 0 | R86: 0 | S86: 0 | T86: 0
A88: Forestry-to-pasture
A89: AEZ | B89: =Tables!E$6 -> USA | C89: =Tables!F$6 -> EU27 | D89: =Tables!G$6 -> BRAZIL | E89: =Tables!H$6 -> CAN | F89: =Tables!I$6 -> JAPAN | G89: =Tables!J$6 -> CHIHKG | H89: =Tables!K$6 -> INDIA | I89: =Tables!L$6 -> C_C_Amer | J89: =Tables!M$6 -> S_o_Amer | K89: =Tables!N$6 -> E_Asia | L89: =Tables!O$6 -> Mala_Indo | M89: =Tables!P$6 -> R_SE_Asia | N89: =Tables!Q$6 -> R_S_Asia | O89: =Tables!R$6 -> Russia | P89: =Tables!S$6 -> Oth_CEE_CIS | Q89: =Tables!T$6 -> Oth_Europe | R89: =Tables!U$6 -> MEAS_Nafr | S89: =Tables!V$6 -> S_S_Afr | T89: =Tables!W$6 -> Oceania
A90: 1 | B90: =Transitions!B1706*EF!B68 -> 0 | C90: =Transitions!C1706*EF!C68 -> 0 | D90: =Transitions!D1706*EF!D68 -> 0 | E90: =Transitions!E1706*EF!E68 -> 0 | F90: =Transitions!F1706*EF!F68 -> 0 | G90: =Transitions!G1706*EF!G68 -> 0 | H90: =Transitions!H1706*EF!H68 -> 0 | I90: =Transitions!I1706*EF!I68 -> 0 | J90: =Transitions!J1706*EF!J68 -> 0 | K90: =Transitions!K1706*EF!K68 -> 0 | L90: =Transitions!L1706*EF!L68 -> 0 | M90: =Transitions!M1706*EF!M68 -> 0 | N90: =Transitions!N1706*EF!N68 -> 0 | O90: =Transitions!O1706*EF!O68 -> 0 | P90: =Transitions!P1706*EF!P68 -> 0 | Q90: =Transitions!Q1706*EF!Q68 -> 0 | R90: =Transitions!R1706*EF!R68 -> 0 | S90: =Transitions!S1706*EF!S68 -> 0 | T90: =Transitions!T1706*EF!T68 -> 0
A91: =A90+1 -> 2 | B91: =Transitions!B1707*EF!B69 -> 0 | C91: =Transitions!C1707*EF!C69 -> 0 | D91: =Transitions!D1707*EF!D69 -> 0 | E91: =Transitions!E1707*EF!E69 -> 0 | F91: =Transitions!F1707*EF!F69 -> 0 | G91: =Transitions!G1707*EF!G69 -> 0 | H91: =Transitions!H1707*EF!H69 -> 0 | I91: =Transitions!I1707*EF!I69 -> 0 | J91: =Transitions!J1707*EF!J69 -> 0 | K91: =Transitions!K1707*EF!K69 -> 0 | L91: =Transitions!L1707*EF!L69 -> 0 | M91: =Transitions!M1707*EF!M69 -> 0 | N91: =Transitions!N1707*EF!N69 -> 0 | O91: =Transitions!O1707*EF!O69 -> 0 | P91: =Transitions!P1707*EF!P69 -> 0 | Q91: =Transitions!Q1707*EF!Q69 -> 0 | R91: =Transitions!R1707*EF!R69 -> 0 | S91: =Transitions!S1707*EF!S69 -> 0 | T91: =Transitions!T1707*EF!T69 -> 0
A92: =A91+1 -> 3 | B92: =Transitions!B1708*EF!B70 -> 0 | C92: =Transitions!C1708*EF!C70 -> 0 | D92: =Transitions!D1708*EF!D70 -> 0 | E92: =Transitions!E1708*EF!E70 -> 0 | F92: =Transitions!F1708*EF!F70 -> 0 | G92: =Transitions!G1708*EF!G70 -> 0 | H92: =Transitions!H1708*EF!H70 -> 0 | I92: =Transitions!I1708*EF!I70 -> 0 | J92: =Transitions!J1708*EF!J70 -> 0 | K92: =Transitions!K1708*EF!K70 -> 0 | L92: =Transitions!L1708*EF!L70 -> 0 | M92: =Transitions!M1708*EF!M70 -> 0 | N92: =Transitions!N1708*EF!N70 -> 0 | O92: =Transitions!O1708*EF!O70 -> 0 | P92: =Transitions!P1708*EF!P70 -> 0 | Q92: =Transitions!Q1708*EF!Q70 -> 0 | R92: =Transitions!R1708*EF!R70 -> 0 | S92: =Transitions!S1708*EF!S70 -> 0 | T92: =Transitions!T1708*EF!T70 -> 0
A93: 4 | B93: =Transitions!B1709*EF!B71 -> 0 | C93: =Transitions!C1709*EF!C71 -> 0 | D93: =Transitions!D1709*EF!D71 -> 0 | E93: =Transitions!E1709*EF!E71 -> 0 | F93: =Transitions!F1709*EF!F71 -> 0 | G93: =Transitions!G1709*EF!G71 -> 0 | H93: =Transitions!H1709*EF!H71 -> 0 | I93: =Transitions!I1709*EF!I71 -> 0 | J93: =Transitions!J1709*EF!J71 -> 0 | K93: =Transitions!K1709*EF!K71 -> 0 | L93: =Transitions!L1709*EF!L71 -> 0 | M93: =Transitions!M1709*EF!M71 -> 0 | N93: =Transitions!N1709*EF!N71 -> 0 | O93: =Transitions!O1709*EF!O71 -> 0 | P93: =Transitions!P1709*EF!P71 -> 0 | Q93: =Transitions!Q1709*EF!Q71 -> 0 | R93: =Transitions!R1709*EF!R71 -> 0 | S93: =Transitions!S1709*EF!S71 -> 0 | T93: =Transitions!T1709*EF!T71 -> 0
A94: 5 | B94: =Transitions!B1710*EF!B72 -> 0 | C94: =Transitions!C1710*EF!C72 -> 0 | D94: =Transitions!D1710*EF!D72 -> 0 | E94: =Transitions!E1710*EF!E72 -> 0 | F94: =Transitions!F1710*EF!F72 -> 0 | G94: =Transitions!G1710*EF!G72 -> 0 | H94: =Transitions!H1710*EF!H72 -> 0 | I94: =Transitions!I1710*EF!I72 -> 0 | J94: =Transitions!J1710*EF!J72 -> 0 | K94: =Transitions!K1710*EF!K72 -> 0 | L94: =Transitions!L1710*EF!L72 -> 0 | M94: =Transitions!M1710*EF!M72 -> 0 | N94: =Transitions!N1710*EF!N72 -> 0 | O94: =Transitions!O1710*EF!O72 -> 0 | P94: =Transitions!P1710*EF!P72 -> 0 | Q94: =Transitions!Q1710*EF!Q72 -> 0 | R94: =Transitions!R1710*EF!R72 -> 0 | S94: =Transitions!S1710*EF!S72 -> 0 | T94: =Transitions!T1710*EF!T72 -> 0
A95: 6 | B95: =Transitions!B1711*EF!B73 -> 0 | C95: =Transitions!C1711*EF!C73 -> 0 | D95: =Transitions!D1711*EF!D73 -> 0 | E95: =Transitions!E1711*EF!E73 -> 0 | F95: =Transitions!F1711*EF!F73 -> 0 | G95: =Transitions!G1711*EF!G73 -> 0 | H95: =Transitions!H1711*EF!H73 -> 0 | I95: =Transitions!I1711*EF!I73 -> 0 | J95: =Transitions!J1711*EF!J73 -> 0 | K95: =Transitions!K1711*EF!K73 -> 0 | L95: =Transitions!L1711*EF!L73 -> 0 | M95: =Transitions!M1711*EF!M73 -> 0 | N95: =Transitions!N1711*EF!N73 -> 0 | O95: =Transitions!O1711*EF!O73 -> 0 | P95: =Transitions!P1711*EF!P73 -> 0 | Q95: =Transitions!Q1711*EF!Q73 -> 0 | R95: =Transitions!R1711*EF!R73 -> 0 | S95: =Transitions!S1711*EF!S73 -> 0 | T95: =Transitions!T1711*EF!T73 -> 0
A96: 7 | B96: =Transitions!B1712*EF!B74 -> 0 | C96: =Transitions!C1712*EF!C74 -> 0 | D96: =Transitions!D1712*EF!D74 -> 0 | E96: =Transitions!E1712*EF!E74 -> 0 | F96: =Transitions!F1712*EF!F74 -> 0 | G96: =Transitions!G1712*EF!G74 -> 0 | H96: =Transitions!H1712*EF!H74 -> 0 | I96: =Transitions!I1712*EF!I74 -> 0 | J96: =Transitions!J1712*EF!J74 -> 0 | K96: =Transitions!K1712*EF!K74 -> 0 | L96: =Transitions!L1712*EF!L74 -> 0 | M96: =Transitions!M1712*EF!M74 -> 0 | N96: =Transitions!N1712*EF!N74 -> 0 | O96: =Transitions!O1712*EF!O74 -> 0 | P96: =Transitions!P1712*EF!P74 -> 0 | Q96: =Transitions!Q1712*EF!Q74 -> 0 | R96: =Transitions!R1712*EF!R74 -> 0 | S96: =Transitions!S1712*EF!S74 -> 0 | T96: =Transitions!T1712*EF!T74 -> 0
A97: 8 | B97: =Transitions!B1713*EF!B75 -> 0 | C97: =Transitions!C1713*EF!C75 -> 0 | D97: =Transitions!D1713*EF!D75 -> 0 | E97: =Transitions!E1713*EF!E75 -> 0 | F97: =Transitions!F1713*EF!F75 -> 0 | G97: =Transitions!G1713*EF!G75 -> 0 | H97: =Transitions!H1713*EF!H75 -> 0 | I97: =Transitions!I1713*EF!I75 -> 0 | J97: =Transitions!J1713*EF!J75 -> 0 | K97: =Transitions!K1713*EF!K75 -> 0 | L97: =Transitions!L1713*EF!L75 -> 0 | M97: =Transitions!M1713*EF!M75 -> 0 | N97: =Transitions!N1713*EF!N75 -> 0 | O97: =Transitions!O1713*EF!O75 -> 0 | P97: =Transitions!P1713*EF!P75 -> 0 | Q97: =Transitions!Q1713*EF!Q75 -> 0 | R97: =Transitions!R1713*EF!R75 -> 0 | S97: =Transitions!S1713*EF!S75 -> 0 | T97: =Transitions!T1713*EF!T75 -> 0
A98: 9 | B98: =Transitions!B1714*EF!B76 -> 0 | C98: =Transitions!C1714*EF!C76 -> 0 | D98: =Transitions!D1714*EF!D76 -> 0 | E98: =Transitions!E1714*EF!E76 -> 0 | F98: =Transitions!F1714*EF!F76 -> 0 | G98: =Transitions!G1714*EF!G76 -> 0 | H98: =Transitions!H1714*EF!H76 -> 0 | I98: =Transitions!I1714*EF!I76 -> 0 | J98: =Transitions!J1714*EF!J76 -> 0 | K98: =Transitions!K1714*EF!K76 -> 0 | L98: =Transitions!L1714*EF!L76 -> 0 | M98: =Transitions!M1714*EF!M76 -> 0 | N98: =Transitions!N1714*EF!N76 -> 0 | O98: =Transitions!O1714*EF!O76 -> 0 | P98: =Transitions!P1714*EF!P76 -> 0 | Q98: =Transitions!Q1714*EF!Q76 -> 0 | R98: =Transitions!R1714*EF!R76 -> 0 | S98: =Transitions!S1714*EF!S76 -> 0 | T98: =Transitions!T1714*EF!T76 -> 0
A99: 10 | B99: =Transitions!B1715*EF!B77 -> 45605.4413 | C99: =Transitions!C1715*EF!C77 -> 0 | D99: =Transitions!D1715*EF!D77 -> 0 | E99: =Transitions!E1715*EF!E77 -> 0 | F99: =Transitions!F1715*EF!F77 -> 0 | G99: =Transitions!G1715*EF!G77 -> 0 | H99: =Transitions!H1715*EF!H77 -> 0 | I99: =Transitions!I1715*EF!I77 -> 0 | J99: =Transitions!J1715*EF!J77 -> 0 | K99: =Transitions!K1715*EF!K77 -> 0 | L99: =Transitions!L1715*EF!L77 -> 0 | M99: =Transitions!M1715*EF!M77 -> 0 | N99: =Transitions!N1715*EF!N77 -> 0 | O99: =Transitions!O1715*EF!O77 -> 0 | P99: =Transitions!P1715*EF!P77 -> 0 | Q99: =Transitions!Q1715*EF!Q77 -> 0 | R99: =Transitions!R1715*EF!R77 -> 0 | S99: =Transitions!S1715*EF!S77 -> 0 | T99: =Transitions!T1715*EF!T77 -> 0
A100: 11 | B100: =Transitions!B1716*EF!B78 -> 9930.66402 | C100: =Transitions!C1716*EF!C78 -> 0 | D100: =Transitions!D1716*EF!D78 -> 0 | E100: =Transitions!E1716*EF!E78 -> 0 | F100: =Transitions!F1716*EF!F78 -> 0 | G100: =Transitions!G1716*EF!G78 -> 0 | H100: =Transitions!H1716*EF!H78 -> 0 | I100: =Transitions!I1716*EF!I78 -> 0 | J100: =Transitions!J1716*EF!J78 -> 0 | K100: =Transitions!K1716*EF!K78 -> 0 | L100: =Transitions!L1716*EF!L78 -> 0 | M100: =Transitions!M1716*EF!M78 -> 0 | N100: =Transitions!N1716*EF!N78 -> 0 | O100: =Transitions!O1716*EF!O78 -> 0 | P100: =Transitions!P1716*EF!P78 -> 0 | Q100: =Transitions!Q1716*EF!Q78 -> 0 | R100: =Transitions!R1716*EF!R78 -> 0 | S100: =Transitions!S1716*EF!S78 -> 0 | T100: =Transitions!T1716*EF!T78 -> 0
A101: 12 | B101: =Transitions!B1717*EF!B79 -> 18834.4904 | C101: =Transitions!C1717*EF!C79 -> 0 | D101: =Transitions!D1717*EF!D79 -> 0 | E101: =Transitions!E1717*EF!E79 -> 0 | F101: =Transitions!F1717*EF!F79 -> 0 | G101: =Transitions!G1717*EF!G79 -> 0 | H101: =Transitions!H1717*EF!H79 -> 0 | I101: =Transitions!I1717*EF!I79 -> 0 | J101: =Transitions!J1717*EF!J79 -> 0 | K101: =Transitions!K1717*EF!K79 -> 0 | L101: =Transitions!L1717*EF!L79 -> 0 | M101: =Transitions!M1717*EF!M79 -> 0 | N101: =Transitions!N1717*EF!N79 -> 0 | O101: =Transitions!O1717*EF!O79 -> 0 | P101: =Transitions!P1717*EF!P79 -> 0 | Q101: =Transitions!Q1717*EF!Q79 -> 0 | R101: =Transitions!R1717*EF!R79 -> 0 | S101: =Transitions!S1717*EF!S79 -> 0 | T101: =Transitions!T1717*EF!T79 -> 0
A102: 13 | B102: =Transitions!B1718*EF!B80 -> 0 | C102: =Transitions!C1718*EF!C80 -> 0 | D102: =Transitions!D1718*EF!D80 -> 0 | E102: =Transitions!E1718*EF!E80 -> 0 | F102: =Transitions!F1718*EF!F80 -> 0 | G102: =Transitions!G1718*EF!G80 -> 0 | H102: =Transitions!H1718*EF!H80 -> 0 | I102: =Transitions!I1718*EF!I80 -> 0 | J102: =Transitions!J1718*EF!J80 -> 0 | K102: =Transitions!K1718*EF!K80 -> 0 | L102: =Transitions!L1718*EF!L80 -> 0 | M102: =Transitions!M1718*EF!M80 -> 0 | N102: =Transitions!N1718*EF!N80 -> 0 | O102: =Transitions!O1718*EF!O80 -> 0 | P102: =Transitions!P1718*EF!P80 -> 0 | Q102: =Transitions!Q1718*EF!Q80 -> 0 | R102: =Transitions!R1718*EF!R80 -> 0 | S102: =Transitions!S1718*EF!S80 -> 0 | T102: =Transitions!T1718*EF!T80 -> 0
A103: 14 | B103: =Transitions!B1719*EF!B81 -> 2894.234454 | C103: =Transitions!C1719*EF!C81 -> 0 | D103: =Transitions!D1719*EF!D81 -> 0 | E103: =Transitions!E1719*EF!E81 -> 0 | F103: =Transitions!F1719*EF!F81 -> 0 | G103: =Transitions!G1719*EF!G81 -> 0 | H103: =Transitions!H1719*EF!H81 -> 0 | I103: =Transitions!I1719*EF!I81 -> 0 | J103: =Transitions!J1719*EF!J81 -> 0 | K103: =Transitions!K1719*EF!K81 -> 0 | L103: =Transitions!L1719*EF!L81 -> 0 | M103: =Transitions!M1719*EF!M81 -> 0 | N103: =Transitions!N1719*EF!N81 -> 0 | O103: =Transitions!O1719*EF!O81 -> 0 | P103: =Transitions!P1719*EF!P81 -> 0 | Q103: =Transitions!Q1719*EF!Q81 -> 0 | R103: =Transitions!R1719*EF!R81 -> 0 | S103: =Transitions!S1719*EF!S81 -> 0 | T103: =Transitions!T1719*EF!T81 -> 0
A104: 15 | B104: =Transitions!B1720*EF!B82 -> 0 | C104: =Transitions!C1720*EF!C82 -> 0 | D104: =Transitions!D1720*EF!D82 -> 0 | E104: =Transitions!E1720*EF!E82 -> 0 | F104: =Transitions!F1720*EF!F82 -> 0 | G104: =Transitions!G1720*EF!G82 -> 0 | H104: =Transitions!H1720*EF!H82 -> 0 | I104: =Transitions!I1720*EF!I82 -> 0 | J104: =Transitions!J1720*EF!J82 -> 0 | K104: =Transitions!K1720*EF!K82 -> 2101.891721 | L104: =Transitions!L1720*EF!L82 -> 0 | M104: =Transitions!M1720*EF!M82 -> 0 | N104: =Transitions!N1720*EF!N82 -> 0 | O104: =Transitions!O1720*EF!O82 -> 0 | P104: =Transitions!P1720*EF!P82 -> 0 | Q104: =Transitions!Q1720*EF!Q82 -> 0 | R104: =Transitions!R1720*EF!R82 -> 0 | S104: =Transitions!S1720*EF!S82 -> 0 | T104: =Transitions!T1720*EF!T82 -> 0
A105: 16 | B105: =Transitions!B1721*EF!B83 -> 0 | C105: =Transitions!C1721*EF!C83 -> 0 | D105: =Transitions!D1721*EF!D83 -> 0 | E105: =Transitions!E1721*EF!E83 -> 0 | F105: =Transitions!F1721*EF!F83 -> 0 | G105: =Transitions!G1721*EF!G83 -> 0 | H105: =Transitions!H1721*EF!H83 -> 0 | I105: =Transitions!I1721*EF!I83 -> 0 | J105: =Transitions!J1721*EF!J83 -> 0 | K105: =Transitions!K1721*EF!K83 -> 0 | L105: =Transitions!L1721*EF!L83 -> 0 | M105: =Transitions!M1721*EF!M83 -> 0 | N105: =Transitions!N1721*EF!N83 -> 0 | O105: =Transitions!O1721*EF!O83 -> 0 | P105: =Transitions!P1721*EF!P83 -> 0 | Q105: =Transitions!Q1721*EF!Q83 -> 0 | R105: =Transitions!R1721*EF!R83 -> 0 | S105: =Transitions!S1721*EF!S83 -> 0 | T105: =Transitions!T1721*EF!T83 -> 0
A106: 17 | B106: =Transitions!B1722*EF!B84 -> 0 | C106: =Transitions!C1722*EF!C84 -> 0 | D106: =Transitions!D1722*EF!D84 -> 0 | E106: =Transitions!E1722*EF!E84 -> 0 | F106: =Transitions!F1722*EF!F84 -> 0 | G106: =Transitions!G1722*EF!G84 -> 0 | H106: =Transitions!H1722*EF!H84 -> 0 | I106: =Transitions!I1722*EF!I84 -> 0 | J106: =Transitions!J1722*EF!J84 -> 0 | K106: =Transitions!K1722*EF!K84 -> 0 | L106: =Transitions!L1722*EF!L84 -> 0 | M106: =Transitions!M1722*EF!M84 -> 0 | N106: =Transitions!N1722*EF!N84 -> 0 | O106: =Transitions!O1722*EF!O84 -> 0 | P106: =Transitions!P1722*EF!P84 -> 0 | Q106: =Transitions!Q1722*EF!Q84 -> 0 | R106: =Transitions!R1722*EF!R84 -> 0 | S106: =Transitions!S1722*EF!S84 -> 0 | T106: =Transitions!T1722*EF!T84 -> 0
A107: 18 | B107: =Transitions!B1723*EF!B85 -> 0 | C107: =Transitions!C1723*EF!C85 -> 0 | D107: =Transitions!D1723*EF!D85 -> 0 | E107: =Transitions!E1723*EF!E85 -> 0 | F107: =Transitions!F1723*EF!F85 -> 0 | G107: =Transitions!G1723*EF!G85 -> 0 | H107: =Transitions!H1723*EF!H85 -> 0 | I107: =Transitions!I1723*EF!I85 -> 0 | J107: =Transitions!J1723*EF!J85 -> 0 | K107: =Transitions!K1723*EF!K85 -> 0 | L107: =Transitions!L1723*EF!L85 -> 0 | M107: =Transitions!M1723*EF!M85 -> 0 | N107: =Transitions!N1723*EF!N85 -> 0 | O107: =Transitions!O1723*EF!O85 -> 0 | P107: =Transitions!P1723*EF!P85 -> 0 | Q107: =Transitions!Q1723*EF!Q85 -> 0 | R107: =Transitions!R1723*EF!R85 -> 0 | S107: =Transitions!S1723*EF!S85 -> 0 | T107: =Transitions!T1723*EF!T85 -> 0
A108: TOTAL | B108: =SUM(B90:B107) -> 77264.83017 | C108: =SUM(C90:C107) -> 0 | D108: 0 | E108: 0 | F108: 0 | G108: 0 | H108: 0 | I108: 0 | J108: 0 | K108: 2101.891721 | L108: 0 | M108: 0 | N108: 0 | O108: 0 | P108: 0 | Q108: 0 | R108: 0 | S108: 0 | T108: 0
A110: Pasture-to-annuals
A111: AEZ | B111: =Tables!E$6 -> USA | C111: =Tables!F$6 -> EU27 | D111: =Tables!G$6 -> BRAZIL | E111: =Tables!H$6 -> CAN | F111: =Tables!I$6 -> JAPAN | G111: =Tables!J$6 -> CHIHKG | H111: =Tables!K$6 -> INDIA | I111: =Tables!L$6 -> C_C_Amer | J111: =Tables!M$6 -> S_o_Amer | K111: =Tables!N$6 -> E_Asia | L111: =Tables!O$6 -> Mala_Indo | M111: =Tables!P$6 -> R_SE_Asia | N111: =Tables!Q$6 -> R_S_Asia | O111: =Tables!R$6 -> Russia | P111: =Tables!S$6 -> Oth_CEE_CIS | Q111: =Tables!T$6 -> Oth_Europe | R111: =Tables!U$6 -> MEAS_Nafr | S111: =Tables!V$6 -> S_S_Afr | T111: =Tables!W$6 -> Oceania
A112: 1 | B112: =Transitions!B1496*EF!B89 -> 0 | C112: =Transitions!C1496*EF!C89 -> 0 | D112: =Transitions!D1496*EF!D89 -> 0 | E112: =Transitions!E1496*EF!E89 -> 0 | F112: =Transitions!F1496*EF!F89 -> 0 | G112: =Transitions!G1496*EF!G89 -> 0 | H112: =Transitions!H1496*EF!H89 -> 0 | I112: =Transitions!I1496*EF!I89 -> 502.6960766 | J112: =Transitions!J1496*EF!J89 -> 1020.11631 | K112: =Transitions!K1496*EF!K89 -> 0 | L112: =Transitions!L1496*EF!L89 -> 0 | M112: =Transitions!M1496*EF!M89 -> 0 | N112: =Transitions!N1496*EF!N89 -> 1525.151693 | O112: =Transitions!O1496*EF!O89 -> 0 | P112: =Transitions!P1496*EF!P89 -> 0 | Q112: =Transitions!Q1496*EF!Q89 -> 0 | R112: =Transitions!R1496*EF!R89 -> 6444.249948 | S112: =Transitions!S1496*EF!S89 -> 81641.54384 | T112: =Transitions!T1496*EF!T89 -> 0
A113: =A112+1 -> 2 | B113: =Transitions!B1497*EF!B90 -> 0 | C113: =Transitions!C1497*EF!C90 -> 0 | D113: =Transitions!D1497*EF!D90 -> 33.96862946 | E113: =Transitions!E1497*EF!E90 -> 0 | F113: =Transitions!F1497*EF!F90 -> 0 | G113: =Transitions!G1497*EF!G90 -> 0 | H113: =Transitions!H1497*EF!H90 -> 321.3303779 | I113: =Transitions!I1497*EF!I90 -> 421.5373692 | J113: =Transitions!J1497*EF!J90 -> 1760.637348 | K113: =Transitions!K1497*EF!K90 -> 0 | L113: =Transitions!L1497*EF!L90 -> 0 | M113: =Transitions!M1497*EF!M90 -> 0 | N113: =Transitions!N1497*EF!N90 -> 0 | O113: =Transitions!O1497*EF!O90 -> 0 | P113: =Transitions!P1497*EF!P90 -> 0 | Q113: =Transitions!Q1497*EF!Q90 -> 0 | R113: =Transitions!R1497*EF!R90 -> 61.58036742 | S113: =Transitions!S1497*EF!S90 -> 69600.62627 | T113: =Transitions!T1497*EF!T90 -> 769.0859002
A114: =A113+1 -> 3 | B114: =Transitions!B1498*EF!B91 -> 0 | C114: =Transitions!C1498*EF!C91 -> 0 | D114: =Transitions!D1498*EF!D91 -> 2113.845194 | E114: =Transitions!E1498*EF!E91 -> 0 | F114: =Transitions!F1498*EF!F91 -> 0 | G114: =Transitions!G1498*EF!G91 -> 0 | H114: =Transitions!H1498*EF!H91 -> 4056.940788 | I114: =Transitions!I1498*EF!I91 -> 781.3388691 | J114: =Transitions!J1498*EF!J91 -> 0 | K114: =Transitions!K1498*EF!K91 -> 0 | L114: =Transitions!L1498*EF!L91 -> 0 | M114: =Transitions!M1498*EF!M91 -> 0 | N114: =Transitions!N1498*EF!N91 -> 117.3381409 | O114: =Transitions!O1498*EF!O91 -> 0 | P114: =Transitions!P1498*EF!P91 -> 0 | Q114: =Transitions!Q1498*EF!Q91 -> 0 | R114: =Transitions!R1498*EF!R91 -> 102.4799221 | S114: =Transitions!S1498*EF!S91 -> 168670.4777 | T114: =Transitions!T1498*EF!T91 -> 451.3976232
A115: 4 | B115: =Transitions!B1499*EF!B92 -> 0 | C115: =Transitions!C1499*EF!C92 -> 57.57823818 | D115: =Transitions!D1499*EF!D92 -> 0 | E115: =Transitions!E1499*EF!E92 -> 0 | F115: =Transitions!F1499*EF!F92 -> 0 | G115: =Transitions!G1499*EF!G92 -> 2.115992769 | H115: =Transitions!H1499*EF!H92 -> 2005.740271 | I115: =Transitions!I1499*EF!I92 -> 4861.777236 | J115: =Transitions!J1499*EF!J92 -> 29425.19536 | K115: =Transitions!K1499*EF!K92 -> 0 | L115: =Transitions!L1499*EF!L92 -> 0 | M115: =Transitions!M1499*EF!M92 -> 0 | N115: =Transitions!N1499*EF!N92 -> 766.6426741 | O115: =Transitions!O1499*EF!O92 -> 0 | P115: =Transitions!P1499*EF!P92 -> 0 | Q115: =Transitions!Q1499*EF!Q92 -> 0 | R115: =Transitions!R1499*EF!R92 -> 395.133736 | S115: =Transitions!S1499*EF!S92 -> 525992.2068 | T115: =Transitions!T1499*EF!T92 -> 760.380988
A116: 5 | B116: =Transitions!B1500*EF!B93 -> 0 | C116: =Transitions!C1500*EF!C93 -> 0 | D116: =Transitions!D1500*EF!D93 -> 0 | E116: =Transitions!E1500*EF!E93 -> 0 | F116: =Transitions!F1500*EF!F93 -> 0 | G116: =Transitions!G1500*EF!G93 -> 836.2443055 | H116: =Transitions!H1500*EF!H93 -> 2.055013121 | I116: =Transitions!I1500*EF!I93 -> 15325.13415 | J116: =Transitions!J1500*EF!J93 -> 47633.7792 | K116: =Transitions!K1500*EF!K93 -> 0 | L116: =Transitions!L1500*EF!L93 -> 0 | M116: =Transitions!M1500*EF!M93 -> 0 | N116: =Transitions!N1500*EF!N93 -> 3945.812575 | O116: =Transitions!O1500*EF!O93 -> 0 | P116: =Transitions!P1500*EF!P93 -> 0 | Q116: =Transitions!Q1500*EF!Q93 -> 0 | R116: =Transitions!R1500*EF!R93 -> 0 | S116: =Transitions!S1500*EF!S93 -> 247334.3193 | T116: =Transitions!T1500*EF!T93 -> 0
A117: 6 | B117: =Transitions!B1501*EF!B94 -> 0 | C117: =Transitions!C1501*EF!C94 -> 0 | D117: =Transitions!D1501*EF!D94 -> 0 | E117: =Transitions!E1501*EF!E94 -> 0 | F117: =Transitions!F1501*EF!F94 -> 0 | G117: =Transitions!G1501*EF!G94 -> 5273.271437 | H117: =Transitions!H1501*EF!H94 -> 113.9944239 | I117: =Transitions!I1501*EF!I94 -> 7334.366479 | J117: =Transitions!J1501*EF!J94 -> 57657.44299 | K117: =Transitions!K1501*EF!K94 -> 0 | L117: =Transitions!L1501*EF!L94 -> 0 | M117: =Transitions!M1501*EF!M94 -> 0 | N117: =Transitions!N1501*EF!N94 -> 581.1588477 | O117: =Transitions!O1501*EF!O94 -> 0 | P117: =Transitions!P1501*EF!P94 -> 0 | Q117: =Transitions!Q1501*EF!Q94 -> 0 | R117: =Transitions!R1501*EF!R94 -> 0 | S117: =Transitions!S1501*EF!S94 -> 88735.27931 | T117: =Transitions!T1501*EF!T94 -> 0
A118: 7 | B118: =Transitions!B1502*EF!B95 -> 59429.20449 | C118: =Transitions!C1502*EF!C95 -> 0 | D118: =Transitions!D1502*EF!D95 -> 0 | E118: =Transitions!E1502*EF!E95 -> 203935.4563 | F118: =Transitions!F1502*EF!F95 -> 0 | G118: =Transitions!G1502*EF!G95 -> 20955.06402 | H118: =Transitions!H1502*EF!H95 -> 27.09915267 | I118: =Transitions!I1502*EF!I95 -> 7519.437108 | J118: =Transitions!J1502*EF!J95 -> 9465.920773 | K118: =Transitions!K1502*EF!K95 -> 0 | L118: =Transitions!L1502*EF!L95 -> 0 | M118: =Transitions!M1502*EF!M95 -> 0 | N118: =Transitions!N1502*EF!N95 -> 42847.98389 | O118: =Transitions!O1502*EF!O95 -> 2392.152378 | P118: =Transitions!P1502*EF!P95 -> 640.1529981 | Q118: =Transitions!Q1502*EF!Q95 -> 0 | R118: =Transitions!R1502*EF!R95 -> 19691.0863 | S118: =Transitions!S1502*EF!S95 -> 9732.274334 | T118: =Transitions!T1502*EF!T95 -> 42577.32285
A119: 8 | B119: =Transitions!B1503*EF!B96 -> 44763.6073 | C119: =Transitions!C1503*EF!C96 -> 344.4388021 | D119: =Transitions!D1503*EF!D96 -> 0 | E119: =Transitions!E1503*EF!E96 -> 167975.3886 | F119: =Transitions!F1503*EF!F96 -> 0 | G119: =Transitions!G1503*EF!G96 -> 27304.34712 | H119: =Transitions!H1503*EF!H96 -> 513.2069093 | I119: =Transitions!I1503*EF!I96 -> 3120.631489 | J119: =Transitions!J1503*EF!J96 -> 12725.33432 | K119: =Transitions!K1503*EF!K96 -> 0 | L119: =Transitions!L1503*EF!L96 -> 0 | M119: =Transitions!M1503*EF!M96 -> 0 | N119: =Transitions!N1503*EF!N96 -> 7928.592738 | O119: =Transitions!O1503*EF!O96 -> 8195.361745 | P119: =Transitions!P1503*EF!P96 -> 19877.23054 | Q119: =Transitions!Q1503*EF!Q96 -> 0 | R119: =Transitions!R1503*EF!R96 -> 17438.64263 | S119: =Transitions!S1503*EF!S96 -> 8852.005465 | T119: =Transitions!T1503*EF!T96 -> 11580.16434
A120: 9 | B120: =Transitions!B1504*EF!B97 -> 18362.25852 | C120: =Transitions!C1504*EF!C97 -> 24036.38538 | D120: =Transitions!D1504*EF!D97 -> 0 | E120: =Transitions!E1504*EF!E97 -> 477127.3032 | F120: =Transitions!F1504*EF!F97 -> 202.4631991 | G120: =Transitions!G1504*EF!G97 -> 22380.13715 | H120: =Transitions!H1504*EF!H97 -> 351.6701873 | I120: =Transitions!I1504*EF!I97 -> 953.8849831 | J120: =Transitions!J1504*EF!J97 -> 14905.64573 | K120: =Transitions!K1504*EF!K97 -> 0 | L120: =Transitions!L1504*EF!L97 -> 0 | M120: =Transitions!M1504*EF!M97 -> 0 | N120: =Transitions!N1504*EF!N97 -> 3211.743246 | O120: =Transitions!O1504*EF!O97 -> 8240.949013 | P120: =Transitions!P1504*EF!P97 -> 22009.75426 | Q120: =Transitions!Q1504*EF!Q97 -> 0 | R120: =Transitions!R1504*EF!R97 -> 35656.69076 | S120: =Transitions!S1504*EF!S97 -> 24124.76601 | T120: =Transitions!T1504*EF!T97 -> 8757.851954
A121: 10 | B121: =Transitions!B1505*EF!B98 -> 0 | C121: =Transitions!C1505*EF!C98 -> 232968.2789 | D121: =Transitions!D1505*EF!D98 -> 241.7427134 | E121: =Transitions!E1505*EF!E98 -> 63251.86787 | F121: =Transitions!F1505*EF!F98 -> 2887.455269 | G121: =Transitions!G1505*EF!G98 -> 21797.5715 | H121: =Transitions!H1505*EF!H98 -> 2112.965885 | I121: =Transitions!I1505*EF!I98 -> 3871.110484 | J121: =Transitions!J1505*EF!J98 -> 6762.992977 | K121: =Transitions!K1505*EF!K98 -> 0 | L121: =Transitions!L1505*EF!L98 -> 0 | M121: =Transitions!M1505*EF!M98 -> 4.77713299 | N121: =Transitions!N1505*EF!N98 -> 3089.652868 | O121: =Transitions!O1505*EF!O98 -> 6461.200754 | P121: =Transitions!P1505*EF!P98 -> 42490.675 | Q121: =Transitions!Q1505*EF!Q98 -> 471.7034686 | R121: =Transitions!R1505*EF!R98 -> 4970.852024 | S121: =Transitions!S1505*EF!S98 -> 61684.63054 | T121: =Transitions!T1505*EF!T98 -> 9089.775258
A122: 11 | B122: =Transitions!B1506*EF!B99 -> 0 | C122: =Transitions!C1506*EF!C99 -> 149672.0112 | D122: =Transitions!D1506*EF!D99 -> 7.910076636 | E122: =Transitions!E1506*EF!E99 -> 179.5554544 | F122: =Transitions!F1506*EF!F99 -> 88.38301113 | G122: =Transitions!G1506*EF!G99 -> 53854.35471 | H122: =Transitions!H1506*EF!H99 -> 1383.028872 | I122: =Transitions!I1506*EF!I99 -> 92.32768093 | J122: =Transitions!J1506*EF!J99 -> 19217.40781 | K122: =Transitions!K1506*EF!K99 -> 0 | L122: =Transitions!L1506*EF!L99 -> 0 | M122: =Transitions!M1506*EF!M99 -> 1444.418075 | N122: =Transitions!N1506*EF!N99 -> 5150.891851 | O122: =Transitions!O1506*EF!O99 -> 28.90320731 | P122: =Transitions!P1506*EF!P99 -> 3967.490402 | Q122: =Transitions!Q1506*EF!Q99 -> 0 | R122: =Transitions!R1506*EF!R99 -> 0 | S122: =Transitions!S1506*EF!S99 -> 52442.4498 | T122: =Transitions!T1506*EF!T99 -> 16384.7475
A123: 12 | B123: =Transitions!B1507*EF!B100 -> 0 | C123: =Transitions!C1507*EF!C100 -> 28203.08947 | D123: =Transitions!D1507*EF!D100 -> 0 | E123: =Transitions!E1507*EF!E100 -> 0 | F123: =Transitions!F1507*EF!F100 -> 48.2550923 | G123: =Transitions!G1507*EF!G100 -> 68914.16916 | H123: =Transitions!H1507*EF!H100 -> 153.5089487 | I123: =Transitions!I1507*EF!I100 -> 694.9398849 | J123: =Transitions!J1507*EF!J100 -> 104277.327 | K123: =Transitions!K1507*EF!K100 -> 0 | L123: =Transitions!L1507*EF!L100 -> 0 | M123: =Transitions!M1507*EF!M100 -> 742.8951882 | N123: =Transitions!N1507*EF!N100 -> 2613.534956 | O123: =Transitions!O1507*EF!O100 -> 0 | P123: =Transitions!P1507*EF!P100 -> 440.5088751 | Q123: =Transitions!Q1507*EF!Q100 -> 0 | R123: =Transitions!R1507*EF!R100 -> 0 | S123: =Transitions!S1507*EF!S100 -> 8379.228109 | T123: =Transitions!T1507*EF!T100 -> 34893.34347
A124: 13 | B124: =Transitions!B1508*EF!B101 -> 1014.385575 | C124: =Transitions!C1508*EF!C101 -> 0 | D124: =Transitions!D1508*EF!D101 -> 0 | E124: =Transitions!E1508*EF!E101 -> 33241.21625 | F124: =Transitions!F1508*EF!F101 -> 0 | G124: =Transitions!G1508*EF!G101 -> 4535.571145 | H124: =Transitions!H1508*EF!H101 -> 4.584074652 | I124: =Transitions!I1508*EF!I101 -> 0 | J124: =Transitions!J1508*EF!J101 -> 1412.110426 | K124: =Transitions!K1508*EF!K101 -> 0 | L124: =Transitions!L1508*EF!L101 -> 0 | M124: =Transitions!M1508*EF!M101 -> 0 | N124: =Transitions!N1508*EF!N101 -> 486.9044154 | O124: =Transitions!O1508*EF!O101 -> 1169.857856 | P124: =Transitions!P1508*EF!P101 -> 1819.47577 | Q124: =Transitions!Q1508*EF!Q101 -> 0 | R124: =Transitions!R1508*EF!R101 -> 0 | S124: =Transitions!S1508*EF!S101 -> 0 | T124: =Transitions!T1508*EF!T101 -> 0
A125: 14 | B125: =Transitions!B1509*EF!B102 -> 0 | C125: =Transitions!C1509*EF!C102 -> 87.68756931 | D125: =Transitions!D1509*EF!D102 -> 0 | E125: =Transitions!E1509*EF!E102 -> 23596.17462 | F125: =Transitions!F1509*EF!F102 -> 0 | G125: =Transitions!G1509*EF!G102 -> 2784.687418 | H125: =Transitions!H1509*EF!H102 -> 15.64502842 | I125: =Transitions!I1509*EF!I102 -> 0 | J125: =Transitions!J1509*EF!J102 -> 2488.45572 | K125: =Transitions!K1509*EF!K102 -> 0 | L125: =Transitions!L1509*EF!L102 -> 0 | M125: =Transitions!M1509*EF!M102 -> 0 | N125: =Transitions!N1509*EF!N102 -> 298.168151 | O125: =Transitions!O1509*EF!O102 -> 1495.219059 | P125: =Transitions!P1509*EF!P102 -> 1578.318559 | Q125: =Transitions!Q1509*EF!Q102 -> 1.286975711 | R125: =Transitions!R1509*EF!R102 -> 0 | S125: =Transitions!S1509*EF!S102 -> 0 | T125: =Transitions!T1509*EF!T102 -> 0
A126: 15 | B126: =Transitions!B1510*EF!B103 -> 1.660935058 | C126: =Transitions!C1510*EF!C103 -> 1399.438474 | D126: =Transitions!D1510*EF!D103 -> 0 | E126: =Transitions!E1510*EF!E103 -> 200082.5197 | F126: =Transitions!F1510*EF!F103 -> 77.07057991 | G126: =Transitions!G1510*EF!G103 -> 7209.863483 | H126: =Transitions!H1510*EF!H103 -> 83.49669996 | I126: =Transitions!I1510*EF!I103 -> 0 | J126: =Transitions!J1510*EF!J103 -> 3312.996917 | K126: =Transitions!K1510*EF!K103 -> 0 | L126: =Transitions!L1510*EF!L103 -> 0 | M126: =Transitions!M1510*EF!M103 -> 11.86295092 | N126: =Transitions!N1510*EF!N103 -> 0 | O126: =Transitions!O1510*EF!O103 -> 5320.673391 | P126: =Transitions!P1510*EF!P103 -> 597.7650738 | Q126: =Transitions!Q1510*EF!Q103 -> 131.7470351 | R126: =Transitions!R1510*EF!R103 -> 0 | S126: =Transitions!S1510*EF!S103 -> 0 | T126: =Transitions!T1510*EF!T103 -> 0
A127: 16 | B127: =Transitions!B1511*EF!B104 -> 0 | C127: =Transitions!C1511*EF!C104 -> 6712.355291 | D127: =Transitions!D1511*EF!D104 -> 0 | E127: =Transitions!E1511*EF!E104 -> 12983.95229 | F127: =Transitions!F1511*EF!F104 -> 0 | G127: =Transitions!G1511*EF!G104 -> 2212.049703 | H127: =Transitions!H1511*EF!H104 -> 52.60040507 | I127: =Transitions!I1511*EF!I104 -> 0 | J127: =Transitions!J1511*EF!J104 -> 2253.332778 | K127: =Transitions!K1511*EF!K104 -> 0 | L127: =Transitions!L1511*EF!L104 -> 0 | M127: =Transitions!M1511*EF!M104 -> 60.96890286 | N127: =Transitions!N1511*EF!N104 -> 0 | O127: =Transitions!O1511*EF!O104 -> 41.40451766 | P127: =Transitions!P1511*EF!P104 -> 196.1687027 | Q127: =Transitions!Q1511*EF!Q104 -> 97.6657176 | R127: =Transitions!R1511*EF!R104 -> 0 | S127: =Transitions!S1511*EF!S104 -> 0 | T127: =Transitions!T1511*EF!T104 -> 0
A128: 17 | B128: =Transitions!B1512*EF!B105 -> 0 | C128: =Transitions!C1512*EF!C105 -> 0 | D128: =Transitions!D1512*EF!D105 -> 0 | E128: =Transitions!E1512*EF!E105 -> 0 | F128: =Transitions!F1512*EF!F105 -> 0 | G128: =Transitions!G1512*EF!G105 -> 74.13699526 | H128: =Transitions!H1512*EF!H105 -> 0 | I128: =Transitions!I1512*EF!I105 -> 0 | J128: =Transitions!J1512*EF!J105 -> 9.328744513 | K128: =Transitions!K1512*EF!K105 -> 0 | L128: =Transitions!L1512*EF!L105 -> 0 | M128: =Transitions!M1512*EF!M105 -> 0 | N128: =Transitions!N1512*EF!N105 -> 0 | O128: =Transitions!O1512*EF!O105 -> 0 | P128: =Transitions!P1512*EF!P105 -> 0 | Q128: =Transitions!Q1512*EF!Q105 -> 0 | R128: =Transitions!R1512*EF!R105 -> 0 | S128: =Transitions!S1512*EF!S105 -> 0 | T128: =Transitions!T1512*EF!T105 -> 14.64970573
A129: 18 | B129: =Transitions!B1513*EF!B106 -> 0 | C129: =Transitions!C1513*EF!C106 -> 0 | D129: =Transitions!D1513*EF!D106 -> 0 | E129: =Transitions!E1513*EF!E106 -> 0 | F129: =Transitions!F1513*EF!F106 -> 0 | G129: =Transitions!G1513*EF!G106 -> 0 | H129: =Transitions!H1513*EF!H106 -> 0 | I129: =Transitions!I1513*EF!I106 -> 0 | J129: =Transitions!J1513*EF!J106 -> 0 | K129: =Transitions!K1513*EF!K106 -> 0 | L129: =Transitions!L1513*EF!L106 -> 0 | M129: =Transitions!M1513*EF!M106 -> 0 | N129: =Transitions!N1513*EF!N106 -> 0 | O129: =Transitions!O1513*EF!O106 -> 0 | P129: =Transitions!P1513*EF!P106 -> 0 | Q129: =Transitions!Q1513*EF!Q106 -> 0 | R129: =Transitions!R1513*EF!R106 -> 0 | S129: =Transitions!S1513*EF!S106 -> 0 | T129: =Transitions!T1513*EF!T106 -> 0
A130: TOTAL | B130: =SUM(B112:B129) -> 123571.1168 | C130: =SUM(C112:C129) -> 443481.2633 | D130: 2397.466614 | E130: 1182373.434 | F130: 3303.627151 | G130: 238133.5841 | H130: 11197.86704 | I130: 45479.18181 | J130: 314328.0244 | K130: 0 | L130: 0 | M130: 2264.92225 | N130: 72563.57604 | O130: 33345.72192 | P130: 93617.54019 | Q130: 702.403197 | R130: 84760.7157 | S130: 1347189.807 | T130: 125278.7196
A132: Pasture-to-perennials
A133: AEZ | B133: =Tables!E$6 -> USA | C133: =Tables!F$6 -> EU27 | D133: =Tables!G$6 -> BRAZIL | E133: =Tables!H$6 -> CAN | F133: =Tables!I$6 -> JAPAN | G133: =Tables!J$6 -> CHIHKG | H133: =Tables!K$6 -> INDIA | I133: =Tables!L$6 -> C_C_Amer | J133: =Tables!M$6 -> S_o_Amer | K133: =Tables!N$6 -> E_Asia | L133: =Tables!O$6 -> Mala_Indo | M133: =Tables!P$6 -> R_SE_Asia | N133: =Tables!Q$6 -> R_S_Asia | O133: =Tables!R$6 -> Russia | P133: =Tables!S$6 -> Oth_CEE_CIS | Q133: =Tables!T$6 -> Oth_Europe | R133: =Tables!U$6 -> MEAS_Nafr | S133: =Tables!V$6 -> S_S_Afr | T133: =Tables!W$6 -> Oceania
A134: 1 | B134: =Transitions!B1685*EF!B110 -> 0 | C134: =Transitions!C1685*EF!C110 -> 0 | D134: =Transitions!D1685*EF!D110 -> 0 | E134: =Transitions!E1685*EF!E110 -> 0 | F134: =Transitions!F1685*EF!F110 -> 0 | G134: =Transitions!G1685*EF!G110 -> 0 | H134: =Transitions!H1685*EF!H110 -> 0 | I134: =Transitions!I1685*EF!I110 -> 0 | J134: =Transitions!J1685*EF!J110 -> 147.7116691 | K134: =Transitions!K1685*EF!K110 -> 0 | L134: =Transitions!L1685*EF!L110 -> 0 | M134: =Transitions!M1685*EF!M110 -> 0 | N134: =Transitions!N1685*EF!N110 -> 0 | O134: =Transitions!O1685*EF!O110 -> 0 | P134: =Transitions!P1685*EF!P110 -> 0 | Q134: =Transitions!Q1685*EF!Q110 -> 0 | R134: =Transitions!R1685*EF!R110 -> 0 | S134: =Transitions!S1685*EF!S110 -> 0 | T134: =Transitions!T1685*EF!T110 -> 0
A135: =A134+1 -> 2 | B135: =Transitions!B1686*EF!B111 -> 0 | C135: =Transitions!C1686*EF!C111 -> 0 | D135: =Transitions!D1686*EF!D111 -> 0 | E135: =Transitions!E1686*EF!E111 -> 0 | F135: =Transitions!F1686*EF!F111 -> 0 | G135: =Transitions!G1686*EF!G111 -> 0 | H135: =Transitions!H1686*EF!H111 -> 0 | I135: =Transitions!I1686*EF!I111 -> 0 | J135: =Transitions!J1686*EF!J111 -> 359.3360626 | K135: =Transitions!K1686*EF!K111 -> 0 | L135: =Transitions!L1686*EF!L111 -> 0 | M135: =Transitions!M1686*EF!M111 -> 0 | N135: =Transitions!N1686*EF!N111 -> 0 | O135: =Transitions!O1686*EF!O111 -> 0 | P135: =Transitions!P1686*EF!P111 -> 0 | Q135: =Transitions!Q1686*EF!Q111 -> 0 | R135: =Transitions!R1686*EF!R111 -> 0 | S135: =Transitions!S1686*EF!S111 -> 277.6593722 | T135: =Transitions!T1686*EF!T111 -> 0
A136: =A135+1 -> 3 | B136: =Transitions!B1687*EF!B112 -> 0 | C136: =Transitions!C1687*EF!C112 -> 0 | D136: =Transitions!D1687*EF!D112 -> 0 | E136: =Transitions!E1687*EF!E112 -> 0 | F136: =Transitions!F1687*EF!F112 -> 0 | G136: =Transitions!G1687*EF!G112 -> 0 | H136: =Transitions!H1687*EF!H112 -> 0 | I136: =Transitions!I1687*EF!I112 -> 0 | J136: =Transitions!J1687*EF!J112 -> 769.9083879 | K136: =Transitions!K1687*EF!K112 -> 0 | L136: =Transitions!L1687*EF!L112 -> 0 | M136: =Transitions!M1687*EF!M112 -> 0 | N136: =Transitions!N1687*EF!N112 -> 0 | O136: =Transitions!O1687*EF!O112 -> 0 | P136: =Transitions!P1687*EF!P112 -> 0 | Q136: =Transitions!Q1687*EF!Q112 -> 0 | R136: =Transitions!R1687*EF!R112 -> 0 | S136: =Transitions!S1687*EF!S112 -> 0 | T136: =Transitions!T1687*EF!T112 -> 0
A137: 4 | B137: =Transitions!B1688*EF!B113 -> 0 | C137: =Transitions!C1688*EF!C113 -> 0 | D137: =Transitions!D1688*EF!D113 -> 0 | E137: =Transitions!E1688*EF!E113 -> 0 | F137: =Transitions!F1688*EF!F113 -> 0 | G137: =Transitions!G1688*EF!G113 -> 0.3974041058 | H137: =Transitions!H1688*EF!H113 -> 0 | I137: =Transitions!I1688*EF!I113 -> 0 | J137: =Transitions!J1688*EF!J113 -> 2122.543729 | K137: =Transitions!K1688*EF!K113 -> 0 | L137: =Transitions!L1688*EF!L113 -> 574.9083945 | M137: =Transitions!M1688*EF!M113 -> 1255.752194 | N137: =Transitions!N1688*EF!N113 -> 0 | O137: =Transitions!O1688*EF!O113 -> 0 | P137: =Transitions!P1688*EF!P113 -> 0 | Q137: =Transitions!Q1688*EF!Q113 -> 0 | R137: =Transitions!R1688*EF!R113 -> 0 | S137: =Transitions!S1688*EF!S113 -> 0 | T137: =Transitions!T1688*EF!T113 -> 0
A138: 5 | B138: =Transitions!B1689*EF!B114 -> 0 | C138: =Transitions!C1689*EF!C114 -> 0 | D138: =Transitions!D1689*EF!D114 -> 0 | E138: =Transitions!E1689*EF!E114 -> 0 | F138: =Transitions!F1689*EF!F114 -> 0 | G138: =Transitions!G1689*EF!G114 -> 1.753955622 | H138: =Transitions!H1689*EF!H114 -> 0 | I138: =Transitions!I1689*EF!I114 -> 0 | J138: =Transitions!J1689*EF!J114 -> 4924.569454 | K138: =Transitions!K1689*EF!K114 -> 0 | L138: =Transitions!L1689*EF!L114 -> 0 | M138: =Transitions!M1689*EF!M114 -> 2092.920323 | N138: =Transitions!N1689*EF!N114 -> 0 | O138: =Transitions!O1689*EF!O114 -> 0 | P138: =Transitions!P1689*EF!P114 -> 0 | Q138: =Transitions!Q1689*EF!Q114 -> 0 | R138: =Transitions!R1689*EF!R114 -> 0 | S138: =Transitions!S1689*EF!S114 -> 53990.33678 | T138: =Transitions!T1689*EF!T114 -> 95.9660625
A139: 6 | B139: =Transitions!B1690*EF!B115 -> 0 | C139: =Transitions!C1690*EF!C115 -> 0 | D139: =Transitions!D1690*EF!D115 -> 657.7749585 | E139: =Transitions!E1690*EF!E115 -> 0 | F139: =Transitions!F1690*EF!F115 -> 0 | G139: =Transitions!G1690*EF!G115 -> 42.90625519 | H139: =Transitions!H1690*EF!H115 -> 0 | I139: =Transitions!I1690*EF!I115 -> 0 | J139: =Transitions!J1690*EF!J115 -> 13774.00806 | K139: =Transitions!K1690*EF!K115 -> 0 | L139: =Transitions!L1690*EF!L115 -> 10999.04377 | M139: =Transitions!M1690*EF!M115 -> 50.57112163 | N139: =Transitions!N1690*EF!N115 -> 0 | O139: =Transitions!O1690*EF!O115 -> 0 | P139: =Transitions!P1690*EF!P115 -> 0 | Q139: =Transitions!Q1690*EF!Q115 -> 0 | R139: =Transitions!R1690*EF!R115 -> 0 | S139: =Transitions!S1690*EF!S115 -> 0 | T139: =Transitions!T1690*EF!T115 -> 456.0672875
A140: 7 | B140: =Transitions!B1691*EF!B116 -> 0 | C140: =Transitions!C1691*EF!C116 -> 0 | D140: =Transitions!D1691*EF!D116 -> 0 | E140: =Transitions!E1691*EF!E116 -> 0 | F140: =Transitions!F1691*EF!F116 -> 0 | G140: =Transitions!G1691*EF!G116 -> 0 | H140: =Transitions!H1691*EF!H116 -> 0 | I140: =Transitions!I1691*EF!I116 -> 0 | J140: =Transitions!J1691*EF!J116 -> 19.10235732 | K140: =Transitions!K1691*EF!K116 -> 0 | L140: =Transitions!L1691*EF!L116 -> 0 | M140: =Transitions!M1691*EF!M116 -> 0 | N140: =Transitions!N1691*EF!N116 -> 0 | O140: =Transitions!O1691*EF!O116 -> 0 | P140: =Transitions!P1691*EF!P116 -> 0 | Q140: =Transitions!Q1691*EF!Q116 -> 0 | R140: =Transitions!R1691*EF!R116 -> 0 | S140: =Transitions!S1691*EF!S116 -> 0 | T140: =Transitions!T1691*EF!T116 -> 0
A141: 8 | B141: =Transitions!B1692*EF!B117 -> 0 | C141: =Transitions!C1692*EF!C117 -> 0 | D141: =Transitions!D1692*EF!D117 -> 0 | E141: =Transitions!E1692*EF!E117 -> 0 | F141: =Transitions!F1692*EF!F117 -> 0 | G141: =Transitions!G1692*EF!G117 -> 118.8966614 | H141: =Transitions!H1692*EF!H117 -> 0 | I141: =Transitions!I1692*EF!I117 -> 0 | J141: =Transitions!J1692*EF!J117 -> 88.00164545 | K141: =Transitions!K1692*EF!K117 -> 0 | L141: =Transitions!L1692*EF!L117 -> 0 | M141: =Transitions!M1692*EF!M117 -> 0 | N141: =Transitions!N1692*EF!N117 -> 0 | O141: =Transitions!O1692*EF!O117 -> 0 | P141: =Transitions!P1692*EF!P117 -> 0 | Q141: =Transitions!Q1692*EF!Q117 -> 0 | R141: =Transitions!R1692*EF!R117 -> 0 | S141: =Transitions!S1692*EF!S117 -> 0 | T141: =Transitions!T1692*EF!T117 -> 0
A142: 9 | B142: =Transitions!B1693*EF!B118 -> 0 | C142: =Transitions!C1693*EF!C118 -> 0 | D142: =Transitions!D1693*EF!D118 -> 0 | E142: =Transitions!E1693*EF!E118 -> 0 | F142: =Transitions!F1693*EF!F118 -> 0 | G142: =Transitions!G1693*EF!G118 -> 182.8015922 | H142: =Transitions!H1693*EF!H118 -> 0 | I142: =Transitions!I1693*EF!I118 -> 0 | J142: =Transitions!J1693*EF!J118 -> 179.4991109 | K142: =Transitions!K1693*EF!K118 -> 0 | L142: =Transitions!L1693*EF!L118 -> 0 | M142: =Transitions!M1693*EF!M118 -> 0 | N142: =Transitions!N1693*EF!N118 -> 0 | O142: =Transitions!O1693*EF!O118 -> 0 | P142: =Transitions!P1693*EF!P118 -> 0 | Q142: =Transitions!Q1693*EF!Q118 -> 0 | R142: =Transitions!R1693*EF!R118 -> 0 | S142: =Transitions!S1693*EF!S118 -> 0 | T142: =Transitions!T1693*EF!T118 -> 0
A143: 10 | B143: =Transitions!B1694*EF!B119 -> 0 | C143: =Transitions!C1694*EF!C119 -> 0 | D143: =Transitions!D1694*EF!D119 -> 0 | E143: =Transitions!E1694*EF!E119 -> 0 | F143: =Transitions!F1694*EF!F119 -> 0 | G143: =Transitions!G1694*EF!G119 -> 154.9640218 | H143: =Transitions!H1694*EF!H119 -> 0 | I143: =Transitions!I1694*EF!I119 -> 0 | J143: =Transitions!J1694*EF!J119 -> 512.2775059 | K143: =Transitions!K1694*EF!K119 -> 0 | L143: =Transitions!L1694*EF!L119 -> 0 | M143: =Transitions!M1694*EF!M119 -> 4.26389122 | N143: =Transitions!N1694*EF!N119 -> 0 | O143: =Transitions!O1694*EF!O119 -> 0 | P143: =Transitions!P1694*EF!P119 -> 0 | Q143: =Transitions!Q1694*EF!Q119 -> 0 | R143: =Transitions!R1694*EF!R119 -> 0 | S143: =Transitions!S1694*EF!S119 -> 0 | T143: =Transitions!T1694*EF!T119 -> 0
A144: 11 | B144: =Transitions!B1695*EF!B120 -> 0 | C144: =Transitions!C1695*EF!C120 -> 0 | D144: =Transitions!D1695*EF!D120 -> 0 | E144: =Transitions!E1695*EF!E120 -> 0 | F144: =Transitions!F1695*EF!F120 -> 0 | G144: =Transitions!G1695*EF!G120 -> 201.4761182 | H144: =Transitions!H1695*EF!H120 -> 0 | I144: =Transitions!I1695*EF!I120 -> 0 | J144: =Transitions!J1695*EF!J120 -> 1004.553353 | K144: =Transitions!K1695*EF!K120 -> 0 | L144: =Transitions!L1695*EF!L120 -> 0 | M144: =Transitions!M1695*EF!M120 -> 104.0615628 | N144: =Transitions!N1695*EF!N120 -> 0 | O144: =Transitions!O1695*EF!O120 -> 0 | P144: =Transitions!P1695*EF!P120 -> 0 | Q144: =Transitions!Q1695*EF!Q120 -> 0 | R144: =Transitions!R1695*EF!R120 -> 0 | S144: =Transitions!S1695*EF!S120 -> 0 | T144: =Transitions!T1695*EF!T120 -> 0
A145: 12 | B145: =Transitions!B1696*EF!B121 -> 0 | C145: =Transitions!C1696*EF!C121 -> 0 | D145: =Transitions!D1696*EF!D121 -> 0 | E145: =Transitions!E1696*EF!E121 -> 0 | F145: =Transitions!F1696*EF!F121 -> 0 | G145: =Transitions!G1696*EF!G121 -> 338.7920955 | H145: =Transitions!H1696*EF!H121 -> 0 | I145: =Transitions!I1696*EF!I121 -> 0 | J145: =Transitions!J1696*EF!J121 -> 1956.890394 | K145: =Transitions!K1696*EF!K121 -> 0 | L145: =Transitions!L1696*EF!L121 -> 0 | M145: =Transitions!M1696*EF!M121 -> 0 | N145: =Transitions!N1696*EF!N121 -> 0 | O145: =Transitions!O1696*EF!O121 -> 0 | P145: =Transitions!P1696*EF!P121 -> 0 | Q145: =Transitions!Q1696*EF!Q121 -> 0 | R145: =Transitions!R1696*EF!R121 -> 0 | S145: =Transitions!S1696*EF!S121 -> 0 | T145: =Transitions!T1696*EF!T121 -> 0
A146: 13 | B146: =Transitions!B1697*EF!B122 -> 0 | C146: =Transitions!C1697*EF!C122 -> 0 | D146: =Transitions!D1697*EF!D122 -> 0 | E146: =Transitions!E1697*EF!E122 -> 0 | F146: =Transitions!F1697*EF!F122 -> 0 | G146: =Transitions!G1697*EF!G122 -> 0 | H146: =Transitions!H1697*EF!H122 -> 0 | I146: =Transitions!I1697*EF!I122 -> 0 | J146: =Transitions!J1697*EF!J122 -> 0 | K146: =Transitions!K1697*EF!K122 -> 0 | L146: =Transitions!L1697*EF!L122 -> 0 | M146: =Transitions!M1697*EF!M122 -> 0 | N146: =Transitions!N1697*EF!N122 -> 0 | O146: =Transitions!O1697*EF!O122 -> 0 | P146: =Transitions!P1697*EF!P122 -> 0 | Q146: =Transitions!Q1697*EF!Q122 -> 0 | R146: =Transitions!R1697*EF!R122 -> 0 | S146: =Transitions!S1697*EF!S122 -> 0 | T146: =Transitions!T1697*EF!T122 -> 0
A147: 14 | B147: =Transitions!B1698*EF!B123 -> 0 | C147: =Transitions!C1698*EF!C123 -> 0 | D147: =Transitions!D1698*EF!D123 -> 0 | E147: =Transitions!E1698*EF!E123 -> 0 | F147: =Transitions!F1698*EF!F123 -> 0 | G147: =Transitions!G1698*EF!G123 -> 0 | H147: =Transitions!H1698*EF!H123 -> 0 | I147: =Transitions!I1698*EF!I123 -> 0 | J147: =Transitions!J1698*EF!J123 -> 71.25301322 | K147: =Transitions!K1698*EF!K123 -> 0 | L147: =Transitions!L1698*EF!L123 -> 0 | M147: =Transitions!M1698*EF!M123 -> 0 | N147: =Transitions!N1698*EF!N123 -> 0 | O147: =Transitions!O1698*EF!O123 -> 0 | P147: =Transitions!P1698*EF!P123 -> 0 | Q147: =Transitions!Q1698*EF!Q123 -> 0 | R147: =Transitions!R1698*EF!R123 -> 0 | S147: =Transitions!S1698*EF!S123 -> 0 | T147: =Transitions!T1698*EF!T123 -> 0
A148: 15 | B148: =Transitions!B1699*EF!B124 -> 0 | C148: =Transitions!C1699*EF!C124 -> 0 | D148: =Transitions!D1699*EF!D124 -> 0 | E148: =Transitions!E1699*EF!E124 -> 0 | F148: =Transitions!F1699*EF!F124 -> 0 | G148: =Transitions!G1699*EF!G124 -> 12.47673187 | H148: =Transitions!H1699*EF!H124 -> 0 | I148: =Transitions!I1699*EF!I124 -> 0 | J148: =Transitions!J1699*EF!J124 -> 9.331176351 | K148: =Transitions!K1699*EF!K124 -> 0 | L148: =Transitions!L1699*EF!L124 -> 0 | M148: =Transitions!M1699*EF!M124 -> 0 | N148: =Transitions!N1699*EF!N124 -> 0 | O148: =Transitions!O1699*EF!O124 -> 0 | P148: =Transitions!P1699*EF!P124 -> 0 | Q148: =Transitions!Q1699*EF!Q124 -> 0 | R148: =Transitions!R1699*EF!R124 -> 0 | S148: =Transitions!S1699*EF!S124 -> 0 | T148: =Transitions!T1699*EF!T124 -> 0
A149: 16 | B149: =Transitions!B1700*EF!B125 -> 0 | C149: =Transitions!C1700*EF!C125 -> 0 | D149: =Transitions!D1700*EF!D125 -> 0 | E149: =Transitions!E1700*EF!E125 -> 0 | F149: =Transitions!F1700*EF!F125 -> 0 | G149: =Transitions!G1700*EF!G125 -> 4.125878678 | H149: =Transitions!H1700*EF!H125 -> 0 | I149: =Transitions!I1700*EF!I125 -> 0 | J149: =Transitions!J1700*EF!J125 -> 0 | K149: =Transitions!K1700*EF!K125 -> 0 | L149: =Transitions!L1700*EF!L125 -> 0 | M149: =Transitions!M1700*EF!M125 -> 0 | N149: =Transitions!N1700*EF!N125 -> 0 | O149: =Transitions!O1700*EF!O125 -> 0 | P149: =Transitions!P1700*EF!P125 -> 0 | Q149: =Transitions!Q1700*EF!Q125 -> 0 | R149: =Transitions!R1700*EF!R125 -> 0 | S149: =Transitions!S1700*EF!S125 -> 0 | T149: =Transitions!T1700*EF!T125 -> 0
A150: 17 | B150: =Transitions!B1701*EF!B126 -> 0 | C150: =Transitions!C1701*EF!C126 -> 0 | D150: =Transitions!D1701*EF!D126 -> 0 | E150: =Transitions!E1701*EF!E126 -> 0 | F150: =Transitions!F1701*EF!F126 -> 0 | G150: =Transitions!G1701*EF!G126 -> 0 | H150: =Transitions!H1701*EF!H126 -> 0 | I150: =Transitions!I1701*EF!I126 -> 0 | J150: =Transitions!J1701*EF!J126 -> 0 | K150: =Transitions!K1701*EF!K126 -> 0 | L150: =Transitions!L1701*EF!L126 -> 0 | M150: =Transitions!M1701*EF!M126 -> 0 | N150: =Transitions!N1701*EF!N126 -> 0 | O150: =Transitions!O1701*EF!O126 -> 0 | P150: =Transitions!P1701*EF!P126 -> 0 | Q150: =Transitions!Q1701*EF!Q126 -> 0 | R150: =Transitions!R1701*EF!R126 -> 0 | S150: =Transitions!S1701*EF!S126 -> 0 | T150: =Transitions!T1701*EF!T126 -> 0
A151: 18 | B151: =Transitions!B1702*EF!B127 -> 0 | C151: =Transitions!C1702*EF!C127 -> 0 | D151: =Transitions!D1702*EF!D127 -> 0 | E151: =Transitions!E1702*EF!E127 -> 0 | F151: =Transitions!F1702*EF!F127 -> 0 | G151: =Transitions!G1702*EF!G127 -> 0 | H151: =Transitions!H1702*EF!H127 -> 0 | I151: =Transitions!I1702*EF!I127 -> 0 | J151: =Transitions!J1702*EF!J127 -> 0 | K151: =Transitions!K1702*EF!K127 -> 0 | L151: =Transitions!L1702*EF!L127 -> 0 | M151: =Transitions!M1702*EF!M127 -> 0 | N151: =Transitions!N1702*EF!N127 -> 0 | O151: =Transitions!O1702*EF!O127 -> 0 | P151: =Transitions!P1702*EF!P127 -> 0 | Q151: =Transitions!Q1702*EF!Q127 -> 0 | R151: =Transitions!R1702*EF!R127 -> 0 | S151: =Transitions!S1702*EF!S127 -> 0 | T151: =Transitions!T1702*EF!T127 -> 0
A152: TOTAL | B152: =SUM(B134:B151) -> 0 | C152: =SUM(C134:C151) -> 0 | D152: 657.7749585 | E152: 0 | F152: 0 | G152: 1058.590715 | H152: 0 | I152: 0 | J152: 25938.98591 | K152: 0 | L152: 11573.95216 | M152: 3507.569092 | N152: 0 | O152: 0 | P152: 0 | Q152: 0 | R152: 0 | S152: 54267.99615 | T152: 552.03335
A154: Pasture-to-palm (on peat) | K154: Total sequestration in each AEZ/Region combination (Mg CO2e)
A155: AEZ | B155: =Tables!E$6 -> USA | C155: =Tables!F$6 -> EU27 | D155: =Tables!G$6 -> BRAZIL | E155: =Tables!H$6 -> CAN | F155: =Tables!I$6 -> JAPAN | G155: =Tables!J$6 -> CHIHKG | H155: =Tables!K$6 -> INDIA | I155: =Tables!L$6 -> C_C_Amer | J155: =Tables!M$6 -> S_o_Amer | K155: =Tables!N$6 -> E_Asia | L155: =Tables!O$6 -> Mala_Indo | M155: =Tables!P$6 -> R_SE_Asia | N155: =Tables!Q$6 -> R_S_Asia | O155: =Tables!R$6 -> Russia | P155: =Tables!S$6 -> Oth_CEE_CIS | Q155: =Tables!T$6 -> Oth_Europe | R155: =Tables!U$6 -> MEAS_Nafr | S155: =Tables!V$6 -> S_S_Afr | T155: =Tables!W$6 -> Oceania
A156: 1 | B156: =Transitions!B320*EF!B131 -> 0 | C156: =Transitions!C320*EF!C131 -> 0 | D156: =Transitions!D320*EF!D131 -> 0 | E156: =Transitions!E320*EF!E131 -> 0 | F156: =Transitions!F320*EF!F131 -> 0 | G156: =Transitions!G320*EF!G131 -> 0 | H156: =Transitions!H320*EF!H131 -> 0 | I156: =Transitions!I320*EF!I131 -> 0 | J156: =Transitions!J320*EF!J131 -> 0 | K156: =Transitions!K320*EF!K131 -> 0 | L156: =Transitions!L320*EF!L131 -> 0 | M156: =Transitions!M320*EF!M131 -> 0 | N156: =Transitions!N320*EF!N131 -> 0 | O156: =Transitions!O320*EF!O131 -> 0 | P156: =Transitions!P320*EF!P131 -> 0 | Q156: =Transitions!Q320*EF!Q131 -> 0 | R156: =Transitions!R320*EF!R131 -> 0 | S156: =Transitions!S320*EF!S131 -> 0 | T156: =Transitions!T320*EF!T131 -> 0
A157: =A156+1 -> 2 | B157: =Transitions!B321*EF!B132 -> 0 | C157: =Transitions!C321*EF!C132 -> 0 | D157: =Transitions!D321*EF!D132 -> 0 | E157: =Transitions!E321*EF!E132 -> 0 | F157: =Transitions!F321*EF!F132 -> 0 | G157: =Transitions!G321*EF!G132 -> 0 | H157: =Transitions!H321*EF!H132 -> 0 | I157: =Transitions!I321*EF!I132 -> 0 | J157: =Transitions!J321*EF!J132 -> 0 | K157: =Transitions!K321*EF!K132 -> 0 | L157: =Transitions!L321*EF!L132 -> 0 | M157: =Transitions!M321*EF!M132 -> 0 | N157: =Transitions!N321*EF!N132 -> 0 | O157: =Transitions!O321*EF!O132 -> 0 | P157: =Transitions!P321*EF!P132 -> 0 | Q157: =Transitions!Q321*EF!Q132 -> 0 | R157: =Transitions!R321*EF!R132 -> 0 | S157: =Transitions!S321*EF!S132 -> 0 | T157: =Transitions!T321*EF!T132 -> 0
A158: =A157+1 -> 3 | B158: =Transitions!B322*EF!B133 -> 0 | C158: =Transitions!C322*EF!C133 -> 0 | D158: =Transitions!D322*EF!D133 -> 0 | E158: =Transitions!E322*EF!E133 -> 0 | F158: =Transitions!F322*EF!F133 -> 0 | G158: =Transitions!G322*EF!G133 -> 0 | H158: =Transitions!H322*EF!H133 -> 0 | I158: =Transitions!I322*EF!I133 -> 0 | J158: =Transitions!J322*EF!J133 -> 0 | K158: =Transitions!K322*EF!K133 -> 0 | L158: =Transitions!L322*EF!L133 -> 0 | M158: =Transitions!M322*EF!M133 -> 0 | N158: =Transitions!N322*EF!N133 -> 0 | O158: =Transitions!O322*EF!O133 -> 0 | P158: =Transitions!P322*EF!P133 -> 0 | Q158: =Transitions!Q322*EF!Q133 -> 0 | R158: =Transitions!R322*EF!R133 -> 0 | S158: =Transitions!S322*EF!S133 -> 0 | T158: =Transitions!T322*EF!T133 -> 0
A159: 4 | B159: =Transitions!B323*EF!B134 -> 0 | C159: =Transitions!C323*EF!C134 -> 0 | D159: =Transitions!D323*EF!D134 -> 0 | E159: =Transitions!E323*EF!E134 -> 0 | F159: =Transitions!F323*EF!F134 -> 0 | G159: =Transitions!G323*EF!G134 -> 0 | H159: =Transitions!H323*EF!H134 -> 0 | I159: =Transitions!I323*EF!I134 -> 0 | J159: =Transitions!J323*EF!J134 -> 0 | K159: =Transitions!K323*EF!K134 -> 0 | L159: =Transitions!L323*EF!L134 -> 58594.98223 | M159: =Transitions!M323*EF!M134 -> 0 | N159: =Transitions!N323*EF!N134 -> 0 | O159: =Transitions!O323*EF!O134 -> 0 | P159: =Transitions!P323*EF!P134 -> 0 | Q159: =Transitions!Q323*EF!Q134 -> 0 | R159: =Transitions!R323*EF!R134 -> 0 | S159: =Transitions!S323*EF!S134 -> 0 | T159: =Transitions!T323*EF!T134 -> 0
A160: 5 | B160: =Transitions!B324*EF!B135 -> 0 | C160: =Transitions!C324*EF!C135 -> 0 | D160: =Transitions!D324*EF!D135 -> 0 | E160: =Transitions!E324*EF!E135 -> 0 | F160: =Transitions!F324*EF!F135 -> 0 | G160: =Transitions!G324*EF!G135 -> 0 | H160: =Transitions!H324*EF!H135 -> 0 | I160: =Transitions!I324*EF!I135 -> 0 | J160: =Transitions!J324*EF!J135 -> 0 | K160: =Transitions!K324*EF!K135 -> 0 | L160: =Transitions!L324*EF!L135 -> 38266.96837 | M160: =Transitions!M324*EF!M135 -> 0 | N160: =Transitions!N324*EF!N135 -> 0 | O160: =Transitions!O324*EF!O135 -> 0 | P160: =Transitions!P324*EF!P135 -> 0 | Q160: =Transitions!Q324*EF!Q135 -> 0 | R160: =Transitions!R324*EF!R135 -> 0 | S160: =Transitions!S324*EF!S135 -> 0 | T160: =Transitions!T324*EF!T135 -> 0
A161: 6 | B161: =Transitions!B325*EF!B136 -> 0 | C161: =Transitions!C325*EF!C136 -> 0 | D161: =Transitions!D325*EF!D136 -> 0 | E161: =Transitions!E325*EF!E136 -> 0 | F161: =Transitions!F325*EF!F136 -> 0 | G161: =Transitions!G325*EF!G136 -> 0 | H161: =Transitions!H325*EF!H136 -> 0 | I161: =Transitions!I325*EF!I136 -> 0 | J161: =Transitions!J325*EF!J136 -> 0 | K161: =Transitions!K325*EF!K136 -> 0 | L161: =Transitions!L325*EF!L136 -> 0 | M161: =Transitions!M325*EF!M136 -> 0 | N161: =Transitions!N325*EF!N136 -> 0 | O161: =Transitions!O325*EF!O136 -> 0 | P161: =Transitions!P325*EF!P136 -> 0 | Q161: =Transitions!Q325*EF!Q136 -> 0 | R161: =Transitions!R325*EF!R136 -> 0 | S161: =Transitions!S325*EF!S136 -> 0 | T161: =Transitions!T325*EF!T136 -> 0
A162: 7 | B162: =Transitions!B326*EF!B137 -> 0 | C162: =Transitions!C326*EF!C137 -> 0 | D162: =Transitions!D326*EF!D137 -> 0 | E162: =Transitions!E326*EF!E137 -> 0 | F162: =Transitions!F326*EF!F137 -> 0 | G162: =Transitions!G326*EF!G137 -> 0 | H162: =Transitions!H326*EF!H137 -> 0 | I162: =Transitions!I326*EF!I137 -> 0 | J162: =Transitions!J326*EF!J137 -> 0 | K162: =Transitions!K326*EF!K137 -> 0 | L162: =Transitions!L326*EF!L137 -> 0 | M162: =Transitions!M326*EF!M137 -> 0 | N162: =Transitions!N326*EF!N137 -> 0 | O162: =Transitions!O326*EF!O137 -> 0 | P162: =Transitions!P326*EF!P137 -> 0 | Q162: =Transitions!Q326*EF!Q137 -> 0 | R162: =Transitions!R326*EF!R137 -> 0 | S162: =Transitions!S326*EF!S137 -> 0 | T162: =Transitions!T326*EF!T137 -> 0
A163: 8 | B163: =Transitions!B327*EF!B138 -> 0 | C163: =Transitions!C327*EF!C138 -> 0 | D163: =Transitions!D327*EF!D138 -> 0 | E163: =Transitions!E327*EF!E138 -> 0 | F163: =Transitions!F327*EF!F138 -> 0 | G163: =Transitions!G327*EF!G138 -> 0 | H163: =Transitions!H327*EF!H138 -> 0 | I163: =Transitions!I327*EF!I138 -> 0 | J163: =Transitions!J327*EF!J138 -> 0 | K163: =Transitions!K327*EF!K138 -> 0 | L163: =Transitions!L327*EF!L138 -> 0 | M163: =Transitions!M327*EF!M138 -> 0 | N163: =Transitions!N327*EF!N138 -> 0 | O163: =Transitions!O327*EF!O138 -> 0 | P163: =Transitions!P327*EF!P138 -> 0 | Q163: =Transitions!Q327*EF!Q138 -> 0 | R163: =Transitions!R327*EF!R138 -> 0 | S163: =Transitions!S327*EF!S138 -> 0 | T163: =Transitions!T327*EF!T138 -> 0
A164: 9 | B164: =Transitions!B328*EF!B139 -> 0 | C164: =Transitions!C328*EF!C139 -> 0 | D164: =Transitions!D328*EF!D139 -> 0 | E164: =Transitions!E328*EF!E139 -> 0 | F164: =Transitions!F328*EF!F139 -> 0 | G164: =Transitions!G328*EF!G139 -> 0 | H164: =Transitions!H328*EF!H139 -> 0 | I164: =Transitions!I328*EF!I139 -> 0 | J164: =Transitions!J328*EF!J139 -> 0 | K164: =Transitions!K328*EF!K139 -> 0 | L164: =Transitions!L328*EF!L139 -> 0 | M164: =Transitions!M328*EF!M139 -> 0 | N164: =Transitions!N328*EF!N139 -> 0 | O164: =Transitions!O328*EF!O139 -> 0 | P164: =Transitions!P328*EF!P139 -> 0 | Q164: =Transitions!Q328*EF!Q139 -> 0 | R164: =Transitions!R328*EF!R139 -> 0 | S164: =Transitions!S328*EF!S139 -> 0 | T164: =Transitions!T328*EF!T139 -> 0
A165: 10 | B165: =Transitions!B329*EF!B140 -> 0 | C165: =Transitions!C329*EF!C140 -> 0 | D165: =Transitions!D329*EF!D140 -> 0 | E165: =Transitions!E329*EF!E140 -> 0 | F165: =Transitions!F329*EF!F140 -> 0 | G165: =Transitions!G329*EF!G140 -> 0 | H165: =Transitions!H329*EF!H140 -> 0 | I165: =Transitions!I329*EF!I140 -> 0 | J165: =Transitions!J329*EF!J140 -> 0 | K165: =Transitions!K329*EF!K140 -> 0 | L165: =Transitions!L329*EF!L140 -> 0 | M165: =Transitions!M329*EF!M140 -> 0 | N165: =Transitions!N329*EF!N140 -> 0 | O165: =Transitions!O329*EF!O140 -> 0 | P165: =Transitions!P329*EF!P140 -> 0 | Q165: =Transitions!Q329*EF!Q140 -> 0 | R165: =Transitions!R329*EF!R140 -> 0 | S165: =Transitions!S329*EF!S140 -> 0 | T165: =Transitions!T329*EF!T140 -> 0
A166: 11 | B166: =Transitions!B330*EF!B141 -> 0 | C166: =Transitions!C330*EF!C141 -> 0 | D166: =Transitions!D330*EF!D141 -> 0 | E166: =Transitions!E330*EF!E141 -> 0 | F166: =Transitions!F330*EF!F141 -> 0 | G166: =Transitions!G330*EF!G141 -> 0 | H166: =Transitions!H330*EF!H141 -> 0 | I166: =Transitions!I330*EF!I141 -> 0 | J166: =Transitions!J330*EF!J141 -> 0 | K166: =Transitions!K330*EF!K141 -> 0 | L166: =Transitions!L330*EF!L141 -> 0 | M166: =Transitions!M330*EF!M141 -> 0 | N166: =Transitions!N330*EF!N141 -> 0 | O166: =Transitions!O330*EF!O141 -> 0 | P166: =Transitions!P330*EF!P141 -> 0 | Q166: =Transitions!Q330*EF!Q141 -> 0 | R166: =Transitions!R330*EF!R141 -> 0 | S166: =Transitions!S330*EF!S141 -> 0 | T166: =Transitions!T330*EF!T141 -> 0
A167: 12 | B167: =Transitions!B331*EF!B142 -> 0 | C167: =Transitions!C331*EF!C142 -> 0 | D167: =Transitions!D331*EF!D142 -> 0 | E167: =Transitions!E331*EF!E142 -> 0 | F167: =Transitions!F331*EF!F142 -> 0 | G167: =Transitions!G331*EF!G142 -> 0 | H167: =Transitions!H331*EF!H142 -> 0 | I167: =Transitions!I331*EF!I142 -> 0 | J167: =Transitions!J331*EF!J142 -> 0 | K167: =Transitions!K331*EF!K142 -> 0 | L167: =Transitions!L331*EF!L142 -> 0 | M167: =Transitions!M331*EF!M142 -> 0 | N167: =Transitions!N331*EF!N142 -> 0 | O167: =Transitions!O331*EF!O142 -> 0 | P167: =Transitions!P331*EF!P142 -> 0 | Q167: =Transitions!Q331*EF!Q142 -> 0 | R167: =Transitions!R331*EF!R142 -> 0 | S167: =Transitions!S331*EF!S142 -> 0 | T167: =Transitions!T331*EF!T142 -> 0
A168: 13 | B168: =Transitions!B332*EF!B143 -> 0 | C168: =Transitions!C332*EF!C143 -> 0 | D168: =Transitions!D332*EF!D143 -> 0 | E168: =Transitions!E332*EF!E143 -> 0 | F168: =Transitions!F332*EF!F143 -> 0 | G168: =Transitions!G332*EF!G143 -> 0 | H168: =Transitions!H332*EF!H143 -> 0 | I168: =Transitions!I332*EF!I143 -> 0 | J168: =Transitions!J332*EF!J143 -> 0 | K168: =Transitions!K332*EF!K143 -> 0 | L168: =Transitions!L332*EF!L143 -> 0 | M168: =Transitions!M332*EF!M143 -> 0 | N168: =Transitions!N332*EF!N143 -> 0 | O168: =Transitions!O332*EF!O143 -> 0 | P168: =Transitions!P332*EF!P143 -> 0 | Q168: =Transitions!Q332*EF!Q143 -> 0 | R168: =Transitions!R332*EF!R143 -> 0 | S168: =Transitions!S332*EF!S143 -> 0 | T168: =Transitions!T332*EF!T143 -> 0
A169: 14 | B169: =Transitions!B333*EF!B144 -> 0 | C169: =Transitions!C333*EF!C144 -> 0 | D169: =Transitions!D333*EF!D144 -> 0 | E169: =Transitions!E333*EF!E144 -> 0 | F169: =Transitions!F333*EF!F144 -> 0 | G169: =Transitions!G333*EF!G144 -> 0 | H169: =Transitions!H333*EF!H144 -> 0 | I169: =Transitions!I333*EF!I144 -> 0 | J169: =Transitions!J333*EF!J144 -> 0 | K169: =Transitions!K333*EF!K144 -> 0 | L169: =Transitions!L333*EF!L144 -> 0 | M169: =Transitions!M333*EF!M144 -> 0 | N169: =Transitions!N333*EF!N144 -> 0 | O169: =Transitions!O333*EF!O144 -> 0 | P169: =Transitions!P333*EF!P144 -> 0 | Q169: =Transitions!Q333*EF!Q144 -> 0 | R169: =Transitions!R333*EF!R144 -> 0 | S169: =Transitions!S333*EF!S144 -> 0 | T169: =Transitions!T333*EF!T144 -> 0
A170: 15 | B170: =Transitions!B334*EF!B145 -> 0 | C170: =Transitions!C334*EF!C145 -> 0 | D170: =Transitions!D334*EF!D145 -> 0 | E170: =Transitions!E334*EF!E145 -> 0 | F170: =Transitions!F334*EF!F145 -> 0 | G170: =Transitions!G334*EF!G145 -> 0 | H170: =Transitions!H334*EF!H145 -> 0 | I170: =Transitions!I334*EF!I145 -> 0 | J170: =Transitions!J334*EF!J145 -> 0 | K170: =Transitions!K334*EF!K145 -> 0 | L170: =Transitions!L334*EF!L145 -> 0 | M170: =Transitions!M334*EF!M145 -> 0 | N170: =Transitions!N334*EF!N145 -> 0 | O170: =Transitions!O334*EF!O145 -> 0 | P170: =Transitions!P334*EF!P145 -> 0 | Q170: =Transitions!Q334*EF!Q145 -> 0 | R170: =Transitions!R334*EF!R145 -> 0 | S170: =Transitions!S334*EF!S145 -> 0 | T170: =Transitions!T334*EF!T145 -> 0
A171: 16 | B171: =Transitions!B335*EF!B146 -> 0 | C171: =Transitions!C335*EF!C146 -> 0 | D171: =Transitions!D335*EF!D146 -> 0 | E171: =Transitions!E335*EF!E146 -> 0 | F171: =Transitions!F335*EF!F146 -> 0 | G171: =Transitions!G335*EF!G146 -> 0 | H171: =Transitions!H335*EF!H146 -> 0 | I171: =Transitions!I335*EF!I146 -> 0 | J171: =Transitions!J335*EF!J146 -> 0 | K171: =Transitions!K335*EF!K146 -> 0 | L171: =Transitions!L335*EF!L146 -> 0 | M171: =Transitions!M335*EF!M146 -> 0 | N171: =Transitions!N335*EF!N146 -> 0 | O171: =Transitions!O335*EF!O146 -> 0 | P171: =Transitions!P335*EF!P146 -> 0 | Q171: =Transitions!Q335*EF!Q146 -> 0 | R171: =Transitions!R335*EF!R146 -> 0 | S171: =Transitions!S335*EF!S146 -> 0 | T171: =Transitions!T335*EF!T146 -> 0
A172: 17 | B172: =Transitions!B336*EF!B147 -> 0 | C172: =Transitions!C336*EF!C147 -> 0 | D172: =Transitions!D336*EF!D147 -> 0 | E172: =Transitions!E336*EF!E147 -> 0 | F172: =Transitions!F336*EF!F147 -> 0 | G172: =Transitions!G336*EF!G147 -> 0 | H172: =Transitions!H336*EF!H147 -> 0 | I172: =Transitions!I336*EF!I147 -> 0 | J172: =Transitions!J336*EF!J147 -> 0 | K172: =Transitions!K336*EF!K147 -> 0 | L172: =Transitions!L336*EF!L147 -> 0 | M172: =Transitions!M336*EF!M147 -> 0 | N172: =Transitions!N336*EF!N147 -> 0 | O172: =Transitions!O336*EF!O147 -> 0 | P172: =Transitions!P336*EF!P147 -> 0 | Q172: =Transitions!Q336*EF!Q147 -> 0 | R172: =Transitions!R336*EF!R147 -> 0 | S172: =Transitions!S336*EF!S147 -> 0 | T172: =Transitions!T336*EF!T147 -> 0
A173: 18 | B173: =Transitions!B337*EF!B148 -> 0 | C173: =Transitions!C337*EF!C148 -> 0 | D173: =Transitions!D337*EF!D148 -> 0 | E173: =Transitions!E337*EF!E148 -> 0 | F173: =Transitions!F337*EF!F148 -> 0 | G173: =Transitions!G337*EF!G148 -> 0 | H173: =Transitions!H337*EF!H148 -> 0 | I173: =Transitions!I337*EF!I148 -> 0 | J173: =Transitions!J337*EF!J148 -> 0 | K173: =Transitions!K337*EF!K148 -> 0 | L173: =Transitions!L337*EF!L148 -> 0 | M173: =Transitions!M337*EF!M148 -> 0 | N173: =Transitions!N337*EF!N148 -> 0 | O173: =Transitions!O337*EF!O148 -> 0 | P173: =Transitions!P337*EF!P148 -> 0 | Q173: =Transitions!Q337*EF!Q148 -> 0 | R173: =Transitions!R337*EF!R148 -> 0 | S173: =Transitions!S337*EF!S148 -> 0 | T173: =Transitions!T337*EF!T148 -> 0
A174: TOTAL | B174: =SUM(B156:B173) -> 0 | C174: =SUM(C156:C173) -> 0 | D174: 0 | E174: 0 | F174: 0 | G174: 0 | H174: 0 | I174: 0 | J174: 0 | K174: 0 | L174: 96861.9506 | M174: 0 | N174: 0 | O174: 0 | P174: 0 | Q174: 0 | R174: 0 | S174: 0 | T174: 0
A176: Pasture-to-forest
A177: AEZ | B177: =Tables!E$6 -> USA | C177: =Tables!F$6 -> EU27 | D177: =Tables!G$6 -> BRAZIL | E177: =Tables!H$6 -> CAN | F177: =Tables!I$6 -> JAPAN | G177: =Tables!J$6 -> CHIHKG | H177: =Tables!K$6 -> INDIA | I177: =Tables!L$6 -> C_C_Amer | J177: =Tables!M$6 -> S_o_Amer | K177: =Tables!N$6 -> E_Asia | L177: =Tables!O$6 -> Mala_Indo | M177: =Tables!P$6 -> R_SE_Asia | N177: =Tables!Q$6 -> R_S_Asia | O177: =Tables!R$6 -> Russia | P177: =Tables!S$6 -> Oth_CEE_CIS | Q177: =Tables!T$6 -> Oth_Europe | R177: =Tables!U$6 -> MEAS_Nafr | S177: =Tables!V$6 -> S_S_Afr | T177: =Tables!W$6 -> Oceania
A178: 1 | B178: =Transitions!B1769*EF!B152 -> 0 | C178: =Transitions!C1769*EF!C152 -> 0 | D178: =Transitions!D1769*EF!D152 -> 0 | E178: =Transitions!E1769*EF!E152 -> 0 | F178: =Transitions!F1769*EF!F152 -> 0 | G178: =Transitions!G1769*EF!G152 -> 0 | H178: =Transitions!H1769*EF!H152 -> 0 | I178: =Transitions!I1769*EF!I152 -> 0 | J178: =Transitions!J1769*EF!J152 -> -7644.880042 | K178: =Transitions!K1769*EF!K152 -> 0 | L178: =Transitions!L1769*EF!L152 -> 0 | M178: =Transitions!M1769*EF!M152 -> 0 | N178: =Transitions!N1769*EF!N152 -> 0 | O178: =Transitions!O1769*EF!O152 -> 0 | P178: =Transitions!P1769*EF!P152 -> 0 | Q178: =Transitions!Q1769*EF!Q152 -> 0 | R178: =Transitions!R1769*EF!R152 -> 0 | S178: =Transitions!S1769*EF!S152 -> 0 | T178: =Transitions!T1769*EF!T152 -> 0
A179: =A178+1 -> 2 | B179: =Transitions!B1770*EF!B153 -> 0 | C179: =Transitions!C1770*EF!C153 -> 0 | D179: =Transitions!D1770*EF!D153 -> 0 | E179: =Transitions!E1770*EF!E153 -> 0 | F179: =Transitions!F1770*EF!F153 -> 0 | G179: =Transitions!G1770*EF!G153 -> 0 | H179: =Transitions!H1770*EF!H153 -> 0 | I179: =Transitions!I1770*EF!I153 -> -3768.173763 | J179: =Transitions!J1770*EF!J153 -> -4872.223109 | K179: =Transitions!K1770*EF!K153 -> 0 | L179: =Transitions!L1770*EF!L153 -> 0 | M179: =Transitions!M1770*EF!M153 -> 0 | N179: =Transitions!N1770*EF!N153 -> 0 | O179: =Transitions!O1770*EF!O153 -> 0 | P179: =Transitions!P1770*EF!P153 -> 0 | Q179: =Transitions!Q1770*EF!Q153 -> 0 | R179: =Transitions!R1770*EF!R153 -> 0 | S179: =Transitions!S1770*EF!S153 -> 0 | T179: =Transitions!T1770*EF!T153 -> 0
A180: =A179+1 -> 3 | B180: =Transitions!B1771*EF!B154 -> 0 | C180: =Transitions!C1771*EF!C154 -> 0 | D180: =Transitions!D1771*EF!D154 -> 0 | E180: =Transitions!E1771*EF!E154 -> 0 | F180: =Transitions!F1771*EF!F154 -> 0 | G180: =Transitions!G1771*EF!G154 -> 0 | H180: =Transitions!H1771*EF!H154 -> 0 | I180: =Transitions!I1771*EF!I154 -> -11383.65264 | J180: =Transitions!J1771*EF!J154 -> -13169.07121 | K180: =Transitions!K1771*EF!K154 -> 0 | L180: =Transitions!L1771*EF!L154 -> 0 | M180: =Transitions!M1771*EF!M154 -> 0 | N180: =Transitions!N1771*EF!N154 -> 0 | O180: =Transitions!O1771*EF!O154 -> 0 | P180: =Transitions!P1771*EF!P154 -> 0 | Q180: =Transitions!Q1771*EF!Q154 -> 0 | R180: =Transitions!R1771*EF!R154 -> 0 | S180: =Transitions!S1771*EF!S154 -> 0 | T180: =Transitions!T1771*EF!T154 -> 0
A181: 4 | B181: =Transitions!B1772*EF!B155 -> 0 | C181: =Transitions!C1772*EF!C155 -> 0 | D181: =Transitions!D1772*EF!D155 -> -90321.89026 | E181: =Transitions!E1772*EF!E155 -> 0 | F181: =Transitions!F1772*EF!F155 -> 0 | G181: =Transitions!G1772*EF!G155 -> 0 | H181: =Transitions!H1772*EF!H155 -> 0 | I181: =Transitions!I1772*EF!I155 -> -27412.88817 | J181: =Transitions!J1772*EF!J155 -> -10375.86694 | K181: =Transitions!K1772*EF!K155 -> 0 | L181: =Transitions!L1772*EF!L155 -> 0 | M181: =Transitions!M1772*EF!M155 -> 0 | N181: =Transitions!N1772*EF!N155 -> 0 | O181: =Transitions!O1772*EF!O155 -> 0 | P181: =Transitions!P1772*EF!P155 -> 0 | Q181: =Transitions!Q1772*EF!Q155 -> 0 | R181: =Transitions!R1772*EF!R155 -> 0 | S181: =Transitions!S1772*EF!S155 -> 0 | T181: =Transitions!T1772*EF!T155 -> 0
A182: 5 | B182: =Transitions!B1773*EF!B156 -> 0 | C182: =Transitions!C1773*EF!C156 -> 0 | D182: =Transitions!D1773*EF!D156 -> -436613.9397 | E182: =Transitions!E1773*EF!E156 -> 0 | F182: =Transitions!F1773*EF!F156 -> 0 | G182: =Transitions!G1773*EF!G156 -> -651.057 | H182: =Transitions!H1773*EF!H156 -> 0 | I182: =Transitions!I1773*EF!I156 -> -27464.41638 | J182: =Transitions!J1773*EF!J156 -> -104424.3563 | K182: =Transitions!K1773*EF!K156 -> 0 | L182: =Transitions!L1773*EF!L156 -> 0 | M182: =Transitions!M1773*EF!M156 -> -4991.599038 | N182: =Transitions!N1773*EF!N156 -> 0 | O182: =Transitions!O1773*EF!O156 -> 0 | P182: =Transitions!P1773*EF!P156 -> 0 | Q182: =Transitions!Q1773*EF!Q156 -> 0 | R182: =Transitions!R1773*EF!R156 -> 0 | S182: =Transitions!S1773*EF!S156 -> 0 | T182: =Transitions!T1773*EF!T156 -> 0
A183: 6 | B183: =Transitions!B1774*EF!B157 -> 0 | C183: =Transitions!C1774*EF!C157 -> 0 | D183: =Transitions!D1774*EF!D157 -> -734119.0204 | E183: =Transitions!E1774*EF!E157 -> 0 | F183: =Transitions!F1774*EF!F157 -> 0 | G183: =Transitions!G1774*EF!G157 -> -28851.0739 | H183: =Transitions!H1774*EF!H157 -> 0 | I183: =Transitions!I1774*EF!I157 -> -57518.45413 | J183: =Transitions!J1774*EF!J157 -> -395388.5847 | K183: =Transitions!K1774*EF!K157 -> 0 | L183: =Transitions!L1774*EF!L157 -> 0 | M183: =Transitions!M1774*EF!M157 -> 0 | N183: =Transitions!N1774*EF!N157 -> 0 | O183: =Transitions!O1774*EF!O157 -> 0 | P183: =Transitions!P1774*EF!P157 -> 0 | Q183: =Transitions!Q1774*EF!Q157 -> 0 | R183: =Transitions!R1774*EF!R157 -> 0 | S183: =Transitions!S1774*EF!S157 -> 0 | T183: =Transitions!T1774*EF!T157 -> 0
A184: 7 | B184: =Transitions!B1775*EF!B158 -> 0 | C184: =Transitions!C1775*EF!C158 -> 0 | D184: =Transitions!D1775*EF!D158 -> 0 | E184: =Transitions!E1775*EF!E158 -> 0 | F184: =Transitions!F1775*EF!F158 -> 0 | G184: =Transitions!G1775*EF!G158 -> 0 | H184: =Transitions!H1775*EF!H158 -> 0 | I184: =Transitions!I1775*EF!I158 -> -1742.553043 | J184: =Transitions!J1775*EF!J158 -> -9995.33151 | K184: =Transitions!K1775*EF!K158 -> 0 | L184: =Transitions!L1775*EF!L158 -> 0 | M184: =Transitions!M1775*EF!M158 -> 0 | N184: =Transitions!N1775*EF!N158 -> 0 | O184: =Transitions!O1775*EF!O158 -> 0 | P184: =Transitions!P1775*EF!P158 -> 0 | Q184: =Transitions!Q1775*EF!Q158 -> 0 | R184: =Transitions!R1775*EF!R158 -> 0 | S184: =Transitions!S1775*EF!S158 -> 0 | T184: =Transitions!T1775*EF!T158 -> 0
A185: 8 | B185: =Transitions!B1776*EF!B159 -> 0 | C185: =Transitions!C1776*EF!C159 -> 0 | D185: =Transitions!D1776*EF!D159 -> 0 | E185: =Transitions!E1776*EF!E159 -> 0 | F185: =Transitions!F1776*EF!F159 -> 0 | G185: =Transitions!G1776*EF!G159 -> -48351.11105 | H185: =Transitions!H1776*EF!H159 -> 0 | I185: =Transitions!I1776*EF!I159 -> -13128.74669 | J185: =Transitions!J1776*EF!J159 -> -49954.60565 | K185: =Transitions!K1776*EF!K159 -> 0 | L185: =Transitions!L1776*EF!L159 -> 0 | M185: =Transitions!M1776*EF!M159 -> 0 | N185: =Transitions!N1776*EF!N159 -> 0 | O185: =Transitions!O1776*EF!O159 -> -1667.269307 | P185: =Transitions!P1776*EF!P159 -> -662.85175 | Q185: =Transitions!Q1776*EF!Q159 -> 0 | R185: =Transitions!R1776*EF!R159 -> 0 | S185: =Transitions!S1776*EF!S159 -> 0 | T185: =Transitions!T1776*EF!T159 -> 0
A186: 9 | B186: =Transitions!B1777*EF!B160 -> 0 | C186: =Transitions!C1777*EF!C160 -> 0 | D186: =Transitions!D1777*EF!D160 -> 0 | E186: =Transitions!E1777*EF!E160 -> 0 | F186: =Transitions!F1777*EF!F160 -> 0 | G186: =Transitions!G1777*EF!G160 -> -85160.3258 | H186: =Transitions!H1777*EF!H160 -> 0 | I186: =Transitions!I1777*EF!I160 -> -11845.45225 | J186: =Transitions!J1777*EF!J160 -> -61424.07047 | K186: =Transitions!K1777*EF!K160 -> 0 | L186: =Transitions!L1777*EF!L160 -> 0 | M186: =Transitions!M1777*EF!M160 -> 0 | N186: =Transitions!N1777*EF!N160 -> 0 | O186: =Transitions!O1777*EF!O160 -> -18934.30798 | P186: =Transitions!P1777*EF!P160 -> 0 | Q186: =Transitions!Q1777*EF!Q160 -> 0 | R186: =Transitions!R1777*EF!R160 -> 0 | S186: =Transitions!S1777*EF!S160 -> 0 | T186: =Transitions!T1777*EF!T160 -> 0
A187: 10 | B187: =Transitions!B1778*EF!B161 -> 0 | C187: =Transitions!C1778*EF!C161 -> 0 | D187: =Transitions!D1778*EF!D161 -> 0 | E187: =Transitions!E1778*EF!E161 -> 0 | F187: =Transitions!F1778*EF!F161 -> 0 | G187: =Transitions!G1778*EF!G161 -> -81194.00619 | H187: =Transitions!H1778*EF!H161 -> 0 | I187: =Transitions!I1778*EF!I161 -> -5980.616311 | J187: =Transitions!J1778*EF!J161 -> -58612.74734 | K187: =Transitions!K1778*EF!K161 -> 0 | L187: =Transitions!L1778*EF!L161 -> 0 | M187: =Transitions!M1778*EF!M161 -> 0 | N187: =Transitions!N1778*EF!N161 -> 0 | O187: =Transitions!O1778*EF!O161 -> -12571.23517 | P187: =Transitions!P1778*EF!P161 -> 0 | Q187: =Transitions!Q1778*EF!Q161 -> 0 | R187: =Transitions!R1778*EF!R161 -> 0 | S187: =Transitions!S1778*EF!S161 -> 0 | T187: =Transitions!T1778*EF!T161 -> 0
A188: 11 | B188: =Transitions!B1779*EF!B162 -> 0 | C188: =Transitions!C1779*EF!C162 -> 0 | D188: =Transitions!D1779*EF!D162 -> 0 | E188: =Transitions!E1779*EF!E162 -> 0 | F188: =Transitions!F1779*EF!F162 -> 0 | G188: =Transitions!G1779*EF!G162 -> -183094.0774 | H188: =Transitions!H1779*EF!H162 -> 0 | I188: =Transitions!I1779*EF!I162 -> -371.9892479 | J188: =Transitions!J1779*EF!J162 -> -30085.47847 | K188: =Transitions!K1779*EF!K162 -> 0 | L188: =Transitions!L1779*EF!L162 -> 0 | M188: =Transitions!M1779*EF!M162 -> 0 | N188: =Transitions!N1779*EF!N162 -> 0 | O188: =Transitions!O1779*EF!O162 -> -26.37175678 | P188: =Transitions!P1779*EF!P162 -> 0 | Q188: =Transitions!Q1779*EF!Q162 -> 0 | R188: =Transitions!R1779*EF!R162 -> 0 | S188: =Transitions!S1779*EF!S162 -> 0 | T188: =Transitions!T1779*EF!T162 -> -1586.142012
A189: 12 | B189: =Transitions!B1780*EF!B163 -> 0 | C189: =Transitions!C1780*EF!C163 -> 0 | D189: =Transitions!D1780*EF!D163 -> 0 | E189: =Transitions!E1780*EF!E163 -> 0 | F189: =Transitions!F1780*EF!F163 -> 0 | G189: =Transitions!G1780*EF!G163 -> -301852.9067 | H189: =Transitions!H1780*EF!H163 -> 0 | I189: =Transitions!I1780*EF!I163 -> -865.2117432 | J189: =Transitions!J1780*EF!J163 -> -117606.5552 | K189: =Transitions!K1780*EF!K163 -> 0 | L189: =Transitions!L1780*EF!L163 -> 0 | M189: =Transitions!M1780*EF!M163 -> 0 | N189: =Transitions!N1780*EF!N163 -> 0 | O189: =Transitions!O1780*EF!O163 -> 0 | P189: =Transitions!P1780*EF!P163 -> 0 | Q189: =Transitions!Q1780*EF!Q163 -> 0 | R189: =Transitions!R1780*EF!R163 -> 0 | S189: =Transitions!S1780*EF!S163 -> 0 | T189: =Transitions!T1780*EF!T163 -> 0
A190: 13 | B190: =Transitions!B1781*EF!B164 -> 0 | C190: =Transitions!C1781*EF!C164 -> 0 | D190: =Transitions!D1781*EF!D164 -> 0 | E190: =Transitions!E1781*EF!E164 -> 0 | F190: =Transitions!F1781*EF!F164 -> 0 | G190: =Transitions!G1781*EF!G164 -> 0 | H190: =Transitions!H1781*EF!H164 -> 0 | I190: =Transitions!I1781*EF!I164 -> 0 | J190: =Transitions!J1781*EF!J164 -> 0 | K190: =Transitions!K1781*EF!K164 -> 0 | L190: =Transitions!L1781*EF!L164 -> 0 | M190: =Transitions!M1781*EF!M164 -> 0 | N190: =Transitions!N1781*EF!N164 -> 0 | O190: =Transitions!O1781*EF!O164 -> -697.234727 | P190: =Transitions!P1781*EF!P164 -> 0 | Q190: =Transitions!Q1781*EF!Q164 -> 0 | R190: =Transitions!R1781*EF!R164 -> 0 | S190: =Transitions!S1781*EF!S164 -> 0 | T190: =Transitions!T1781*EF!T164 -> 0
A191: 14 | B191: =Transitions!B1782*EF!B165 -> 0 | C191: =Transitions!C1782*EF!C165 -> 0 | D191: =Transitions!D1782*EF!D165 -> 0 | E191: =Transitions!E1782*EF!E165 -> 0 | F191: =Transitions!F1782*EF!F165 -> 0 | G191: =Transitions!G1782*EF!G165 -> 0 | H191: =Transitions!H1782*EF!H165 -> 0 | I191: =Transitions!I1782*EF!I165 -> 0 | J191: =Transitions!J1782*EF!J165 -> -45801.80257 | K191: =Transitions!K1782*EF!K165 -> 0 | L191: =Transitions!L1782*EF!L165 -> 0 | M191: =Transitions!M1782*EF!M165 -> 0 | N191: =Transitions!N1782*EF!N165 -> 0 | O191: =Transitions!O1782*EF!O165 -> -3928.800255 | P191: =Transitions!P1782*EF!P165 -> -79.29166667 | Q191: =Transitions!Q1782*EF!Q165 -> 0 | R191: =Transitions!R1782*EF!R165 -> 0 | S191: =Transitions!S1782*EF!S165 -> 0 | T191: =Transitions!T1782*EF!T165 -> 0
A192: 15 | B192: =Transitions!B1783*EF!B166 -> 0 | C192: =Transitions!C1783*EF!C166 -> 0 | D192: =Transitions!D1783*EF!D166 -> 0 | E192: =Transitions!E1783*EF!E166 -> 0 | F192: =Transitions!F1783*EF!F166 -> 0 | G192: =Transitions!G1783*EF!G166 -> -27439.43611 | H192: =Transitions!H1783*EF!H166 -> 0 | I192: =Transitions!I1783*EF!I166 -> 0 | J192: =Transitions!J1783*EF!J166 -> -20977.91498 | K192: =Transitions!K1783*EF!K166 -> 0 | L192: =Transitions!L1783*EF!L166 -> 0 | M192: =Transitions!M1783*EF!M166 -> 0 | N192: =Transitions!N1783*EF!N166 -> 0 | O192: =Transitions!O1783*EF!O166 -> -11914.56998 | P192: =Transitions!P1783*EF!P166 -> 0 | Q192: =Transitions!Q1783*EF!Q166 -> 0 | R192: =Transitions!R1783*EF!R166 -> 0 | S192: =Transitions!S1783*EF!S166 -> 0 | T192: =Transitions!T1783*EF!T166 -> 0
A193: 16 | B193: =Transitions!B1784*EF!B167 -> 0 | C193: =Transitions!C1784*EF!C167 -> 0 | D193: =Transitions!D1784*EF!D167 -> 0 | E193: =Transitions!E1784*EF!E167 -> 0 | F193: =Transitions!F1784*EF!F167 -> 0 | G193: =Transitions!G1784*EF!G167 -> -2670.172679 | H193: =Transitions!H1784*EF!H167 -> 0 | I193: =Transitions!I1784*EF!I167 -> 0 | J193: =Transitions!J1784*EF!J167 -> -33403.87519 | K193: =Transitions!K1784*EF!K167 -> 0 | L193: =Transitions!L1784*EF!L167 -> 0 | M193: =Transitions!M1784*EF!M167 -> 0 | N193: =Transitions!N1784*EF!N167 -> 0 | O193: =Transitions!O1784*EF!O167 -> 0 | P193: =Transitions!P1784*EF!P167 -> 0 | Q193: =Transitions!Q1784*EF!Q167 -> 0 | R193: =Transitions!R1784*EF!R167 -> 0 | S193: =Transitions!S1784*EF!S167 -> 0 | T193: =Transitions!T1784*EF!T167 -> 0
A194: 17 | B194: =Transitions!B1785*EF!B168 -> 0 | C194: =Transitions!C1785*EF!C168 -> 0 | D194: =Transitions!D1785*EF!D168 -> 0 | E194: =Transitions!E1785*EF!E168 -> 0 | F194: =Transitions!F1785*EF!F168 -> 0 | G194: =Transitions!G1785*EF!G168 -> 0 | H194: =Transitions!H1785*EF!H168 -> 0 | I194: =Transitions!I1785*EF!I168 -> 0 | J194: =Transitions!J1785*EF!J168 -> -5180.615569 | K194: =Transitions!K1785*EF!K168 -> 0 | L194: =Transitions!L1785*EF!L168 -> 0 | M194: =Transitions!M1785*EF!M168 -> 0 | N194: =Transitions!N1785*EF!N168 -> 0 | O194: =Transitions!O1785*EF!O168 -> 0 | P194: =Transitions!P1785*EF!P168 -> 0 | Q194: =Transitions!Q1785*EF!Q168 -> 0 | R194: =Transitions!R1785*EF!R168 -> 0 | S194: =Transitions!S1785*EF!S168 -> 0 | T194: =Transitions!T1785*EF!T168 -> -36.45427776
A195: 18 | B195: =Transitions!B1786*EF!B169 -> 0 | C195: =Transitions!C1786*EF!C169 -> 0 | D195: =Transitions!D1786*EF!D169 -> 0 | E195: =Transitions!E1786*EF!E169 -> 0 | F195: =Transitions!F1786*EF!F169 -> 0 | G195: =Transitions!G1786*EF!G169 -> 0 | H195: =Transitions!H1786*EF!H169 -> 0 | I195: =Transitions!I1786*EF!I169 -> 0 | J195: =Transitions!J1786*EF!J169 -> 0 | K195: =Transitions!K1786*EF!K169 -> 0 | L195: =Transitions!L1786*EF!L169 -> 0 | M195: =Transitions!M1786*EF!M169 -> 0 | N195: =Transitions!N1786*EF!N169 -> 0 | O195: =Transitions!O1786*EF!O169 -> 0 | P195: =Transitions!P1786*EF!P169 -> 0 | Q195: =Transitions!Q1786*EF!Q169 -> 0 | R195: =Transitions!R1786*EF!R169 -> 0 | S195: =Transitions!S1786*EF!S169 -> 0 | T195: =Transitions!T1786*EF!T169 -> 0
A196: TOTAL | B196: =SUM(B178:B195) -> 0 | C196: =SUM(C178:C195) -> 0 | D196: -1261054.85 | E196: 0 | F196: 0 | G196: -759264.1668 | H196: 0 | I196: -161482.1544 | J196: -968917.9793 | K196: 0 | L196: 0 | M196: -4991.599038 | N196: 0 | O196: -49739.78918 | P196: -742.1434167 | Q196: 0 | R196: 0 | S196: 0 | T196: -1622.59629
A198: CroplandPasture-to-Annuals
A199: AEZ | B199: =Tables!E$6 -> USA | C199: =Tables!F$6 -> EU27 | D199: =Tables!G$6 -> BRAZIL | E199: =Tables!H$6 -> CAN | F199: =Tables!I$6 -> JAPAN | G199: =Tables!J$6 -> CHIHKG | H199: =Tables!K$6 -> INDIA | I199: =Tables!L$6 -> C_C_Amer | J199: =Tables!M$6 -> S_o_Amer | K199: =Tables!N$6 -> E_Asia | L199: =Tables!O$6 -> Mala_Indo | M199: =Tables!P$6 -> R_SE_Asia | N199: =Tables!Q$6 -> R_S_Asia | O199: =Tables!R$6 -> Russia | P199: =Tables!S$6 -> Oth_CEE_CIS | Q199: =Tables!T$6 -> Oth_Europe | R199: =Tables!U$6 -> MEAS_Nafr | S199: =Tables!V$6 -> S_S_Afr | T199: =Tables!W$6 -> Oceania
A200: 1 | B200: =Transitions!B656*EF!B173 -> 0 | C200: =Transitions!C656*EF!C173 -> 0 | D200: =Transitions!D656*EF!D173 -> 86.37886596 | E200: =Transitions!E656*EF!E173 -> 0 | F200: =Transitions!F656*EF!F173 -> 0 | G200: =Transitions!G656*EF!G173 -> 0 | H200: =Transitions!H656*EF!H173 -> 0 | I200: =Transitions!I656*EF!I173 -> 0 | J200: =Transitions!J656*EF!J173 -> 0 | K200: =Transitions!K656*EF!K173 -> 0 | L200: =Transitions!L656*EF!L173 -> 0 | M200: =Transitions!M656*EF!M173 -> 0 | N200: =Transitions!N656*EF!N173 -> 0 | O200: =Transitions!O656*EF!O173 -> 0 | P200: =Transitions!P656*EF!P173 -> 0 | Q200: =Transitions!Q656*EF!Q173 -> 0 | R200: =Transitions!R656*EF!R173 -> 0 | S200: =Transitions!S656*EF!S173 -> 0 | T200: =Transitions!T656*EF!T173 -> 0
A201: =A200+1 -> 2 | B201: =Transitions!B657*EF!B174 -> 0 | C201: =Transitions!C657*EF!C174 -> 0 | D201: =Transitions!D657*EF!D174 -> 2099.685908 | E201: =Transitions!E657*EF!E174 -> 0 | F201: =Transitions!F657*EF!F174 -> 0 | G201: =Transitions!G657*EF!G174 -> 0 | H201: =Transitions!H657*EF!H174 -> 0 | I201: =Transitions!I657*EF!I174 -> 0 | J201: =Transitions!J657*EF!J174 -> 0 | K201: =Transitions!K657*EF!K174 -> 0 | L201: =Transitions!L657*EF!L174 -> 0 | M201: =Transitions!M657*EF!M174 -> 0 | N201: =Transitions!N657*EF!N174 -> 0 | O201: =Transitions!O657*EF!O174 -> 0 | P201: =Transitions!P657*EF!P174 -> 0 | Q201: =Transitions!Q657*EF!Q174 -> 0 | R201: =Transitions!R657*EF!R174 -> 0 | S201: =Transitions!S657*EF!S174 -> 0 | T201: =Transitions!T657*EF!T174 -> 0
A202: =A201+1 -> 3 | B202: =Transitions!B658*EF!B175 -> 0 | C202: =Transitions!C658*EF!C175 -> 0 | D202: =Transitions!D658*EF!D175 -> 22172.39796 | E202: =Transitions!E658*EF!E175 -> 0 | F202: =Transitions!F658*EF!F175 -> 0 | G202: =Transitions!G658*EF!G175 -> 0 | H202: =Transitions!H658*EF!H175 -> 0 | I202: =Transitions!I658*EF!I175 -> 0 | J202: =Transitions!J658*EF!J175 -> 0 | K202: =Transitions!K658*EF!K175 -> 0 | L202: =Transitions!L658*EF!L175 -> 0 | M202: =Transitions!M658*EF!M175 -> 0 | N202: =Transitions!N658*EF!N175 -> 0 | O202: =Transitions!O658*EF!O175 -> 0 | P202: =Transitions!P658*EF!P175 -> 0 | Q202: =Transitions!Q658*EF!Q175 -> 0 | R202: =Transitions!R658*EF!R175 -> 0 | S202: =Transitions!S658*EF!S175 -> 0 | T202: =Transitions!T658*EF!T175 -> 0
A203: 4 | B203: =Transitions!B659*EF!B176 -> 0 | C203: =Transitions!C659*EF!C176 -> 0 | D203: =Transitions!D659*EF!D176 -> 0 | E203: =Transitions!E659*EF!E176 -> 0 | F203: =Transitions!F659*EF!F176 -> 0 | G203: =Transitions!G659*EF!G176 -> 0 | H203: =Transitions!H659*EF!H176 -> 0 | I203: =Transitions!I659*EF!I176 -> 0 | J203: =Transitions!J659*EF!J176 -> 0 | K203: =Transitions!K659*EF!K176 -> 0 | L203: =Transitions!L659*EF!L176 -> 0 | M203: =Transitions!M659*EF!M176 -> 0 | N203: =Transitions!N659*EF!N176 -> 0 | O203: =Transitions!O659*EF!O176 -> 0 | P203: =Transitions!P659*EF!P176 -> 0 | Q203: =Transitions!Q659*EF!Q176 -> 0 | R203: =Transitions!R659*EF!R176 -> 0 | S203: =Transitions!S659*EF!S176 -> 0 | T203: =Transitions!T659*EF!T176 -> 0
A204: 5 | B204: =Transitions!B660*EF!B177 -> 0 | C204: =Transitions!C660*EF!C177 -> 0 | D204: =Transitions!D660*EF!D177 -> 0 | E204: =Transitions!E660*EF!E177 -> 0 | F204: =Transitions!F660*EF!F177 -> 0 | G204: =Transitions!G660*EF!G177 -> 0 | H204: =Transitions!H660*EF!H177 -> 0 | I204: =Transitions!I660*EF!I177 -> 0 | J204: =Transitions!J660*EF!J177 -> 0 | K204: =Transitions!K660*EF!K177 -> 0 | L204: =Transitions!L660*EF!L177 -> 0 | M204: =Transitions!M660*EF!M177 -> 0 | N204: =Transitions!N660*EF!N177 -> 0 | O204: =Transitions!O660*EF!O177 -> 0 | P204: =Transitions!P660*EF!P177 -> 0 | Q204: =Transitions!Q660*EF!Q177 -> 0 | R204: =Transitions!R660*EF!R177 -> 0 | S204: =Transitions!S660*EF!S177 -> 0 | T204: =Transitions!T660*EF!T177 -> 0
A205: 6 | B205: =Transitions!B661*EF!B178 -> 0 | C205: =Transitions!C661*EF!C178 -> 0 | D205: =Transitions!D661*EF!D178 -> 0 | E205: =Transitions!E661*EF!E178 -> 0 | F205: =Transitions!F661*EF!F178 -> 0 | G205: =Transitions!G661*EF!G178 -> 0 | H205: =Transitions!H661*EF!H178 -> 0 | I205: =Transitions!I661*EF!I178 -> 0 | J205: =Transitions!J661*EF!J178 -> 0 | K205: =Transitions!K661*EF!K178 -> 0 | L205: =Transitions!L661*EF!L178 -> 0 | M205: =Transitions!M661*EF!M178 -> 0 | N205: =Transitions!N661*EF!N178 -> 0 | O205: =Transitions!O661*EF!O178 -> 0 | P205: =Transitions!P661*EF!P178 -> 0 | Q205: =Transitions!Q661*EF!Q178 -> 0 | R205: =Transitions!R661*EF!R178 -> 0 | S205: =Transitions!S661*EF!S178 -> 0 | T205: =Transitions!T661*EF!T178 -> 0
A206: 7 | B206: =Transitions!B662*EF!B179 -> 548587.7253 | C206: =Transitions!C662*EF!C179 -> 0 | D206: =Transitions!D662*EF!D179 -> 0 | E206: =Transitions!E662*EF!E179 -> 0 | F206: =Transitions!F662*EF!F179 -> 0 | G206: =Transitions!G662*EF!G179 -> 0 | H206: =Transitions!H662*EF!H179 -> 0 | I206: =Transitions!I662*EF!I179 -> 0 | J206: =Transitions!J662*EF!J179 -> 0 | K206: =Transitions!K662*EF!K179 -> 0 | L206: =Transitions!L662*EF!L179 -> 0 | M206: =Transitions!M662*EF!M179 -> 0 | N206: =Transitions!N662*EF!N179 -> 0 | O206: =Transitions!O662*EF!O179 -> 0 | P206: =Transitions!P662*EF!P179 -> 0 | Q206: =Transitions!Q662*EF!Q179 -> 0 | R206: =Transitions!R662*EF!R179 -> 0 | S206: =Transitions!S662*EF!S179 -> 0 | T206: =Transitions!T662*EF!T179 -> 0
A207: 8 | B207: =Transitions!B663*EF!B180 -> 500817.6153 | C207: =Transitions!C663*EF!C180 -> 0 | D207: =Transitions!D663*EF!D180 -> 0 | E207: =Transitions!E663*EF!E180 -> 0 | F207: =Transitions!F663*EF!F180 -> 0 | G207: =Transitions!G663*EF!G180 -> 0 | H207: =Transitions!H663*EF!H180 -> 0 | I207: =Transitions!I663*EF!I180 -> 0 | J207: =Transitions!J663*EF!J180 -> 0 | K207: =Transitions!K663*EF!K180 -> 0 | L207: =Transitions!L663*EF!L180 -> 0 | M207: =Transitions!M663*EF!M180 -> 0 | N207: =Transitions!N663*EF!N180 -> 0 | O207: =Transitions!O663*EF!O180 -> 0 | P207: =Transitions!P663*EF!P180 -> 0 | Q207: =Transitions!Q663*EF!Q180 -> 0 | R207: =Transitions!R663*EF!R180 -> 0 | S207: =Transitions!S663*EF!S180 -> 0 | T207: =Transitions!T663*EF!T180 -> 0
A208: 9 | B208: =Transitions!B664*EF!B181 -> 301780.1875 | C208: =Transitions!C664*EF!C181 -> 0 | D208: =Transitions!D664*EF!D181 -> 0 | E208: =Transitions!E664*EF!E181 -> 0 | F208: =Transitions!F664*EF!F181 -> 0 | G208: =Transitions!G664*EF!G181 -> 0 | H208: =Transitions!H664*EF!H181 -> 0 | I208: =Transitions!I664*EF!I181 -> 0 | J208: =Transitions!J664*EF!J181 -> 0 | K208: =Transitions!K664*EF!K181 -> 0 | L208: =Transitions!L664*EF!L181 -> 0 | M208: =Transitions!M664*EF!M181 -> 0 | N208: =Transitions!N664*EF!N181 -> 0 | O208: =Transitions!O664*EF!O181 -> 0 | P208: =Transitions!P664*EF!P181 -> 0 | Q208: =Transitions!Q664*EF!Q181 -> 0 | R208: =Transitions!R664*EF!R181 -> 0 | S208: =Transitions!S664*EF!S181 -> 0 | T208: =Transitions!T664*EF!T181 -> 0
A209: 10 | B209: =Transitions!B665*EF!B182 -> 0 | C209: =Transitions!C665*EF!C182 -> 0 | D209: =Transitions!D665*EF!D182 -> 584.2115573 | E209: =Transitions!E665*EF!E182 -> 0 | F209: =Transitions!F665*EF!F182 -> 0 | G209: =Transitions!G665*EF!G182 -> 0 | H209: =Transitions!H665*EF!H182 -> 0 | I209: =Transitions!I665*EF!I182 -> 0 | J209: =Transitions!J665*EF!J182 -> 0 | K209: =Transitions!K665*EF!K182 -> 0 | L209: =Transitions!L665*EF!L182 -> 0 | M209: =Transitions!M665*EF!M182 -> 0 | N209: =Transitions!N665*EF!N182 -> 0 | O209: =Transitions!O665*EF!O182 -> 0 | P209: =Transitions!P665*EF!P182 -> 0 | Q209: =Transitions!Q665*EF!Q182 -> 0 | R209: =Transitions!R665*EF!R182 -> 0 | S209: =Transitions!S665*EF!S182 -> 0 | T209: =Transitions!T665*EF!T182 -> 0
A210: 11 | B210: =Transitions!B666*EF!B183 -> 0 | C210: =Transitions!C666*EF!C183 -> 0 | D210: =Transitions!D666*EF!D183 -> 0 | E210: =Transitions!E666*EF!E183 -> 0 | F210: =Transitions!F666*EF!F183 -> 0 | G210: =Transitions!G666*EF!G183 -> 0 | H210: =Transitions!H666*EF!H183 -> 0 | I210: =Transitions!I666*EF!I183 -> 0 | J210: =Transitions!J666*EF!J183 -> 0 | K210: =Transitions!K666*EF!K183 -> 0 | L210: =Transitions!L666*EF!L183 -> 0 | M210: =Transitions!M666*EF!M183 -> 0 | N210: =Transitions!N666*EF!N183 -> 0 | O210: =Transitions!O666*EF!O183 -> 0 | P210: =Transitions!P666*EF!P183 -> 0 | Q210: =Transitions!Q666*EF!Q183 -> 0 | R210: =Transitions!R666*EF!R183 -> 0 | S210: =Transitions!S666*EF!S183 -> 0 | T210: =Transitions!T666*EF!T183 -> 0
A211: 12 | B211: =Transitions!B667*EF!B184 -> 0 | C211: =Transitions!C667*EF!C184 -> 0 | D211: =Transitions!D667*EF!D184 -> 0 | E211: =Transitions!E667*EF!E184 -> 0 | F211: =Transitions!F667*EF!F184 -> 0 | G211: =Transitions!G667*EF!G184 -> 0 | H211: =Transitions!H667*EF!H184 -> 0 | I211: =Transitions!I667*EF!I184 -> 0 | J211: =Transitions!J667*EF!J184 -> 0 | K211: =Transitions!K667*EF!K184 -> 0 | L211: =Transitions!L667*EF!L184 -> 0 | M211: =Transitions!M667*EF!M184 -> 0 | N211: =Transitions!N667*EF!N184 -> 0 | O211: =Transitions!O667*EF!O184 -> 0 | P211: =Transitions!P667*EF!P184 -> 0 | Q211: =Transitions!Q667*EF!Q184 -> 0 | R211: =Transitions!R667*EF!R184 -> 0 | S211: =Transitions!S667*EF!S184 -> 0 | T211: =Transitions!T667*EF!T184 -> 0
A212: 13 | B212: =Transitions!B668*EF!B185 -> 23563.60966 | C212: =Transitions!C668*EF!C185 -> 0 | D212: =Transitions!D668*EF!D185 -> 0 | E212: =Transitions!E668*EF!E185 -> 0 | F212: =Transitions!F668*EF!F185 -> 0 | G212: =Transitions!G668*EF!G185 -> 0 | H212: =Transitions!H668*EF!H185 -> 0 | I212: =Transitions!I668*EF!I185 -> 0 | J212: =Transitions!J668*EF!J185 -> 0 | K212: =Transitions!K668*EF!K185 -> 0 | L212: =Transitions!L668*EF!L185 -> 0 | M212: =Transitions!M668*EF!M185 -> 0 | N212: =Transitions!N668*EF!N185 -> 0 | O212: =Transitions!O668*EF!O185 -> 0 | P212: =Transitions!P668*EF!P185 -> 0 | Q212: =Transitions!Q668*EF!Q185 -> 0 | R212: =Transitions!R668*EF!R185 -> 0 | S212: =Transitions!S668*EF!S185 -> 0 | T212: =Transitions!T668*EF!T185 -> 0
... 284 more rows

Sheet EF
A1: Emission factors (Mg CO2e ha-1)
A3: Forestry-to-Annuals
A4: AEZ | B4: =Tables!E$7 -> USA | C4: =Tables!F$7 -> EU27 | D4: =Tables!G$7 -> Brazil | E4: =Tables!H$7 -> Canada | F4: =Tables!I$7 -> Japan | G4: =Tables!J$7 -> ChiHkg | H4: =Tables!K$7 -> India | I4: =Tables!L$7 -> C_C_Amer | J4: =Tables!M$7 -> S_O_Amer | K4: =Tables!N$7 -> E_Asia | L4: =Tables!O$7 -> Mala_Indo | M4: =Tables!P$7 -> R_SE_Asia | N4: =Tables!Q$7 -> R_S_Asia | O4: =Tables!R$7 -> Russia | P4: =Tables!S$7 -> Oth_CEE_CIS | Q4: =Tables!T$7 -> Oth_Europe | R4: =Tables!U$7 -> ME_N_Afr | S4: =Tables!V$7 -> S_S_Afr | T4: =Tables!W$7 -> Oceania
A5: 1 | B5: =Forest!B932 -> 0 | C5: =Forest!C932 -> 0 | D5: =Forest!D932 -> 379.8164635 | E5: =Forest!E932 -> 0 | F5: =Forest!F932 -> 0 | G5: =Forest!G932 -> 0 | H5: =Forest!H932 -> 278.2042529 | I5: =Forest!I932 -> 338.2456545 | J5: =Forest!J932 -> 464.8988077 | K5: =Forest!K932 -> 0 | L5: =Forest!L932 -> 0 | M5: =Forest!M932 -> 0 | N5: =Forest!N932 -> 250.329245 | O5: =Forest!O932 -> 0 | P5: =Forest!P932 -> 0 | Q5: =Forest!Q932 -> 0 | R5: =Forest!R932 -> 523.1727417 | S5: =Forest!S932 -> 504.9775688 | T5: =Forest!T932 -> 436.1924038
A6: 2 | B6: =Forest!B933 -> 0 | C6: =Forest!C933 -> 0 | D6: =Forest!D933 -> 402.8663739 | E6: =Forest!E933 -> 0 | F6: =Forest!F933 -> 0 | G6: =Forest!G933 -> 0 | H6: =Forest!H933 -> 502.749045 | I6: =Forest!I933 -> 733.7978461 | J6: =Forest!J933 -> 550.7313341 | K6: =Forest!K933 -> 0 | L6: =Forest!L933 -> 0 | M6: =Forest!M933 -> 0 | N6: =Forest!N933 -> 0 | O6: =Forest!O933 -> 0 | P6: =Forest!P933 -> 0 | Q6: =Forest!Q933 -> 0 | R6: =Forest!R933 -> 494.6661912 | S6: =Forest!S933 -> 504.9976419 | T6: =Forest!T933 -> 458.9411087
A7: 3 | B7: =Forest!B934 -> 0 | C7: =Forest!C934 -> 0 | D7: =Forest!D934 -> 502.1911344 | E7: =Forest!E934 -> 0 | F7: =Forest!F934 -> 0 | G7: =Forest!G934 -> 0 | H7: =Forest!H934 -> 695.5106228 | I7: =Forest!I934 -> 714.7100521 | J7: =Forest!J934 -> 486.8945831 | K7: =Forest!K934 -> 0 | L7: =Forest!L934 -> 0 | M7: =Forest!M934 -> 0 | N7: =Forest!N934 -> 643.2385085 | O7: =Forest!O934 -> 0 | P7: =Forest!P934 -> 0 | Q7: =Forest!Q934 -> 0 | R7: =Forest!R934 -> 389.9219045 | S7: =Forest!S934 -> 482.6684561 | T7: =Forest!T934 -> 710.9760309
A8: 4 | B8: =Forest!B935 -> 0 | C8: =Forest!C935 -> 523.8138127 | D8: =Forest!D935 -> 637.4786277 | E8: =Forest!E935 -> 0 | F8: =Forest!F935 -> 0 | G8: =Forest!G935 -> 141.1506788 | H8: =Forest!H935 -> 778.2963963 | I8: =Forest!I935 -> 1055.194451 | J8: =Forest!J935 -> 651.4526746 | K8: =Forest!K935 -> 584.55952 | L8: =Forest!L935 -> 997.808772 | M8: =Forest!M935 -> 829.2848949 | N8: =Forest!N935 -> 728.3650762 | O8: =Forest!O935 -> 0 | P8: =Forest!P935 -> 0 | Q8: =Forest!Q935 -> 0 | R8: =Forest!R935 -> 433.9373209 | S8: =Forest!S935 -> 570.6908156 | T8: =Forest!T935 -> 810.7838789
A9: 5 | B9: =Forest!B936 -> 0 | C9: =Forest!C936 -> 0 | D9: =Forest!D936 -> 853.2218029 | E9: =Forest!E936 -> 0 | F9: =Forest!F936 -> 0 | G9: =Forest!G936 -> 719.2539066 | H9: =Forest!H936 -> 830.2376363 | I9: =Forest!I936 -> 1075.231606 | J9: =Forest!J936 -> 765.288059 | K9: =Forest!K936 -> 583.1382033 | L9: =Forest!L936 -> 1010.067183 | M9: =Forest!M936 -> 847.5360511 | N9: =Forest!N936 -> 837.0282892 | O9: =Forest!O936 -> 0 | P9: =Forest!P936 -> 0 | Q9: =Forest!Q936 -> 0 | R9: =Forest!R936 -> 0 | S9: =Forest!S936 -> 796.3884523 | T9: =Forest!T936 -> 862.6424709
A10: 6 | B10: =Forest!B937 -> 0 | C10: =Forest!C937 -> 0 | D10: =Forest!D937 -> 924.6861615 | E10: =Forest!E937 -> 0 | F10: =Forest!F937 -> 0 | G10: =Forest!G937 -> 806.8568066 | H10: =Forest!H937 -> 904.9598592 | I10: =Forest!I937 -> 1013.478289 | J10: =Forest!J937 -> 915.1409687 | K10: =Forest!K937 -> 603.4880372 | L10: =Forest!L937 -> 1016.82858 | M10: =Forest!M937 -> 885.4791164 | N10: =Forest!N937 -> 859.362946 | O10: =Forest!O937 -> 0 | P10: =Forest!P937 -> 0 | Q10: =Forest!Q937 -> 0 | R10: =Forest!R937 -> 0 | S10: =Forest!S937 -> 936.7879858 | T10: =Forest!T937 -> 1075.557563
A11: 7 | B11: =Forest!B938 -> 375.8114532 | C11: =Forest!C938 -> 0 | D11: =Forest!D938 -> 0 | E11: =Forest!E938 -> 243.4987058 | F11: =Forest!F938 -> 0 | G11: =Forest!G938 -> 287.2873962 | H11: =Forest!H938 -> 180.8377959 | I11: =Forest!I938 -> 772.823929 | J11: =Forest!J938 -> 343.5982196 | K11: =Forest!K938 -> 192.730397 | L11: =Forest!L938 -> 0 | M11: =Forest!M938 -> 0 | N11: =Forest!N938 -> 241.2624025 | O11: =Forest!O938 -> 256.6292363 | P11: =Forest!P938 -> 261.4975591 | Q11: =Forest!Q938 -> 0 | R11: =Forest!R938 -> 491.545734 | S11: =Forest!S938 -> 389.9080443 | T11: =Forest!T938 -> 310.1811082
A12: 8 | B12: =Forest!B939 -> 410.520906 | C12: =Forest!C939 -> 261.5936323 | D12: =Forest!D939 -> 0 | E12: =Forest!E939 -> 361.3428203 | F12: =Forest!F939 -> 0 | G12: =Forest!G939 -> 292.3956424 | H12: =Forest!H939 -> 325.3442593 | I12: =Forest!I939 -> 798.5208178 | J12: =Forest!J939 -> 348.5241412 | K12: =Forest!K939 -> 217.6602548 | L12: =Forest!L939 -> 0 | M12: =Forest!M939 -> 0 | N12: =Forest!N939 -> 415.8357895 | O12: =Forest!O939 -> 314.4095082 | P12: =Forest!P939 -> 351.8735295 | Q12: =Forest!Q939 -> 0 | R12: =Forest!R939 -> 449.1299511 | S12: =Forest!S939 -> 383.9747363 | T12: =Forest!T939 -> 453.9515025
A13: 9 | B13: =Forest!B940 -> 438.6640522 | C13: =Forest!C940 -> 325.3550324 | D13: =Forest!D940 -> 0 | E13: =Forest!E940 -> 504.5346639 | F13: =Forest!F940 -> 370.990388 | G13: =Forest!G940 -> 363.5613962 | H13: =Forest!H940 -> 477.4361871 | I13: =Forest!I940 -> 524.5166988 | J13: =Forest!J940 -> 444.8492624 | K13: =Forest!K940 -> 235.1502235 | L13: =Forest!L940 -> 0 | M13: =Forest!M940 -> 0 | N13: =Forest!N940 -> 452.8975353 | O13: =Forest!O940 -> 324.5113261 | P13: =Forest!P940 -> 358.0392129 | Q13: =Forest!Q940 -> 110.7736667 | R13: =Forest!R940 -> 412.4642251 | S13: =Forest!S940 -> 415.203592 | T13: =Forest!T940 -> 457.6545638
A14: 10 | B14: =Forest!B941 -> 440.6722226 | C14: =Forest!C941 -> 372.4799048 | D14: =Forest!D941 -> 563.6046615 | E14: =Forest!E941 -> 466.3771566 | F14: =Forest!F941 -> 501.1134844 | G14: =Forest!G941 -> 518.8039262 | H14: =Forest!H941 -> 506.9082936 | I14: =Forest!I941 -> 731.9211938 | J14: =Forest!J941 -> 556.0756467 | K14: =Forest!K941 -> 330.3862105 | L14: =Forest!L941 -> 0 | M14: =Forest!M941 -> 583.842422 | N14: =Forest!N941 -> 576.1779157 | O14: =Forest!O941 -> 384.202776 | P14: =Forest!P941 -> 369.0166074 | Q14: =Forest!Q941 -> 397.8272547 | R14: =Forest!R941 -> 434.3898568 | S14: =Forest!S941 -> 382.0559962 | T14: =Forest!T941 -> 485.5330201
A15: 11 | B15: =Forest!B942 -> 419.2356432 | C15: =Forest!C942 -> 400.8531833 | D15: =Forest!D942 -> 441.6371345 | E15: =Forest!E942 -> 501.1864623 | F15: =Forest!F942 -> 544.2021009 | G15: =Forest!G942 -> 557.9117426 | H15: =Forest!H942 -> 600.2213644 | I15: =Forest!I942 -> 756.332573 | J15: =Forest!J942 -> 607.8536042 | K15: =Forest!K942 -> 338.1665661 | L15: =Forest!L942 -> 0 | M15: =Forest!M942 -> 653.0926528 | N15: =Forest!N942 -> 621.0298464 | O15: =Forest!O942 -> 380.0133728 | P15: =Forest!P942 -> 325.9035687 | Q15: =Forest!Q942 -> 353.8776522 | R15: =Forest!R942 -> 0 | S15: =Forest!S942 -> 399.1970988 | T15: =Forest!T942 -> 495.874928
A16: 12 | B16: =Forest!B943 -> 397.9016304 | C16: =Forest!C943 -> 399.3394913 | D16: =Forest!D943 -> 635.9452928 | E16: =Forest!E943 -> 0 | F16: =Forest!F943 -> 395.331976 | G16: =Forest!G943 -> 570.9486129 | H16: =Forest!H943 -> 669.5299935 | I16: =Forest!I943 -> 860.0752294 | J16: =Forest!J943 -> 714.0027038 | K16: =Forest!K943 -> 341.1421187 | L16: =Forest!L943 -> 0 | M16: =Forest!M943 -> 677.1840325 | N16: =Forest!N943 -> 657.0957844 | O16: =Forest!O943 -> 206.2217913 | P16: =Forest!P943 -> 396.5657989 | Q16: =Forest!Q943 -> 0 | R16: =Forest!R943 -> 0 | S16: =Forest!S943 -> 490.6384743 | T16: =Forest!T943 -> 585.8420186
A17: 13 | B17: =Forest!B944 -> 242.5236247 | C17: =Forest!C944 -> 197.4128908 | D17: =Forest!D944 -> 0 | E17: =Forest!E944 -> 292.5724908 | F17: =Forest!F944 -> 0 | G17: =Forest!G944 -> 210.9001147 | H17: =Forest!H944 -> 561.0759409 | I17: =Forest!I944 -> 0 | J17: =Forest!J944 -> 461.0321583 | K17: =Forest!K944 -> 224.5333323 | L17: =Forest!L944 -> 0 | M17: =Forest!M944 -> 0 | N17: =Forest!N944 -> 437.2035988 | O17: =Forest!O944 -> 195.2151161 | P17: =Forest!P944 -> 201.8381314 | Q17: =Forest!Q944 -> 113.2734167 | R17: =Forest!R944 -> 0 | S17: =Forest!S944 -> 0 | T17: =Forest!T944 -> 0
A18: 14 | B18: =Forest!B945 -> 254.7257876 | C18: =Forest!C945 -> 212.1400609 | D18: =Forest!D945 -> 0 | E18: =Forest!E945 -> 368.5335401 | F18: =Forest!F945 -> 0 | G18: =Forest!G945 -> 201.6021814 | H18: =Forest!H945 -> 434.4854159 | I18: =Forest!I945 -> 0 | J18: =Forest!J945 -> 578.3606474 | K18: =Forest!K945 -> 227.3273275 | L18: =Forest!L945 -> 0 | M18: =Forest!M945 -> 0 | N18: =Forest!N945 -> 456.7690837 | O18: =Forest!O945 -> 197.7260515 | P18: =Forest!P945 -> 192.9862481 | Q18: =Forest!Q945 -> 181.2640981 | R18: =Forest!R945 -> 0 | S18: =Forest!S945 -> 0 | T18: =Forest!T945 -> 0
A19: 15 | B19: =Forest!B946 -> 291.1194544 | C19: =Forest!C946 -> 375.5969851 | D19: =Forest!D946 -> 0 | E19: =Forest!E946 -> 429.2022786 | F19: =Forest!F946 -> 343.8381829 | G19: =Forest!G946 -> 208.2626814 | H19: =Forest!H946 -> 488.5174982 | I19: =Forest!I946 -> 0 | J19: =Forest!J946 -> 587.3533942 | K19: =Forest!K946 -> 220.4367056 | L19: =Forest!L946 -> 0 | M19: =Forest!M946 -> 580.4043773 | N19: =Forest!N946 -> 585.1958534 | O19: =Forest!O946 -> 214.8163391 | P19: =Forest!P946 -> 203.1566647 | Q19: =Forest!Q946 -> 399.3401981 | R19: =Forest!R946 -> 0 | S19: =Forest!S946 -> 0 | T19: =Forest!T946 -> 404.3811023
A20: 16 | B20: =Forest!B947 -> 394.6691714 | C20: =Forest!C947 -> 281.0934685 | D20: =Forest!D947 -> 0 | E20: =Forest!E947 -> 566.6821149 | F20: =Forest!F947 -> 0 | G20: =Forest!G947 -> 226.1512374 | H20: =Forest!H947 -> 583.686843 | I20: =Forest!I947 -> 0 | J20: =Forest!J947 -> 755.4714393 | K20: =Forest!K947 -> 0 | L20: =Forest!L947 -> 0 | M20: =Forest!M947 -> 709.08215 | N20: =Forest!N947 -> 663.335626 | O20: =Forest!O947 -> 242.7064997 | P20: =Forest!P947 -> 233.36762 | Q20: =Forest!Q947 -> 375.0648959 | R20: =Forest!R947 -> 0 | S20: =Forest!S947 -> 0 | T20: =Forest!T947 -> 515.8006498
A21: 17 | B21: =Forest!B948 -> 0 | C21: =Forest!C948 -> 0 | D21: =Forest!D948 -> 0 | E21: =Forest!E948 -> 0 | F21: =Forest!F948 -> 0 | G21: =Forest!G948 -> 197.0647027 | H21: =Forest!H948 -> 0 | I21: =Forest!I948 -> 0 | J21: =Forest!J948 -> 817.1326922 | K21: =Forest!K948 -> 0 | L21: =Forest!L948 -> 0 | M21: =Forest!M948 -> 0 | N21: =Forest!N948 -> 0 | O21: =Forest!O948 -> 0 | P21: =Forest!P948 -> 0 | Q21: =Forest!Q948 -> 0 | R21: =Forest!R948 -> 0 | S21: =Forest!S948 -> 0 | T21: =Forest!T948 -> 641.2919333
A22: 18 | B22: =Forest!B949 -> 0 | C22: =Forest!C949 -> 0 | D22: =Forest!D949 -> 0 | E22: =Forest!E949 -> 0 | F22: =Forest!F949 -> 0 | G22: =Forest!G949 -> 0 | H22: =Forest!H949 -> 0 | I22: =Forest!I949 -> 0 | J22: =Forest!J949 -> 721.5063717 | K22: =Forest!K949 -> 0 | L22: =Forest!L949 -> 0 | M22: =Forest!M949 -> 0 | N22: =Forest!N949 -> 0 | O22: =Forest!O949 -> 0 | P22: =Forest!P949 -> 0 | Q22: =Forest!Q949 -> 0 | R22: =Forest!R949 -> 0 | S22: =Forest!S949 -> 0 | T22: =Forest!T949 -> 0
A24: Forestry-to-Perennials
A25: AEZ | B25: =Tables!E$7 -> USA | C25: =Tables!F$7 -> EU27 | D25: =Tables!G$7 -> Brazil | E25: =Tables!H$7 -> Canada | F25: =Tables!I$7 -> Japan | G25: =Tables!J$7 -> ChiHkg | H25: =Tables!K$7 -> India | I25: =Tables!L$7 -> C_C_Amer | J25: =Tables!M$7 -> S_O_Amer | K25: =Tables!N$7 -> E_Asia | L25: =Tables!O$7 -> Mala_Indo | M25: =Tables!P$7 -> R_SE_Asia | N25: =Tables!Q$7 -> R_S_Asia | O25: =Tables!R$7 -> Russia | P25: =Tables!S$7 -> Oth_CEE_CIS | Q25: =Tables!T$7 -> Oth_Europe | R25: =Tables!U$7 -> ME_N_Afr | S25: =Tables!V$7 -> S_S_Afr | T25: =Tables!W$7 -> Oceania
A26: 1 | B26: =Forest!B953 -> 0 | C26: =Forest!C953 -> 0 | D26: =Forest!D953 -> 304.4400154 | E26: =Forest!E953 -> 0 | F26: =Forest!F953 -> 0 | G26: =Forest!G953 -> 0 | H26: =Forest!H953 -> 222.5214677 | I26: =Forest!I953 -> 281.0694837 | J26: =Forest!J953 -> 380.2889885 | K26: =Forest!K953 -> 0 | L26: =Forest!L953 -> 0 | M26: =Forest!M953 -> 0 | N26: =Forest!N953 -> 151.3323735 | O26: =Forest!O953 -> 0 | P26: =Forest!P953 -> 0 | Q26: =Forest!Q953 -> 0 | R26: =Forest!R953 -> 445.9922671 | S26: =Forest!S953 -> 432.7223477 | T26: =Forest!T953 -> 365.2253454
A27: 2 | B27: =Forest!B954 -> 0 | C27: =Forest!C954 -> 0 | D27: =Forest!D954 -> 361.2347385 | E27: =Forest!E954 -> 0 | F27: =Forest!F954 -> 0 | G27: =Forest!G954 -> 0 | H27: =Forest!H954 -> 420.406448 | I27: =Forest!I954 -> 435.5843312 | J27: =Forest!J954 -> 434.5522481 | K27: =Forest!K954 -> 0 | L27: =Forest!L954 -> 0 | M27: =Forest!M954 -> 0 | N27: =Forest!N954 -> 0 | O27: =Forest!O954 -> 0 | P27: =Forest!P954 -> 0 | Q27: =Forest!Q954 -> 0 | R27: =Forest!R954 -> 431.9512317 | S27: =Forest!S954 -> 435.0862482 | T27: =Forest!T954 -> 365.4170588
A28: 3 | B28: =Forest!B955 -> 0 | C28: =Forest!C955 -> 0 | D28: =Forest!D955 -> 415.623537 | E28: =Forest!E955 -> 0 | F28: =Forest!F955 -> 0 | G28: =Forest!G955 -> 0 | H28: =Forest!H955 -> 613.1811642 | I28: =Forest!I955 -> 579.6189475 | J28: =Forest!J955 -> 382.1844141 | K28: =Forest!K955 -> 0 | L28: =Forest!L955 -> 0 | M28: =Forest!M955 -> 0 | N28: =Forest!N955 -> 557.1677407 | O28: =Forest!O955 -> 0 | P28: =Forest!P955 -> 0 | Q28: =Forest!Q955 -> 0 | R28: =Forest!R955 -> 307.7630526 | S28: =Forest!S955 -> 410.6953044 | T28: =Forest!T955 -> 609.7076219
A29: 4 | B29: =Forest!B956 -> 0 | C29: =Forest!C956 -> 338.1525603 | D29: =Forest!D956 -> 542.7783316 | E29: =Forest!E956 -> 0 | F29: =Forest!F956 -> 0 | G29: =Forest!G956 -> 141.1506788 | H29: =Forest!H956 -> 664.8060195 | I29: =Forest!I956 -> 589.1477023 | J29: =Forest!J956 -> 535.393762 | K29: =Forest!K956 -> 391.0156652 | L29: =Forest!L956 -> 760.9372735 | M29: =Forest!M956 -> 700.0679704 | N29: =Forest!N956 -> 585.0294053 | O29: =Forest!O956 -> 0 | P29: =Forest!P956 -> 0 | Q29: =Forest!Q956 -> 0 | R29: =Forest!R956 -> 347.8947789 | S29: =Forest!S956 -> 473.3355175 | T29: =Forest!T956 -> 676.8230259
A30: 5 | B30: =Forest!B957 -> 0 | C30: =Forest!C957 -> 0 | D30: =Forest!D957 -> 735.0538082 | E30: =Forest!E957 -> 0 | F30: =Forest!F957 -> 0 | G30: =Forest!G957 -> 517.6278788 | H30: =Forest!H957 -> 686.0730126 | I30: =Forest!I957 -> 619.7012666 | J30: =Forest!J957 -> 606.7574884 | K30: =Forest!K957 -> 395.9119172 | L30: =Forest!L957 -> 786.0141697 | M30: =Forest!M957 -> 716.7494043 | N30: =Forest!N957 -> 653.3034549 | O30: =Forest!O957 -> 0 | P30: =Forest!P957 -> 0 | Q30: =Forest!Q957 -> 0 | R30: =Forest!R957 -> 0 | S30: =Forest!S957 -> 674.2172944 | T30: =Forest!T957 -> 674.8391562
A31: 6 | B31: =Forest!B958 -> 0 | C31: =Forest!C958 -> 0 | D31: =Forest!D958 -> 800.0592948 | E31: =Forest!E958 -> 0 | F31: =Forest!F958 -> 0 | G31: =Forest!G958 -> 518.0007788 | H31: =Forest!H958 -> 751.6573731 | I31: =Forest!I958 -> 754.3326585 | J31: =Forest!J958 -> 698.7556475 | K31: =Forest!K958 -> 412.9810846 | L31: =Forest!L958 -> 890.9140376 | M31: =Forest!M958 -> 716.325497 | N31: =Forest!N958 -> 655.2931468 | O31: =Forest!O958 -> 0 | P31: =Forest!P958 -> 0 | Q31: =Forest!Q958 -> 0 | R31: =Forest!R958 -> 0 | S31: =Forest!S958 -> 807.3054463 | T31: =Forest!T958 -> 753.7645939
A32: 7 | B32: =Forest!B959 -> 329.1097287 | C32: =Forest!C959 -> 0 | D32: =Forest!D959 -> 0 | E32: =Forest!E959 -> 188.0851613 | F32: =Forest!F959 -> 0 | G32: =Forest!G959 -> 238.6628129 | H32: =Forest!H959 -> 150.3226411 | I32: =Forest!I959 -> 400.6490842 | J32: =Forest!J959 -> 285.3968845 | K32: =Forest!K959 -> 142.8941167 | L32: =Forest!L959 -> 0 | M32: =Forest!M959 -> 0 | N32: =Forest!N959 -> 208.1517906 | O32: =Forest!O959 -> 206.4816647 | P32: =Forest!P959 -> 222.3027257 | Q32: =Forest!Q959 -> 0 | R32: =Forest!R959 -> 446.7635256 | S32: =Forest!S959 -> 362.6925705 | T32: =Forest!T959 -> 272.3521083
A33: 8 | B33: =Forest!B960 -> 344.0290332 | C33: =Forest!C960 -> 210.7592154 | D33: =Forest!D960 -> 0 | E33: =Forest!E960 -> 293.2196586 | F33: =Forest!F960 -> 0 | G33: =Forest!G960 -> 238.4983924 | H33: =Forest!H960 -> 281.9657833 | I33: =Forest!I960 -> 420.5079953 | J33: =Forest!J960 -> 289.4073711 | K33: =Forest!K960 -> 179.0546223 | L33: =Forest!L960 -> 0 | M33: =Forest!M960 -> 0 | N33: =Forest!N960 -> 377.765251 | O33: =Forest!O960 -> 247.4404912 | P33: =Forest!P960 -> 303.8411129 | Q33: =Forest!Q960 -> 0 | R33: =Forest!R960 -> 401.0729795 | S33: =Forest!S960 -> 344.6693907 | T33: =Forest!T960 -> 411.9462842
A34: 9 | B34: =Forest!B961 -> 368.41056 | C34: =Forest!C961 -> 259.7151858 | D34: =Forest!D961 -> 0 | E34: =Forest!E961 -> 320.6644633 | F34: =Forest!F961 -> 249.5761274 | G34: =Forest!G961 -> 311.6184795 | H34: =Forest!H961 -> 432.6443014 | I34: =Forest!I961 -> 361.8798167 | J34: =Forest!J961 -> 359.7782106 | K34: =Forest!K961 -> 156.6321044 | L34: =Forest!L961 -> 0 | M34: =Forest!M961 -> 0 | N34: =Forest!N961 -> 408.4955106 | O34: =Forest!O961 -> 252.2598001 | P34: =Forest!P961 -> 301.4313795 | Q34: =Forest!Q961 -> 110.7736667 | R34: =Forest!R961 -> 353.2255071 | S34: =Forest!S961 -> 381.4874168 | T34: =Forest!T961 -> 411.1746657
A35: 10 | B35: =Forest!B962 -> 340.5449107 | C35: =Forest!C962 -> 227.3452069 | D35: =Forest!D962 -> 470.8977876 | E35: =Forest!E962 -> 306.5235425 | F35: =Forest!F962 -> 270.7730124 | G35: =Forest!G962 -> 453.8178924 | H35: =Forest!H962 -> 441.925615 | I35: =Forest!I962 -> 451.769154 | J35: =Forest!J962 -> 458.7507735 | K35: =Forest!K962 -> 262.044811 | L35: =Forest!L962 -> 0 | M35: =Forest!M962 -> 517.0130777 | N35: =Forest!N962 -> 499.0933613 | O35: =Forest!O962 -> 234.5678777 | P35: =Forest!P962 -> 210.6262257 | Q35: =Forest!Q962 -> 249.0968924 | R35: =Forest!R962 -> 379.7800234 | S35: =Forest!S962 -> 333.9812443 | T35: =Forest!T962 -> 416.518294
A36: 11 | B36: =Forest!B963 -> 337.3934106 | C36: =Forest!C963 -> 296.5959076 | D36: =Forest!D963 -> 415.6982518 | E36: =Forest!E963 -> 286.7521505 | F36: =Forest!F963 -> 274.6551738 | G36: =Forest!G963 -> 485.8058924 | H36: =Forest!H963 -> 510.6128965 | I36: =Forest!I963 -> 465.4584203 | J36: =Forest!J963 -> 476.9954848 | K36: =Forest!K963 -> 266.9895416 | L36: =Forest!L963 -> 0 | M36: =Forest!M963 -> 581.6748478 | N36: =Forest!N963 -> 523.9478304 | O36: =Forest!O963 -> 249.1163825 | P36: =Forest!P963 -> 244.2348924 | Q36: =Forest!Q963 -> 241.8863333 | R36: =Forest!R963 -> 0 | S36: =Forest!S963 -> 349.791291 | T36: =Forest!T963 -> 416.8931029
A37: 12 | B37: =Forest!B964 -> 330.9708379 | C37: =Forest!C964 -> 301.6007072 | D37: =Forest!D964 -> 532.1770918 | E37: =Forest!E964 -> 0 | F37: =Forest!F964 -> 277.4542833 | G37: =Forest!G964 -> 493.7689462 | H37: =Forest!H964 -> 591.3879918 | I37: =Forest!I964 -> 601.3901035 | J37: =Forest!J964 -> 529.3314386 | K37: =Forest!K964 -> 260.4626403 | L37: =Forest!L964 -> 0 | M37: =Forest!M964 -> 605.1719655 | N37: =Forest!N964 -> 552.4243994 | O37: =Forest!O964 -> 203.8072035 | P37: =Forest!P964 -> 301.4284462 | Q37: =Forest!Q964 -> 0 | R37: =Forest!R964 -> 0 | S37: =Forest!S964 -> 443.7477945 | T37: =Forest!T964 -> 492.2147364
A38: 13 | B38: =Forest!B965 -> 193.39226 | C38: =Forest!C965 -> 123.5005475 | D38: =Forest!D965 -> 0 | E38: =Forest!E965 -> 258.9359238 | F38: =Forest!F965 -> 0 | G38: =Forest!G965 -> 140.4157814 | H38: =Forest!H965 -> 505.6529946 | I38: =Forest!I965 -> 0 | J38: =Forest!J965 -> 397.0538659 | K38: =Forest!K965 -> 162.6661555 | L38: =Forest!L965 -> 0 | M38: =Forest!M965 -> 0 | N38: =Forest!N965 -> 398.1215748 | O38: =Forest!O965 -> 143.4513036 | P38: =Forest!P965 -> 145.2110481 | Q38: =Forest!Q965 -> 75.02 | R38: =Forest!R965 -> 0 | S38: =Forest!S965 -> 0 | T38: =Forest!T965 -> 0
A39: 14 | B39: =Forest!B966 -> 201.4955366 | C39: =Forest!C966 -> 122.7251279 | D39: =Forest!D966 -> 0 | E39: =Forest!E966 -> 288.972139 | F39: =Forest!F966 -> 0 | G39: =Forest!G966 -> 140.3431814 | H39: =Forest!H966 -> 392.5245571 | I39: =Forest!I966 -> 0 | J39: =Forest!J966 -> 471.0779245 | K39: =Forest!K966 -> 162.1839504 | L39: =Forest!L966 -> 0 | M39: =Forest!M966 -> 0 | N39: =Forest!N966 -> 416.0240707 | O39: =Forest!O966 -> 136.1379258 | P39: =Forest!P966 -> 142.8739147 | Q39: =Forest!Q966 -> 143.0106814 | R39: =Forest!R966 -> 0 | S39: =Forest!S966 -> 0 | T39: =Forest!T966 -> 0
A40: 15 | B40: =Forest!B967 -> 226.7899117 | C40: =Forest!C967 -> 130.4423141 | D40: =Forest!D967 -> 0 | E40: =Forest!E967 -> 309.844881 | F40: =Forest!F967 -> 175.161222 | G40: =Forest!G967 -> 140.1305147 | H40: =Forest!H967 -> 443.6425903 | I40: =Forest!I967 -> 0 | J40: =Forest!J967 -> 440.5206504 | K40: =Forest!K967 -> 163.6829559 | L40: =Forest!L967 -> 0 | M40: =Forest!M967 -> 515.0298575 | N40: =Forest!N967 -> 516.9781653 | O40: =Forest!O967 -> 136.9008378 | P40: =Forest!P967 -> 140.2412481 | Q40: =Forest!Q967 -> 145.8222814 | R40: =Forest!R967 -> 0 | S40: =Forest!S967 -> 0 | T40: =Forest!T967 -> 336.465149
A41: 16 | B41: =Forest!B968 -> 269.6738346 | C41: =Forest!C968 -> 140.700523 | D41: =Forest!D968 -> 0 | E41: =Forest!E968 -> 383.4954854 | F41: =Forest!F968 -> 0 | G41: =Forest!G968 -> 140.2126481 | H41: =Forest!H968 -> 510.7918247 | I41: =Forest!I968 -> 0 | J41: =Forest!J968 -> 526.8977467 | K41: =Forest!K968 -> 0 | L41: =Forest!L968 -> 0 | M41: =Forest!M968 -> 619.9921428 | N41: =Forest!N968 -> 566.6196199 | O41: =Forest!O968 -> 140.7961238 | P41: =Forest!P968 -> 138.3455814 | Q41: =Forest!Q968 -> 147.4202147 | R41: =Forest!R968 -> 0 | S41: =Forest!S968 -> 0 | T41: =Forest!T968 -> 408.2780202
A42: 17 | B42: =Forest!B969 -> 0 | C42: =Forest!C969 -> 0 | D42: =Forest!D969 -> 0 | E42: =Forest!E969 -> 0 | F42: =Forest!F969 -> 0 | G42: =Forest!G969 -> 140.1308814 | H42: =Forest!H969 -> 0 | I42: =Forest!I969 -> 0 | J42: =Forest!J969 -> 578.9205655 | K42: =Forest!K969 -> 0 | L42: =Forest!L969 -> 0 | M42: =Forest!M969 -> 0 | N42: =Forest!N969 -> 0 | O42: =Forest!O969 -> 0 | P42: =Forest!P969 -> 0 | Q42: =Forest!Q969 -> 0 | R42: =Forest!R969 -> 0 | S42: =Forest!S969 -> 0 | T42: =Forest!T969 -> 504.8684511
A43: 18 | B43: =Forest!B970 -> 0 | C43: =Forest!C970 -> 0 | D43: =Forest!D970 -> 0 | E43: =Forest!E970 -> 0 | F43: =Forest!F970 -> 0 | G43: =Forest!G970 -> 0 | H43: =Forest!H970 -> 0 | I43: =Forest!I970 -> 0 | J43: =Forest!J970 -> 652.2050679 | K43: =Forest!K970 -> 0 | L43: =Forest!L970 -> 0 | M43: =Forest!M970 -> 0 | N43: =Forest!N970 -> 0 | O43: =Forest!O970 -> 0 | P43: =Forest!P970 -> 0 | Q43: =Forest!Q970 -> 0 | R43: =Forest!R970 -> 0 | S43: =Forest!S970 -> 0 | T43: =Forest!T970 -> 0
A45: Forestry-to-palm (on peat)
A46: AEZ | B46: =Tables!E$7 -> USA | C46: =Tables!F$7 -> EU27 | D46: =Tables!G$7 -> Brazil | E46: =Tables!H$7 -> Canada | F46: =Tables!I$7 -> Japan | G46: =Tables!J$7 -> ChiHkg | H46: =Tables!K$7 -> India | I46: =Tables!L$7 -> C_C_Amer | J46: =Tables!M$7 -> S_O_Amer | K46: =Tables!N$7 -> E_Asia | L46: =Tables!O$7 -> Mala_Indo | M46: =Tables!P$7 -> R_SE_Asia | N46: =Tables!Q$7 -> R_S_Asia | O46: =Tables!R$7 -> Russia | P46: =Tables!S$7 -> Oth_CEE_CIS | Q46: =Tables!T$7 -> Oth_Europe | R46: =Tables!U$7 -> ME_N_Afr | S46: =Tables!V$7 -> S_S_Afr | T46: =Tables!W$7 -> Oceania
A47: 1 | B47: =B26+Forest!B743 -> 0 | C47: =C26+Forest!C743 -> 0 | D47: =D26+Forest!D743 -> 304.4400154 | E47: =E26+Forest!E743 -> 0 | F47: =F26+Forest!F743 -> 0 | G47: =G26+Forest!G743 -> 0 | H47: =H26+Forest!H743 -> 222.5214677 | I47: =I26+Forest!I743 -> 281.0694837 | J47: =J26+Forest!J743 -> 380.2889885 | K47: =K26+Forest!K743 -> 0 | L47: =L26+Forest!L743 -> 0 | M47: =M26+Forest!M743 -> 0 | N47: =N26+Forest!N743 -> 151.3323735 | O47: =O26+Forest!O743 -> 0 | P47: =P26+Forest!P743 -> 0 | Q47: =Q26+Forest!Q743 -> 0 | R47: =R26+Forest!R743 -> 445.9922671 | S47: =S26+Forest!S743 -> 432.7223477 | T47: =T26+Forest!T743 -> 365.2253454
A48: 2 | B48: =B27+Forest!B744 -> 0 | C48: =C27+Forest!C744 -> 0 | D48: =D27+Forest!D744 -> 361.2347385 | E48: =E27+Forest!E744 -> 0 | F48: =F27+Forest!F744 -> 0 | G48: =G27+Forest!G744 -> 0 | H48: =H27+Forest!H744 -> 420.406448 | I48: =I27+Forest!I744 -> 435.5843312 | J48: =J27+Forest!J744 -> 434.5522481 | K48: =K27+Forest!K744 -> 0 | L48: =L27+Forest!L744 -> 0 | M48: =M27+Forest!M744 -> 0 | N48: =N27+Forest!N744 -> 0 | O48: =O27+Forest!O744 -> 0 | P48: =P27+Forest!P744 -> 0 | Q48: =Q27+Forest!Q744 -> 0 | R48: =R27+Forest!R744 -> 431.9512317 | S48: =S27+Forest!S744 -> 435.0862482 | T48: =T27+Forest!T744 -> 365.4170588
A49: 3 | B49: =B28+Forest!B745 -> 0 | C49: =C28+Forest!C745 -> 0 | D49: =D28+Forest!D745 -> 415.623537 | E49: =E28+Forest!E745 -> 0 | F49: =F28+Forest!F745 -> 0 | G49: =G28+Forest!G745 -> 0 | H49: =H28+Forest!H745 -> 613.1811642 | I49: =I28+Forest!I745 -> 579.6189475 | J49: =J28+Forest!J745 -> 382.1844141 | K49: =K28+Forest!K745 -> 0 | L49: =L28+Forest!L745 -> 0 | M49: =M28+Forest!M745 -> 0 | N49: =N28+Forest!N745 -> 557.1677407 | O49: =O28+Forest!O745 -> 0 | P49: =P28+Forest!P745 -> 0 | Q49: =Q28+Forest!Q745 -> 0 | R49: =R28+Forest!R745 -> 307.7630526 | S49: =S28+Forest!S745 -> 410.6953044 | T49: =T28+Forest!T745 -> 609.7076219
A50: 4 | B50: =B29+Forest!B746 -> 0 | C50: =C29+Forest!C746 -> 338.1525603 | D50: =D29+Forest!D746 -> 542.7783316 | E50: =E29+Forest!E746 -> 0 | F50: =F29+Forest!F746 -> 0 | G50: =G29+Forest!G746 -> 141.1506788 | H50: =H29+Forest!H746 -> 664.8060195 | I50: =I29+Forest!I746 -> 589.1477023 | J50: =J29+Forest!J746 -> 535.393762 | K50: =K29+Forest!K746 -> 391.0156652 | L50: =L29+Forest!L746 -> 3932.457988 | M50: =M29+Forest!M746 -> 700.0679704 | N50: =N29+Forest!N746 -> 585.0294053 | O50: =O29+Forest!O746 -> 0 | P50: =P29+Forest!P746 -> 0 | Q50: =Q29+Forest!Q746 -> 0 | R50: =R29+Forest!R746 -> 347.8947789 | S50: =S29+Forest!S746 -> 473.3355175 | T50: =T29+Forest!T746 -> 676.8230259
A51: 5 | B51: =B30+Forest!B747 -> 0 | C51: =C30+Forest!C747 -> 0 | D51: =D30+Forest!D747 -> 735.0538082 | E51: =E30+Forest!E747 -> 0 | F51: =F30+Forest!F747 -> 0 | G51: =G30+Forest!G747 -> 517.6278788 | H51: =H30+Forest!H747 -> 686.0730126 | I51: =I30+Forest!I747 -> 619.7012666 | J51: =J30+Forest!J747 -> 606.7574884 | K51: =K30+Forest!K747 -> 395.9119172 | L51: =L30+Forest!L747 -> 3957.534884 | M51: =M30+Forest!M747 -> 716.7494043 | N51: =N30+Forest!N747 -> 653.3034549 | O51: =O30+Forest!O747 -> 0 | P51: =P30+Forest!P747 -> 0 | Q51: =Q30+Forest!Q747 -> 0 | R51: =R30+Forest!R747 -> 0 | S51: =S30+Forest!S747 -> 674.2172944 | T51: =T30+Forest!T747 -> 674.8391562
A52: 6 | B52: =B31+Forest!B748 -> 0 | C52: =C31+Forest!C748 -> 0 | D52: =D31+Forest!D748 -> 800.0592948 | E52: =E31+Forest!E748 -> 0 | F52: =F31+Forest!F748 -> 0 | G52: =G31+Forest!G748 -> 518.0007788 | H52: =H31+Forest!H748 -> 751.6573731 | I52: =I31+Forest!I748 -> 754.3326585 | J52: =J31+Forest!J748 -> 698.7556475 | K52: =K31+Forest!K748 -> 412.9810846 | L52: =L31+Forest!L748 -> 4062.434752 | M52: =M31+Forest!M748 -> 716.325497 | N52: =N31+Forest!N748 -> 655.2931468 | O52: =O31+Forest!O748 -> 0 | P52: =P31+Forest!P748 -> 0 | Q52: =Q31+Forest!Q748 -> 0 | R52: =R31+Forest!R748 -> 0 | S52: =S31+Forest!S748 -> 807.3054463 | T52: =T31+Forest!T748 -> 753.7645939
A53: 7 | B53: =B32+Forest!B749 -> 329.1097287 | C53: =C32+Forest!C749 -> 0 | D53: =D32+Forest!D749 -> 0 | E53: =E32+Forest!E749 -> 188.0851613 | F53: =F32+Forest!F749 -> 0 | G53: =G32+Forest!G749 -> 238.6628129 | H53: =H32+Forest!H749 -> 150.3226411 | I53: =I32+Forest!I749 -> 400.6490842 | J53: =J32+Forest!J749 -> 285.3968845 | K53: =K32+Forest!K749 -> 142.8941167 | L53: =L32+Forest!L749 -> 0 | M53: =M32+Forest!M749 -> 0 | N53: =N32+Forest!N749 -> 208.1517906 | O53: =O32+Forest!O749 -> 206.4816647 | P53: =P32+Forest!P749 -> 222.3027257 | Q53: =Q32+Forest!Q749 -> 0 | R53: =R32+Forest!R749 -> 446.7635256 | S53: =S32+Forest!S749 -> 362.6925705 | T53: =T32+Forest!T749 -> 272.3521083
A54: 8 | B54: =B33+Forest!B750 -> 344.0290332 | C54: =C33+Forest!C750 -> 210.7592154 | D54: =D33+Forest!D750 -> 0 | E54: =E33+Forest!E750 -> 293.2196586 | F54: =F33+Forest!F750 -> 0 | G54: =G33+Forest!G750 -> 238.4983924 | H54: =H33+Forest!H750 -> 281.9657833 | I54: =I33+Forest!I750 -> 420.5079953 | J54: =J33+Forest!J750 -> 289.4073711 | K54: =K33+Forest!K750 -> 179.0546223 | L54: =L33+Forest!L750 -> 0 | M54: =M33+Forest!M750 -> 0 | N54: =N33+Forest!N750 -> 377.765251 | O54: =O33+Forest!O750 -> 247.4404912 | P54: =P33+Forest!P750 -> 303.8411129 | Q54: =Q33+Forest!Q750 -> 0 | R54: =R33+Forest!R750 -> 401.0729795 | S54: =S33+Forest!S750 -> 344.6693907 | T54: =T33+Forest!T750 -> 411.9462842
A55: 9 | B55: =B34+Forest!B751 -> 368.41056 | C55: =C34+Forest!C751 -> 259.7151858 | D55: =D34+Forest!D751 -> 0 | E55: =E34+Forest!E751 -> 320.6644633 | F55: =F34+Forest!F751 -> 249.5761274 | G55: =G34+Forest!G751 -> 311.6184795 | H55: =H34+Forest!H751 -> 432.6443014 | I55: =I34+Forest!I751 -> 361.8798167 | J55: =J34+Forest!J751 -> 359.7782106 | K55: =K34+Forest!K751 -> 156.6321044 | L55: =L34+Forest!L751 -> 0 | M55: =M34+Forest!M751 -> 0 | N55: =N34+Forest!N751 -> 408.4955106 | O55: =O34+Forest!O751 -> 252.2598001 | P55: =P34+Forest!P751 -> 301.4313795 | Q55: =Q34+Forest!Q751 -> 110.7736667 | R55: =R34+Forest!R751 -> 353.2255071 | S55: =S34+Forest!S751 -> 381.4874168 | T55: =T34+Forest!T751 -> 411.1746657
A56: 10 | B56: =B35+Forest!B752 -> 340.5449107 | C56: =C35+Forest!C752 -> 227.3452069 | D56: =D35+Forest!D752 -> 470.8977876 | E56: =E35+Forest!E752 -> 306.5235425 | F56: =F35+Forest!F752 -> 270.7730124 | G56: =G35+Forest!G752 -> 453.8178924 | H56: =H35+Forest!H752 -> 441.925615 | I56: =I35+Forest!I752 -> 451.769154 | J56: =J35+Forest!J752 -> 458.7507735 | K56: =K35+Forest!K752 -> 262.044811 | L56: =L35+Forest!L752 -> 0 | M56: =M35+Forest!M752 -> 517.0130777 | N56: =N35+Forest!N752 -> 499.0933613 | O56: =O35+Forest!O752 -> 234.5678777 | P56: =P35+Forest!P752 -> 210.6262257 | Q56: =Q35+Forest!Q752 -> 249.0968924 | R56: =R35+Forest!R752 -> 379.7800234 | S56: =S35+Forest!S752 -> 333.9812443 | T56: =T35+Forest!T752 -> 416.518294
A57: 11 | B57: =B36+Forest!B753 -> 337.3934106 | C57: =C36+Forest!C753 -> 296.5959076 | D57: =D36+Forest!D753 -> 415.6982518 | E57: =E36+Forest!E753 -> 286.7521505 | F57: =F36+Forest!F753 -> 274.6551738 | G57: =G36+Forest!G753 -> 485.8058924 | H57: =H36+Forest!H753 -> 510.6128965 | I57: =I36+Forest!I753 -> 465.4584203 | J57: =J36+Forest!J753 -> 476.9954848 | K57: =K36+Forest!K753 -> 266.9895416 | L57: =L36+Forest!L753 -> 0 | M57: =M36+Forest!M753 -> 581.6748478 | N57: =N36+Forest!N753 -> 523.9478304 | O57: =O36+Forest!O753 -> 249.1163825 | P57: =P36+Forest!P753 -> 244.2348924 | Q57: =Q36+Forest!Q753 -> 241.8863333 | R57: =R36+Forest!R753 -> 0 | S57: =S36+Forest!S753 -> 349.791291 | T57: =T36+Forest!T753 -> 416.8931029
A58: 12 | B58: =B37+Forest!B754 -> 330.9708379 | C58: =C37+Forest!C754 -> 301.6007072 | D58: =D37+Forest!D754 -> 532.1770918 | E58: =E37+Forest!E754 -> 0 | F58: =F37+Forest!F754 -> 277.4542833 | G58: =G37+Forest!G754 -> 493.7689462 | H58: =H37+Forest!H754 -> 591.3879918 | I58: =I37+Forest!I754 -> 601.3901035 | J58: =J37+Forest!J754 -> 529.3314386 | K58: =K37+Forest!K754 -> 260.4626403 | L58: =L37+Forest!L754 -> 0 | M58: =M37+Forest!M754 -> 605.1719655 | N58: =N37+Forest!N754 -> 552.4243994 | O58: =O37+Forest!O754 -> 203.8072035 | P58: =P37+Forest!P754 -> 301.4284462 | Q58: =Q37+Forest!Q754 -> 0 | R58: =R37+Forest!R754 -> 0 | S58: =S37+Forest!S754 -> 443.7477945 | T58: =T37+Forest!T754 -> 492.2147364
A59: 13 | B59: =B38+Forest!B755 -> 193.39226 | C59: =C38+Forest!C755 -> 123.5005475 | D59: =D38+Forest!D755 -> 0 | E59: =E38+Forest!E755 -> 258.9359238 | F59: =F38+Forest!F755 -> 0 | G59: =G38+Forest!G755 -> 140.4157814 | H59: =H38+Forest!H755 -> 505.6529946 | I59: =I38+Forest!I755 -> 0 | J59: =J38+Forest!J755 -> 397.0538659 | K59: =K38+Forest!K755 -> 162.6661555 | L59: =L38+Forest!L755 -> 0 | M59: =M38+Forest!M755 -> 0 | N59: =N38+Forest!N755 -> 398.1215748 | O59: =O38+Forest!O755 -> 143.4513036 | P59: =P38+Forest!P755 -> 145.2110481 | Q59: =Q38+Forest!Q755 -> 75.02 | R59: =R38+Forest!R755 -> 0 | S59: =S38+Forest!S755 -> 0 | T59: =T38+Forest!T755 -> 0
A60: 14 | B60: =B39+Forest!B756 -> 201.4955366 | C60: =C39+Forest!C756 -> 122.7251279 | D60: =D39+Forest!D756 -> 0 | E60: =E39+Forest!E756 -> 288.972139 | F60: =F39+Forest!F756 -> 0 | G60: =G39+Forest!G756 -> 140.3431814 | H60: =H39+Forest!H756 -> 392.5245571 | I60: =I39+Forest!I756 -> 0 | J60: =J39+Forest!J756 -> 471.0779245 | K60: =K39+Forest!K756 -> 162.1839504 | L60: =L39+Forest!L756 -> 0 | M60: =M39+Forest!M756 -> 0 | N60: =N39+Forest!N756 -> 416.0240707 | O60: =O39+Forest!O756 -> 136.1379258 | P60: =P39+Forest!P756 -> 142.8739147 | Q60: =Q39+Forest!Q756 -> 143.0106814 | R60: =R39+Forest!R756 -> 0 | S60: =S39+Forest!S756 -> 0 | T60: =T39+Forest!T756 -> 0
A61: 15 | B61: =B40+Forest!B757 -> 226.7899117 | C61: =C40+Forest!C757 -> 130.4423141 | D61: =D40+Forest!D757 -> 0 | E61: =E40+Forest!E757 -> 309.844881 | F61: =F40+Forest!F757 -> 175.161222 | G61: =G40+Forest!G757 -> 140.1305147 | H61: =H40+Forest!H757 -> 443.6425903 | I61: =I40+Forest!I757 -> 0 | J61: =J40+Forest!J757 -> 440.5206504 | K61: =K40+Forest!K757 -> 163.6829559 | L61: =L40+Forest!L757 -> 0 | M61: =M40+Forest!M757 -> 515.0298575 | N61: =N40+Forest!N757 -> 516.9781653 | O61: =O40+Forest!O757 -> 136.9008378 | P61: =P40+Forest!P757 -> 140.2412481 | Q61: =Q40+Forest!Q757 -> 145.8222814 | R61: =R40+Forest!R757 -> 0 | S61: =S40+Forest!S757 -> 0 | T61: =T40+Forest!T757 -> 336.465149
A62: 16 | B62: =B41+Forest!B758 -> 269.6738346 | C62: =C41+Forest!C758 -> 140.700523 | D62: =D41+Forest!D758 -> 0 | E62: =E41+Forest!E758 -> 383.4954854 | F62: =F41+Forest!F758 -> 0 | G62: =G41+Forest!G758 -> 140.2126481 | H62: =H41+Forest!H758 -> 510.7918247 | I62: =I41+Forest!I758 -> 0 | J62: =J41+Forest!J758 -> 526.8977467 | K62: =K41+Forest!K758 -> 0 | L62: =L41+Forest!L758 -> 0 | M62: =M41+Forest!M758 -> 619.9921428 | N62: =N41+Forest!N758 -> 566.6196199 | O62: =O41+Forest!O758 -> 140.7961238 | P62: =P41+Forest!P758 -> 138.3455814 | Q62: =Q41+Forest!Q758 -> 147.4202147 | R62: =R41+Forest!R758 -> 0 | S62: =S41+Forest!S758 -> 0 | T62: =T41+Forest!T758 -> 408.2780202
A63: 17 | B63: =B42+Forest!B759 -> 0 | C63: =C42+Forest!C759 -> 0 | D63: =D42+Forest!D759 -> 0 | E63: =E42+Forest!E759 -> 0 | F63: =F42+Forest!F759 -> 0 | G63: =G42+Forest!G759 -> 140.1308814 | H63: =H42+Forest!H759 -> 0 | I63: =I42+Forest!I759 -> 0 | J63: =J42+Forest!J759 -> 578.9205655 | K63: =K42+Forest!K759 -> 0 | L63: =L42+Forest!L759 -> 0 | M63: =M42+Forest!M759 -> 0 | N63: =N42+Forest!N759 -> 0 | O63: =O42+Forest!O759 -> 0 | P63: =P42+Forest!P759 -> 0 | Q63: =Q42+Forest!Q759 -> 0 | R63: =R42+Forest!R759 -> 0 | S63: =S42+Forest!S759 -> 0 | T63: =T42+Forest!T759 -> 504.8684511
A64: 18 | B64: =B43+Forest!B760 -> 0 | C64: =C43+Forest!C760 -> 0 | D64: =D43+Forest!D760 -> 0 | E64: =E43+Forest!E760 -> 0 | F64: =F43+Forest!F760 -> 0 | G64: =G43+Forest!G760 -> 0 | H64: =H43+Forest!H760 -> 0 | I64: =I43+Forest!I760 -> 0 | J64: =J43+Forest!J760 -> 652.2050679 | K64: =K43+Forest!K760 -> 0 | L64: =L43+Forest!L760 -> 0 | M64: =M43+Forest!M760 -> 0 | N64: =N43+Forest!N760 -> 0 | O64: =O43+Forest!O760 -> 0 | P64: =P43+Forest!P760 -> 0 | Q64: =Q43+Forest!Q760 -> 0 | R64: =R43+Forest!R760 -> 0 | S64: =S43+Forest!S760 -> 0 | T64: =T43+Forest!T760 -> 0
A66: Forestry-to-pasture
A67: AEZ | B67: =Tables!E$7 -> USA | C67: =Tables!F$7 -> EU27 | D67: =Tables!G$7 -> Brazil | E67: =Tables!H$7 -> Canada | F67: =Tables!I$7 -> Japan | G67: =Tables!J$7 -> ChiHkg | H67: =Tables!K$7 -> India | I67: =Tables!L$7 -> C_C_Amer | J67: =Tables!M$7 -> S_O_Amer | K67: =Tables!N$7 -> E_Asia | L67: =Tables!O$7 -> Mala_Indo | M67: =Tables!P$7 -> R_SE_Asia | N67: =Tables!Q$7 -> R_S_Asia | O67: =Tables!R$7 -> Russia | P67: =Tables!S$7 -> Oth_CEE_CIS | Q67: =Tables!T$7 -> Oth_Europe | R67: =Tables!U$7 -> ME_N_Afr | S67: =Tables!V$7 -> S_S_Afr | T67: =Tables!W$7 -> Oceania
A68: 1 | B68: =Forest!B974 -> 0 | C68: =Forest!C974 -> 0 | D68: =Forest!D974 -> 286.3056301 | E68: =Forest!E974 -> 0 | F68: =Forest!F974 -> 0 | G68: =Forest!G974 -> 0 | H68: =Forest!H974 -> 272.6355437 | I68: =Forest!I974 -> 262.9837034 | J68: =Forest!J974 -> 364.8090836 | K68: =Forest!K974 -> 0 | L68: =Forest!L974 -> 0 | M68: =Forest!M974 -> 0 | N68: =Forest!N974 -> 143.1425814 | O68: =Forest!O974 -> 0 | P68: =Forest!P974 -> 0 | Q68: =Forest!Q974 -> 0 | R68: =Forest!R974 -> 453.2198992 | S68: =Forest!S974 -> 443.6876836 | T68: =Forest!T974 -> 323.9297442
A69: 2 | B69: =Forest!B975 -> 0 | C69: =Forest!C975 -> 0 | D69: =Forest!D975 -> 344.4883787 | E69: =Forest!E975 -> 0 | F69: =Forest!F975 -> 0 | G69: =Forest!G975 -> 0 | H69: =Forest!H975 -> 381.31338 | I69: =Forest!I975 -> 422.6213434 | J69: =Forest!J975 -> 431.2878441 | K69: =Forest!K975 -> 0 | L69: =Forest!L975 -> 0 | M69: =Forest!M975 -> 0 | N69: =Forest!N975 -> 0 | O69: =Forest!O975 -> 0 | P69: =Forest!P975 -> 0 | Q69: =Forest!Q975 -> 0 | R69: =Forest!R975 -> 450.1725123 | S69: =Forest!S975 -> 446.5221524 | T69: =Forest!T975 -> 324.1145015
A70: 3 | B70: =Forest!B976 -> 0 | C70: =Forest!C976 -> 0 | D70: =Forest!D976 -> 388.9883975 | E70: =Forest!E976 -> 0 | F70: =Forest!F976 -> 0 | G70: =Forest!G976 -> 0 | H70: =Forest!H976 -> 586.0861361 | I70: =Forest!I976 -> 557.5108299 | J70: =Forest!J976 -> 368.1771475 | K70: =Forest!K976 -> 0 | L70: =Forest!L976 -> 0 | M70: =Forest!M976 -> 0 | N70: =Forest!N976 -> 509.3885653 | O70: =Forest!O976 -> 0 | P70: =Forest!P976 -> 0 | Q70: =Forest!Q976 -> 0 | R70: =Forest!R976 -> 316.9564686 | S70: =Forest!S976 -> 385.4840736 | T70: =Forest!T976 -> 632.9168585
A71: 4 | B71: =Forest!B977 -> 0 | C71: =Forest!C977 -> 279.0277342 | D71: =Forest!D977 -> 511.6536215 | E71: =Forest!E977 -> 0 | F71: =Forest!F977 -> 0 | G71: =Forest!G977 -> 125.2872122 | H71: =Forest!H977 -> 752.122445 | I71: =Forest!I977 -> 558.2816157 | J71: =Forest!J977 -> 523.9700347 | K71: =Forest!K977 -> 466.0883333 | L71: =Forest!L977 -> 731.199833 | M71: =Forest!M977 -> 820.6840494 | N71: =Forest!N977 -> 608.4817553 | O71: =Forest!O977 -> 0 | P71: =Forest!P977 -> 0 | Q71: =Forest!Q977 -> 0 | R71: =Forest!R977 -> 360.9583994 | S71: =Forest!S977 -> 438.8084091 | T71: =Forest!T977 -> 623.1656447
A72: 5 | B72: =Forest!B978 -> 0 | C72: =Forest!C978 -> 0 | D72: =Forest!D978 -> 706.1732603 | E72: =Forest!E978 -> 0 | F72: =Forest!F978 -> 0 | G72: =Forest!G978 -> 738.6561108 | H72: =Forest!H978 -> 793.2791751 | I72: =Forest!I978 -> 588.8288461 | J72: =Forest!J978 -> 598.5599962 | K72: =Forest!K978 -> 512.9446667 | L72: =Forest!L978 -> 756.223489 | M72: =Forest!M978 -> 851.364214 | N72: =Forest!N978 -> 734.5470244 | O72: =Forest!O978 -> 0 | P72: =Forest!P978 -> 0 | Q72: =Forest!Q978 -> 0 | R72: =Forest!R978 -> 0 | S72: =Forest!S978 -> 643.3507109 | T72: =Forest!T978 -> 620.8842883
A73: 6 | B73: =Forest!B979 -> 0 | C73: =Forest!C979 -> 0 | D73: =Forest!D979 -> 774.2173928 | E73: =Forest!E979 -> 0 | F73: =Forest!F979 -> 0 | G73: =Forest!G979 -> 724.6329106 | H73: =Forest!H979 -> 911.77953 | I73: =Forest!I979 -> 726.3466999 | J73: =Forest!J979 -> 694.7172388 | K73: =Forest!K979 -> 683.5583333 | L73: =Forest!L979 -> 861.9121752 | M73: =Forest!M979 -> 850.6423758 | N73: =Forest!N979 -> 738.1038116 | O73: =Forest!O979 -> 0 | P73: =Forest!P979 -> 0 | Q73: =Forest!Q979 -> 0 | R73: =Forest!R979 -> 0 | S73: =Forest!S979 -> 804.5503097 | T73: =Forest!T979 -> 740.8969367
A74: 7 | B74: =Forest!B980 -> 331.3499878 | C74: =Forest!C980 -> 0 | D74: =Forest!D980 -> 0 | E74: =Forest!E980 -> 182.0153137 | F74: =Forest!F980 -> 0 | G74: =Forest!G980 -> 272.3049025 | H74: =Forest!H980 -> 239.5200201 | I74: =Forest!I980 -> 393.3622868 | J74: =Forest!J980 -> 276.9685676 | K74: =Forest!K980 -> 177.6431551 | L74: =Forest!L980 -> 0 | M74: =Forest!M980 -> 0 | N74: =Forest!N980 -> 220.314196 | O74: =Forest!O980 -> 242.4632087 | P74: =Forest!P980 -> 310.2902137 | Q74: =Forest!Q980 -> 0 | R74: =Forest!R980 -> 489.5601333 | S74: =Forest!S980 -> 387.0393667 | T74: =Forest!T980 -> 286.3948541
A75: 8 | B75: =Forest!B981 -> 393.4569212 | C75: =Forest!C981 -> 275.2960114 | D75: =Forest!D981 -> 0 | E75: =Forest!E981 -> 279.0794517 | F75: =Forest!F981 -> 0 | G75: =Forest!G981 -> 270.1961119 | H75: =Forest!H981 -> 294.9602867 | I75: =Forest!I981 -> 413.2084451 | J75: =Forest!J981 -> 280.9735458 | K75: =Forest!K981 -> 213.0824158 | L75: =Forest!L981 -> 0 | M75: =Forest!M981 -> 0 | N75: =Forest!N981 -> 420.8608824 | O75: =Forest!O981 -> 272.910727 | P75: =Forest!P981 -> 372.8552599 | Q75: =Forest!Q981 -> 0 | R75: =Forest!R981 -> 434.5189639 | S75: =Forest!S981 -> 365.2174152 | T75: =Forest!T981 -> 473.6759299
A76: 9 | B76: =Forest!B982 -> 489.8354343 | C76: =Forest!C982 -> 306.9853895 | D76: =Forest!D982 -> 0 | E76: =Forest!E982 -> 300.928497 | F76: =Forest!F982 -> 355.090709 | G76: =Forest!G982 -> 360.054166 | H76: =Forest!H982 -> 517.3495552 | I76: =Forest!I982 -> 349.4993458 | J76: =Forest!J982 -> 347.7808685 | K76: =Forest!K982 -> 185.9887862 | L76: =Forest!L982 -> 0 | M76: =Forest!M982 -> 0 | N76: =Forest!N982 -> 472.6114942 | O76: =Forest!O982 -> 271.3746332 | P76: =Forest!P982 -> 382.5050595 | Q76: =Forest!Q982 -> 203.1736667 | R76: =Forest!R982 -> 371.7611506 | S76: =Forest!S982 -> 381.4550896 | T76: =Forest!T982 -> 467.3919199
A77: 10 | B77: =Forest!B983 -> 367.7858169 | C77: =Forest!C983 -> 262.7541254 | D77: =Forest!D983 -> 451.5601422 | E77: =Forest!E983 -> 279.8460111 | F77: =Forest!F983 -> 486.2497704 | G77: =Forest!G983 -> 450.4874634 | H77: =Forest!H983 -> 528.5184996 | I77: =Forest!I983 -> 434.713109 | J77: =Forest!J983 -> 438.3446436 | K77: =Forest!K983 -> 407.7459084 | L77: =Forest!L983 -> 0 | M77: =Forest!M983 -> 666.502893 | N77: =Forest!N983 -> 634.0537757 | O77: =Forest!O983 -> 236.590378 | P77: =Forest!P983 -> 275.1872826 | Q77: =Forest!Q983 -> 283.5338725 | R77: =Forest!R983 -> 397.7011795 | S77: =Forest!S983 -> 324.4101993 | T77: =Forest!T983 -> 469.4158178
A78: 11 | B78: =Forest!B984 -> 354.6665721 | C78: =Forest!C984 -> 314.8201293 | D78: =Forest!D984 -> 396.4490549 | E78: =Forest!E984 -> 260.4186153 | F78: =Forest!F984 -> 522.993207 | G78: =Forest!G984 -> 480.8230357 | H78: =Forest!H984 -> 655.0985008 | I78: =Forest!I984 -> 449.0353839 | J78: =Forest!J984 -> 456.9965354 | K78: =Forest!K984 -> 454.9499894 | L78: =Forest!L984 -> 0 | M78: =Forest!M984 -> 785.2731022 | N78: =Forest!N984 -> 679.7442346 | O78: =Forest!O984 -> 247.405504 | P78: =Forest!P984 -> 300.6435377 | Q78: =Forest!Q984 -> 334.2863333 | R78: =Forest!R984 -> 0 | S78: =Forest!S984 -> 340.2358772 | T78: =Forest!T984 -> 469.9820541
A79: 12 | B79: =Forest!B985 -> 308.7621377 | C79: =Forest!C985 -> 325.6458982 | D79: =Forest!D985 -> 514.4742092 | E79: =Forest!E985 -> 0 | F79: =Forest!F985 -> 548.2424489 | G79: =Forest!G985 -> 534.8594755 | H79: =Forest!H985 -> 803.3368062 | I79: =Forest!I985 -> 591.2555319 | J79: =Forest!J985 -> 511.7290608 | K79: =Forest!K985 -> 636.471 | L79: =Forest!L985 -> 0 | M79: =Forest!M985 -> 828.3374821 | N79: =Forest!N985 -> 732.0058758 | O79: =Forest!O985 -> 250.0996667 | P79: =Forest!P985 -> 383.1007508 | Q79: =Forest!Q985 -> 0 | R79: =Forest!R985 -> 0 | S79: =Forest!S985 -> 434.2865551 | T79: =Forest!T985 -> 583.7729618
A80: 13 | B80: =Forest!B986 -> 395.0426921 | C80: =Forest!C986 -> 284.8010988 | D80: =Forest!D986 -> 0 | E80: =Forest!E986 -> 248.1776894 | F80: =Forest!F986 -> 0 | G80: =Forest!G986 -> 639.0205589 | H80: =Forest!H986 -> 789.083488 | I80: =Forest!I986 -> 0 | J80: =Forest!J986 -> 392.1965886 | K80: =Forest!K986 -> 257.4421122 | L80: =Forest!L986 -> 0 | M80: =Forest!M986 -> 0 | N80: =Forest!N986 -> 593.1405924 | O80: =Forest!O986 -> 269.8649641 | P80: =Forest!P986 -> 318.7957597 | Q80: =Forest!Q986 -> 279.257 | R80: =Forest!R986 -> 0 | S80: =Forest!S986 -> 0 | T80: =Forest!T986 -> 0
A81: 14 | B81: =Forest!B987 -> 428.7754747 | C81: =Forest!C987 -> 258.265849 | D81: =Forest!D987 -> 0 | E81: =Forest!E987 -> 283.5469375 | F81: =Forest!F987 -> 0 | G81: =Forest!G987 -> 633.4297062 | H81: =Forest!H987 -> 582.6566146 | I81: =Forest!I987 -> 0 | J81: =Forest!J987 -> 469.9903633 | K81: =Forest!K987 -> 253.4499332 | L81: =Forest!L987 -> 0 | M81: =Forest!M987 -> 0 | N81: =Forest!N987 -> 625.7031304 | O81: =Forest!O987 -> 298.2636575 | P81: =Forest!P987 -> 372.1275917 | Q81: =Forest!Q987 -> 269.5300188 | R81: =Forest!R987 -> 0 | S81: =Forest!S987 -> 0 | T81: =Forest!T987 -> 0
A82: 15 | B82: =Forest!B988 -> 534.0723446 | C82: =Forest!C988 -> 290.690332 | D82: =Forest!D988 -> 0 | E82: =Forest!E988 -> 302.3361312 | F82: =Forest!F988 -> 398.6076022 | G82: =Forest!G988 -> 679.7836941 | H82: =Forest!H988 -> 675.9664428 | I82: =Forest!I988 -> 0 | J82: =Forest!J988 -> 438.0650229 | K82: =Forest!K988 -> 265.8519173 | L82: =Forest!L988 -> 0 | M82: =Forest!M988 -> 806.0817434 | N82: =Forest!N988 -> 809.7392287 | O82: =Forest!O988 -> 314.4925234 | P82: =Forest!P988 -> 359.8891781 | Q82: =Forest!Q988 -> 304.0359177 | R82: =Forest!R988 -> 0 | S82: =Forest!S988 -> 0 | T82: =Forest!T988 -> 421.53643
A83: 16 | B83: =Forest!B989 -> 712.5919897 | C83: =Forest!C989 -> 392.7452402 | D83: =Forest!D989 -> 0 | E83: =Forest!E989 -> 380.687838 | F83: =Forest!F989 -> 0 | G83: =Forest!G989 -> 727.1246209 | H83: =Forest!H989 -> 798.2481373 | I83: =Forest!I989 -> 0 | J83: =Forest!J989 -> 528.3460395 | K83: =Forest!K989 -> 0 | L83: =Forest!L989 -> 0 | M83: =Forest!M989 -> 997.2757077 | N83: =Forest!N989 -> 900.0721697 | O83: =Forest!O989 -> 397.3540792 | P83: =Forest!P989 -> 490.9883354 | Q83: =Forest!Q989 -> 376.633082 | R83: =Forest!R989 -> 0 | S83: =Forest!S989 -> 0 | T83: =Forest!T989 -> 530.0265333
A84: 17 | B84: =Forest!B990 -> 0 | C84: =Forest!C990 -> 0 | D84: =Forest!D990 -> 0 | E84: =Forest!E990 -> 0 | F84: =Forest!F990 -> 0 | G84: =Forest!G990 -> 757.8486611 | H84: =Forest!H990 -> 0 | I84: =Forest!I990 -> 0 | J84: =Forest!J990 -> 582.7232263 | K84: =Forest!K990 -> 0 | L84: =Forest!L990 -> 0 | M84: =Forest!M990 -> 0 | N84: =Forest!N990 -> 0 | O84: =Forest!O990 -> 0 | P84: =Forest!P990 -> 0 | Q84: =Forest!Q990 -> 0 | R84: =Forest!R990 -> 0 | S84: =Forest!S990 -> 0 | T84: =Forest!T990 -> 675.9489237
A85: 18 | B85: =Forest!B991 -> 0 | C85: =Forest!C991 -> 0 | D85: =Forest!D991 -> 0 | E85: =Forest!E991 -> 0 | F85: =Forest!F991 -> 0 | G85: =Forest!G991 -> 0 | H85: =Forest!H991 -> 0 | I85: =Forest!I991 -> 0 | J85: =Forest!J991 -> 659.3207989 | K85: =Forest!K991 -> 0 | L85: =Forest!L991 -> 0 | M85: =Forest!M991 -> 0 | N85: =Forest!N991 -> 0 | O85: =Forest!O991 -> 0 | P85: =Forest!P991 -> 0 | Q85: =Forest!Q991 -> 0 | R85: =Forest!R991 -> 0 | S85: =Forest!S991 -> 0 | T85: =Forest!T991 -> 0
A87: Pasture-to-annuals
A88: AEZ | B88: =Tables!E$7 -> USA | C88: =Tables!F$7 -> EU27 | D88: =Tables!G$7 -> Brazil | E88: =Tables!H$7 -> Canada | F88: =Tables!I$7 -> Japan | G88: =Tables!J$7 -> ChiHkg | H88: =Tables!K$7 -> India | I88: =Tables!L$7 -> C_C_Amer | J88: =Tables!M$7 -> S_O_Amer | K88: =Tables!N$7 -> E_Asia | L88: =Tables!O$7 -> Mala_Indo | M88: =Tables!P$7 -> R_SE_Asia | N88: =Tables!Q$7 -> R_S_Asia | O88: =Tables!R$7 -> Russia | P88: =Tables!S$7 -> Oth_CEE_CIS | Q88: =Tables!T$7 -> Oth_Europe | R88: =Tables!U$7 -> ME_N_Afr | S88: =Tables!V$7 -> S_S_Afr | T88: =Tables!W$7 -> Oceania
A89: 1 | B89: =Pasture!B680 -> 0 | C89: =Pasture!C680 -> 0 | D89: =Pasture!D680 -> 77.65755816 | E89: =Pasture!E680 -> 0 | F89: =Pasture!F680 -> 0 | G89: =Pasture!G680 -> 0 | H89: =Pasture!H680 -> 49.35524115 | I89: =Pasture!I680 -> 71.81372522 | J89: =Pasture!J680 -> 83.16375231 | K89: =Pasture!K680 -> 0 | L89: =Pasture!L680 -> 0 | M89: =Pasture!M680 -> 0 | N89: =Pasture!N680 -> 62.2510895 | O89: =Pasture!O680 -> 0 | P89: =Pasture!P680 -> 0 | Q89: =Pasture!Q680 -> 0 | R89: =Pasture!R680 -> 68.55585051 | S89: =Pasture!S680 -> 58.65053437 | T89: =Pasture!T680 -> 67.37851525
A90: 2 | B90: =Pasture!B681 -> 0 | C90: =Pasture!C681 -> 0 | D90: =Pasture!D681 -> 67.93725891 | E90: =Pasture!E681 -> 0 | F90: =Pasture!F681 -> 0 | G90: =Pasture!G681 -> 0 | H90: =Pasture!H681 -> 81.60771503 | I90: =Pasture!I681 -> 177.4894186 | J90: =Pasture!J681 -> 139.4941889 | K90: =Pasture!K681 -> 0 | L90: =Pasture!L681 -> 0 | M90: =Pasture!M681 -> 0 | N90: =Pasture!N681 -> 0 | O90: =Pasture!O681 -> 0 | P90: =Pasture!P681 -> 0 | Q90: =Pasture!Q681 -> 0 | R90: =Pasture!R681 -> 72.98413916 | S90: =Pasture!S681 -> 66.00245323 | T90: =Pasture!T681 -> 76.90859002
A91: 3 | B91: =Pasture!B682 -> 0 | C91: =Pasture!C682 -> 0 | D91: =Pasture!D682 -> 91.9063128 | E91: =Pasture!E682 -> 0 | F91: =Pasture!F682 -> 0 | G91: =Pasture!G682 -> 0 | H91: =Pasture!H682 -> 88.19436496 | I91: =Pasture!I682 -> 173.6308598 | J91: =Pasture!J682 -> 104.6468409 | K91: =Pasture!K682 -> 0 | L91: =Pasture!L682 -> 0 | M91: =Pasture!M682 -> 0 | N91: =Pasture!N682 -> 89.13520493 | O91: =Pasture!O682 -> 0 | P91: =Pasture!P682 -> 0 | Q91: =Pasture!Q682 -> 0 | R91: =Pasture!R682 -> 84.08608996 | S91: =Pasture!S682 -> 90.1017509 | T91: =Pasture!T682 -> 90.27952463
A92: 4 | B92: =Pasture!B683 -> 0 | C92: =Pasture!C683 -> 153.5419685 | D92: =Pasture!D683 -> 123.7466895 | E92: =Pasture!E683 -> 0 | F92: =Pasture!F683 -> 0 | G92: =Pasture!G683 -> 29.2468 | H92: =Pasture!H683 -> 105.5652774 | I92: =Pasture!I683 -> 441.9797487 | J92: =Pasture!J683 -> 202.2676014 | K92: =Pasture!K683 -> 113.6502689 | L92: =Pasture!L683 -> 140.2306888 | M92: =Pasture!M683 -> 121.177231 | N92: =Pasture!N683 -> 125.1661509 | O92: =Pasture!O683 -> 0 | P92: =Pasture!P683 -> 0 | Q92: =Pasture!Q683 -> 0 | R92: =Pasture!R683 -> 98.783434 | S92: =Pasture!S683 -> 117.4089747 | T92: =Pasture!T683 -> 119.2754491
A93: 5 | B93: =Pasture!B684 -> 0 | C93: =Pasture!C684 -> 0 | D93: =Pasture!D684 -> 123.3011186 | E93: =Pasture!E684 -> 0 | F93: =Pasture!F684 -> 0 | G93: =Pasture!G684 -> 201.837604 | H93: =Pasture!H684 -> 131.5208398 | I93: =Pasture!I684 -> 312.7578398 | J93: =Pasture!J684 -> 223.9202225 | K93: =Pasture!K684 -> 107.9490839 | L93: =Pasture!L684 -> 140.2306888 | M93: =Pasture!M684 -> 126.3225133 | N93: =Pasture!N684 -> 139.059474 | O93: =Pasture!O684 -> 0 | P93: =Pasture!P684 -> 0 | Q93: =Pasture!Q684 -> 0 | R93: =Pasture!R684 -> 0 | S93: =Pasture!S684 -> 186.4936726 | T93: =Pasture!T684 -> 84.78190079
A94: 6 | B94: =Pasture!B685 -> 0 | C94: =Pasture!C685 -> 0 | D94: =Pasture!D685 -> 125.4165193 | E94: =Pasture!E685 -> 0 | F94: =Pasture!F685 -> 0 | G94: =Pasture!G685 -> 134.2381423 | H94: =Pasture!H685 -> 135.1045024 | I94: =Pasture!I685 -> 252.9091889 | J94: =Pasture!J685 -> 394.2810505 | K94: =Pasture!K685 -> 83.64001197 | L94: =Pasture!L685 -> 159.7509351 | M94: =Pasture!M685 -> 149.8422883 | N94: =Pasture!N685 -> 129.5963981 | O94: =Pasture!O685 -> 0 | P94: =Pasture!P685 -> 0 | Q94: =Pasture!Q685 -> 0 | R94: =Pasture!R685 -> 0 | S94: =Pasture!S685 -> 125.155542 | T94: =Pasture!T685 -> 191.1629997
A95: 7 | B95: =Pasture!B686 -> 90.59329952 | C95: =Pasture!C686 -> 0 | D95: =Pasture!D686 -> 0 | E95: =Pasture!E686 -> 103.9161561 | F95: =Pasture!F686 -> 0 | G95: =Pasture!G686 -> 102.720902 | H95: =Pasture!H686 -> 54.19830534 | I95: =Pasture!I686 -> 165.262354 | J95: =Pasture!J686 -> 83.24766247 | K95: =Pasture!K686 -> 106.6848466 | L95: =Pasture!L686 -> 0 | M95: =Pasture!M686 -> 0 | N95: =Pasture!N686 -> 68.12080109 | O95: =Pasture!O686 -> 95.6860951 | P95: =Pasture!P686 -> 80.01912476 | Q95: =Pasture!Q686 -> 0 | R95: =Pasture!R686 -> 76.91830587 | S95: =Pasture!S686 -> 45.05682562 | T95: =Pasture!T686 -> 70.02849152
A96: 8 | B96: =Pasture!B687 -> 99.03452942 | C96: =Pasture!C687 -> 110.2204167 | D96: =Pasture!D687 -> 0 | E96: =Pasture!E687 -> 119.1948828 | F96: =Pasture!F687 -> 0 | G96: =Pasture!G687 -> 93.4083843 | H96: =Pasture!H687 -> 85.53448489 | I96: =Pasture!I687 -> 192.0388609 | J96: =Pasture!J687 -> 98.72559819 | K96: =Pasture!K687 -> 116.5567593 | L96: =Pasture!L687 -> 0 | M96: =Pasture!M687 -> 0 | N96: =Pasture!N687 -> 70.79100659 | O96: =Pasture!O687 -> 128.0525273 | P96: =Pasture!P687 -> 93.76052142 | Q96: =Pasture!Q687 -> 0 | R96: =Pasture!R687 -> 79.26655743 | S96: =Pasture!S687 -> 47.08513545 | T96: =Pasture!T687 -> 78.24435366
A97: 9 | B97: =Pasture!B688 -> 112.998514 | C97: =Pasture!C688 -> 144.7975023 | D97: =Pasture!D688 -> 0 | E97: =Pasture!E688 -> 318.98867 | F97: =Pasture!F688 -> 333.3156204 | G97: =Pasture!G688 -> 78.39248969 | H97: =Pasture!H688 -> 87.91754683 | I97: =Pasture!I688 -> 158.9808305 | J97: =Pasture!J688 -> 162.4442252 | K97: =Pasture!K688 -> 108.1905841 | L97: =Pasture!L688 -> 0 | M97: =Pasture!M688 -> 0 | N97: =Pasture!N688 -> 96.23200736 | O97: =Pasture!O688 -> 152.6101669 | P97: =Pasture!P688 -> 125.7700244 | Q97: =Pasture!Q688 -> 0 | R97: =Pasture!R688 -> 89.14172691 | S97: =Pasture!S688 -> 83.18884832 | T97: =Pasture!T688 -> 78.89956715
A98: 10 | B98: =Pasture!B689 -> 123.3837311 | C98: =Pasture!C689 -> 271.5248006 | D98: =Pasture!D689 -> 143.2549413 | E98: =Pasture!E689 -> 195.5235483 | F98: =Pasture!F689 -> 328.8205288 | G98: =Pasture!G689 -> 101.2011045 | H98: =Pasture!H689 -> 125.6782683 | I98: =Pasture!I689 -> 553.0157834 | J98: =Pasture!J689 -> 129.3361623 | K98: =Pasture!K689 -> 112.433888 | L98: =Pasture!L689 -> 0 | M98: =Pasture!M689 -> 101.515625 | N98: =Pasture!N689 -> 112.6069383 | O98: =Pasture!O689 -> 248.5077213 | P98: =Pasture!P689 -> 238.7116573 | Q98: =Pasture!Q689 -> 167.7167888 | R98: =Pasture!R689 -> 103.5594172 | S98: =Pasture!S689 -> 99.49133957 | T98: =Pasture!T689 -> 108.8595839
A99: 11 | B99: =Pasture!B690 -> 111.4332032 | C99: =Pasture!C690 -> 309.2396926 | D99: =Pasture!D690 -> 83.50431418 | E99: =Pasture!E690 -> 111.4332032 | F99: =Pasture!F690 -> 346.7594 | G99: =Pasture!G690 -> 118.7777775 | H99: =Pasture!H690 -> 138.3028872 | I99: =Pasture!I690 -> 155.4992521 | J99: =Pasture!J690 -> 253.1012939 | K99: =Pasture!K690 -> 112.433888 | L99: =Pasture!L690 -> 0 | M99: =Pasture!M690 -> 119.1848597 | N99: =Pasture!N690 -> 181.5292282 | O99: =Pasture!O690 -> 168.1641153 | P99: =Pasture!P690 -> 163.6078516 | Q99: =Pasture!Q690 -> 116.1627707 | R99: =Pasture!R690 -> 0 | S99: =Pasture!S690 -> 124.4186235 | T99: =Pasture!T690 -> 120.4760846
A100: 12 | B100: =Pasture!B691 -> 103.2656342 | C100: =Pasture!C691 -> 290.7534997 | D100: =Pasture!D691 -> 160.8235654 | E100: =Pasture!E691 -> 0 | F100: =Pasture!F691 -> 346.7594 | G100: =Pasture!G691 -> 131.1287356 | H100: =Pasture!H691 -> 123.579531 | I100: =Pasture!I691 -> 463.2932566 | J100: =Pasture!J691 -> 215.4185973 | K100: =Pasture!K691 -> 81.77138235 | L100: =Pasture!L691 -> 0 | M100: =Pasture!M691 -> 119.4605328 | N100: =Pasture!N691 -> 196.7838084 | O100: =Pasture!O691 -> 124.3534242 | P100: =Pasture!P691 -> 162.0262529 | Q100: =Pasture!Q691 -> 0 | R100: =Pasture!R691 -> 0 | S100: =Pasture!S691 -> 224.6630075 | T100: =Pasture!T691 -> 192.7809031
A101: 13 | B101: =Pasture!B692 -> 53.3887145 | C101: =Pasture!C692 -> 63.79352807 | D101: =Pasture!D692 -> 0 | E101: =Pasture!E692 -> 16.115 | F101: =Pasture!F692 -> 0 | G101: =Pasture!G692 -> 78.1995025 | H101: =Pasture!H692 -> 43.46381893 | I101: =Pasture!I692 -> 0 | J101: =Pasture!J692 -> 83.0653192 | K101: =Pasture!K692 -> 55.7447632 | L101: =Pasture!L692 -> 0 | M101: =Pasture!M692 -> 0 | N101: =Pasture!N692 -> 45.29343399 | O101: =Pasture!O692 -> 62.39241899 | P101: =Pasture!P692 -> 56.85861782 | Q101: =Pasture!Q692 -> 26.61836934 | R101: =Pasture!R692 -> 0 | S101: =Pasture!S692 -> 0 | T101: =Pasture!T692 -> 0
A102: 14 | B102: =Pasture!B693 -> 65.20531846 | C102: =Pasture!C693 -> 69.28400538 | D102: =Pasture!D693 -> 0 | E102: =Pasture!E693 -> 65.20531846 | F102: =Pasture!F693 -> 0 | G102: =Pasture!G693 -> 77.35242827 | H102: =Pasture!H693 -> 62.58011366 | I102: =Pasture!I693 -> 0 | J102: =Pasture!J693 -> 78.1811773 | K102: =Pasture!K693 -> 74.38692486 | L102: =Pasture!L693 -> 0 | M102: =Pasture!M693 -> 0 | N102: =Pasture!N693 -> 45.87202323 | O102: =Pasture!O693 -> 67.96450268 | P102: =Pasture!P693 -> 61.29392462 | Q102: =Pasture!Q693 -> 46.24081159 | R102: =Pasture!R693 -> 0 | S102: =Pasture!S693 -> 0 | T102: =Pasture!T693 -> 0
A103: 15 | B103: =Pasture!B694 -> 106.2998437 | C103: =Pasture!C694 -> 79.96791278 | D103: =Pasture!D694 -> 0 | E103: =Pasture!E694 -> 65.20531846 | F103: =Pasture!F694 -> 147.2393169 | G103: =Pasture!G694 -> 84.72148447 | H103: =Pasture!H694 -> 59.37543108 | I103: =Pasture!I694 -> 0 | J103: =Pasture!J694 -> 69.67371209 | K103: =Pasture!K694 -> 81.9265384 | L103: =Pasture!L694 -> 0 | M103: =Pasture!M694 -> 74.07110817 | N103: =Pasture!N694 -> 66.2842273 | O103: =Pasture!O694 -> 98.53098873 | P103: =Pasture!P694 -> 70.3253028 | Q103: =Pasture!Q694 -> 39.77268984 | R103: =Pasture!R694 -> 0 | S103: =Pasture!S694 -> 0 | T103: =Pasture!T694 -> 65.79778079
A104: 16 | B104: =Pasture!B695 -> 204.4584469 | C104: =Pasture!C695 -> 261.9455723 | D104: =Pasture!D695 -> 0 | E104: =Pasture!E695 -> 94.17191141 | F104: =Pasture!F695 -> 0 | G104: =Pasture!G695 -> 111.6831719 | H104: =Pasture!H695 -> 82.10794938 | I104: =Pasture!I695 -> 0 | J104: =Pasture!J695 -> 77.86895129 | K104: =Pasture!K695 -> 0 | L104: =Pasture!L695 -> 0 | M104: =Pasture!M695 -> 105.8172145 | N104: =Pasture!N695 -> 77.43541283 | O104: =Pasture!O695 -> 105.9955652 | P104: =Pasture!P695 -> 93.69251473 | Q104: =Pasture!Q695 -> 225.2470604 | R104: =Pasture!R695 -> 0 | S104: =Pasture!S695 -> 0 | T104: =Pasture!T695 -> 86.45982279
A105: 17 | B105: =Pasture!B696 -> 0 | C105: =Pasture!C696 -> 0 | D105: =Pasture!D696 -> 0 | E105: =Pasture!E696 -> 0 | F105: =Pasture!F696 -> 0 | G105: =Pasture!G696 -> 96.83199381 | H105: =Pasture!H696 -> 0 | I105: =Pasture!I696 -> 0 | J105: =Pasture!J696 -> 78.30028182 | K105: =Pasture!K696 -> 0 | L105: =Pasture!L696 -> 0 | M105: =Pasture!M696 -> 0 | N105: =Pasture!N696 -> 0 | O105: =Pasture!O696 -> 0 | P105: =Pasture!P696 -> 0 | Q105: =Pasture!Q696 -> 0 | R105: =Pasture!R696 -> 0 | S105: =Pasture!S696 -> 0 | T105: =Pasture!T696 -> 93.68492533
A106: 18 | B106: =Pasture!B697 -> 0 | C106: =Pasture!C697 -> 0 | D106: =Pasture!D697 -> 0 | E106: =Pasture!E697 -> 0 | F106: =Pasture!F697 -> 0 | G106: =Pasture!G697 -> 0 | H106: =Pasture!H697 -> 0 | I106: =Pasture!I697 -> 0 | J106: =Pasture!J697 -> 55.01855258 | K106: =Pasture!K697 -> 0 | L106: =Pasture!L697 -> 0 | M106: =Pasture!M697 -> 0 | N106: =Pasture!N697 -> 0 | O106: =Pasture!O697 -> 0 | P106: =Pasture!P697 -> 0 | Q106: =Pasture!Q697 -> 0 | R106: =Pasture!R697 -> 0 | S106: =Pasture!S697 -> 0 | T106: =Pasture!T697 -> 0
A108: Pasture-to-perennials
A109: AEZ | B109: =Tables!E$7 -> USA | C109: =Tables!F$7 -> EU27 | D109: =Tables!G$7 -> Brazil | E109: =Tables!H$7 -> Canada | F109: =Tables!I$7 -> Japan | G109: =Tables!J$7 -> ChiHkg | H109: =Tables!K$7 -> India | I109: =Tables!L$7 -> C_C_Amer | J109: =Tables!M$7 -> S_O_Amer | K109: =Tables!N$7 -> E_Asia | L109: =Tables!O$7 -> Mala_Indo | M109: =Tables!P$7 -> R_SE_Asia | N109: =Tables!Q$7 -> R_S_Asia | O109: =Tables!R$7 -> Russia | P109: =Tables!S$7 -> Oth_CEE_CIS | Q109: =Tables!T$7 -> Oth_Europe | R109: =Tables!U$7 -> ME_N_Afr | S109: =Tables!V$7 -> S_S_Afr | T109: =Tables!W$7 -> Oceania
A110: 1 | B110: =Pasture!B701 -> 0 | C110: =Pasture!C701 -> 0 | D110: =Pasture!D701 -> 16.82000116 | E110: =Pasture!E701 -> 0 | F110: =Pasture!F701 -> 0 | G110: =Pasture!G701 -> 0 | H110: =Pasture!H701 -> 16.82000116 | I110: =Pasture!I701 -> 16.82000116 | J110: =Pasture!J701 -> 16.67430058 | K110: =Pasture!K701 -> 0 | L110: =Pasture!L701 -> 0 | M110: =Pasture!M701 -> 0 | N110: =Pasture!N701 -> 16.82000116 | O110: =Pasture!O701 -> 0 | P110: =Pasture!P701 -> 0 | Q110: =Pasture!Q701 -> 0 | R110: =Pasture!R701 -> 16.5286 | S110: =Pasture!S701 -> 16.82000116 | T110: =Pasture!T701 -> 16.5286
A111: 2 | B111: =Pasture!B702 -> 0 | C111: =Pasture!C702 -> 0 | D111: =Pasture!D702 -> 16.82000116 | E111: =Pasture!E702 -> 0 | F111: =Pasture!F702 -> 0 | G111: =Pasture!G702 -> 0 | H111: =Pasture!H702 -> 16.82000116 | I111: =Pasture!I702 -> 16.82000116 | J111: =Pasture!J702 -> 16.67430058 | K111: =Pasture!K702 -> 0 | L111: =Pasture!L702 -> 0 | M111: =Pasture!M702 -> 0 | N111: =Pasture!N702 -> 0 | O111: =Pasture!O702 -> 0 | P111: =Pasture!P702 -> 0 | Q111: =Pasture!Q702 -> 0 | R111: =Pasture!R702 -> 16.5286 | S111: =Pasture!S702 -> 16.82000116 | T111: =Pasture!T702 -> 16.5286
A112: 3 | B112: =Pasture!B703 -> 0 | C112: =Pasture!C703 -> 0 | D112: =Pasture!D703 -> 25.37573146 | E112: =Pasture!E703 -> 0 | F112: =Pasture!F703 -> 0 | G112: =Pasture!G703 -> 0 | H112: =Pasture!H703 -> 25.37573146 | I112: =Pasture!I703 -> 25.37573146 | J112: =Pasture!J703 -> 25.13986573 | K112: =Pasture!K703 -> 0 | L112: =Pasture!L703 -> 0 | M112: =Pasture!M703 -> 0 | N112: =Pasture!N703 -> 25.37573146 | O112: =Pasture!O703 -> 0 | P112: =Pasture!P703 -> 0 | Q112: =Pasture!Q703 -> 0 | R112: =Pasture!R703 -> 24.904 | S112: =Pasture!S703 -> 25.37573146 | T112: =Pasture!T703 -> 24.904
A113: 4 | B113: =Pasture!B704 -> 0 | C113: =Pasture!C704 -> 29.2468 | D113: =Pasture!D704 -> 29.89886175 | E113: =Pasture!E704 -> 0 | F113: =Pasture!F704 -> 0 | G113: =Pasture!G704 -> 29.2468 | H113: =Pasture!H704 -> 29.89886175 | I113: =Pasture!I704 -> 29.89886175 | J113: =Pasture!J704 -> 29.57283088 | K113: =Pasture!K704 -> 0 | L113: =Pasture!L704 -> 29.89886175 | M113: =Pasture!M704 -> 29.89886175 | N113: =Pasture!N704 -> 29.89886175 | O113: =Pasture!O704 -> 0 | P113: =Pasture!P704 -> 0 | Q113: =Pasture!Q704 -> 0 | R113: =Pasture!R704 -> 29.2468 | S113: =Pasture!S704 -> 29.89886175 | T113: =Pasture!T704 -> 29.2468
A114: 5 | B114: =Pasture!B705 -> 0 | C114: =Pasture!C705 -> 0 | D114: =Pasture!D705 -> 29.89886175 | E114: =Pasture!E705 -> 0 | F114: =Pasture!F705 -> 0 | G114: =Pasture!G705 -> 29.2468 | H114: =Pasture!H705 -> 29.89886175 | I114: =Pasture!I705 -> 29.89886175 | J114: =Pasture!J705 -> 29.57283088 | K114: =Pasture!K705 -> 0 | L114: =Pasture!L705 -> 29.89886175 | M114: =Pasture!M705 -> 29.89886175 | N114: =Pasture!N705 -> 29.89886175 | O114: =Pasture!O705 -> 0 | P114: =Pasture!P705 -> 0 | Q114: =Pasture!Q705 -> 0 | R114: =Pasture!R705 -> 0 | S114: =Pasture!S705 -> 29.89886175 | T114: =Pasture!T705 -> 29.2468
A115: 6 | B115: =Pasture!B706 -> 0 | C115: =Pasture!C706 -> 0 | D115: =Pasture!D706 -> 29.89886175 | E115: =Pasture!E706 -> 0 | F115: =Pasture!F706 -> 0 | G115: =Pasture!G706 -> 29.2468 | H115: =Pasture!H706 -> 29.89886175 | I115: =Pasture!I706 -> 29.89886175 | J115: =Pasture!J706 -> 29.57283088 | K115: =Pasture!K706 -> 0 | L115: =Pasture!L706 -> 29.89886175 | M115: =Pasture!M706 -> 29.89886175 | N115: =Pasture!N706 -> 29.89886175 | O115: =Pasture!O706 -> 0 | P115: =Pasture!P706 -> 0 | Q115: =Pasture!Q706 -> 0 | R115: =Pasture!R706 -> 0 | S115: =Pasture!S706 -> 29.89886175 | T115: =Pasture!T706 -> 29.2468
A116: 7 | B116: =Pasture!B707 -> 12.27196667 | C116: =Pasture!C707 -> 0 | D116: =Pasture!D707 -> 0 | E116: =Pasture!E707 -> 12.27196667 | F116: =Pasture!F707 -> 0 | G116: =Pasture!G707 -> 12.27196667 | H116: =Pasture!H707 -> 12.50325773 | I116: =Pasture!I707 -> 12.50325773 | J116: =Pasture!J707 -> 12.3876122 | K116: =Pasture!K707 -> 12.50325773 | L116: =Pasture!L707 -> 0 | M116: =Pasture!M707 -> 0 | N116: =Pasture!N707 -> 12.50325773 | O116: =Pasture!O707 -> 12.50325773 | P116: =Pasture!P707 -> 12.27196667 | Q116: =Pasture!Q707 -> 0 | R116: =Pasture!R707 -> 12.27196667 | S116: =Pasture!S707 -> 12.50325773 | T116: =Pasture!T707 -> 12.27196667
A117: 8 | B117: =Pasture!B708 -> 12.27196667 | C117: =Pasture!C708 -> 12.27196667 | D117: =Pasture!D708 -> 0 | E117: =Pasture!E708 -> 12.27196667 | F117: =Pasture!F708 -> 0 | G117: =Pasture!G708 -> 12.27196667 | H117: =Pasture!H708 -> 12.50325773 | I117: =Pasture!I708 -> 12.50325773 | J117: =Pasture!J708 -> 12.3876122 | K117: =Pasture!K708 -> 12.50325773 | L117: =Pasture!L708 -> 0 | M117: =Pasture!M708 -> 0 | N117: =Pasture!N708 -> 12.50325773 | O117: =Pasture!O708 -> 12.50325773 | P117: =Pasture!P708 -> 12.27196667 | Q117: =Pasture!Q708 -> 0 | R117: =Pasture!R708 -> 12.27196667 | S117: =Pasture!S708 -> 12.50325773 | T117: =Pasture!T708 -> 12.27196667
A118: 9 | B118: =Pasture!B709 -> 17.39026667 | C118: =Pasture!C709 -> 17.39026667 | D118: =Pasture!D709 -> 0 | E118: =Pasture!E709 -> 17.39026667 | F118: =Pasture!F709 -> 17.39026667 | G118: =Pasture!G709 -> 17.39026667 | H118: =Pasture!H709 -> 17.66317241 | I118: =Pasture!I709 -> 17.66317241 | J118: =Pasture!J709 -> 17.52671954 | K118: =Pasture!K709 -> 17.66317241 | L118: =Pasture!L709 -> 0 | M118: =Pasture!M709 -> 0 | N118: =Pasture!N709 -> 17.66317241 | O118: =Pasture!O709 -> 17.66317241 | P118: =Pasture!P709 -> 17.39026667 | Q118: =Pasture!Q709 -> 0 | R118: =Pasture!R709 -> 17.39026667 | S118: =Pasture!S709 -> 17.66317241 | T118: =Pasture!T709 -> 17.39026667
A119: 10 | B119: =Pasture!B710 -> 23.43916667 | C119: =Pasture!C710 -> 23.43916667 | D119: =Pasture!D710 -> 23.7536871 | E119: =Pasture!E710 -> 23.43916667 | F119: =Pasture!F710 -> 23.43916667 | G119: =Pasture!G710 -> 23.43916667 | H119: =Pasture!H710 -> 23.7536871 | I119: =Pasture!I710 -> 23.7536871 | J119: =Pasture!J710 -> 23.59642688 | K119: =Pasture!K710 -> 23.7536871 | L119: =Pasture!L710 -> 0 | M119: =Pasture!M710 -> 23.7536871 | N119: =Pasture!N710 -> 23.7536871 | O119: =Pasture!O710 -> 23.7536871 | P119: =Pasture!P710 -> 23.43916667 | Q119: =Pasture!Q710 -> 23.43916667 | R119: =Pasture!R710 -> 23.43916667 | S119: =Pasture!S710 -> 23.7536871 | T119: =Pasture!T710 -> 23.43916667
A120: 11 | B120: =Pasture!B711 -> 23.43916667 | C120: =Pasture!C711 -> 23.43916667 | D120: =Pasture!D711 -> 23.7536871 | E120: =Pasture!E711 -> 23.43916667 | F120: =Pasture!F711 -> 23.43916667 | G120: =Pasture!G711 -> 23.43916667 | H120: =Pasture!H711 -> 23.7536871 | I120: =Pasture!I711 -> 23.7536871 | J120: =Pasture!J711 -> 23.59642688 | K120: =Pasture!K711 -> 23.7536871 | L120: =Pasture!L711 -> 0 | M120: =Pasture!M711 -> 23.7536871 | N120: =Pasture!N711 -> 23.7536871 | O120: =Pasture!O711 -> 23.7536871 | P120: =Pasture!P711 -> 23.43916667 | Q120: =Pasture!Q711 -> 0 | R120: =Pasture!R711 -> 0 | S120: =Pasture!S711 -> 23.7536871 | T120: =Pasture!T711 -> 23.43916667
A121: 12 | B121: =Pasture!B712 -> 23.43916667 | C121: =Pasture!C712 -> 23.43916667 | D121: =Pasture!D712 -> 23.7536871 | E121: =Pasture!E712 -> 0 | F121: =Pasture!F712 -> 23.43916667 | G121: =Pasture!G712 -> 23.43916667 | H121: =Pasture!H712 -> 23.7536871 | I121: =Pasture!I712 -> 23.7536871 | J121: =Pasture!J712 -> 23.59642688 | K121: =Pasture!K712 -> 0 | L121: =Pasture!L712 -> 0 | M121: =Pasture!M712 -> 23.7536871 | N121: =Pasture!N712 -> 23.7536871 | O121: =Pasture!O712 -> 0 | P121: =Pasture!P712 -> 23.43916667 | Q121: =Pasture!Q712 -> 0 | R121: =Pasture!R712 -> 0 | S121: =Pasture!S712 -> 23.7536871 | T121: =Pasture!T712 -> 23.43916667
A122: 13 | B122: =Pasture!B713 -> 16.115 | C122: =Pasture!C713 -> 16.115 | D122: =Pasture!D713 -> 0 | E122: =Pasture!E713 -> 16.115 | F122: =Pasture!F713 -> 0 | G122: =Pasture!G713 -> 16.115 | H122: =Pasture!H713 -> 16.35091492 | I122: =Pasture!I713 -> 0 | J122: =Pasture!J713 -> 16.23295746 | K122: =Pasture!K713 -> 16.35091492 | L122: =Pasture!L713 -> 0 | M122: =Pasture!M713 -> 0 | N122: =Pasture!N713 -> 16.35091492 | O122: =Pasture!O713 -> 16.35091492 | P122: =Pasture!P713 -> 16.115 | Q122: =Pasture!Q713 -> 0 | R122: =Pasture!R713 -> 0 | S122: =Pasture!S713 -> 0 | T122: =Pasture!T713 -> 0
A123: 14 | B123: =Pasture!B714 -> 16.115 | C123: =Pasture!C714 -> 16.115 | D123: =Pasture!D714 -> 0 | E123: =Pasture!E714 -> 16.115 | F123: =Pasture!F714 -> 0 | G123: =Pasture!G714 -> 16.115 | H123: =Pasture!H714 -> 16.35091492 | I123: =Pasture!I714 -> 0 | J123: =Pasture!J714 -> 16.23295746 | K123: =Pasture!K714 -> 16.35091492 | L123: =Pasture!L714 -> 0 | M123: =Pasture!M714 -> 0 | N123: =Pasture!N714 -> 16.35091492 | O123: =Pasture!O714 -> 16.35091492 | P123: =Pasture!P714 -> 16.115 | Q123: =Pasture!Q714 -> 16.115 | R123: =Pasture!R714 -> 0 | S123: =Pasture!S714 -> 0 | T123: =Pasture!T714 -> 0
A124: 15 | B124: =Pasture!B715 -> 16.115 | C124: =Pasture!C715 -> 16.115 | D124: =Pasture!D715 -> 0 | E124: =Pasture!E715 -> 16.115 | F124: =Pasture!F715 -> 16.115 | G124: =Pasture!G715 -> 16.115 | H124: =Pasture!H715 -> 16.35091492 | I124: =Pasture!I715 -> 0 | J124: =Pasture!J715 -> 16.23295746 | K124: =Pasture!K715 -> 16.35091492 | L124: =Pasture!L715 -> 0 | M124: =Pasture!M715 -> 16.35091492 | N124: =Pasture!N715 -> 16.35091492 | O124: =Pasture!O715 -> 16.35091492 | P124: =Pasture!P715 -> 16.115 | Q124: =Pasture!Q715 -> 16.115 | R124: =Pasture!R715 -> 0 | S124: =Pasture!S715 -> 0 | T124: =Pasture!T715 -> 16.115
A125: 16 | B125: =Pasture!B716 -> 16.115 | C125: =Pasture!C716 -> 16.115 | D125: =Pasture!D716 -> 0 | E125: =Pasture!E716 -> 16.115 | F125: =Pasture!F716 -> 0 | G125: =Pasture!G716 -> 16.115 | H125: =Pasture!H716 -> 16.35091492 | I125: =Pasture!I716 -> 0 | J125: =Pasture!J716 -> 16.23295746 | K125: =Pasture!K716 -> 0 | L125: =Pasture!L716 -> 0 | M125: =Pasture!M716 -> 16.35091492 | N125: =Pasture!N716 -> 16.35091492 | O125: =Pasture!O716 -> 16.35091492 | P125: =Pasture!P716 -> 16.115 | Q125: =Pasture!Q716 -> 16.115 | R125: =Pasture!R716 -> 0 | S125: =Pasture!S716 -> 0 | T125: =Pasture!T716 -> 16.115
A126: 17 | B126: =Pasture!B717 -> 0 | C126: =Pasture!C717 -> 0 | D126: =Pasture!D717 -> 0 | E126: =Pasture!E717 -> 0 | F126: =Pasture!F717 -> 0 | G126: =Pasture!G717 -> 16.115 | H126: =Pasture!H717 -> 0 | I126: =Pasture!I717 -> 0 | J126: =Pasture!J717 -> 16.23295746 | K126: =Pasture!K717 -> 0 | L126: =Pasture!L717 -> 0 | M126: =Pasture!M717 -> 0 | N126: =Pasture!N717 -> 0 | O126: =Pasture!O717 -> 0 | P126: =Pasture!P717 -> 0 | Q126: =Pasture!Q717 -> 0 | R126: =Pasture!R717 -> 0 | S126: =Pasture!S717 -> 0 | T126: =Pasture!T717 -> 16.115
A127: 18 | B127: =Pasture!B718 -> 0 | C127: =Pasture!C718 -> 0 | D127: =Pasture!D718 -> 0 | E127: =Pasture!E718 -> 0 | F127: =Pasture!F718 -> 0 | G127: =Pasture!G718 -> 0 | H127: =Pasture!H718 -> 0 | I127: =Pasture!I718 -> 0 | J127: =Pasture!J718 -> 16.23295746 | K127: =Pasture!K718 -> 0 | L127: =Pasture!L718 -> 0 | M127: =Pasture!M718 -> 0 | N127: =Pasture!N718 -> 0 | O127: =Pasture!O718 -> 0 | P127: =Pasture!P718 -> 0 | Q127: =Pasture!Q718 -> 0 | R127: =Pasture!R718 -> 0 | S127: =Pasture!S718 -> 0 | T127: =Pasture!T718 -> 0
A129: Pasture-to-palm (on peat)
A130: AEZ | B130: =Tables!E$7 -> USA | C130: =Tables!F$7 -> EU27 | D130: =Tables!G$7 -> Brazil | E130: =Tables!H$7 -> Canada | F130: =Tables!I$7 -> Japan | G130: =Tables!J$7 -> ChiHkg | H130: =Tables!K$7 -> India | I130: =Tables!L$7 -> C_C_Amer | J130: =Tables!M$7 -> S_O_Amer | K130: =Tables!N$7 -> E_Asia | L130: =Tables!O$7 -> Mala_Indo | M130: =Tables!P$7 -> R_SE_Asia | N130: =Tables!Q$7 -> R_S_Asia | O130: =Tables!R$7 -> Russia | P130: =Tables!S$7 -> Oth_CEE_CIS | Q130: =Tables!T$7 -> Oth_Europe | R130: =Tables!U$7 -> ME_N_Afr | S130: =Tables!V$7 -> S_S_Afr | T130: =Tables!W$7 -> Oceania
A131: 1 | B131: =B110+Forest!B743 -> 0 | C131: =C110+Forest!C743 -> 0 | D131: =D110+Forest!D743 -> 16.82000116 | E131: =E110+Forest!E743 -> 0 | F131: =F110+Forest!F743 -> 0 | G131: =G110+Forest!G743 -> 0 | H131: =H110+Forest!H743 -> 16.82000116 | I131: =I110+Forest!I743 -> 16.82000116 | J131: =J110+Forest!J743 -> 16.67430058 | K131: =K110+Forest!K743 -> 0 | L131: =L110+Forest!L743 -> 0 | M131: =M110+Forest!M743 -> 0 | N131: =N110+Forest!N743 -> 16.82000116 | O131: =O110+Forest!O743 -> 0 | P131: =P110+Forest!P743 -> 0 | Q131: =Q110+Forest!Q743 -> 0 | R131: =R110+Forest!R743 -> 16.5286 | S131: =S110+Forest!S743 -> 16.82000116 | T131: =T110+Forest!T743 -> 16.5286
A132: 2 | B132: =B111+Forest!B744 -> 0 | C132: =C111+Forest!C744 -> 0 | D132: =D111+Forest!D744 -> 16.82000116 | E132: =E111+Forest!E744 -> 0 | F132: =F111+Forest!F744 -> 0 | G132: =G111+Forest!G744 -> 0 | H132: =H111+Forest!H744 -> 16.82000116 | I132: =I111+Forest!I744 -> 16.82000116 | J132: =J111+Forest!J744 -> 16.67430058 | K132: =K111+Forest!K744 -> 0 | L132: =L111+Forest!L744 -> 0 | M132: =M111+Forest!M744 -> 0 | N132: =N111+Forest!N744 -> 0 | O132: =O111+Forest!O744 -> 0 | P132: =P111+Forest!P744 -> 0 | Q132: =Q111+Forest!Q744 -> 0 | R132: =R111+Forest!R744 -> 16.5286 | S132: =S111+Forest!S744 -> 16.82000116 | T132: =T111+Forest!T744 -> 16.5286
A133: 3 | B133: =B112+Forest!B745 -> 0 | C133: =C112+Forest!C745 -> 0 | D133: =D112+Forest!D745 -> 25.37573146 | E133: =E112+Forest!E745 -> 0 | F133: =F112+Forest!F745 -> 0 | G133: =G112+Forest!G745 -> 0 | H133: =H112+Forest!H745 -> 25.37573146 | I133: =I112+Forest!I745 -> 25.37573146 | J133: =J112+Forest!J745 -> 25.13986573 | K133: =K112+Forest!K745 -> 0 | L133: =L112+Forest!L745 -> 0 | M133: =M112+Forest!M745 -> 0 | N133: =N112+Forest!N745 -> 25.37573146 | O133: =O112+Forest!O745 -> 0 | P133: =P112+Forest!P745 -> 0 | Q133: =Q112+Forest!Q745 -> 0 | R133: =R112+Forest!R745 -> 24.904 | S133: =S112+Forest!S745 -> 25.37573146 | T133: =T112+Forest!T745 -> 24.904
A134: 4 | B134: =B113+Forest!B746 -> 0 | C134: =C113+Forest!C746 -> 29.2468 | D134: =D113+Forest!D746 -> 29.89886175 | E134: =E113+Forest!E746 -> 0 | F134: =F113+Forest!F746 -> 0 | G134: =G113+Forest!G746 -> 29.2468 | H134: =H113+Forest!H746 -> 29.89886175 | I134: =I113+Forest!I746 -> 29.89886175 | J134: =J113+Forest!J746 -> 29.57283088 | K134: =K113+Forest!K746 -> 0 | L134: =L113+Forest!L746 -> 3201.419576 | M134: =M113+Forest!M746 -> 29.89886175 | N134: =N113+Forest!N746 -> 29.89886175 | O134: =O113+Forest!O746 -> 0 | P134: =P113+Forest!P746 -> 0 | Q134: =Q113+Forest!Q746 -> 0 | R134: =R113+Forest!R746 -> 29.2468 | S134: =S113+Forest!S746 -> 29.89886175 | T134: =T113+Forest!T746 -> 29.2468
A135: 5 | B135: =B114+Forest!B747 -> 0 | C135: =C114+Forest!C747 -> 0 | D135: =D114+Forest!D747 -> 29.89886175 | E135: =E114+Forest!E747 -> 0 | F135: =F114+Forest!F747 -> 0 | G135: =G114+Forest!G747 -> 29.2468 | H135: =H114+Forest!H747 -> 29.89886175 | I135: =I114+Forest!I747 -> 29.89886175 | J135: =J114+Forest!J747 -> 29.57283088 | K135: =K114+Forest!K747 -> 0 | L135: =L114+Forest!L747 -> 3201.419576 | M135: =M114+Forest!M747 -> 29.89886175 | N135: =N114+Forest!N747 -> 29.89886175 | O135: =O114+Forest!O747 -> 0 | P135: =P114+Forest!P747 -> 0 | Q135: =Q114+Forest!Q747 -> 0 | R135: =R114+Forest!R747 -> 0 | S135: =S114+Forest!S747 -> 29.89886175 | T135: =T114+Forest!T747 -> 29.2468
A136: 6 | B136: =B115+Forest!B748 -> 0 | C136: =C115+Forest!C748 -> 0 | D136: =D115+Forest!D748 -> 29.89886175 | E136: =E115+Forest!E748 -> 0 | F136: =F115+Forest!F748 -> 0 | G136: =G115+Forest!G748 -> 29.2468 | H136: =H115+Forest!H748 -> 29.89886175 | I136: =I115+Forest!I748 -> 29.89886175 | J136: =J115+Forest!J748 -> 29.57283088 | K136: =K115+Forest!K748 -> 0 | L136: =L115+Forest!L748 -> 3201.419576 | M136: =M115+Forest!M748 -> 29.89886175 | N136: =N115+Forest!N748 -> 29.89886175 | O136: =O115+Forest!O748 -> 0 | P136: =P115+Forest!P748 -> 0 | Q136: =Q115+Forest!Q748 -> 0 | R136: =R115+Forest!R748 -> 0 | S136: =S115+Forest!S748 -> 29.89886175 | T136: =T115+Forest!T748 -> 29.2468
A137: 7 | B137: =B116+Forest!B749 -> 12.27196667 | C137: =C116+Forest!C749 -> 0 | D137: =D116+Forest!D749 -> 0 | E137: =E116+Forest!E749 -> 12.27196667 | F137: =F116+Forest!F749 -> 0 | G137: =G116+Forest!G749 -> 12.27196667 | H137: =H116+Forest!H749 -> 12.50325773 | I137: =I116+Forest!I749 -> 12.50325773 | J137: =J116+Forest!J749 -> 12.3876122 | K137: =K116+Forest!K749 -> 12.50325773 | L137: =L116+Forest!L749 -> 0 | M137: =M116+Forest!M749 -> 0 | N137: =N116+Forest!N749 -> 12.50325773 | O137: =O116+Forest!O749 -> 12.50325773 | P137: =P116+Forest!P749 -> 12.27196667 | Q137: =Q116+Forest!Q749 -> 0 | R137: =R116+Forest!R749 -> 12.27196667 | S137: =S116+Forest!S749 -> 12.50325773 | T137: =T116+Forest!T749 -> 12.27196667
A138: 8 | B138: =B117+Forest!B750 -> 12.27196667 | C138: =C117+Forest!C750 -> 12.27196667 | D138: =D117+Forest!D750 -> 0 | E138: =E117+Forest!E750 -> 12.27196667 | F138: =F117+Forest!F750 -> 0 | G138: =G117+Forest!G750 -> 12.27196667 | H138: =H117+Forest!H750 -> 12.50325773 | I138: =I117+Forest!I750 -> 12.50325773 | J138: =J117+Forest!J750 -> 12.3876122 | K138: =K117+Forest!K750 -> 12.50325773 | L138: =L117+Forest!L750 -> 0 | M138: =M117+Forest!M750 -> 0 | N138: =N117+Forest!N750 -> 12.50325773 | O138: =O117+Forest!O750 -> 12.50325773 | P138: =P117+Forest!P750 -> 12.27196667 | Q138: =Q117+Forest!Q750 -> 0 | R138: =R117+Forest!R750 -> 12.27196667 | S138: =S117+Forest!S750 -> 12.50325773 | T138: =T117+Forest!T750 -> 12.27196667
A139: 9 | B139: =B118+Forest!B751 -> 17.39026667 | C139: =C118+Forest!C751 -> 17.39026667 | D139: =D118+Forest!D751 -> 0 | E139: =E118+Forest!E751 -> 17.39026667 | F139: =F118+Forest!F751 -> 17.39026667 | G139: =G118+Forest!G751 -> 17.39026667 | H139: =H118+Forest!H751 -> 17.66317241 | I139: =I118+Forest!I751 -> 17.66317241 | J139: =J118+Forest!J751 -> 17.52671954 | K139: =K118+Forest!K751 -> 17.66317241 | L139: =L118+Forest!L751 -> 0 | M139: =M118+Forest!M751 -> 0 | N139: =N118+Forest!N751 -> 17.66317241 | O139: =O118+Forest!O751 -> 17.66317241 | P139: =P118+Forest!P751 -> 17.39026667 | Q139: =Q118+Forest!Q751 -> 0 | R139: =R118+Forest!R751 -> 17.39026667 | S139: =S118+Forest!S751 -> 17.66317241 | T139: =T118+Forest!T751 -> 17.39026667
A140: 10 | B140: =B119+Forest!B752 -> 23.43916667 | C140: =C119+Forest!C752 -> 23.43916667 | D140: =D119+Forest!D752 -> 23.7536871 | E140: =E119+Forest!E752 -> 23.43916667 | F140: =F119+Forest!F752 -> 23.43916667 | G140: =G119+Forest!G752 -> 23.43916667 | H140: =H119+Forest!H752 -> 23.7536871 | I140: =I119+Forest!I752 -> 23.7536871 | J140: =J119+Forest!J752 -> 23.59642688 | K140: =K119+Forest!K752 -> 23.7536871 | L140: =L119+Forest!L752 -> 0 | M140: =M119+Forest!M752 -> 23.7536871 | N140: =N119+Forest!N752 -> 23.7536871 | O140: =O119+Forest!O752 -> 23.7536871 | P140: =P119+Forest!P752 -> 23.43916667 | Q140: =Q119+Forest!Q752 -> 23.43916667 | R140: =R119+Forest!R752 -> 23.43916667 | S140: =S119+Forest!S752 -> 23.7536871 | T140: =T119+Forest!T752 -> 23.43916667
A141: 11 | B141: =B120+Forest!B753 -> 23.43916667 | C141: =C120+Forest!C753 -> 23.43916667 | D141: =D120+Forest!D753 -> 23.7536871 | E141: =E120+Forest!E753 -> 23.43916667 | F141: =F120+Forest!F753 -> 23.43916667 | G141: =G120+Forest!G753 -> 23.43916667 | H141: =H120+Forest!H753 -> 23.7536871 | I141: =I120+Forest!I753 -> 23.7536871 | J141: =J120+Forest!J753 -> 23.59642688 | K141: =K120+Forest!K753 -> 23.7536871 | L141: =L120+Forest!L753 -> 0 | M141: =M120+Forest!M753 -> 23.7536871 | N141: =N120+Forest!N753 -> 23.7536871 | O141: =O120+Forest!O753 -> 23.7536871 | P141: =P120+Forest!P753 -> 23.43916667 | Q141: =Q120+Forest!Q753 -> 0 | R141: =R120+Forest!R753 -> 0 | S141: =S120+Forest!S753 -> 23.7536871 | T141: =T120+Forest!T753 -> 23.43916667
A142: 12 | B142: =B121+Forest!B754 -> 23.43916667 | C142: =C121+Forest!C754 -> 23.43916667 | D142: =D121+Forest!D754 -> 23.7536871 | E142: =E121+Forest!E754 -> 0 | F142: =F121+Forest!F754 -> 23.43916667 | G142: =G121+Forest!G754 -> 23.43916667 | H142: =H121+Forest!H754 -> 23.7536871 | I142: =I121+Forest!I754 -> 23.7536871 | J142: =J121+Forest!J754 -> 23.59642688 | K142: =K121+Forest!K754 -> 0 | L142: =L121+Forest!L754 -> 0 | M142: =M121+Forest!M754 -> 23.7536871 | N142: =N121+Forest!N754 -> 23.7536871 | O142: =O121+Forest!O754 -> 0 | P142: =P121+Forest!P754 -> 23.43916667 | Q142: =Q121+Forest!Q754 -> 0 | R142: =R121+Forest!R754 -> 0 | S142: =S121+Forest!S754 -> 23.7536871 | T142: =T121+Forest!T754 -> 23.43916667
A143: 13 | B143: =B122+Forest!B755 -> 16.115 | C143: =C122+Forest!C755 -> 16.115 | D143: =D122+Forest!D755 -> 0 | E143: =E122+Forest!E755 -> 16.115 | F143: =F122+Forest!F755 -> 0 | G143: =G122+Forest!G755 -> 16.115 | H143: =H122+Forest!H755 -> 16.35091492 | I143: =I122+Forest!I755 -> 0 | J143: =J122+Forest!J755 -> 16.23295746 | K143: =K122+Forest!K755 -> 16.35091492 | L143: =L122+Forest!L755 -> 0 | M143: =M122+Forest!M755 -> 0 | N143: =N122+Forest!N755 -> 16.35091492 | O143: =O122+Forest!O755 -> 16.35091492 | P143: =P122+Forest!P755 -> 16.115 | Q143: =Q122+Forest!Q755 -> 0 | R143: =R122+Forest!R755 -> 0 | S143: =S122+Forest!S755 -> 0 | T143: =T122+Forest!T755 -> 0
A144: 14 | B144: =B123+Forest!B756 -> 16.115 | C144: =C123+Forest!C756 -> 16.115 | D144: =D123+Forest!D756 -> 0 | E144: =E123+Forest!E756 -> 16.115 | F144: =F123+Forest!F756 -> 0 | G144: =G123+Forest!G756 -> 16.115 | H144: =H123+Forest!H756 -> 16.35091492 | I144: =I123+Forest!I756 -> 0 | J144: =J123+Forest!J756 -> 16.23295746 | K144: =K123+Forest!K756 -> 16.35091492 | L144: =L123+Forest!L756 -> 0 | M144: =M123+Forest!M756 -> 0 | N144: =N123+Forest!N756 -> 16.35091492 | O144: =O123+Forest!O756 -> 16.35091492 | P144: =P123+Forest!P756 -> 16.115 | Q144: =Q123+Forest!Q756 -> 16.115 | R144: =R123+Forest!R756 -> 0 | S144: =S123+Forest!S756 -> 0 | T144: =T123+Forest!T756 -> 0
A145: 15 | B145: =B124+Forest!B757 -> 16.115 | C145: =C124+Forest!C757 -> 16.115 | D145: =D124+Forest!D757 -> 0 | E145: =E124+Forest!E757 -> 16.115 | F145: =F124+Forest!F757 -> 16.115 | G145: =G124+Forest!G757 -> 16.115 | H145: =H124+Forest!H757 -> 16.35091492 | I145: =I124+Forest!I757 -> 0 | J145: =J124+Forest!J757 -> 16.23295746 | K145: =K124+Forest!K757 -> 16.35091492 | L145: =L124+Forest!L757 -> 0 | M145: =M124+Forest!M757 -> 16.35091492 | N145: =N124+Forest!N757 -> 16.35091492 | O145: =O124+Forest!O757 -> 16.35091492 | P145: =P124+Forest!P757 -> 16.115 | Q145: =Q124+Forest!Q757 -> 16.115 | R145: =R124+Forest!R757 -> 0 | S145: =S124+Forest!S757 -> 0 | T145: =T124+Forest!T757 -> 16.115
A146: 16 | B146: =B125+Forest!B758 -> 16.115 | C146: =C125+Forest!C758 -> 16.115 | D146: =D125+Forest!D758 -> 0 | E146: =E125+Forest!E758 -> 16.115 | F146: =F125+Forest!F758 -> 0 | G146: =G125+Forest!G758 -> 16.115 | H146: =H125+Forest!H758 -> 16.35091492 | I146: =I125+Forest!I758 -> 0 | J146: =J125+Forest!J758 -> 16.23295746 | K146: =K125+Forest!K758 -> 0 | L146: =L125+Forest!L758 -> 0 | M146: =M125+Forest!M758 -> 16.35091492 | N146: =N125+Forest!N758 -> 16.35091492 | O146: =O125+Forest!O758 -> 16.35091492 | P146: =P125+Forest!P758 -> 16.115 | Q146: =Q125+Forest!Q758 -> 16.115 | R146: =R125+Forest!R758 -> 0 | S146: =S125+Forest!S758 -> 0 | T146: =T125+Forest!T758 -> 16.115
A147: 17 | B147: =B126+Forest!B759 -> 0 | C147: =C126+Forest!C759 -> 0 | D147: =D126+Forest!D759 -> 0 | E147: =E126+Forest!E759 -> 0 | F147: =F126+Forest!F759 -> 0 | G147: =G126+Forest!G759 -> 16.115 | H147: =H126+Forest!H759 -> 0 | I147: =I126+Forest!I759 -> 0 | J147: =J126+Forest!J759 -> 16.23295746 | K147: =K126+Forest!K759 -> 0 | L147: =L126+Forest!L759 -> 0 | M147: =M126+Forest!M759 -> 0 | N147: =N126+Forest!N759 -> 0 | O147: =O126+Forest!O759 -> 0 | P147: =P126+Forest!P759 -> 0 | Q147: =Q126+Forest!Q759 -> 0 | R147: =R126+Forest!R759 -> 0 | S147: =S126+Forest!S759 -> 0 | T147: =T126+Forest!T759 -> 16.115
A148: 18 | B148: =B127+Forest!B760 -> 0 | C148: =C127+Forest!C760 -> 0 | D148: =D127+Forest!D760 -> 0 | E148: =E127+Forest!E760 -> 0 | F148: =F127+Forest!F760 -> 0 | G148: =G127+Forest!G760 -> 0 | H148: =H127+Forest!H760 -> 0 | I148: =I127+Forest!I760 -> 0 | J148: =J127+Forest!J760 -> 16.23295746 | K148: =K127+Forest!K760 -> 0 | L148: =L127+Forest!L760 -> 0 | M148: =M127+Forest!M760 -> 0 | N148: =N127+Forest!N760 -> 0 | O148: =O127+Forest!O760 -> 0 | P148: =P127+Forest!P760 -> 0 | Q148: =Q127+Forest!Q760 -> 0 | R148: =R127+Forest!R760 -> 0 | S148: =S127+Forest!S760 -> 0 | T148: =T127+Forest!T760 -> 0
A150: Pasture-to-forest
A151: AEZ | B151: =Tables!E$7 -> USA | C151: =Tables!F$7 -> EU27 | D151: =Tables!G$7 -> Brazil | E151: =Tables!H$7 -> Canada | F151: =Tables!I$7 -> Japan | G151: =Tables!J$7 -> ChiHkg | H151: =Tables!K$7 -> India | I151: =Tables!L$7 -> C_C_Amer | J151: =Tables!M$7 -> S_O_Amer | K151: =Tables!N$7 -> E_Asia | L151: =Tables!O$7 -> Mala_Indo | M151: =Tables!P$7 -> R_SE_Asia | N151: =Tables!Q$7 -> R_S_Asia | O151: =Tables!R$7 -> Russia | P151: =Tables!S$7 -> Oth_CEE_CIS | Q151: =Tables!T$7 -> Oth_Europe | R151: =Tables!U$7 -> ME_N_Afr | S151: =Tables!V$7 -> S_S_Afr | T151: =Tables!W$7 -> Oceania
A152: 1 | B152: =Pasture!B911 -> 0 | C152: =Pasture!C911 -> 0 | D152: =Pasture!D911 -> -281.8062336 | E152: =Pasture!E911 -> 0 | F152: =Pasture!F911 -> 0 | G152: =Pasture!G911 -> 0 | H152: =Pasture!H911 -> -142.4401431 | I152: =Pasture!I911 -> -258.4357019 | J152: =Pasture!J911 -> -357.6552066 | K152: =Pasture!K911 -> 0 | L152: =Pasture!L911 -> 0 | M152: =Pasture!M911 -> 0 | N152: =Pasture!N911 -> -71.25104893 | O152: =Pasture!O911 -> 0 | P152: =Pasture!P911 -> 0 | Q152: =Pasture!Q911 -> 0 | R152: =Pasture!R911 -> -405.4844012 | S152: =Pasture!S911 -> -392.2144818 | T152: =Pasture!T911 -> -300.9779577
A153: 2 | B153: =Pasture!B912 -> 0 | C153: =Pasture!C912 -> 0 | D153: =Pasture!D912 -> -338.6009567 | E153: =Pasture!E912 -> 0 | F153: =Pasture!F912 -> 0 | G153: =Pasture!G912 -> 0 | H153: =Pasture!H912 -> -340.3251234 | I153: =Pasture!I912 -> -412.9505494 | J153: =Pasture!J912 -> -411.9184663 | K153: =Pasture!K912 -> 0 | L153: =Pasture!L912 -> 0 | M153: =Pasture!M912 -> 0 | N153: =Pasture!N912 -> 0 | O153: =Pasture!O912 -> 0 | P153: =Pasture!P912 -> 0 | Q153: =Pasture!Q912 -> 0 | R153: =Pasture!R912 -> -391.4433658 | S153: =Pasture!S912 -> -394.5783823 | T153: =Pasture!T912 -> -301.1696711
A154: 3 | B154: =Pasture!B913 -> 0 | C154: =Pasture!C913 -> 0 | D154: =Pasture!D913 -> -384.6143552 | E154: =Pasture!E913 -> 0 | F154: =Pasture!F913 -> 0 | G154: =Pasture!G913 -> 0 | H154: =Pasture!H913 -> -524.7244396 | I154: =Pasture!I913 -> -548.6097657 | J154: =Pasture!J913 -> -351.1752322 | K154: =Pasture!K913 -> 0 | L154: =Pasture!L913 -> 0 | M154: =Pasture!M913 -> 0 | N154: =Pasture!N913 -> -468.7110161 | O154: =Pasture!O913 -> 0 | P154: =Pasture!P913 -> 0 | Q154: =Pasture!Q913 -> 0 | R154: =Pasture!R913 -> -258.8797867 | S154: =Pasture!S913 -> -361.8120385 | T154: =Pasture!T913 -> -537.0848342
A155: 4 | B155: =Pasture!B914 -> 0 | C155: =Pasture!C914 -> -267.8643324 | D155: =Pasture!D914 -> -507.4263497 | E155: =Pasture!E914 -> 0 | F155: =Pasture!F914 -> 0 | G155: =Pasture!G914 -> 29.2468 | H155: =Pasture!H914 -> -572.006495 | I155: =Pasture!I914 -> -553.7957205 | J155: =Pasture!J914 -> -500.0417801 | K155: =Pasture!K914 -> -391.0156652 | L155: =Pasture!L914 -> -730.2789667 | M155: =Pasture!M914 -> -607.2684458 | N155: =Pasture!N914 -> -492.2298807 | O155: =Pasture!O914 -> 0 | P155: =Pasture!P914 -> 0 | Q155: =Pasture!Q914 -> 0 | R155: =Pasture!R914 -> -294.668713 | S155: =Pasture!S914 -> -420.1094516 | T155: =Pasture!T914 -> -599.8574381
A156: 5 | B156: =Pasture!B915 -> 0 | C156: =Pasture!C915 -> 0 | D156: =Pasture!D915 -> -699.7018264 | E156: =Pasture!E915 -> 0 | F156: =Pasture!F915 -> 0 | G156: =Pasture!G915 -> -347.2304 | H156: =Pasture!H915 -> -593.2734881 | I156: =Pasture!I915 -> -584.3492847 | J156: =Pasture!J915 -> -571.4055065 | K156: =Pasture!K915 -> -395.9119172 | L156: =Pasture!L915 -> -755.3558629 | M156: =Pasture!M915 -> -623.9498798 | N156: =Pasture!N915 -> -560.5039303 | O156: =Pasture!O915 -> 0 | P156: =Pasture!P915 -> 0 | Q156: =Pasture!Q915 -> 0 | R156: =Pasture!R915 -> 0 | S156: =Pasture!S915 -> -620.9912285 | T156: =Pasture!T915 -> -597.8735685
A157: 6 | B157: =Pasture!B916 -> 0 | C157: =Pasture!C916 -> 0 | D157: =Pasture!D916 -> -764.707313 | E157: =Pasture!E916 -> 0 | F157: =Pasture!F916 -> 0 | G157: =Pasture!G916 -> -347.6033 | H157: =Pasture!H916 -> -658.8578486 | I157: =Pasture!I916 -> -718.9806766 | J157: =Pasture!J916 -> -663.4036656 | K157: =Pasture!K916 -> -412.9810846 | L157: =Pasture!L916 -> -860.2557308 | M157: =Pasture!M916 -> -623.5259725 | N157: =Pasture!N916 -> -562.4936223 | O157: =Pasture!O916 -> 0 | P157: =Pasture!P916 -> 0 | Q157: =Pasture!Q916 -> 0 | R157: =Pasture!R916 -> 0 | S157: =Pasture!S916 -> -754.0793804 | T157: =Pasture!T916 -> -676.7990062
A158: 7 | B158: =Pasture!B917 -> -279.2123738 | C158: =Pasture!C917 -> 0 | D158: =Pasture!D917 -> 0 | E158: =Pasture!E917 -> -170.3580769 | F158: =Pasture!F917 -> 0 | G158: =Pasture!G917 -> -199.9624 | H158: =Pasture!H917 -> -126.1513356 | I158: =Pasture!I917 -> -387.2340096 | J158: =Pasture!J917 -> -271.9818098 | K158: =Pasture!K917 -> -107.3880627 | L158: =Pasture!L917 -> 0 | M158: =Pasture!M917 -> 0 | N158: =Pasture!N917 -> -183.980485 | O158: =Pasture!O917 -> -179.5065365 | P158: =Pasture!P917 -> -183.6023129 | Q158: =Pasture!Q917 -> 0 | R158: =Pasture!R917 -> -430.0017843 | S158: =Pasture!S917 -> -345.9308292 | T158: =Pasture!T917 -> -251.145481
A159: 8 | B159: =Pasture!B918 -> -294.1316783 | C159: =Pasture!C918 -> -182.5550511 | D159: =Pasture!D918 -> 0 | E159: =Pasture!E918 -> -275.4925743 | F159: =Pasture!F918 -> 0 | G159: =Pasture!G918 -> -199.7979795 | H159: =Pasture!H918 -> -257.7944777 | I159: =Pasture!I918 -> -407.0929206 | J159: =Pasture!J918 -> -275.9922964 | K159: =Pasture!K918 -> -143.5485684 | L159: =Pasture!L918 -> 0 | M159: =Pasture!M918 -> 0 | N159: =Pasture!N918 -> -353.5939455 | O159: =Pasture!O918 -> -220.465363 | P159: =Pasture!P918 -> -265.1407 | Q159: =Pasture!Q918 -> 0 | R159: =Pasture!R918 -> -384.3112382 | S159: =Pasture!S918 -> -327.9076494 | T159: =Pasture!T918 -> -390.7396569
A160: 9 | B160: =Pasture!B919 -> -313.3949051 | C160: =Pasture!C919 -> -226.3927216 | D160: =Pasture!D919 -> 0 | E160: =Pasture!E919 -> -297.8190789 | F160: =Pasture!F919 -> -208.9517735 | G160: =Pasture!G919 -> -267.7997667 | H160: =Pasture!H919 -> -403.3546958 | I160: =Pasture!I919 -> -343.3464421 | J160: =Pasture!J919 -> -341.2448359 | K160: =Pasture!K919 -> -116.0077505 | L160: =Pasture!L919 -> 0 | M160: =Pasture!M919 -> 0 | N160: =Pasture!N919 -> -379.205905 | O160: =Pasture!O919 -> -220.1663719 | P160: =Pasture!P919 -> -257.6126667 | Q160: =Pasture!Q919 -> -110.7736667 | R160: =Pasture!R919 -> -331.3454658 | S160: =Pasture!S919 -> -359.6073755 | T160: =Pasture!T919 -> -384.8497384
A161: 10 | B161: =Pasture!B920 -> -279.4803558 | C161: =Pasture!C920 -> -187.9738426 | D161: =Pasture!D920 -> -446.3155129 | E161: =Pasture!E920 -> -277.6292582 | F161: =Pasture!F920 -> -224.0997585 | G161: =Pasture!G920 -> -403.9502795 | H161: =Pasture!H920 -> -406.5871095 | I161: =Pasture!I920 -> -427.1868793 | J161: =Pasture!J920 -> -434.1684988 | K161: =Pasture!K920 -> -215.371557 | L161: =Pasture!L920 -> 0 | M161: =Pasture!M920 -> -481.6745721 | N161: =Pasture!N920 -> -463.7548558 | O161: =Pasture!O920 -> -196.4255495 | P161: =Pasture!P920 -> -160.7586129 | Q161: =Pasture!Q920 -> -199.2292795 | R161: =Pasture!R920 -> -351.851082 | S161: =Pasture!S920 -> -306.052303 | T161: =Pasture!T920 -> -384.1444667
A162: 11 | B162: =Pasture!B921 -> -276.3288557 | C162: =Pasture!C921 -> -257.2245433 | D162: =Pasture!D921 -> -391.1159771 | E162: =Pasture!E921 -> -257.8578661 | F162: =Pasture!F921 -> -227.9819198 | G162: =Pasture!G921 -> -435.9382795 | H162: =Pasture!H921 -> -475.274391 | I162: =Pasture!I921 -> -440.8761457 | J162: =Pasture!J921 -> -452.4132101 | K162: =Pasture!K921 -> -220.3162877 | L162: =Pasture!L921 -> 0 | M162: =Pasture!M921 -> -546.3363423 | N162: =Pasture!N921 -> -488.6093248 | O162: =Pasture!O921 -> -210.9740542 | P162: =Pasture!P921 -> -194.3672795 | Q162: =Pasture!Q921 -> -241.8863333 | R162: =Pasture!R921 -> 0 | S162: =Pasture!S921 -> -321.8623497 | T162: =Pasture!T921 -> -384.5192756
A163: 12 | B163: =Pasture!B922 -> -269.906283 | C163: =Pasture!C922 -> -262.2293429 | D163: =Pasture!D922 -> -507.5948171 | E163: =Pasture!E922 -> 0 | F163: =Pasture!F922 -> -230.7810294 | G163: =Pasture!G922 -> -443.9013333 | H163: =Pasture!H922 -> -556.0494862 | I163: =Pasture!I922 -> -576.8078288 | J163: =Pasture!J922 -> -504.749164 | K163: =Pasture!K922 -> -260.4626403 | L163: =Pasture!L922 -> 0 | M163: =Pasture!M922 -> -569.83346 | N163: =Pasture!N922 -> -517.0858938 | O163: =Pasture!O922 -> -203.8072035 | P163: =Pasture!P922 -> -251.5608333 | Q163: =Pasture!Q922 -> 0 | R163: =Pasture!R922 -> 0 | S163: =Pasture!S922 -> -415.8188532 | T163: =Pasture!T922 -> -459.8409091
A164: 13 | B164: =Pasture!B923 -> -139.6518718 | C164: =Pasture!C923 -> -91.45334992 | D164: =Pasture!D923 -> 0 | E164: =Pasture!E923 -> -237.3658061 | F164: =Pasture!F923 -> 0 | G164: =Pasture!G923 -> -60.9752 | H164: =Pasture!H923 -> -461.0258169 | I164: =Pasture!I923 -> 0 | J164: =Pasture!J923 -> -378.1998483 | K164: =Pasture!K923 -> -90.87962368 | L164: =Pasture!L923 -> 0 | M164: =Pasture!M923 -> 0 | N164: =Pasture!N923 -> -353.4943971 | O164: =Pasture!O923 -> -77.47052523 | P164: =Pasture!P923 -> -65.77046667 | Q164: =Pasture!Q923 -> -75.02 | R164: =Pasture!R923 -> 0 | S164: =Pasture!S923 -> 0 | T164: =Pasture!T923 -> 0
A165: 14 | B165: =Pasture!B924 -> -147.7551483 | C165: =Pasture!C924 -> -90.67793035 | D165: =Pasture!D924 -> 0 | E165: =Pasture!E924 -> -267.4020213 | F165: =Pasture!F924 -> 0 | G165: =Pasture!G924 -> -60.9026 | H165: =Pasture!H924 -> -347.8973794 | I165: =Pasture!I924 -> 0 | J165: =Pasture!J924 -> -452.2239069 | K165: =Pasture!K924 -> -90.39741852 | L165: =Pasture!L924 -> 0 | M165: =Pasture!M924 -> 0 | N165: =Pasture!N924 -> -371.396893 | O165: =Pasture!O924 -> -70.15714741 | P165: =Pasture!P924 -> -63.43333333 | Q165: =Pasture!Q924 -> -63.5701 | R165: =Pasture!R924 -> 0 | S165: =Pasture!S924 -> 0 | T165: =Pasture!T924 -> 0
A166: 15 | B166: =Pasture!B925 -> -173.0495234 | C166: =Pasture!C925 -> -98.39511651 | D166: =Pasture!D925 -> 0 | E166: =Pasture!E925 -> -288.2747633 | F166: =Pasture!F925 -> -103.3746901 | G166: =Pasture!G925 -> -60.68993333 | H166: =Pasture!H925 -> -399.0154126 | I166: =Pasture!I925 -> 0 | J166: =Pasture!J925 -> -421.6666329 | K166: =Pasture!K925 -> -91.89642411 | L166: =Pasture!L925 -> 0 | M166: =Pasture!M925 -> -470.4026798 | N166: =Pasture!N925 -> -472.3509876 | O166: =Pasture!O925 -> -70.92005941 | P166: =Pasture!P925 -> -60.80066667 | Q166: =Pasture!Q925 -> -66.3817 | R166: =Pasture!R925 -> 0 | S166: =Pasture!S925 -> 0 | T166: =Pasture!T925 -> -298.9416797
A167: 16 | B167: =Pasture!B926 -> -215.9334464 | C167: =Pasture!C926 -> -108.6533254 | D167: =Pasture!D926 -> 0 | E167: =Pasture!E926 -> -361.9253677 | F167: =Pasture!F926 -> 0 | G167: =Pasture!G926 -> -60.77206667 | H167: =Pasture!H926 -> -466.1646471 | I167: =Pasture!I926 -> 0 | J167: =Pasture!J926 -> -508.0437291 | K167: =Pasture!K926 -> 0 | L167: =Pasture!L926 -> 0 | M167: =Pasture!M926 -> -575.3649651 | N167: =Pasture!N926 -> -521.9924422 | O167: =Pasture!O926 -> -74.81534547 | P167: =Pasture!P926 -> -58.905 | Q167: =Pasture!Q926 -> -67.97963333 | R167: =Pasture!R926 -> 0 | S167: =Pasture!S926 -> 0 | T167: =Pasture!T926 -> -370.7545509
A168: 17 | B168: =Pasture!B927 -> 0 | C168: =Pasture!C927 -> 0 | D168: =Pasture!D927 -> 0 | E168: =Pasture!E927 -> 0 | F168: =Pasture!F927 -> 0 | G168: =Pasture!G927 -> -60.6903 | H168: =Pasture!H927 -> 0 | I168: =Pasture!I927 -> 0 | J168: =Pasture!J927 -> -560.0665479 | K168: =Pasture!K927 -> 0 | L168: =Pasture!L927 -> 0 | M168: =Pasture!M927 -> 0 | N168: =Pasture!N927 -> 0 | O168: =Pasture!O927 -> 0 | P168: =Pasture!P927 -> 0 | Q168: =Pasture!Q927 -> 0 | R168: =Pasture!R927 -> 0 | S168: =Pasture!S927 -> 0 | T168: =Pasture!T927 -> -467.3449818
A169: 18 | B169: =Pasture!B928 -> 0 | C169: =Pasture!C928 -> 0 | D169: =Pasture!D928 -> 0 | E169: =Pasture!E928 -> 0 | F169: =Pasture!F928 -> 0 | G169: =Pasture!G928 -> 0 | H169: =Pasture!H928 -> 0 | I169: =Pasture!I928 -> 0 | J169: =Pasture!J928 -> -633.3510504 | K169: =Pasture!K928 -> 0 | L169: =Pasture!L928 -> 0 | M169: =Pasture!M928 -> 0 | N169: =Pasture!N928 -> 0 | O169: =Pasture!O928 -> 0 | P169: =Pasture!P928 -> 0 | Q169: =Pasture!Q928 -> 0 | R169: =Pasture!R928 -> 0 | S169: =Pasture!S928 -> 0 | T169: =Pasture!T928 -> 0
A171: CroplandPasture-to-Annuals
A172: AEZ | B172: =Tables!E$7 -> USA | C172: =Tables!F$7 -> EU27 | D172: =Tables!G$7 -> Brazil | E172: =Tables!H$7 -> Canada | F172: =Tables!I$7 -> Japan | G172: =Tables!J$7 -> ChiHkg | H172: =Tables!K$7 -> India | I172: =Tables!L$7 -> C_C_Amer | J172: =Tables!M$7 -> S_O_Amer | K172: =Tables!N$7 -> E_Asia | L172: =Tables!O$7 -> Mala_Indo | M172: =Tables!P$7 -> R_SE_Asia | N172: =Tables!Q$7 -> R_S_Asia | O172: =Tables!R$7 -> Russia | P172: =Tables!S$7 -> Oth_CEE_CIS | Q172: =Tables!T$7 -> Oth_Europe | R172: =Tables!U$7 -> ME_N_Afr | S172: =Tables!V$7 -> S_S_Afr | T172: =Tables!W$7 -> Oceania
A173: 1 | B173: =B89*CroplandPasture_EF_Ratio -> 0 | C173: 0 | D173: 38.82877908 | E173: 0 | F173: 0 | G173: 0 | H173: 24.67762058 | I173: 35.90686261 | J173: 41.58187616 | K173: 0 | L173: 0 | M173: 0 | N173: 31.12554475 | O173: 0 | P173: 0 | Q173: 0 | R173: 34.27792525 | S173: 29.32526718 | T173: 33.68925762
A174: 2 | B174: =B90*CroplandPasture_EF_Ratio -> 0 | C174: 0 | D174: 33.96862946 | E174: 0 | F174: 0 | G174: 0 | H174: 40.80385752 | I174: 88.7447093 | J174: 69.74709445 | K174: 0 | L174: 0 | M174: 0 | N174: 0 | O174: 0 | P174: 0 | Q174: 0 | R174: 36.49206958 | S174: 33.00122661 | T174: 38.45429501
A175: 3 | B175: =B91*CroplandPasture_EF_Ratio -> 0 | C175: 0 | D175: 45.9531564 | E175: 0 | F175: 0 | G175: 0 | H175: 44.09718248 | I175: 86.8154299 | J175: 52.32342046 | K175: 0 | L175: 0 | M175: 0 | N175: 44.56760246 | O175: 0 | P175: 0 | Q175: 0 | R175: 42.04304498 | S175: 45.05087545 | T175: 45.13976232
A176: 4 | B176: =B92*CroplandPasture_EF_Ratio -> 0 | C176: 76.77098423 | D176: 61.87334474 | E176: 0 | F176: 0 | G176: 14.6234 | H176: 52.78263872 | I176: 220.9898744 | J176: 101.1338007 | K176: 56.82513446 | L176: 70.1153444 | M176: 60.58861549 | N176: 62.58307544 | O176: 0 | P176: 0 | Q176: 0 | R176: 49.391717 | S176: 58.70448736 | T176: 59.63772455
A177: 5 | B177: =B93*CroplandPasture_EF_Ratio -> 0 | C177: 0 | D177: 61.65055932 | E177: 0 | F177: 0 | G177: 100.918802 | H177: 65.76041988 | I177: 156.3789199 | J177: 111.9601112 | K177: 53.97454197 | L177: 70.1153444 | M177: 63.16125665 | N177: 69.52973701 | O177: 0 | P177: 0 | Q177: 0 | R177: 0 | S177: 93.24683629 | T177: 42.3909504
A178: 6 | B178: =B94*CroplandPasture_EF_Ratio -> 0 | C178: 0 | D178: 62.70825963 | E178: 0 | F178: 0 | G178: 67.11907113 | H178: 67.55225119 | I178: 126.4545945 | J178: 197.1405252 | K178: 41.82000598 | L178: 79.87546756 | M178: 74.92114417 | N178: 64.79819904 | O178: 0 | P178: 0 | Q178: 0 | R178: 0 | S178: 62.57777102 | T178: 95.58149986
A179: 7 | B179: =B95*CroplandPasture_EF_Ratio -> 45.29664976 | C179: 0 | D179: 0 | E179: 51.95807803 | F179: 0 | G179: 51.36045102 | H179: 27.09915267 | I179: 82.63117701 | J179: 41.62383123 | K179: 53.34242331 | L179: 0 | M179: 0 | N179: 34.06040054 | O179: 47.84304755 | P179: 40.00956238 | Q179: 0 | R179: 38.45915293 | S179: 22.52841281 | T179: 35.01424576
A180: 8 | B180: =B96*CroplandPasture_EF_Ratio -> 49.51726471 | C180: 55.11020833 | D180: 0 | E180: 59.59744139 | F180: 0 | G180: 46.70419215 | H180: 42.76724244 | I180: 96.01943044 | J180: 49.3627991 | K180: 58.27837967 | L180: 0 | M180: 0 | N180: 35.39550329 | O180: 64.02626363 | P180: 46.88026071 | Q180: 0 | R180: 39.63327871 | S180: 23.54256773 | T180: 39.12217683
A181: 9 | B181: =B97*CroplandPasture_EF_Ratio -> 56.49925698 | C181: 72.39875115 | D181: 0 | E181: 159.494335 | F181: 166.6578102 | G181: 39.19624485 | H181: 43.95877341 | I181: 79.49041526 | J181: 81.22211258 | K181: 54.09529203 | L181: 0 | M181: 0 | N181: 48.11600368 | O181: 76.30508345 | P181: 62.88501218 | Q181: 0 | R181: 44.57086345 | S181: 41.59442416 | T181: 39.44978358
A182: 10 | B182: =B98*CroplandPasture_EF_Ratio -> 61.69186555 | C182: 135.7624003 | D182: 71.62747063 | E182: 97.76177414 | F182: 164.4102644 | G182: 50.60055227 | H182: 62.83913414 | I182: 276.5078917 | J182: 64.66808113 | K182: 56.21694401 | L182: 0 | M182: 50.75781249 | N182: 56.30346913 | O182: 124.2538607 | P182: 119.3558286 | Q182: 83.85839441 | R182: 51.77970858 | S182: 49.74566979 | T182: 54.42979196
A183: 11 | B183: =B99*CroplandPasture_EF_Ratio -> 55.71660162 | C183: 154.6198463 | D183: 41.75215709 | E183: 55.71660162 | F183: 173.3797 | G183: 59.38888877 | H183: 69.1514436 | I183: 77.74962604 | J183: 126.550647 | K183: 56.21694401 | L183: 0 | M183: 59.59242986 | N183: 90.76461412 | O183: 84.08205763 | P183: 81.80392582 | Q183: 58.08138533 | R183: 0 | S183: 62.20931174 | T183: 60.23804229
A184: 12 | B184: =B100*CroplandPasture_EF_Ratio -> 51.6328171 | C184: 145.3767498 | D184: 80.4117827 | E184: 0 | F184: 173.3797 | G184: 65.5643678 | H184: 61.78976551 | I184: 231.6466283 | J184: 107.7092987 | K184: 40.88569117 | L184: 0 | M184: 59.73026639 | N184: 98.39190421 | O184: 62.17671212 | P184: 81.01312645 | Q184: 0 | R184: 0 | S184: 112.3315038 | T184: 96.39045157
A185: 13 | B185: =B101*CroplandPasture_EF_Ratio -> 26.69435725 | C185: 31.89676404 | D185: 0 | E185: 8.0575 | F185: 0 | G185: 39.09975125 | H185: 21.73190946 | I185: 0 | J185: 41.5326596 | K185: 27.8723816 | L185: 0 | M185: 0 | N185: 22.64671699 | O185: 31.19620949 | P185: 28.42930891 | Q185: 13.30918467 | R185: 0 | S185: 0 | T185: 0
A186: 14 | B186: =B102*CroplandPasture_EF_Ratio -> 32.60265923 | C186: 34.64200269 | D186: 0 | E186: 32.60265923 | F186: 0 | G186: 38.67621413 | H186: 31.29005683 | I186: 0 | J186: 39.09058865 | K186: 37.19346243 | L186: 0 | M186: 0 | N186: 22.93601161 | O186: 33.98225134 | P186: 30.64696231 | Q186: 23.1204058 | R186: 0 | S186: 0 | T186: 0
A187: 15 | B187: =B103*CroplandPasture_EF_Ratio -> 53.14992186 | C187: 39.98395639 | D187: 0 | E187: 32.60265923 | F187: 73.61965843 | G187: 42.36074223 | H187: 29.68771554 | I187: 0 | J187: 34.83685604 | K187: 40.9632692 | L187: 0 | M187: 37.03555408 | N187: 33.14211365 | O187: 49.26549436 | P187: 35.1626514 | Q187: 19.88634492 | R187: 0 | S187: 0 | T187: 32.89889039
A188: 16 | B188: =B104*CroplandPasture_EF_Ratio -> 102.2292235 | C188: 130.9727862 | D188: 0 | E188: 47.08595571 | F188: 0 | G188: 55.84158593 | H188: 41.05397469 | I188: 0 | J188: 38.93447565 | K188: 0 | L188: 0 | M188: 52.90860723 | N188: 38.71770641 | O188: 52.9977826 | P188: 46.84625736 | Q188: 112.6235302 | R188: 0 | S188: 0 | T188: 43.2299114
A189: 17 | B189: =B105*CroplandPasture_EF_Ratio -> 0 | C189: 0 | D189: 0 | E189: 0 | F189: 0 | G189: 48.4159969 | H189: 0 | I189: 0 | J189: 39.15014091 | K189: 0 | L189: 0 | M189: 0 | N189: 0 | O189: 0 | P189: 0 | Q189: 0 | R189: 0 | S189: 0 | T189: 46.84246267
A190: 18 | B190: =B106*CroplandPasture_EF_Ratio -> 0 | C190: 0 | D190: 0 | E190: 0 | F190: 0 | G190: 0 | H190: 0 | I190: 0 | J190: 27.50927629 | K190: 0 | L190: 0 | M190: 0 | N190: 0 | O190: 0 | P190: 0 | Q190: 0 | R190: 0 | S190: 0 | T190: 0
A192: CroplandPasture-to-Perennials
A193: AEZ | B193: =Tables!E$7 -> USA | C193: =Tables!F$7 -> EU27 | D193: =Tables!G$7 -> Brazil | E193: =Tables!H$7 -> Canada | F193: =Tables!I$7 -> Japan | G193: =Tables!J$7 -> ChiHkg | H193: =Tables!K$7 -> India | I193: =Tables!L$7 -> C_C_Amer | J193: =Tables!M$7 -> S_O_Amer | K193: =Tables!N$7 -> E_Asia | L193: =Tables!O$7 -> Mala_Indo | M193: =Tables!P$7 -> R_SE_Asia | N193: =Tables!Q$7 -> R_S_Asia | O193: =Tables!R$7 -> Russia | P193: =Tables!S$7 -> Oth_CEE_CIS | Q193: =Tables!T$7 -> Oth_Europe | R193: =Tables!U$7 -> ME_N_Afr | S193: =Tables!V$7 -> S_S_Afr | T193: =Tables!W$7 -> Oceania
A194: 1 | B194: =B110*CroplandPasture_EF_Ratio -> 0 | C194: 0 | D194: 8.410000581 | E194: 0 | F194: 0 | G194: 0 | H194: 8.410000581 | I194: 8.410000581 | J194: 8.337150291 | K194: 0 | L194: 0 | M194: 0 | N194: 8.410000581 | O194: 0 | P194: 0 | Q194: 0 | R194: 8.2643 | S194: 8.410000581 | T194: 8.2643
A195: 2 | B195: =B111*CroplandPasture_EF_Ratio -> 0 | C195: 0 | D195: 8.410000581 | E195: 0 | F195: 0 | G195: 0 | H195: 8.410000581 | I195: 8.410000581 | J195: 8.337150291 | K195: 0 | L195: 0 | M195: 0 | N195: 0 | O195: 0 | P195: 0 | Q195: 0 | R195: 8.2643 | S195: 8.410000581 | T195: 8.2643
A196: 3 | B196: =B112*CroplandPasture_EF_Ratio -> 0 | C196: 0 | D196: 12.68786573 | E196: 0 | F196: 0 | G196: 0 | H196: 12.68786573 | I196: 12.68786573 | J196: 12.56993286 | K196: 0 | L196: 0 | M196: 0 | N196: 12.68786573 | O196: 0 | P196: 0 | Q196: 0 | R196: 12.452 | S196: 12.68786573 | T196: 12.452
A197: 4 | B197: =B113*CroplandPasture_EF_Ratio -> 0 | C197: 14.6234 | D197: 14.94943088 | E197: 0 | F197: 0 | G197: 14.6234 | H197: 14.94943088 | I197: 14.94943088 | J197: 14.78641544 | K197: 0 | L197: 14.94943088 | M197: 14.94943088 | N197: 14.94943088 | O197: 0 | P197: 0 | Q197: 0 | R197: 14.6234 | S197: 14.94943088 | T197: 14.6234
A198: 5 | B198: =B114*CroplandPasture_EF_Ratio -> 0 | C198: 0 | D198: 14.94943088 | E198: 0 | F198: 0 | G198: 14.6234 | H198: 14.94943088 | I198: 14.94943088 | J198: 14.78641544 | K198: 0 | L198: 14.94943088 | M198: 14.94943088 | N198: 14.94943088 | O198: 0 | P198: 0 | Q198: 0 | R198: 0 | S198: 14.94943088 | T198: 14.6234
A199: 6 | B199: =B115*CroplandPasture_EF_Ratio -> 0 | C199: 0 | D199: 14.94943088 | E199: 0 | F199: 0 | G199: 14.6234 | H199: 14.94943088 | I199: 14.94943088 | J199: 14.78641544 | K199: 0 | L199: 14.94943088 | M199: 14.94943088 | N199: 14.94943088 | O199: 0 | P199: 0 | Q199: 0 | R199: 0 | S199: 14.94943088 | T199: 14.6234
A200: 7 | B200: =B116*CroplandPasture_EF_Ratio -> 6.135983333 | C200: 0 | D200: 0 | E200: 6.135983333 | F200: 0 | G200: 6.135983333 | H200: 6.251628866 | I200: 6.251628866 | J200: 6.193806099 | K200: 6.251628866 | L200: 0 | M200: 0 | N200: 6.251628866 | O200: 6.251628866 | P200: 6.135983333 | Q200: 0 | R200: 6.135983333 | S200: 6.251628866 | T200: 6.135983333
A201: 8 | B201: =B117*CroplandPasture_EF_Ratio -> 6.135983333 | C201: 6.135983333 | D201: 0 | E201: 6.135983333 | F201: 0 | G201: 6.135983333 | H201: 6.251628866 | I201: 6.251628866 | J201: 6.193806099 | K201: 6.251628866 | L201: 0 | M201: 0 | N201: 6.251628866 | O201: 6.251628866 | P201: 6.135983333 | Q201: 0 | R201: 6.135983333 | S201: 6.251628866 | T201: 6.135983333
A202: 9 | B202: =B118*CroplandPasture_EF_Ratio -> 8.695133333 | C202: 8.695133333 | D202: 0 | E202: 8.695133333 | F202: 8.695133333 | G202: 8.695133333 | H202: 8.831586207 | I202: 8.831586207 | J202: 8.76335977 | K202: 8.831586207 | L202: 0 | M202: 0 | N202: 8.831586207 | O202: 8.831586207 | P202: 8.695133333 | Q202: 0 | R202: 8.695133333 | S202: 8.831586207 | T202: 8.695133333
A203: 10 | B203: =B119*CroplandPasture_EF_Ratio -> 11.71958333 | C203: 11.71958333 | D203: 11.87684355 | E203: 11.71958333 | F203: 11.71958333 | G203: 11.71958333 | H203: 11.87684355 | I203: 11.87684355 | J203: 11.79821344 | K203: 11.87684355 | L203: 0 | M203: 11.87684355 | N203: 11.87684355 | O203: 11.87684355 | P203: 11.71958333 | Q203: 11.71958333 | R203: 11.71958333 | S203: 11.87684355 | T203: 11.71958333
A204: 11 | B204: =B120*CroplandPasture_EF_Ratio -> 11.71958333 | C204: 11.71958333 | D204: 11.87684355 | E204: 11.71958333 | F204: 11.71958333 | G204: 11.71958333 | H204: 11.87684355 | I204: 11.87684355 | J204: 11.79821344 | K204: 11.87684355 | L204: 0 | M204: 11.87684355 | N204: 11.87684355 | O204: 11.87684355 | P204: 11.71958333 | Q204: 0 | R204: 0 | S204: 11.87684355 | T204: 11.71958333
A205: 12 | B205: =B121*CroplandPasture_EF_Ratio -> 11.71958333 | C205: 11.71958333 | D205: 11.87684355 | E205: 0 | F205: 11.71958333 | G205: 11.71958333 | H205: 11.87684355 | I205: 11.87684355 | J205: 11.79821344 | K205: 0 | L205: 0 | M205: 11.87684355 | N205: 11.87684355 | O205: 0 | P205: 11.71958333 | Q205: 0 | R205: 0 | S205: 11.87684355 | T205: 11.71958333
A206: 13 | B206: =B122*CroplandPasture_EF_Ratio -> 8.0575 | C206: 8.0575 | D206: 0 | E206: 8.0575 | F206: 0 | G206: 8.0575 | H206: 8.175457459 | I206: 0 | J206: 8.11647873 | K206: 8.175457459 | L206: 0 | M206: 0 | N206: 8.175457459 | O206: 8.175457459 | P206: 8.0575 | Q206: 0 | R206: 0 | S206: 0 | T206: 0
A207: 14 | B207: =B123*CroplandPasture_EF_Ratio -> 8.0575 | C207: 8.0575 | D207: 0 | E207: 8.0575 | F207: 0 | G207: 8.0575 | H207: 8.175457459 | I207: 0 | J207: 8.11647873 | K207: 8.175457459 | L207: 0 | M207: 0 | N207: 8.175457459 | O207: 8.175457459 | P207: 8.0575 | Q207: 8.0575 | R207: 0 | S207: 0 | T207: 0
A208: 15 | B208: =B124*CroplandPasture_EF_Ratio -> 8.0575 | C208: 8.0575 | D208: 0 | E208: 8.0575 | F208: 8.0575 | G208: 8.0575 | H208: 8.175457459 | I208: 0 | J208: 8.11647873 | K208: 8.175457459 | L208: 0 | M208: 8.175457459 | N208: 8.175457459 | O208: 8.175457459 | P208: 8.0575 | Q208: 8.0575 | R208: 0 | S208: 0 | T208: 8.0575
A209: 16 | B209: =B125*CroplandPasture_EF_Ratio -> 8.0575 | C209: 8.0575 | D209: 0 | E209: 8.0575 | F209: 0 | G209: 8.0575 | H209: 8.175457459 | I209: 0 | J209: 8.11647873 | K209: 0 | L209: 0 | M209: 8.175457459 | N209: 8.175457459 | O209: 8.175457459 | P209: 8.0575 | Q209: 8.0575 | R209: 0 | S209: 0 | T209: 8.0575
A210: 17 | B210: =B126*CroplandPasture_EF_Ratio -> 0 | C210: 0 | D210: 0 | E210: 0 | F210: 0 | G210: 8.0575 | H210: 0 | I210: 0 | J210: 8.11647873 | K210: 0 | L210: 0 | M210: 0 | N210: 0 | O210: 0 | P210: 0 | Q210: 0 | R210: 0 | S210: 0 | T210: 8.0575
... 201 more rows

Sheet Forest
A1: Region codes
B2: =Tables!E7 -> USA | C2: =Tables!F7 -> EU27 | D2: =Tables!G7 -> Brazil | E2: =Tables!H7 -> Canada | F2: =Tables!I7 -> Japan | G2: =Tables!J7 -> ChiHkg | H2: =Tables!K7 -> India | I2: =Tables!L7 -> C_C_Amer | J2: =Tables!M7 -> S_O_Amer | K2: =Tables!N7 -> E_Asia | L2: =Tables!O7 -> Mala_Indo | M2: =Tables!P7 -> R_SE_Asia | N2: =Tables!Q7 -> R_S_Asia | O2: =Tables!R7 -> Russia | P2: =Tables!S7 -> Oth_CEE_CIS | Q2: =Tables!T7 -> Oth_Europe | R2: =Tables!U7 -> ME_N_Afr | S2: =Tables!V7 -> S_S_Afr | T2: =Tables!W7 -> Oceania
B3: =1 -> 1 | C3: =B3+1 -> 2 | D3: =C3+1 -> 3 | E3: 4 | F3: 5 | G3: 6 | H3: 7 | I3: 8 | J3: 9 | K3: 10 | L3: 11 | M3: 12 | N3: 13 | O3: 14 | P3: 15 | Q3: 16 | R3: 17 | S3: 18 | T3: 19
A5: AEZ-Region combinations in use (1=yes, 0=no; based on land-cover data in basedata.har)
A6: AEZ | B6: =Tables!E7 -> USA | C6: =Tables!F7 -> EU27 | D6: =Tables!G7 -> Brazil | E6: =Tables!H7 -> Canada | F6: =Tables!I7 -> Japan | G6: =Tables!J7 -> ChiHkg | H6: =Tables!K7 -> India | I6: =Tables!L7 -> C_C_Amer | J6: =Tables!M7 -> S_O_Amer | K6: =Tables!N7 -> E_Asia | L6: =Tables!O7 -> Mala_Indo | M6: =Tables!P7 -> R_SE_Asia | N6: =Tables!Q7 -> R_S_Asia | O6: =Tables!R7 -> Russia | P6: =Tables!S7 -> Oth_CEE_CIS | Q6: =Tables!T7 -> Oth_Europe | R6: =Tables!U7 -> ME_N_Afr | S6: =Tables!V7 -> S_S_Afr | T6: =Tables!W7 -> Oceania
A7: 1 | B7: 0 | C7: 0 | D7: 1 | E7: 0 | F7: 0 | G7: 0 | H7: 1 | I7: 1 | J7: 1 | K7: 0 | L7: 0 | M7: 0 | N7: 1 | O7: 0 | P7: 0 | Q7: 0 | R7: 1 | S7: 1 | T7: 1
A8: 2 | B8: 0 | C8: 0 | D8: 1 | E8: 0 | F8: 0 | G8: 0 | H8: 1 | I8: 1 | J8: 1 | K8: 0 | L8: 0 | M8: 0 | N8: 0 | O8: 0 | P8: 0 | Q8: 0 | R8: 1 | S8: 1 | T8: 1
A9: 3 | B9: 0 | C9: 0 | D9: 1 | E9: 0 | F9: 0 | G9: 0 | H9: 1 | I9: 1 | J9: 1 | K9: 0 | L9: 0 | M9: 0 | N9: 1 | O9: 0 | P9: 0 | Q9: 0 | R9: 1 | S9: 1 | T9: 1
A10: 4 | B10: 0 | C10: 1 | D10: 1 | E10: 0 | F10: 0 | G10: 1 | H10: 1 | I10: 1 | J10: 1 | K10: 0 | L10: 1 | M10: 1 | N10: 1 | O10: 0 | P10: 0 | Q10: 0 | R10: 1 | S10: 1 | T10: 1
A11: 5 | B11: 0 | C11: 0 | D11: 1 | E11: 0 | F11: 0 | G11: 1 | H11: 1 | I11: 1 | J11: 1 | K11: 0 | L11: 1 | M11: 1 | N11: 1 | O11: 0 | P11: 0 | Q11: 0 | R11: 0 | S11: 1 | T11: 1
A12: 6 | B12: 0 | C12: 0 | D12: 1 | E12: 0 | F12: 0 | G12: 1 | H12: 1 | I12: 1 | J12: 1 | K12: 0 | L12: 1 | M12: 1 | N12: 1 | O12: 0 | P12: 0 | Q12: 0 | R12: 0 | S12: 1 | T12: 1
A13: 7 | B13: 1 | C13: 0 | D13: 0 | E13: 1 | F13: 0 | G13: 1 | H13: 1 | I13: 1 | J13: 1 | K13: 1 | L13: 0 | M13: 0 | N13: 1 | O13: 1 | P13: 1 | Q13: 0 | R13: 1 | S13: 1 | T13: 1
A14: 8 | B14: 1 | C14: 1 | D14: 0 | E14: 1 | F14: 0 | G14: 1 | H14: 1 | I14: 1 | J14: 1 | K14: 1 | L14: 0 | M14: 0 | N14: 1 | O14: 1 | P14: 1 | Q14: 0 | R14: 1 | S14: 1 | T14: 1
A15: 9 | B15: 1 | C15: 1 | D15: 0 | E15: 1 | F15: 1 | G15: 1 | H15: 1 | I15: 1 | J15: 1 | K15: 1 | L15: 0 | M15: 0 | N15: 1 | O15: 1 | P15: 1 | Q15: 0 | R15: 1 | S15: 1 | T15: 1
A16: 10 | B16: 1 | C16: 1 | D16: 1 | E16: 1 | F16: 1 | G16: 1 | H16: 1 | I16: 1 | J16: 1 | K16: 1 | L16: 0 | M16: 1 | N16: 1 | O16: 1 | P16: 1 | Q16: 1 | R16: 1 | S16: 1 | T16: 1
A17: 11 | B17: 1 | C17: 1 | D17: 1 | E17: 1 | F17: 1 | G17: 1 | H17: 1 | I17: 1 | J17: 1 | K17: 1 | L17: 0 | M17: 1 | N17: 1 | O17: 1 | P17: 1 | Q17: 0 | R17: 0 | S17: 1 | T17: 1
A18: 12 | B18: 1 | C18: 1 | D18: 1 | E18: 0 | F18: 1 | G18: 1 | H18: 1 | I18: 1 | J18: 1 | K18: 0 | L18: 0 | M18: 1 | N18: 1 | O18: 0 | P18: 1 | Q18: 0 | R18: 0 | S18: 1 | T18: 1
A19: 13 | B19: 1 | C19: 1 | D19: 0 | E19: 1 | F19: 0 | G19: 1 | H19: 1 | I19: 0 | J19: 1 | K19: 1 | L19: 0 | M19: 0 | N19: 1 | O19: 1 | P19: 1 | Q19: 0 | R19: 0 | S19: 0 | T19: 0
A20: 14 | B20: 1 | C20: 1 | D20: 0 | E20: 1 | F20: 0 | G20: 1 | H20: 1 | I20: 0 | J20: 1 | K20: 1 | L20: 0 | M20: 0 | N20: 1 | O20: 1 | P20: 1 | Q20: 1 | R20: 0 | S20: 0 | T20: 0
A21: 15 | B21: 1 | C21: 1 | D21: 0 | E21: 1 | F21: 1 | G21: 1 | H21: 1 | I21: 0 | J21: 1 | K21: 1 | L21: 0 | M21: 1 | N21: 1 | O21: 1 | P21: 1 | Q21: 1 | R21: 0 | S21: 0 | T21: 1
A22: 16 | B22: 1 | C22: 1 | D22: 0 | E22: 1 | F22: 0 | G22: 1 | H22: 1 | I22: 0 | J22: 1 | K22: 0 | L22: 0 | M22: 1 | N22: 1 | O22: 1 | P22: 1 | Q22: 1 | R22: 0 | S22: 0 | T22: 1
A23: 17 | B23: 0 | C23: 0 | D23: 0 | E23: 0 | F23: 0 | G23: 1 | H23: 0 | I23: 0 | J23: 1 | K23: 0 | L23: 0 | M23: 0 | N23: 0 | O23: 0 | P23: 0 | Q23: 0 | R23: 0 | S23: 0 | T23: 1
A24: 18 | B24: 0 | C24: 0 | D24: 0 | E24: 0 | F24: 0 | G24: 0 | H24: 0 | I24: 0 | J24: 1 | K24: 0 | L24: 0 | M24: 0 | N24: 0 | O24: 0 | P24: 0 | Q24: 0 | R24: 0 | S24: 0 | T24: 0
A26: Region-AEZ names
A27: AEZ | B27: =B2 -> USA | C27: EU27 | D27: Brazil | E27: Canada | F27: Japan | G27: ChiHkg | H27: India | I27: C_C_Amer | J27: S_O_Amer | K27: E_Asia | L27: Mala_Indo | M27: R_SE_Asia | N27: R_S_Asia | O27: Russia | P27: Oth_CEE_CIS | Q27: Oth_Europe | R27: ME_N_Afr | S27: S_S_Afr | T27: Oceania
A28: 1 | B28: =B$27 & "-" & $A28 -> USA-1 | C28: =C$27 & "-" & $A28 -> EU27-1 | D28: Brazil-1 | E28: Canada-1 | F28: Japan-1 | G28: ChiHkg-1 | H28: India-1 | I28: C_C_Amer-1 | J28: S_O_Amer-1 | K28: E_Asia-1 | L28: Mala_Indo-1 | M28: R_SE_Asia-1 | N28: R_S_Asia-1 | O28: Russia-1 | P28: Oth_CEE_CIS-1 | Q28: Oth_Europe-1 | R28: ME_N_Afr-1 | S28: S_S_Afr-1 | T28: Oceania-1
A29: 2 | B29: =B$27 & "-" & $A29 -> USA-2 | C29: EU27-2 | D29: Brazil-2 | E29: Canada-2 | F29: Japan-2 | G29: ChiHkg-2 | H29: India-2 | I29: C_C_Amer-2 | J29: S_O_Amer-2 | K29: E_Asia-2 | L29: Mala_Indo-2 | M29: R_SE_Asia-2 | N29: R_S_Asia-2 | O29: Russia-2 | P29: Oth_CEE_CIS-2 | Q29: Oth_Europe-2 | R29: ME_N_Afr-2 | S29: S_S_Afr-2 | T29: Oceania-2
A30: 3 | B30: USA-3 | C30: EU27-3 | D30: Brazil-3 | E30: Canada-3 | F30: Japan-3 | G30: ChiHkg-3 | H30: India-3 | I30: C_C_Amer-3 | J30: S_O_Amer-3 | K30: E_Asia-3 | L30: Mala_Indo-3 | M30: R_SE_Asia-3 | N30: R_S_Asia-3 | O30: Russia-3 | P30: Oth_CEE_CIS-3 | Q30: Oth_Europe-3 | R30: ME_N_Afr-3 | S30: S_S_Afr-3 | T30: Oceania-3
A31: 4 | B31: USA-4 | C31: EU27-4 | D31: Brazil-4 | E31: Canada-4 | F31: Japan-4 | G31: ChiHkg-4 | H31: India-4 | I31: C_C_Amer-4 | J31: S_O_Amer-4 | K31: E_Asia-4 | L31: Mala_Indo-4 | M31: R_SE_Asia-4 | N31: R_S_Asia-4 | O31: Russia-4 | P31: Oth_CEE_CIS-4 | Q31: Oth_Europe-4 | R31: ME_N_Afr-4 | S31: S_S_Afr-4 | T31: Oceania-4
A32: 5 | B32: USA-5 | C32: EU27-5 | D32: Brazil-5 | E32: Canada-5 | F32: Japan-5 | G32: ChiHkg-5 | H32: India-5 | I32: C_C_Amer-5 | J32: S_O_Amer-5 | K32: E_Asia-5 | L32: Mala_Indo-5 | M32: R_SE_Asia-5 | N32: R_S_Asia-5 | O32: Russia-5 | P32: Oth_CEE_CIS-5 | Q32: Oth_Europe-5 | R32: ME_N_Afr-5 | S32: S_S_Afr-5 | T32: Oceania-5
A33: 6 | B33: USA-6 | C33: EU27-6 | D33: Brazil-6 | E33: Canada-6 | F33: Japan-6 | G33: ChiHkg-6 | H33: India-6 | I33: C_C_Amer-6 | J33: S_O_Amer-6 | K33: E_Asia-6 | L33: Mala_Indo-6 | M33: R_SE_Asia-6 | N33: R_S_Asia-6 | O33: Russia-6 | P33: Oth_CEE_CIS-6 | Q33: Oth_Europe-6 | R33: ME_N_Afr-6 | S33: S_S_Afr-6 | T33: Oceania-6
A34: 7 | B34: USA-7 | C34: EU27-7 | D34: Brazil-7 | E34: Canada-7 | F34: Japan-7 | G34: ChiHkg-7 | H34: India-7 | I34: C_C_Amer-7 | J34: S_O_Amer-7 | K34: E_Asia-7 | L34: Mala_Indo-7 | M34: R_SE_Asia-7 | N34: R_S_Asia-7 | O34: Russia-7 | P34: Oth_CEE_CIS-7 | Q34: Oth_Europe-7 | R34: ME_N_Afr-7 | S34: S_S_Afr-7 | T34: Oceania-7
A35: 8 | B35: USA-8 | C35: EU27-8 | D35: Brazil-8 | E35: Canada-8 | F35: Japan-8 | G35: ChiHkg-8 | H35: India-8 | I35: C_C_Amer-8 | J35: S_O_Amer-8 | K35: E_Asia-8 | L35: Mala_Indo-8 | M35: R_SE_Asia-8 | N35: R_S_Asia-8 | O35: Russia-8 | P35: Oth_CEE_CIS-8 | Q35: Oth_Europe-8 | R35: ME_N_Afr-8 | S35: S_S_Afr-8 | T35: Oceania-8
A36: 9 | B36: USA-9 | C36: EU27-9 | D36: Brazil-9 | E36: Canada-9 | F36: Japan-9 | G36: ChiHkg-9 | H36: India-9 | I36: C_C_Amer-9 | J36: S_O_Amer-9 | K36: E_Asia-9 | L36: Mala_Indo-9 | M36: R_SE_Asia-9 | N36: R_S_Asia-9 | O36: Russia-9 | P36: Oth_CEE_CIS-9 | Q36: Oth_Europe-9 | R36: ME_N_Afr-9 | S36: S_S_Afr-9 | T36: Oceania-9
A37: 10 | B37: USA-10 | C37: EU27-10 | D37: Brazil-10 | E37: Canada-10 | F37: Japan-10 | G37: ChiHkg-10 | H37: India-10 | I37: C_C_Amer-10 | J37: S_O_Amer-10 | K37: E_Asia-10 | L37: Mala_Indo-10 | M37: R_SE_Asia-10 | N37: R_S_Asia-10 | O37: Russia-10 | P37: Oth_CEE_CIS-10 | Q37: Oth_Europe-10 | R37: ME_N_Afr-10 | S37: S_S_Afr-10 | T37: Oceania-10
A38: 11 | B38: USA-11 | C38: EU27-11 | D38: Brazil-11 | E38: Canada-11 | F38: Japan-11 | G38: ChiHkg-11 | H38: India-11 | I38: C_C_Amer-11 | J38: S_O_Amer-11 | K38: E_Asia-11 | L38: Mala_Indo-11 | M38: R_SE_Asia-11 | N38: R_S_Asia-11 | O38: Russia-11 | P38: Oth_CEE_CIS-11 | Q38: Oth_Europe-11 | R38: ME_N_Afr-11 | S38: S_S_Afr-11 | T38: Oceania-11
A39: 12 | B39: USA-12 | C39: EU27-12 | D39: Brazil-12 | E39: Canada-12 | F39: Japan-12 | G39: ChiHkg-12 | H39: India-12 | I39: C_C_Amer-12 | J39: S_O_Amer-12 | K39: E_Asia-12 | L39: Mala_Indo-12 | M39: R_SE_Asia-12 | N39: R_S_Asia-12 | O39: Russia-12 | P39: Oth_CEE_CIS-12 | Q39: Oth_Europe-12 | R39: ME_N_Afr-12 | S39: S_S_Afr-12 | T39: Oceania-12
A40: 13 | B40: USA-13 | C40: EU27-13 | D40: Brazil-13 | E40: Canada-13 | F40: Japan-13 | G40: ChiHkg-13 | H40: India-13 | I40: C_C_Amer-13 | J40: S_O_Amer-13 | K40: E_Asia-13 | L40: Mala_Indo-13 | M40: R_SE_Asia-13 | N40: R_S_Asia-13 | O40: Russia-13 | P40: Oth_CEE_CIS-13 | Q40: Oth_Europe-13 | R40: ME_N_Afr-13 | S40: S_S_Afr-13 | T40: Oceania-13
A41: 14 | B41: USA-14 | C41: EU27-14 | D41: Brazil-14 | E41: Canada-14 | F41: Japan-14 | G41: ChiHkg-14 | H41: India-14 | I41: C_C_Amer-14 | J41: S_O_Amer-14 | K41: E_Asia-14 | L41: Mala_Indo-14 | M41: R_SE_Asia-14 | N41: R_S_Asia-14 | O41: Russia-14 | P41: Oth_CEE_CIS-14 | Q41: Oth_Europe-14 | R41: ME_N_Afr-14 | S41: S_S_Afr-14 | T41: Oceania-14
A42: 15 | B42: USA-15 | C42: EU27-15 | D42: Brazil-15 | E42: Canada-15 | F42: Japan-15 | G42: ChiHkg-15 | H42: India-15 | I42: C_C_Amer-15 | J42: S_O_Amer-15 | K42: E_Asia-15 | L42: Mala_Indo-15 | M42: R_SE_Asia-15 | N42: R_S_Asia-15 | O42: Russia-15 | P42: Oth_CEE_CIS-15 | Q42: Oth_Europe-15 | R42: ME_N_Afr-15 | S42: S_S_Afr-15 | T42: Oceania-15
A43: 16 | B43: USA-16 | C43: =C$27 & "-" & $A43 -> EU27-16 | D43: Brazil-16 | E43: Canada-16 | F43: Japan-16 | G43: ChiHkg-16 | H43: India-16 | I43: C_C_Amer-16 | J43: S_O_Amer-16 | K43: E_Asia-16 | L43: Mala_Indo-16 | M43: R_SE_Asia-16 | N43: R_S_Asia-16 | O43: Russia-16 | P43: Oth_CEE_CIS-16 | Q43: Oth_Europe-16 | R43: ME_N_Afr-16 | S43: S_S_Afr-16 | T43: Oceania-16
A44: 17 | B44: USA-17 | C44: EU27-17 | D44: Brazil-17 | E44: Canada-17 | F44: Japan-17 | G44: ChiHkg-17 | H44: India-17 | I44: C_C_Amer-17 | J44: S_O_Amer-17 | K44: E_Asia-17 | L44: Mala_Indo-17 | M44: R_SE_Asia-17 | N44: R_S_Asia-17 | O44: Russia-17 | P44: Oth_CEE_CIS-17 | Q44: Oth_Europe-17 | R44: ME_N_Afr-17 | S44: S_S_Afr-17 | T44: Oceania-17
A45: 18 | B45: USA-18 | C45: EU27-18 | D45: Brazil-18 | E45: Canada-18 | F45: Japan-18 | G45: ChiHkg-18 | H45: India-18 | I45: C_C_Amer-18 | J45: S_O_Amer-18 | K45: E_Asia-18 | L45: Mala_Indo-18 | M45: R_SE_Asia-18 | N45: R_S_Asia-18 | O45: Russia-18 | P45: Oth_CEE_CIS-18 | Q45: Oth_Europe-18 | R45: ME_N_Afr-18 | S45: S_S_Afr-18 | T45: Oceania-18
A48: Climate region
A49: AEZ | B49: =B6 -> USA | C49: =C6 -> EU27 | D49: Brazil | E49: Canada | F49: Japan | G49: ChiHkg | H49: India | I49: C_C_Amer | J49: S_O_Amer | K49: E_Asia | L49: Mala_Indo | M49: R_SE_Asia | N49: R_S_Asia | O49: Russia | P49: Oth_CEE_CIS | Q49: Oth_Europe | R49: ME_N_Afr | S49: S_S_Afr | T49: Oceania
A50: 1 | B50: =INDEX(GTAP_AEZ,$A50,2) -> Tropical | C50: Tropical | D50: Tropical | E50: Tropical | F50: Tropical | G50: Tropical | H50: Tropical | I50: Tropical | J50: Tropical | K50: Tropical | L50: =INDEX(GTAP_AEZ,$A50,2) -> Tropical | M50: Tropical | N50: Tropical | O50: Tropical | P50: Tropical | Q50: Tropical | R50: Tropical | S50: Tropical | T50: Tropical
A51: 2 | B51: Tropical | C51: Tropical | D51: Tropical | E51: Tropical | F51: Tropical | G51: Tropical | H51: Tropical | I51: Tropical | J51: Tropical | K51: Tropical | L51: Tropical | M51: Tropical | N51: Tropical | O51: Tropical | P51: Tropical | Q51: Tropical | R51: Tropical | S51: Tropical | T51: Tropical
A52: 3 | B52: Tropical | C52: Tropical | D52: Tropical | E52: Tropical | F52: Tropical | G52: Tropical | H52: Tropical | I52: Tropical | J52: Tropical | K52: Tropical | L52: Tropical | M52: Tropical | N52: Tropical | O52: Tropical | P52: Tropical | Q52: Tropical | R52: Tropical | S52: Tropical | T52: Tropical
A53: 4 | B53: Tropical | C53: Tropical | D53: Tropical | E53: Tropical | F53: Tropical | G53: Tropical | H53: Tropical | I53: Tropical | J53: Tropical | K53: Tropical | L53: Tropical | M53: Tropical | N53: Tropical | O53: Tropical | P53: Tropical | Q53: Tropical | R53: Tropical | S53: Tropical | T53: Tropical
A54: 5 | B54: Tropical | C54: Tropical | D54: Tropical | E54: Tropical | F54: Tropical | G54: Tropical | H54: Tropical | I54: Tropical | J54: Tropical | K54: Tropical | L54: Tropical | M54: Tropical | N54: Tropical | O54: Tropical | P54: Tropical | Q54: Tropical | R54: Tropical | S54: Tropical | T54: Tropical
A55: 6 | B55: Tropical | C55: Tropical | D55: Tropical | E55: Tropical | F55: Tropical | G55: Tropical | H55: Tropical | I55: Tropical | J55: Tropical | K55: Tropical | L55: Tropical | M55: Tropical | N55: Tropical | O55: Tropical | P55: Tropical | Q55: Tropical | R55: Tropical | S55: Tropical | T55: Tropical
A56: 7 | B56: Temperate | C56: Temperate | D56: Temperate | E56: Temperate | F56: Temperate | G56: Temperate | H56: Temperate | I56: Temperate | J56: Temperate | K56: Temperate | L56: Temperate | M56: Temperate | N56: Temperate | O56: Temperate | P56: Temperate | Q56: Temperate | R56: Temperate | S56: Temperate | T56: Temperate
A57: 8 | B57: Temperate | C57: Temperate | D57: Temperate | E57: Temperate | F57: Temperate | G57: Temperate | H57: Temperate | I57: Temperate | J57: Temperate | K57: Temperate | L57: Temperate | M57: Temperate | N57: Temperate | O57: Temperate | P57: Temperate | Q57: Temperate | R57: Temperate | S57: Temperate | T57: Temperate
A58: 9 | B58: Temperate | C58: Temperate | D58: Temperate | E58: Temperate | F58: Temperate | G58: Temperate | H58: Temperate | I58: Temperate | J58: Temperate | K58: Temperate | L58: Temperate | M58: Temperate | N58: Temperate | O58: Temperate | P58: Temperate | Q58: Temperate | R58: Temperate | S58: Temperate | T58: Temperate
A59: 10 | B59: Temperate | C59: Temperate | D59: Temperate | E59: Temperate | F59: Temperate | G59: Temperate | H59: Temperate | I59: Temperate | J59: Temperate | K59: Temperate | L59: Temperate | M59: Temperate | N59: Temperate | O59: Temperate | P59: Temperate | Q59: Temperate | R59: Temperate | S59: Temperate | T59: Temperate
A60: 11 | B60: =INDEX(GTAP_AEZ,$A60,2) -> Temperate | C60: Temperate | D60: Temperate | E60: Temperate | F60: Temperate | G60: Temperate | H60: Temperate | I60: Temperate | J60: Temperate | K60: Temperate | L60: =INDEX(GTAP_AEZ,$A60,2) -> Temperate | M60: Temperate | N60: Temperate | O60: Temperate | P60: Temperate | Q60: Temperate | R60: Temperate | S60: Temperate | T60: Temperate
A61: 12 | B61: Temperate | C61: Temperate | D61: Temperate | E61: Temperate | F61: Temperate | G61: Temperate | H61: Temperate | I61: Temperate | J61: Temperate | K61: Temperate | L61: Temperate | M61: Temperate | N61: Temperate | O61: Temperate | P61: Temperate | Q61: Temperate | R61: Temperate | S61: Temperate | T61: Temperate
A62: 13 | B62: Boreal | C62: Boreal | D62: Boreal | E62: Boreal | F62: Boreal | G62: Boreal | H62: Boreal | I62: Boreal | J62: Boreal | K62: Boreal | L62: Boreal | M62: Boreal | N62: Boreal | O62: Boreal | P62: Boreal | Q62: Boreal | R62: Boreal | S62: Boreal | T62: Boreal
A63: 14 | B63: Boreal | C63: Boreal | D63: Boreal | E63: Boreal | F63: Boreal | G63: Boreal | H63: Boreal | I63: Boreal | J63: Boreal | K63: Boreal | L63: Boreal | M63: Boreal | N63: Boreal | O63: Boreal | P63: Boreal | Q63: Boreal | R63: Boreal | S63: Boreal | T63: Boreal
A64: 15 | B64: Boreal | C64: Boreal | D64: Boreal | E64: Boreal | F64: Boreal | G64: Boreal | H64: Boreal | I64: Boreal | J64: Boreal | K64: Boreal | L64: Boreal | M64: Boreal | N64: Boreal | O64: Boreal | P64: Boreal | Q64: Boreal | R64: Boreal | S64: Boreal | T64: Boreal
A65: 16 | B65: Boreal | C65: Boreal | D65: Boreal | E65: Boreal | F65: Boreal | G65: Boreal | H65: Boreal | I65: Boreal | J65: Boreal | K65: Boreal | L65: Boreal | M65: Boreal | N65: Boreal | O65: Boreal | P65: Boreal | Q65: Boreal | R65: Boreal | S65: Boreal | T65: Boreal
A66: 17 | B66: Boreal | C66: Boreal | D66: Boreal | E66: Boreal | F66: Boreal | G66: Boreal | H66: Boreal | I66: Boreal | J66: Boreal | K66: Boreal | L66: Boreal | M66: Boreal | N66: Boreal | O66: Boreal | P66: Boreal | Q66: Boreal | R66: Boreal | S66: Boreal | T66: Boreal
A67: 18 | B67: Boreal | C67: Boreal | D67: Boreal | E67: Boreal | F67: Boreal | G67: Boreal | H67: Boreal | I67: Boreal | J67: Boreal | K67: Boreal | L67: Boreal | M67: Boreal | N67: Boreal | O67: Boreal | P67: Boreal | Q67: Boreal | R67: Boreal | S67: Boreal | T67: Boreal
A69: Above-ground live biomass carbon (Mg C ha-1)
A70: AEZ | B70: =B49 -> USA | C70: =C49 -> EU27 | D70: Brazil | E70: Canada | F70: Japan | G70: ChiHkg | H70: India | I70: C_C_Amer | J70: S_O_Amer | K70: E_Asia | L70: Mala_Indo | M70: R_SE_Asia | N70: R_S_Asia | O70: Russia | P70: Oth_CEE_CIS | Q70: Oth_Europe | R70: ME_N_Afr | S70: S_S_Afr | T70: Oceania
A71: 1 | B71: =CarbonData!B7 -> 0 | C71: =CarbonData!C7 -> 0 | D71: =CarbonData!D7 -> 10.283 | E71: =CarbonData!E7 -> 0 | F71: =CarbonData!F7 -> 0 | G71: =CarbonData!G7 -> 0 | H71: =CarbonData!H7 -> 26.223 | I71: =CarbonData!I7 -> 5.243 | J71: =CarbonData!J7 -> 27.945 | K71: =CarbonData!K7 -> 0 | L71: =CarbonData!L7 -> 0 | M71: =CarbonData!M7 -> 0 | N71: =CarbonData!N7 -> 0 | O71: =CarbonData!O7 -> 0 | P71: =CarbonData!P7 -> 0 | Q71: =CarbonData!Q7 -> 0 | R71: =CarbonData!R7 -> 48.658 | S71: =CarbonData!S7 -> 42.463 | T71: =CarbonData!T7 -> 25.809
A72: 2 | B72: =CarbonData!B8 -> 0 | C72: =CarbonData!C8 -> 0 | D72: =CarbonData!D8 -> 22.834 | E72: =CarbonData!E8 -> 0 | F72: =CarbonData!F8 -> 0 | G72: =CarbonData!G8 -> 0 | H72: =CarbonData!H8 -> 33.121 | I72: =CarbonData!I8 -> 39.084 | J72: =CarbonData!J8 -> 63.404 | K72: =CarbonData!K8 -> 0 | L72: =CarbonData!L8 -> 0 | M72: =CarbonData!M8 -> 0 | N72: =CarbonData!N8 -> 0 | O72: =CarbonData!O8 -> 0 | P72: =CarbonData!P8 -> 0 | Q72: =CarbonData!Q8 -> 0 | R72: =CarbonData!R8 -> 49.623 | S72: =CarbonData!S8 -> 43.054 | T72: =CarbonData!T8 -> 25.851
A73: 3 | B73: =CarbonData!B9 -> 0 | C73: =CarbonData!C9 -> 0 | D73: =CarbonData!D9 -> 34.363 | E73: =CarbonData!E9 -> 0 | F73: =CarbonData!F9 -> 0 | G73: =CarbonData!G9 -> 0 | H73: =CarbonData!H9 -> 78.224 | I73: =CarbonData!I9 -> 70.274 | J73: =CarbonData!J9 -> 51.199 | K73: =CarbonData!K9 -> 0 | L73: =CarbonData!L9 -> 0 | M73: =CarbonData!M9 -> 0 | N73: =CarbonData!N9 -> 62.712 | O73: =CarbonData!O9 -> 0 | P73: =CarbonData!P9 -> 0 | Q73: =CarbonData!Q9 -> 0 | R73: =CarbonData!R9 -> 45.866 | S73: =CarbonData!S9 -> 32.078 | T73: =CarbonData!T9 -> 102.858
A74: 4 | B74: =CarbonData!B10 -> 0 | C74: =CarbonData!C10 -> 52.917 | D74: =CarbonData!D10 -> 62.557 | E74: =CarbonData!E10 -> 0 | F74: =CarbonData!F10 -> 0 | G74: =CarbonData!G10 -> 0 | H74: =CarbonData!H10 -> 114.695 | I74: =CarbonData!I10 -> 71.352 | J74: =CarbonData!J10 -> 86.851 | K74: =CarbonData!K10 -> 83.251 | L74: =CarbonData!L10 -> 115.664 | M74: =CarbonData!M10 -> 130.656 | N74: =CarbonData!N10 -> 85.092 | O74: =CarbonData!O10 -> 0 | P74: =CarbonData!P10 -> 0 | Q74: =CarbonData!Q10 -> 0 | R74: =CarbonData!R10 -> 55.702 | S74: =CarbonData!S10 -> 44.176 | T74: =CarbonData!T10 -> 101.496
A75: 5 | B75: =CarbonData!B11 -> 0 | C75: =CarbonData!C11 -> 0 | D75: =CarbonData!D11 -> 106.189 | E75: =CarbonData!E11 -> 0 | F75: =CarbonData!F11 -> 0 | G75: =CarbonData!G11 -> 121.925 | H75: =CarbonData!H11 -> 123.58 | I75: =CarbonData!I11 -> 78.094 | J75: =CarbonData!J11 -> 103.509 | K75: =CarbonData!K11 -> 93.498 | L75: =CarbonData!L11 -> 109.661 | M75: =CarbonData!M11 -> 137.355 | N75: =CarbonData!N11 -> 112.445 | O75: =CarbonData!O11 -> 0 | P75: =CarbonData!P11 -> 0 | Q75: =CarbonData!Q11 -> 0 | R75: =CarbonData!R11 -> 0 | S75: =CarbonData!S11 -> 87.887 | T75: =CarbonData!T11 -> 101.213
A76: 6 | B76: =CarbonData!B12 -> 0 | C76: =CarbonData!C12 -> 0 | D76: =CarbonData!D12 -> 121.559 | E76: =CarbonData!E12 -> 0 | F76: =CarbonData!F12 -> 0 | G76: =CarbonData!G12 -> 118.684 | H76: =CarbonData!H12 -> 149.143 | I76: =CarbonData!I12 -> 108.334 | J76: =CarbonData!J12 -> 125.24 | K76: =CarbonData!K12 -> 131.022 | L76: =CarbonData!L12 -> 133.301 | M76: =CarbonData!M12 -> 137.19 | N76: =CarbonData!N12 -> 113.186 | O76: =CarbonData!O12 -> 0 | P76: =CarbonData!P12 -> 0 | Q76: =CarbonData!Q12 -> 0 | R76: =CarbonData!R12 -> 0 | S76: =CarbonData!S12 -> 122.724 | T76: =CarbonData!T12 -> 130.554
A77: 7 | B77: =CarbonData!B13 -> 38.877 | C77: =CarbonData!C13 -> 0 | D77: =CarbonData!D13 -> 0 | E77: =CarbonData!E13 -> 2.4 | F77: =CarbonData!F13 -> 0 | G77: =CarbonData!G13 -> 29.13 | H77: =CarbonData!H13 -> 27.36 | I77: =CarbonData!I13 -> 39.752 | J77: =CarbonData!J13 -> 20.691 | K77: =CarbonData!K13 -> 7.884 | L77: =CarbonData!L13 -> 0 | M77: =CarbonData!M13 -> 0 | N77: =CarbonData!N13 -> 15.928 | O77: =CarbonData!O13 -> 27.449 | P77: =CarbonData!P13 -> 26.62 | Q77: =CarbonData!Q13 -> 0 | R77: =CarbonData!R13 -> 67.516 | S77: =CarbonData!S13 -> 42.914 | T77: =CarbonData!T13 -> 24.872
A78: 8 | B78: =CarbonData!B14 -> 57.892 | C78: =CarbonData!C14 -> 24.693 | D78: =CarbonData!D14 -> 0 | E78: =CarbonData!E14 -> 20.338 | F78: =CarbonData!F14 -> 0 | G78: =CarbonData!G14 -> 28.67 | H78: =CarbonData!H14 -> 31.359 | I78: =CarbonData!I14 -> 44.104 | J78: =CarbonData!J14 -> 21.596 | K78: =CarbonData!K14 -> 15.795 | L78: =CarbonData!L14 -> 0 | M78: =CarbonData!M14 -> 0 | N78: =CarbonData!N14 -> 58.928 | O78: =CarbonData!O14 -> 36.498 | P78: =CarbonData!P14 -> 44.482 | Q78: =CarbonData!Q14 -> 0 | R78: =CarbonData!R14 -> 54.618 | S78: =CarbonData!S14 -> 38.177 | T78: =CarbonData!T14 -> 72.221
A79: 9 | B79: =CarbonData!B15 -> 88.967 | C79: =CarbonData!C15 -> 35.82 | D79: =CarbonData!D15 -> 0 | E79: =CarbonData!E15 -> 27.958 | F79: =CarbonData!F15 -> 41.973 | G79: =CarbonData!G15 -> 50.201 | H79: =CarbonData!H15 -> 80.022 | I79: =CarbonData!I15 -> 31.348 | J79: =CarbonData!J15 -> 37.514 | K79: =CarbonData!K15 -> 10.89 | L79: =CarbonData!L15 -> 0 | M79: =CarbonData!M15 -> 0 | N79: =CarbonData!N15 -> 71.257 | O79: =CarbonData!O15 -> 37.563 | P79: =CarbonData!P15 -> 48.896 | Q79: =CarbonData!Q15 -> 24.169 | R79: =CarbonData!R15 -> 41.112 | S79: =CarbonData!S15 -> 43.17 | T79: =CarbonData!T15 -> 71.936
A80: 10 | B80: =CarbonData!B16 -> 60.889 | C80: =CarbonData!C16 -> 31.621 | D80: =CarbonData!D16 -> 61.796 | E80: =CarbonData!E16 -> 30.574 | F80: =CarbonData!F16 -> 77.113 | G80: =CarbonData!G16 -> 77.865 | H80: =CarbonData!H16 -> 89.112 | I80: =CarbonData!I16 -> 56.763 | J80: =CarbonData!J16 -> 64.815 | K80: =CarbonData!K16 -> 65.357 | L80: =CarbonData!L16 -> 0 | M80: =CarbonData!M16 -> 111.51 | N80: =CarbonData!N16 -> 113.488 | O80: =CarbonData!O16 -> 36.472 | P80: =CarbonData!P16 -> 26.722 | Q80: =CarbonData!Q16 -> 35.116 | R80: =CarbonData!R16 -> 54.3 | S80: =CarbonData!S16 -> 37.235 | T80: =CarbonData!T16 -> 79.842
A81: 11 | B81: =CarbonData!B17 -> 56.872 | C81: =CarbonData!C17 -> 47.361 | D81: =CarbonData!D17 -> 49.413 | E81: =CarbonData!E17 -> 25.084 | F81: =CarbonData!F17 -> 85.629 | G81: =CarbonData!G17 -> 84.804 | H81: =CarbonData!H17 -> 116.554 | I81: =CarbonData!I17 -> 59.898 | J81: =CarbonData!J17 -> 68.961 | K81: =CarbonData!K17 -> 75.899 | L81: =CarbonData!L17 -> 0 | M81: =CarbonData!M17 -> 137.611 | N81: =CarbonData!N17 -> 123.568 | O81: =CarbonData!O17 -> 39.686 | P81: =CarbonData!P17 -> 34.055 | Q81: =CarbonData!Q17 -> 52.775 | R81: =CarbonData!R17 -> 0 | S81: =CarbonData!S17 -> 40.589 | T81: =CarbonData!T17 -> 79.981
A82: 12 | B82: =CarbonData!B18 -> 42.818 | C82: =CarbonData!C18 -> 50.634 | D82: =CarbonData!D18 -> 76.02 | E82: =CarbonData!E18 -> 0 | F82: =CarbonData!F18 -> 91.444 | G82: =CarbonData!G18 -> 97.288 | H82: =CarbonData!H18 -> 148.866 | I82: =CarbonData!I18 -> 91.434 | J82: =CarbonData!J18 -> 81.284 | K82: =CarbonData!K18 -> 130.771 | L82: =CarbonData!L18 -> 0 | M82: =CarbonData!M18 -> 147.095 | N82: =CarbonData!N18 -> 135.1 | O82: =CarbonData!O18 -> 43.969 | P82: =CarbonData!P18 -> 57.807 | Q82: =CarbonData!Q18 -> 0 | R82: =CarbonData!R18 -> 0 | S82: =CarbonData!S18 -> 60.796 | T82: =CarbonData!T18 -> 107.779
A83: 13 | B83: =CarbonData!B19 -> 57.818 | C83: =CarbonData!C19 -> 26.204 | D83: =CarbonData!D19 -> 0 | E83: =CarbonData!E19 -> 9.161 | F83: =CarbonData!F19 -> 0 | G83: =CarbonData!G19 -> 103.767 | H83: =CarbonData!H19 -> 127.887 | I83: =CarbonData!I19 -> 0 | J83: =CarbonData!J19 -> 37.304 | K83: =CarbonData!K19 -> 14.356 | L83: =CarbonData!L19 -> 0 | M83: =CarbonData!M19 -> 0 | N83: =CarbonData!N19 -> 86.955 | O83: =CarbonData!O19 -> 19.684 | P83: =CarbonData!P19 -> 15.367 | Q83: =CarbonData!Q19 -> 41.098 | R83: =CarbonData!R19 -> 0 | S83: =CarbonData!S19 -> 0 | T83: =CarbonData!T19 -> 0
A84: 14 | B84: =CarbonData!B20 -> 68.263 | C84: =CarbonData!C20 -> 16.553 | D84: =CarbonData!D20 -> 0 | E84: =CarbonData!E20 -> 17.889 | F84: =CarbonData!F20 -> 0 | G84: =CarbonData!G20 -> 102.501 | H84: =CarbonData!H20 -> 83.307 | I84: =CarbonData!I20 -> 0 | J84: =CarbonData!J20 -> 55.176 | K84: =CarbonData!K20 -> 13.56 | L84: =CarbonData!L20 -> 0 | M84: =CarbonData!M20 -> 0 | N84: =CarbonData!N20 -> 93.963 | O84: =CarbonData!O20 -> 31.423 | P84: =CarbonData!P20 -> 30.403 | Q84: =CarbonData!Q20 -> 7.278 | R84: =CarbonData!R20 -> 0 | S84: =CarbonData!S20 -> 0 | T84: =CarbonData!T20 -> 0
A85: 15 | B85: =CarbonData!B21 -> 100.868 | C85: =CarbonData!C21 -> 25.252 | D85: =CarbonData!D21 -> 0 | E85: =CarbonData!E21 -> 22.526 | F85: =CarbonData!F21 -> 39.598 | G85: =CarbonData!G21 -> 113.233 | H85: =CarbonData!H21 -> 103.402 | I85: =CarbonData!I21 -> 0 | J85: =CarbonData!J21 -> 48.95 | K85: =CarbonData!K21 -> 16.034 | L85: =CarbonData!L21 -> 0 | M85: =CarbonData!M21 -> 124.156 | N85: =CarbonData!N21 -> 134.094 | O85: =CarbonData!O21 -> 36.281 | P85: =CarbonData!P21 -> 28.42 | Q85: =CarbonData!Q21 -> 16.541 | R85: =CarbonData!R21 -> 0 | S85: =CarbonData!S21 -> 0 | T85: =CarbonData!T21 -> 49.952
A86: 16 | B86: =CarbonData!B22 -> 134.573 | C86: =CarbonData!C22 -> 37.961 | D86: =CarbonData!D22 -> 0 | E86: =CarbonData!E22 -> 24.669 | F86: =CarbonData!F22 -> 0 | G86: =CarbonData!G22 -> 108.057 | H86: =CarbonData!H22 -> 114.188 | I86: =CarbonData!I22 -> 0 | J86: =CarbonData!J22 -> 53.246 | K86: =CarbonData!K22 -> 0 | L86: =CarbonData!L22 -> 0 | M86: =CarbonData!M22 -> 150.243 | N86: =CarbonData!N22 -> 138.049 | O86: =CarbonData!O22 -> 39.448 | P86: =CarbonData!P22 -> 47.337 | Q86: =CarbonData!Q22 -> 16.754 | R86: =CarbonData!R22 -> 0 | S86: =CarbonData!S22 -> 0 | T86: =CarbonData!T22 -> 59.523
A87: 17 | B87: =CarbonData!B23 -> 0 | C87: =CarbonData!C23 -> 0 | D87: =CarbonData!D23 -> 0 | E87: =CarbonData!E23 -> 0 | F87: =CarbonData!F23 -> 0 | G87: =CarbonData!G23 -> 115.197 | H87: =CarbonData!H23 -> 0 | I87: =CarbonData!I23 -> 0 | J87: =CarbonData!J23 -> 65.661 | K87: =CarbonData!K23 -> 0 | L87: =CarbonData!L23 -> 0 | M87: =CarbonData!M23 -> 0 | N87: =CarbonData!N23 -> 0 | O87: =CarbonData!O23 -> 0 | P87: =CarbonData!P23 -> 0 | Q87: =CarbonData!Q23 -> 0 | R87: =CarbonData!R23 -> 0 | S87: =CarbonData!S23 -> 0 | T87: =CarbonData!T23 -> 95.493
A88: 18 | B88: =CarbonData!B24 -> 0 | C88: =CarbonData!C24 -> 0 | D88: =CarbonData!D24 -> 0 | E88: =CarbonData!E24 -> 0 | F88: =CarbonData!F24 -> 0 | G88: =CarbonData!G24 -> 0 | H88: =CarbonData!H24 -> 0 | I88: =CarbonData!I24 -> 0 | J88: =CarbonData!J24 -> 83.007 | K88: =CarbonData!K24 -> 0 | L88: =CarbonData!L24 -> 0 | M88: =CarbonData!M24 -> 0 | N88: =CarbonData!N24 -> 0 | O88: =CarbonData!O24 -> 0 | P88: =CarbonData!P24 -> 0 | Q88: =CarbonData!Q24 -> 0 | R88: =CarbonData!R24 -> 0 | S88: =CarbonData!S24 -> 0 | T88: =CarbonData!T24 -> 0
A90: Below-ground live biomass carbon (Mg C ha-1)
A91: AEZ | B91: =B70 -> USA | C91: =C70 -> EU27 | D91: Brazil | E91: Canada | F91: Japan | G91: ChiHkg | H91: India | I91: C_C_Amer | J91: S_O_Amer | K91: E_Asia | L91: Mala_Indo | M91: R_SE_Asia | N91: R_S_Asia | O91: Russia | P91: Oth_CEE_CIS | Q91: Oth_Europe | R91: ME_N_Afr | S91: S_S_Afr | T91: Oceania
A92: 1 | B92: =CarbonData!B27 -> 0 | C92: =CarbonData!C27 -> 0 | D92: =CarbonData!D27 -> 3.617 | E92: =CarbonData!E27 -> 0 | F92: =CarbonData!F27 -> 0 | G92: =CarbonData!G27 -> 0 | H92: =CarbonData!H27 -> 8.339 | I92: =CarbonData!I27 -> 1.99 | J92: =CarbonData!J27 -> 8.626 | K92: =CarbonData!K27 -> 0 | L92: =CarbonData!L27 -> 0 | M92: =CarbonData!M27 -> 0 | N92: =CarbonData!N27 -> 0 | O92: =CarbonData!O27 -> 0 | P92: =CarbonData!P27 -> 0 | Q92: =CarbonData!Q27 -> 0 | R92: =CarbonData!R27 -> 15.607 | S92: =CarbonData!S27 -> 12.746 | T92: =CarbonData!T27 -> 8.207
A93: 2 | B93: =CarbonData!B28 -> 0 | C93: =CarbonData!C28 -> 0 | D93: =CarbonData!D28 -> 7.346 | E93: =CarbonData!E28 -> 0 | F93: =CarbonData!F28 -> 0 | G93: =CarbonData!G28 -> 0 | H93: =CarbonData!H28 -> 10.233 | I93: =CarbonData!I28 -> 11.887 | J93: =CarbonData!J28 -> 17.919 | K93: =CarbonData!K28 -> 0 | L93: =CarbonData!L28 -> 0 | M93: =CarbonData!M28 -> 0 | N93: =CarbonData!N28 -> 0 | O93: =CarbonData!O28 -> 0 | P93: =CarbonData!P28 -> 0 | Q93: =CarbonData!Q28 -> 0 | R93: =CarbonData!R28 -> 13.894 | S93: =CarbonData!S28 -> 12.916 | T93: =CarbonData!T28 -> 8.221
A94: 3 | B94: =CarbonData!B29 -> 0 | C94: =CarbonData!C29 -> 0 | D94: =CarbonData!D29 -> 10.616 | E94: =CarbonData!E29 -> 0 | F94: =CarbonData!F29 -> 0 | G94: =CarbonData!G29 -> 0 | H94: =CarbonData!H29 -> 21.964 | I94: =CarbonData!I29 -> 19.954 | J94: =CarbonData!J29 -> 14.804 | K94: =CarbonData!K29 -> 0 | L94: =CarbonData!L29 -> 0 | M94: =CarbonData!M29 -> 0 | N94: =CarbonData!N29 -> 18.044 | O94: =CarbonData!O29 -> 0 | P94: =CarbonData!P29 -> 0 | Q94: =CarbonData!Q29 -> 0 | R94: =CarbonData!R29 -> 9.173 | S94: =CarbonData!S29 -> 9.753 | T94: =CarbonData!T29 -> 28.006
A95: 4 | B95: =CarbonData!B30 -> 0 | C95: =CarbonData!C30 -> 12.7 | D95: =CarbonData!D30 -> 17.986 | E95: =CarbonData!E30 -> 0 | F95: =CarbonData!F30 -> 0 | G95: =CarbonData!G30 -> 0 | H95: =CarbonData!H30 -> 30.911 | I95: =CarbonData!I30 -> 20.277 | J95: =CarbonData!J30 -> 23.971 | K95: =CarbonData!K30 -> 23.215 | L95: =CarbonData!L30 -> 27.759 | M95: =CarbonData!M30 -> 34.679 | N95: =CarbonData!N30 -> 23.601 | O95: =CarbonData!O30 -> 0 | P95: =CarbonData!P30 -> 0 | Q95: =CarbonData!Q30 -> 0 | R95: =CarbonData!R30 -> 13.369 | S95: =CarbonData!S30 -> 13.136 | T95: =CarbonData!T30 -> 27.711
A96: 5 | B96: =CarbonData!B31 -> 0 | C96: =CarbonData!C31 -> 0 | D96: =CarbonData!D31 -> 28.837 | E96: =CarbonData!E31 -> 0 | F96: =CarbonData!F31 -> 0 | G96: =CarbonData!G31 -> 32.627 | H96: =CarbonData!H31 -> 32.995 | I96: =CarbonData!I31 -> 21.906 | J96: =CarbonData!J31 -> 28.191 | K96: =CarbonData!K31 -> 25.747 | L96: =CarbonData!L31 -> 40.575 | M96: =CarbonData!M31 -> 36.231 | N96: =CarbonData!N31 -> 30.296 | O96: =CarbonData!O31 -> 0 | P96: =CarbonData!P31 -> 0 | Q96: =CarbonData!Q31 -> 0 | R96: =CarbonData!R31 -> 0 | S96: =CarbonData!S31 -> 24.319 | T96: =CarbonData!T31 -> 27.334
A97: 6 | B97: =CarbonData!B32 -> 0 | C97: =CarbonData!C32 -> 0 | D97: =CarbonData!D32 -> 32.529 | E97: =CarbonData!E32 -> 0 | F97: =CarbonData!F32 -> 0 | G97: =CarbonData!G32 -> 31.833 | H97: =CarbonData!H32 -> 39.015 | I97: =CarbonData!I32 -> 29.35 | J97: =CarbonData!J32 -> 33.383 | K97: =CarbonData!K32 -> 34.754 | L97: =CarbonData!L32 -> 45.805 | M97: =CarbonData!M32 -> 36.202 | N97: =CarbonData!N32 -> 30.516 | O97: =CarbonData!O32 -> 0 | P97: =CarbonData!P32 -> 0 | Q97: =CarbonData!Q32 -> 0 | R97: =CarbonData!R32 -> 0 | S97: =CarbonData!S32 -> 32.736 | T97: =CarbonData!T32 -> 34.644
A98: 7 | B98: =CarbonData!B33 -> 9.719 | C98: =CarbonData!C33 -> 0 | D98: =CarbonData!D33 -> 0 | E98: =CarbonData!E33 -> 0.6 | F98: =CarbonData!F33 -> 0 | G98: =CarbonData!G33 -> 9.167 | H98: =CarbonData!H33 -> 6.84 | I98: =CarbonData!I33 -> 12.089 | J98: =CarbonData!J33 -> 6.604 | K98: =CarbonData!K33 -> 1.971 | L98: =CarbonData!L33 -> 0 | M98: =CarbonData!M33 -> 0 | N98: =CarbonData!N33 -> 5.351 | O98: =CarbonData!O33 -> 6.862 | P98: =CarbonData!P33 -> 6.655 | Q98: =CarbonData!Q33 -> 0 | R98: =CarbonData!R33 -> 16.879 | S98: =CarbonData!S33 -> 12.807 | T98: =CarbonData!T33 -> 8.001
A99: 8 | B99: =CarbonData!B34 -> 14.473 | C99: =CarbonData!C34 -> 6.173 | D99: =CarbonData!D34 -> 0 | E99: =CarbonData!E34 -> 5.084 | F99: =CarbonData!F34 -> 0 | G99: =CarbonData!G34 -> 9.022 | H99: =CarbonData!H34 -> 9.774 | I99: =CarbonData!I34 -> 13.23 | J99: =CarbonData!J34 -> 6.826 | K99: =CarbonData!K34 -> 3.949 | L99: =CarbonData!L34 -> 0 | M99: =CarbonData!M34 -> 0 | N99: =CarbonData!N34 -> 17.071 | O99: =CarbonData!O34 -> 9.125 | P99: =CarbonData!P34 -> 11.272 | Q99: =CarbonData!Q34 -> 0 | R99: =CarbonData!R34 -> 13.655 | S99: =CarbonData!S34 -> 11.628 | T99: =CarbonData!T34 -> 18.055
A100: 9 | B100: =CarbonData!B35 -> 22.242 | C100: =CarbonData!C35 -> 8.955 | D100: =CarbonData!D35 -> 0 | E100: =CarbonData!E35 -> 6.989 | F100: =CarbonData!F35 -> 10.493 | G100: =CarbonData!G35 -> 14.792 | H100: =CarbonData!H35 -> 22.391 | I100: =CarbonData!I35 -> 9.771 | J100: =CarbonData!J35 -> 11.135 | K100: =CarbonData!K35 -> 2.722 | L100: =CarbonData!L35 -> 0 | M100: =CarbonData!M35 -> 0 | N100: =CarbonData!N35 -> 20.259 | O100: =CarbonData!O35 -> 9.391 | P100: =CarbonData!P35 -> 12.224 | Q100: =CarbonData!Q35 -> 6.042 | R100: =CarbonData!R35 -> 10.278 | S100: =CarbonData!S35 -> 12.422 | T100: =CarbonData!T35 -> 17.984
A101: 10 | B101: =CarbonData!B36 -> 15.222 | C101: =CarbonData!C36 -> 7.905 | D101: =CarbonData!D36 -> 17.847 | E101: =CarbonData!E36 -> 7.643 | F101: =CarbonData!F36 -> 21.73 | G101: =CarbonData!G36 -> 21.863 | H101: =CarbonData!H36 -> 24.689 | I101: =CarbonData!I36 -> 16.551 | J101: =CarbonData!J36 -> 17.961 | K101: =CarbonData!K36 -> 18.76 | L101: =CarbonData!L36 -> 0 | M101: =CarbonData!M36 -> 30.127 | N101: =CarbonData!N36 -> 30.568 | O101: =CarbonData!O36 -> 9.118 | P101: =CarbonData!P36 -> 6.681 | Q101: =CarbonData!Q36 -> 8.779 | R101: =CarbonData!R36 -> 13.575 | S101: =CarbonData!S36 -> 11.329 | T101: =CarbonData!T36 -> 19.961
A102: 11 | B102: =CarbonData!B37 -> 14.218 | C102: =CarbonData!C37 -> 11.84 | D102: =CarbonData!D37 -> 14.642 | E102: =CarbonData!E37 -> 6.271 | F102: =CarbonData!F37 -> 23.8 | G102: =CarbonData!G37 -> 23.648 | H102: =CarbonData!H37 -> 31.336 | I102: =CarbonData!I37 -> 17.38 | J102: =CarbonData!J37 -> 19.061 | K102: =CarbonData!K37 -> 21.39 | L102: =CarbonData!L37 -> 0 | M102: =CarbonData!M37 -> 36.3 | N102: =CarbonData!N37 -> 32.955 | O102: =CarbonData!O37 -> 9.922 | P102: =CarbonData!P37 -> 8.514 | Q102: =CarbonData!Q37 -> 13.194 | R102: =CarbonData!R37 -> 0 | S102: =CarbonData!S37 -> 12.266 | T102: =CarbonData!T37 -> 19.995
A103: 12 | B103: =CarbonData!B38 -> 10.704 | C103: =CarbonData!C38 -> 12.658 | D103: =CarbonData!D38 -> 21.422 | E103: =CarbonData!E38 -> 0 | F103: =CarbonData!F38 -> 25.257 | G103: =CarbonData!G38 -> 26.712 | H103: =CarbonData!H38 -> 38.943 | I103: =CarbonData!I38 -> 25.214 | J103: =CarbonData!J38 -> 22.138 | K103: =CarbonData!K38 -> 34.688 | L103: =CarbonData!L38 -> 0 | M103: =CarbonData!M38 -> 38.518 | N103: =CarbonData!N38 -> 35.683 | O103: =CarbonData!O38 -> 10.992 | P103: =CarbonData!P38 -> 14.452 | Q103: =CarbonData!Q38 -> 0 | R103: =CarbonData!R38 -> 0 | S103: =CarbonData!S38 -> 17.558 | T103: =CarbonData!T38 -> 26.945
A104: 13 | B104: =CarbonData!B39 -> 13.876 | C104: =CarbonData!C39 -> 6.703 | D104: =CarbonData!D39 -> 0 | E104: =CarbonData!E39 -> 3.573 | F104: =CarbonData!F39 -> 0 | G104: =CarbonData!G39 -> 28.254 | H104: =CarbonData!H39 -> 33.995 | I104: =CarbonData!I39 -> 0 | J104: =CarbonData!J39 -> 10.499 | K104: =CarbonData!K39 -> 5.599 | L104: =CarbonData!L39 -> 0 | M104: =CarbonData!M39 -> 0 | N104: =CarbonData!N39 -> 23.795 | O104: =CarbonData!O39 -> 7.677 | P104: =CarbonData!P39 -> 5.676 | Q104: =CarbonData!Q39 -> 9.863 | R104: =CarbonData!R39 -> 0 | S104: =CarbonData!S39 -> 0 | T104: =CarbonData!T39 -> 0
A105: 14 | B105: =CarbonData!B40 -> 16.383 | C105: =CarbonData!C40 -> 5.76 | D105: =CarbonData!D40 -> 0 | E105: =CarbonData!E40 -> 6.977 | F105: =CarbonData!F40 -> 0 | G105: =CarbonData!G40 -> 27.91 | H105: =CarbonData!H40 -> 23.231 | I105: =CarbonData!I40 -> 0 | J105: =CarbonData!J40 -> 14.481 | K105: =CarbonData!K40 -> 5.288 | L105: =CarbonData!L40 -> 0 | M105: =CarbonData!M40 -> 0 | N105: =CarbonData!N40 -> 25.633 | O105: =CarbonData!O40 -> 7.542 | P105: =CarbonData!P40 -> 9.744 | Q105: =CarbonData!Q40 -> 2.607 | R105: =CarbonData!R40 -> 0 | S105: =CarbonData!S40 -> 0 | T105: =CarbonData!T40 -> 0
A106: 15 | B106: =CarbonData!B41 -> 24.208 | C106: =CarbonData!C41 -> 8.93 | D106: =CarbonData!D41 -> 0 | E106: =CarbonData!E41 -> 8.785 | F106: =CarbonData!F41 -> 12.043 | G106: =CarbonData!G41 -> 30.517 | H106: =CarbonData!H41 -> 28.154 | I106: =CarbonData!I41 -> 0 | J106: =CarbonData!J41 -> 11.778 | K106: =CarbonData!K41 -> 6.253 | L106: =CarbonData!L41 -> 0 | M106: =CarbonData!M41 -> 33.149 | N106: =CarbonData!N41 -> 35.495 | O106: =CarbonData!O41 -> 8.707 | P106: =CarbonData!P41 -> 7.788 | Q106: =CarbonData!Q41 -> 5.876 | R106: =CarbonData!R41 -> 0 | S106: =CarbonData!S41 -> 0 | T106: =CarbonData!T41 -> 11.989
A107: 16 | B107: =CarbonData!B42 -> 32.298 | C107: =CarbonData!C42 -> 9.475 | D107: =CarbonData!D42 -> 0 | E107: =CarbonData!E42 -> 9.621 | F107: =CarbonData!F42 -> 0 | G107: =CarbonData!G42 -> 29.268 | H107: =CarbonData!H42 -> 30.774 | I107: =CarbonData!I42 -> 0 | J107: =CarbonData!J42 -> 12.901 | K107: =CarbonData!K42 -> 0 | L107: =CarbonData!L42 -> 0 | M107: =CarbonData!M42 -> 39.23 | N107: =CarbonData!N42 -> 36.444 | O107: =CarbonData!O42 -> 9.467 | P107: =CarbonData!P42 -> 11.361 | Q107: =CarbonData!Q42 -> 6.534 | R107: =CarbonData!R42 -> 0 | S107: =CarbonData!S42 -> 0 | T107: =CarbonData!T42 -> 14.285
A108: 17 | B108: =CarbonData!B43 -> 0 | C108: =CarbonData!C43 -> 0 | D108: =CarbonData!D43 -> 0 | E108: =CarbonData!E43 -> 0 | F108: =CarbonData!F43 -> 0 | G108: =CarbonData!G43 -> 30.971 | H108: =CarbonData!H43 -> 0 | I108: =CarbonData!I43 -> 0 | J108: =CarbonData!J43 -> 15.759 | K108: =CarbonData!K43 -> 0 | L108: =CarbonData!L43 -> 0 | M108: =CarbonData!M43 -> 0 | N108: =CarbonData!N43 -> 0 | O108: =CarbonData!O43 -> 0 | P108: =CarbonData!P43 -> 0 | Q108: =CarbonData!Q43 -> 0 | R108: =CarbonData!R43 -> 0 | S108: =CarbonData!S43 -> 0 | T108: =CarbonData!T43 -> 22.918
A109: 18 | B109: =CarbonData!B44 -> 0 | C109: =CarbonData!C44 -> 0 | D109: =CarbonData!D44 -> 0 | E109: =CarbonData!E44 -> 0 | F109: =CarbonData!F44 -> 0 | G109: =CarbonData!G44 -> 0 | H109: =CarbonData!H44 -> 0 | I109: =CarbonData!I44 -> 0 | J109: =CarbonData!J44 -> 19.922 | K109: =CarbonData!K44 -> 0 | L109: =CarbonData!L44 -> 0 | M109: =CarbonData!M44 -> 0 | N109: =CarbonData!N44 -> 0 | O109: =CarbonData!O44 -> 0 | P109: =CarbonData!P44 -> 0 | Q109: =CarbonData!Q44 -> 0 | R109: =CarbonData!R44 -> 0 | S109: =CarbonData!S44 -> 0 | T109: =CarbonData!T44 -> 0
A111: Understory carbon (Mg C ha-1)
A112: AEZ | B112: =B91 -> USA | C112: =C91 -> EU27 | D112: Brazil | E112: Canada | F112: Japan | G112: ChiHkg | H112: India | I112: C_C_Amer | J112: S_O_Amer | K112: E_Asia | L112: Mala_Indo | M112: R_SE_Asia | N112: R_S_Asia | O112: Russia | P112: Oth_CEE_CIS | Q112: Oth_Europe | R112: ME_N_Afr | S112: S_S_Afr | T112: Oceania
A113: 1 | B113: =IFERROR(VLOOKUP(B$112, UNDERSTORY_BY_COUNTRY_TABLE, 2, FALSE), VLOOKUP(B50, UNDERSTORY_BY_LATITUDE_TABLE, 2, FALSE))*B7 -> 0 | C113: 0 | D113: 11 | E113: 0 | F113: 0 | G113: 0 | H113: 11 | I113: 11 | J113: 11 | K113: 0 | L113: 0 | M113: 0 | N113: 11 | O113: 0 | P113: 0 | Q113: 0 | R113: 11 | S113: 11 | T113: 11
A114: 2 | B114: =IFERROR(VLOOKUP(B$112, UNDERSTORY_BY_COUNTRY_TABLE, 2, FALSE), VLOOKUP(B51, UNDERSTORY_BY_LATITUDE_TABLE, 2, FALSE))*B8 -> 0 | C114: 0 | D114: 11 | E114: 0 | F114: 0 | G114: 0 | H114: 11 | I114: 11 | J114: 11 | K114: 0 | L114: 0 | M114: 0 | N114: 0 | O114: 0 | P114: 0 | Q114: 0 | R114: 11 | S114: 11 | T114: 11
A115: 3 | B115: =IFERROR(VLOOKUP(B$112, UNDERSTORY_BY_COUNTRY_TABLE, 2, FALSE), VLOOKUP(B52, UNDERSTORY_BY_LATITUDE_TABLE, 2, FALSE))*B9 -> 0 | C115: 0 | D115: 11 | E115: 0 | F115: 0 | G115: 0 | H115: 11 | I115: 11 | J115: 11 | K115: 0 | L115: 0 | M115: 0 | N115: 11 | O115: 0 | P115: 0 | Q115: 0 | R115: 11 | S115: 11 | T115: 11
A116: 4 | B116: =IFERROR(VLOOKUP(B$112, UNDERSTORY_BY_COUNTRY_TABLE, 2, FALSE), VLOOKUP(B53, UNDERSTORY_BY_LATITUDE_TABLE, 2, FALSE))*B10 -> 0 | C116: 11 | D116: 11 | E116: 0 | F116: 0 | G116: 11 | H116: 11 | I116: 11 | J116: 11 | K116: 0 | L116: 11 | M116: 11 | N116: 11 | O116: 0 | P116: 0 | Q116: 0 | R116: 11 | S116: 11 | T116: 11
A117: 5 | B117: =IFERROR(VLOOKUP(B$112, UNDERSTORY_BY_COUNTRY_TABLE, 2, FALSE), VLOOKUP(B54, UNDERSTORY_BY_LATITUDE_TABLE, 2, FALSE))*B11 -> 0 | C117: 0 | D117: 11 | E117: 0 | F117: 0 | G117: 11 | H117: 11 | I117: 11 | J117: 11 | K117: 0 | L117: 11 | M117: 11 | N117: 11 | O117: 0 | P117: 0 | Q117: 0 | R117: 0 | S117: 11 | T117: 11
A118: 6 | B118: =IFERROR(VLOOKUP(B$112, UNDERSTORY_BY_COUNTRY_TABLE, 2, FALSE), VLOOKUP(B55, UNDERSTORY_BY_LATITUDE_TABLE, 2, FALSE))*B12 -> 0 | C118: 0 | D118: 11 | E118: 0 | F118: 0 | G118: 11 | H118: 11 | I118: 11 | J118: 11 | K118: 0 | L118: 11 | M118: 11 | N118: 11 | O118: 0 | P118: 0 | Q118: 0 | R118: 0 | S118: 11 | T118: 11
A119: 7 | B119: =IFERROR(VLOOKUP(B$112, UNDERSTORY_BY_COUNTRY_TABLE, 2, FALSE), VLOOKUP(B56, UNDERSTORY_BY_LATITUDE_TABLE, 2, FALSE))*B13 -> 3 | C119: 0 | D119: 0 | E119: 3 | F119: 0 | G119: 3 | H119: 3 | I119: 3 | J119: 3 | K119: 3 | L119: 0 | M119: 0 | N119: 3 | O119: 0 | P119: 3 | Q119: 0 | R119: 3 | S119: 3 | T119: 3
A120: 8 | B120: =IFERROR(VLOOKUP(B$112, UNDERSTORY_BY_COUNTRY_TABLE, 2, FALSE), VLOOKUP(B57, UNDERSTORY_BY_LATITUDE_TABLE, 2, FALSE))*B14 -> 3 | C120: 3 | D120: 0 | E120: 3 | F120: 0 | G120: 3 | H120: 3 | I120: 3 | J120: 3 | K120: 3 | L120: 0 | M120: 0 | N120: 3 | O120: 0 | P120: 3 | Q120: 0 | R120: 3 | S120: 3 | T120: 3
A121: 9 | B121: =IFERROR(VLOOKUP(B$112, UNDERSTORY_BY_COUNTRY_TABLE, 2, FALSE), VLOOKUP(B58, UNDERSTORY_BY_LATITUDE_TABLE, 2, FALSE))*B15 -> 3 | C121: 3 | D121: 0 | E121: 3 | F121: 3 | G121: 3 | H121: 3 | I121: 3 | J121: 3 | K121: 3 | L121: 0 | M121: 0 | N121: 3 | O121: 0 | P121: 3 | Q121: 0 | R121: 3 | S121: 3 | T121: 3
A122: 10 | B122: =IFERROR(VLOOKUP(B$112, UNDERSTORY_BY_COUNTRY_TABLE, 2, FALSE), VLOOKUP(B59, UNDERSTORY_BY_LATITUDE_TABLE, 2, FALSE))*B16 -> 3 | C122: 3 | D122: 3 | E122: 3 | F122: 3 | G122: 3 | H122: 3 | I122: 3 | J122: 3 | K122: 3 | L122: 0 | M122: 3 | N122: 3 | O122: 0 | P122: 3 | Q122: 3 | R122: 3 | S122: 3 | T122: 3
A123: 11 | B123: =IFERROR(VLOOKUP(B$112, UNDERSTORY_BY_COUNTRY_TABLE, 2, FALSE), VLOOKUP(B60, UNDERSTORY_BY_LATITUDE_TABLE, 2, FALSE))*B17 -> 3 | C123: 3 | D123: 3 | E123: 3 | F123: 3 | G123: 3 | H123: 3 | I123: 3 | J123: 3 | K123: 3 | L123: 0 | M123: 3 | N123: 3 | O123: 0 | P123: 3 | Q123: 0 | R123: 0 | S123: 3 | T123: 3
A124: 12 | B124: =IFERROR(VLOOKUP(B$112, UNDERSTORY_BY_COUNTRY_TABLE, 2, FALSE), VLOOKUP(B61, UNDERSTORY_BY_LATITUDE_TABLE, 2, FALSE))*B18 -> 3 | C124: 3 | D124: 3 | E124: 0 | F124: 3 | G124: 3 | H124: 3 | I124: 3 | J124: 3 | K124: 0 | L124: 0 | M124: 3 | N124: 3 | O124: 0 | P124: 3 | Q124: 0 | R124: 0 | S124: 3 | T124: 3
A125: 13 | B125: =IFERROR(VLOOKUP(B$112, UNDERSTORY_BY_COUNTRY_TABLE, 2, FALSE), VLOOKUP(B62, UNDERSTORY_BY_LATITUDE_TABLE, 2, FALSE))*B19 -> 3 | C125: 3 | D125: 0 | E125: 3 | F125: 0 | G125: 3 | H125: 3 | I125: 0 | J125: 3 | K125: 3 | L125: 0 | M125: 0 | N125: 3 | O125: 0 | P125: 3 | Q125: 0 | R125: 0 | S125: 0 | T125: 0
A126: 14 | B126: =IFERROR(VLOOKUP(B$112, UNDERSTORY_BY_COUNTRY_TABLE, 2, FALSE), VLOOKUP(B63, UNDERSTORY_BY_LATITUDE_TABLE, 2, FALSE))*B20 -> 3 | C126: 3 | D126: 0 | E126: 3 | F126: 0 | G126: 3 | H126: 3 | I126: 0 | J126: 3 | K126: 3 | L126: 0 | M126: 0 | N126: 3 | O126: 0 | P126: 3 | Q126: 3 | R126: 0 | S126: 0 | T126: 0
A127: 15 | B127: =IFERROR(VLOOKUP(B$112, UNDERSTORY_BY_COUNTRY_TABLE, 2, FALSE), VLOOKUP(B64, UNDERSTORY_BY_LATITUDE_TABLE, 2, FALSE))*B21 -> 3 | C127: 3 | D127: 0 | E127: 3 | F127: 3 | G127: 3 | H127: 3 | I127: 0 | J127: 3 | K127: 3 | L127: 0 | M127: 3 | N127: 3 | O127: 0 | P127: 3 | Q127: 3 | R127: 0 | S127: 0 | T127: 3
A128: 16 | B128: =IFERROR(VLOOKUP(B$112, UNDERSTORY_BY_COUNTRY_TABLE, 2, FALSE), VLOOKUP(B65, UNDERSTORY_BY_LATITUDE_TABLE, 2, FALSE))*B22 -> 3 | C128: 3 | D128: 0 | E128: 3 | F128: 0 | G128: 3 | H128: 3 | I128: 0 | J128: 3 | K128: 0 | L128: 0 | M128: 3 | N128: 3 | O128: 0 | P128: 3 | Q128: 3 | R128: 0 | S128: 0 | T128: 3
A129: 17 | B129: =IFERROR(VLOOKUP(B$112, UNDERSTORY_BY_COUNTRY_TABLE, 2, FALSE), VLOOKUP(B66, UNDERSTORY_BY_LATITUDE_TABLE, 2, FALSE))*B23 -> 0 | C129: 0 | D129: 0 | E129: 0 | F129: 0 | G129: 3 | H129: 0 | I129: 0 | J129: 3 | K129: 0 | L129: 0 | M129: 0 | N129: 0 | O129: 0 | P129: 0 | Q129: 0 | R129: 0 | S129: 0 | T129: 3
A130: 18 | B130: =IFERROR(VLOOKUP(B$112, UNDERSTORY_BY_COUNTRY_TABLE, 2, FALSE), VLOOKUP(B67, UNDERSTORY_BY_LATITUDE_TABLE, 2, FALSE))*B24 -> 0 | C130: 0 | D130: 0 | E130: 0 | F130: 0 | G130: 0 | H130: 0 | I130: 0 | J130: 3 | K130: 0 | L130: 0 | M130: 0 | N130: 0 | O130: 0 | P130: 0 | Q130: 0 | R130: 0 | S130: 0 | T130: 0
A132: Deadwood carbon (Mg C ha-1)
A133: AEZ | B133: =B112 -> USA | C133: =C112 -> EU27 | D133: Brazil | E133: Canada | F133: Japan | G133: ChiHkg | H133: India | I133: C_C_Amer | J133: S_O_Amer | K133: E_Asia | L133: Mala_Indo | M133: R_SE_Asia | N133: R_S_Asia | O133: Russia | P133: Oth_CEE_CIS | Q133: Oth_Europe | R133: ME_N_Afr | S133: S_S_Afr | T133: Oceania
A134: 1 | B134: =IFERROR(VLOOKUP(B$3,DEADWOOD_BY_REGION_TABLE,3,FALSE),VLOOKUP(B50,DEADWOOD_BY_LATITUDE_TABLE,2,FALSE))*B7 -> 0 | C134: 0 | D134: 27.49563968 | E134: 0 | F134: 0 | G134: 0 | H134: 27.49563968 | I134: 27.49563968 | J134: 27.49563968 | K134: 0 | L134: 0 | M134: 0 | N134: 27.49563968 | O134: 0 | P134: 0 | Q134: 0 | R134: 27.49563968 | S134: 27.49563968 | T134: 27.49563968
A135: 2 | B135: =IFERROR(VLOOKUP(B$3,DEADWOOD_BY_REGION_TABLE,3,FALSE),VLOOKUP(B51,DEADWOOD_BY_LATITUDE_TABLE,2,FALSE))*B8 -> 0 | C135: 0 | D135: 27.49563968 | E135: 0 | F135: 0 | G135: 0 | H135: 27.49563968 | I135: 27.49563968 | J135: 27.49563968 | K135: 0 | L135: 0 | M135: 0 | N135: 0 | O135: 0 | P135: 0 | Q135: 0 | R135: 27.49563968 | S135: 27.49563968 | T135: 27.49563968
A136: 3 | B136: =IFERROR(VLOOKUP(B$3,DEADWOOD_BY_REGION_TABLE,3,FALSE),VLOOKUP(B52,DEADWOOD_BY_LATITUDE_TABLE,2,FALSE))*B9 -> 0 | C136: 0 | D136: 27.49563968 | E136: 0 | F136: 0 | G136: 0 | H136: 27.49563968 | I136: 27.49563968 | J136: 27.49563968 | K136: 0 | L136: 0 | M136: 0 | N136: 27.49563968 | O136: 0 | P136: 0 | Q136: 0 | R136: 27.49563968 | S136: 27.49563968 | T136: 27.49563968
A137: 4 | B137: =IFERROR(VLOOKUP(B$3,DEADWOOD_BY_REGION_TABLE,3,FALSE),VLOOKUP(B53,DEADWOOD_BY_LATITUDE_TABLE,2,FALSE))*B10 -> 0 | C137: 2.076124567 | D137: 27.49563968 | E137: 0 | F137: 0 | G137: 27.49563968 | H137: 27.49563968 | I137: 27.49563968 | J137: 27.49563968 | K137: 0 | L137: 27.49563968 | M137: 27.49563968 | N137: 27.49563968 | O137: 0 | P137: 0 | Q137: 0 | R137: 27.49563968 | S137: 27.49563968 | T137: 27.49563968
A138: 5 | B138: =IFERROR(VLOOKUP(B$3,DEADWOOD_BY_REGION_TABLE,3,FALSE),VLOOKUP(B54,DEADWOOD_BY_LATITUDE_TABLE,2,FALSE))*B11 -> 0 | C138: 0 | D138: 27.49563968 | E138: 0 | F138: 0 | G138: 27.49563968 | H138: 27.49563968 | I138: 27.49563968 | J138: 27.49563968 | K138: 0 | L138: 27.49563968 | M138: 27.49563968 | N138: 27.49563968 | O138: 0 | P138: 0 | Q138: 0 | R138: 0 | S138: 27.49563968 | T138: 27.49563968
A139: 6 | B139: =IFERROR(VLOOKUP(B$3,DEADWOOD_BY_REGION_TABLE,3,FALSE),VLOOKUP(B55,DEADWOOD_BY_LATITUDE_TABLE,2,FALSE))*B12 -> 0 | C139: 0 | D139: 27.49563968 | E139: 0 | F139: 0 | G139: 27.49563968 | H139: 27.49563968 | I139: 27.49563968 | J139: 27.49563968 | K139: 0 | L139: 27.49563968 | M139: 27.49563968 | N139: 27.49563968 | O139: 0 | P139: 0 | Q139: 0 | R139: 0 | S139: 27.49563968 | T139: 27.49563968
A140: 7 | B140: =IFERROR(VLOOKUP(B$3,DEADWOOD_BY_REGION_TABLE,3,FALSE),VLOOKUP(B56,DEADWOOD_BY_LATITUDE_TABLE,2,FALSE))*B13 -> 10.50583658 | C140: 0 | D140: 0 | E140: 21.79598954 | F140: 0 | G140: 4.207758054 | H140: 4.207758054 | I140: 4.207758054 | J140: 4.207758054 | K140: 4.207758054 | L140: 0 | M140: 0 | N140: 4.207758054 | O140: 4.207758054 | P140: 4.207758054 | Q140: 0 | R140: 4.207758054 | S140: 4.207758054 | T140: 4.207758054
A141: 8 | B141: =IFERROR(VLOOKUP(B$3,DEADWOOD_BY_REGION_TABLE,3,FALSE),VLOOKUP(B57,DEADWOOD_BY_LATITUDE_TABLE,2,FALSE))*B14 -> 10.50583658 | C141: 2.076124567 | D141: 0 | E141: 21.79598954 | F141: 0 | G141: 4.207758054 | H141: 4.207758054 | I141: 4.207758054 | J141: 4.207758054 | K141: 4.207758054 | L141: 0 | M141: 0 | N141: 4.207758054 | O141: 4.207758054 | P141: 4.207758054 | Q141: 0 | R141: 4.207758054 | S141: 4.207758054 | T141: 4.207758054
A142: 9 | B142: =IFERROR(VLOOKUP(B$3,DEADWOOD_BY_REGION_TABLE,3,FALSE),VLOOKUP(B58,DEADWOOD_BY_LATITUDE_TABLE,2,FALSE))*B15 -> 10.50583658 | C142: 2.076124567 | D142: 0 | E142: 21.79598954 | F142: 4.207758054 | G142: 4.207758054 | H142: 4.207758054 | I142: 4.207758054 | J142: 4.207758054 | K142: 4.207758054 | L142: 0 | M142: 0 | N142: 4.207758054 | O142: 4.207758054 | P142: 4.207758054 | Q142: 0 | R142: 4.207758054 | S142: 4.207758054 | T142: 4.207758054
A143: 10 | B143: =IFERROR(VLOOKUP(B$3,DEADWOOD_BY_REGION_TABLE,3,FALSE),VLOOKUP(B59,DEADWOOD_BY_LATITUDE_TABLE,2,FALSE))*B16 -> 10.50583658 | C143: 2.076124567 | D143: 4.207758054 | E143: 21.79598954 | F143: 4.207758054 | G143: 4.207758054 | H143: 4.207758054 | I143: 4.207758054 | J143: 4.207758054 | K143: 4.207758054 | L143: 0 | M143: 4.207758054 | N143: 4.207758054 | O143: 4.207758054 | P143: 4.207758054 | Q143: 4.207758054 | R143: 4.207758054 | S143: 4.207758054 | T143: 4.207758054
A144: 11 | B144: =IFERROR(VLOOKUP(B$3,DEADWOOD_BY_REGION_TABLE,3,FALSE),VLOOKUP(B60,DEADWOOD_BY_LATITUDE_TABLE,2,FALSE))*B17 -> 10.50583658 | C144: 2.076124567 | D144: 4.207758054 | E144: 21.79598954 | F144: 4.207758054 | G144: 4.207758054 | H144: 4.207758054 | I144: 4.207758054 | J144: 4.207758054 | K144: 4.207758054 | L144: 0 | M144: 4.207758054 | N144: 4.207758054 | O144: 4.207758054 | P144: 4.207758054 | Q144: 0 | R144: 0 | S144: 4.207758054 | T144: 4.207758054
A145: 12 | B145: =IFERROR(VLOOKUP(B$3,DEADWOOD_BY_REGION_TABLE,3,FALSE),VLOOKUP(B61,DEADWOOD_BY_LATITUDE_TABLE,2,FALSE))*B18 -> 10.50583658 | C145: 2.076124567 | D145: 4.207758054 | E145: 0 | F145: 4.207758054 | G145: 4.207758054 | H145: 4.207758054 | I145: 4.207758054 | J145: 4.207758054 | K145: 0 | L145: 0 | M145: 4.207758054 | N145: 4.207758054 | O145: 0 | P145: 4.207758054 | Q145: 0 | R145: 0 | S145: 4.207758054 | T145: 4.207758054
A146: 13 | B146: =IFERROR(VLOOKUP(B$3,DEADWOOD_BY_REGION_TABLE,3,FALSE),VLOOKUP(B62,DEADWOOD_BY_LATITUDE_TABLE,2,FALSE))*B19 -> 10.50583658 | C146: 2.076124567 | D146: 0 | E146: 21.79598954 | F146: 0 | G146: 14.27061311 | H146: 14.27061311 | I146: 0 | J146: 14.27061311 | K146: 14.27061311 | L146: 0 | M146: 0 | N146: 14.27061311 | O146: 14.27061311 | P146: 14.27061311 | Q146: 0 | R146: 0 | S146: 0 | T146: 0
A147: 14 | B147: =IFERROR(VLOOKUP(B$3,DEADWOOD_BY_REGION_TABLE,3,FALSE),VLOOKUP(B63,DEADWOOD_BY_LATITUDE_TABLE,2,FALSE))*B20 -> 10.50583658 | C147: 2.076124567 | D147: 0 | E147: 21.79598954 | F147: 0 | G147: 14.27061311 | H147: 14.27061311 | I147: 0 | J147: 14.27061311 | K147: 14.27061311 | L147: 0 | M147: 0 | N147: 14.27061311 | O147: 14.27061311 | P147: 14.27061311 | Q147: 14.27061311 | R147: 0 | S147: 0 | T147: 0
A148: 15 | B148: =IFERROR(VLOOKUP(B$3,DEADWOOD_BY_REGION_TABLE,3,FALSE),VLOOKUP(B64,DEADWOOD_BY_LATITUDE_TABLE,2,FALSE))*B21 -> 10.50583658 | C148: 2.076124567 | D148: 0 | E148: 21.79598954 | F148: 14.27061311 | G148: 14.27061311 | H148: 14.27061311 | I148: 0 | J148: 14.27061311 | K148: 14.27061311 | L148: 0 | M148: 14.27061311 | N148: 14.27061311 | O148: 14.27061311 | P148: 14.27061311 | Q148: 14.27061311 | R148: 0 | S148: 0 | T148: 14.27061311
A149: 16 | B149: =IFERROR(VLOOKUP(B$3,DEADWOOD_BY_REGION_TABLE,3,FALSE),VLOOKUP(B65,DEADWOOD_BY_LATITUDE_TABLE,2,FALSE))*B22 -> 10.50583658 | C149: 2.076124567 | D149: 0 | E149: 21.79598954 | F149: 0 | G149: 14.27061311 | H149: 14.27061311 | I149: 0 | J149: 14.27061311 | K149: 0 | L149: 0 | M149: 14.27061311 | N149: 14.27061311 | O149: 14.27061311 | P149: 14.27061311 | Q149: 14.27061311 | R149: 0 | S149: 0 | T149: 14.27061311
A150: 17 | B150: =IFERROR(VLOOKUP(B$3,DEADWOOD_BY_REGION_TABLE,3,FALSE),VLOOKUP(B66,DEADWOOD_BY_LATITUDE_TABLE,2,FALSE))*B23 -> 0 | C150: 0 | D150: 0 | E150: 0 | F150: 0 | G150: 14.27061311 | H150: 0 | I150: 0 | J150: 14.27061311 | K150: 0 | L150: 0 | M150: 0 | N150: 0 | O150: 0 | P150: 0 | Q150: 0 | R150: 0 | S150: 0 | T150: 14.27061311
A151: 18 | B151: =IFERROR(VLOOKUP(B$3,DEADWOOD_BY_REGION_TABLE,3,FALSE),VLOOKUP(B67,DEADWOOD_BY_LATITUDE_TABLE,2,FALSE))*B24 -> 0 | C151: 0 | D151: 0 | E151: 0 | F151: 0 | G151: 0 | H151: 0 | I151: 0 | J151: 14.27061311 | K151: 0 | L151: 0 | M151: 0 | N151: 0 | O151: 0 | P151: 0 | Q151: 0 | R151: 0 | S151: 0 | T151: 0
A153: Litter carbon (Mg C ha-1)
A154: AEZ | B154: =B133 -> USA | C154: =C133 -> EU27 | D154: Brazil | E154: Canada | F154: Japan | G154: ChiHkg | H154: India | I154: C_C_Amer | J154: S_O_Amer | K154: E_Asia | L154: Mala_Indo | M154: R_SE_Asia | N154: R_S_Asia | O154: Russia | P154: Oth_CEE_CIS | Q154: Oth_Europe | R154: ME_N_Afr | S154: S_S_Afr | T154: Oceania
A155: 1 | B155: =VLOOKUP($A155,LITTER_TABLE,LITTER.Stock,FALSE)*B7 -> 0 | C155: 0 | D155: 3.65 | E155: 0 | F155: 0 | G155: 0 | H155: 3.65 | I155: 3.65 | J155: 3.65 | K155: 0 | L155: 0 | M155: 0 | N155: 3.65 | O155: 0 | P155: 0 | Q155: 0 | R155: 3.65 | S155: 3.65 | T155: 3.65
A156: 2 | B156: =VLOOKUP($A156,LITTER_TABLE,LITTER.Stock,FALSE)*B8 -> 0 | C156: 0 | D156: 3.65 | E156: 0 | F156: 0 | G156: 0 | H156: 3.65 | I156: 3.65 | J156: 3.65 | K156: 0 | L156: 0 | M156: 0 | N156: 0 | O156: 0 | P156: 0 | Q156: 0 | R156: 3.65 | S156: 3.65 | T156: 3.65
A157: 3 | B157: =VLOOKUP($A157,LITTER_TABLE,LITTER.Stock,FALSE)*B9 -> 0 | C157: 0 | D157: 3.65 | E157: 0 | F157: 0 | G157: 0 | H157: 3.65 | I157: 3.65 | J157: 3.65 | K157: 0 | L157: 0 | M157: 0 | N157: 3.65 | O157: 0 | P157: 0 | Q157: 0 | R157: 3.65 | S157: 3.65 | T157: 3.65
A158: 4 | B158: =VLOOKUP($A158,LITTER_TABLE,LITTER.Stock,FALSE)*B10 -> 0 | C158: 3.65 | D158: 3.65 | E158: 0 | F158: 0 | G158: 3.65 | H158: 3.65 | I158: 3.65 | J158: 3.65 | K158: 0 | L158: 3.65 | M158: 3.65 | N158: 3.65 | O158: 0 | P158: 0 | Q158: 0 | R158: 3.65 | S158: 3.65 | T158: 3.65
A159: 5 | B159: =VLOOKUP($A159,LITTER_TABLE,LITTER.Stock,FALSE)*B11 -> 0 | C159: 0 | D159: 3.65 | E159: 0 | F159: 0 | G159: 3.65 | H159: 3.65 | I159: 3.65 | J159: 3.65 | K159: 0 | L159: 3.65 | M159: 3.65 | N159: 3.65 | O159: 0 | P159: 0 | Q159: 0 | R159: 0 | S159: 3.65 | T159: 3.65
A160: 6 | B160: =VLOOKUP($A160,LITTER_TABLE,LITTER.Stock,FALSE)*B12 -> 0 | C160: 0 | D160: 3.65 | E160: 0 | F160: 0 | G160: 3.65 | H160: 3.65 | I160: 3.65 | J160: 3.65 | K160: 0 | L160: 3.65 | M160: 3.65 | N160: 3.65 | O160: 0 | P160: 0 | Q160: 0 | R160: 0 | S160: 3.65 | T160: 3.65
A161: 7 | B161: =VLOOKUP($A161,LITTER_TABLE,LITTER.Stock,FALSE)*B13 -> 25.875 | C161: 0 | D161: 0 | E161: 25.875 | F161: 0 | G161: 25.875 | H161: 25.875 | I161: 25.875 | J161: 25.875 | K161: 25.875 | L161: 0 | M161: 0 | N161: 25.875 | O161: 25.875 | P161: 25.875 | Q161: 0 | R161: 25.875 | S161: 25.875 | T161: 25.875
A162: 8 | B162: =VLOOKUP($A162,LITTER_TABLE,LITTER.Stock,FALSE)*B14 -> 25.875 | C162: 25.875 | D162: 0 | E162: 25.875 | F162: 0 | G162: 25.875 | H162: 25.875 | I162: 25.875 | J162: 25.875 | K162: 25.875 | L162: 0 | M162: 0 | N162: 25.875 | O162: 25.875 | P162: 25.875 | Q162: 0 | R162: 25.875 | S162: 25.875 | T162: 25.875
A163: 9 | B163: =VLOOKUP($A163,LITTER_TABLE,LITTER.Stock,FALSE)*B15 -> 25.875 | C163: 25.875 | D163: 0 | E163: 25.875 | F163: 25.875 | G163: 25.875 | H163: 25.875 | I163: 25.875 | J163: 25.875 | K163: 25.875 | L163: 0 | M163: 0 | N163: 25.875 | O163: 25.875 | P163: 25.875 | Q163: 0 | R163: 25.875 | S163: 25.875 | T163: 25.875
A164: 10 | B164: =VLOOKUP($A164,LITTER_TABLE,LITTER.Stock,FALSE)*B16 -> 19.25 | C164: 19.25 | D164: 19.25 | E164: 19.25 | F164: 19.25 | G164: 19.25 | H164: 19.25 | I164: 19.25 | J164: 19.25 | K164: 19.25 | L164: 0 | M164: 19.25 | N164: 19.25 | O164: 19.25 | P164: 19.25 | Q164: 19.25 | R164: 19.25 | S164: 19.25 | T164: 19.25
A165: 11 | B165: =VLOOKUP($A165,LITTER_TABLE,LITTER.Stock,FALSE)*B17 -> 19.25 | C165: 19.25 | D165: 19.25 | E165: 19.25 | F165: 19.25 | G165: 19.25 | H165: 19.25 | I165: 19.25 | J165: 19.25 | K165: 19.25 | L165: 0 | M165: 19.25 | N165: 19.25 | O165: 19.25 | P165: 19.25 | Q165: 0 | R165: 0 | S165: 19.25 | T165: 19.25
A166: 12 | B166: =VLOOKUP($A166,LITTER_TABLE,LITTER.Stock,FALSE)*B18 -> 19.25 | C166: 19.25 | D166: 19.25 | E166: 0 | F166: 19.25 | G166: 19.25 | H166: 19.25 | I166: 19.25 | J166: 19.25 | K166: 0 | L166: 0 | M166: 19.25 | N166: 19.25 | O166: 0 | P166: 19.25 | Q166: 0 | R166: 0 | S166: 19.25 | T166: 19.25
A167: 13 | B167: =VLOOKUP($A167,LITTER_TABLE,LITTER.Stock,FALSE)*B19 -> 28 | C167: 28 | D167: 0 | E167: 28 | F167: 0 | G167: 28 | H167: 28 | I167: 0 | J167: 28 | K167: 28 | L167: 0 | M167: 0 | N167: 28 | O167: 28 | P167: 28 | Q167: 0 | R167: 0 | S167: 0 | T167: 0
A168: 14 | B168: =VLOOKUP($A168,LITTER_TABLE,LITTER.Stock,FALSE)*B20 -> 28 | C168: 28 | D168: 0 | E168: 28 | F168: 0 | G168: 28 | H168: 28 | I168: 0 | J168: 28 | K168: 28 | L168: 0 | M168: 0 | N168: 28 | O168: 28 | P168: 28 | Q168: 28 | R168: 0 | S168: 0 | T168: 0
A169: 15 | B169: =VLOOKUP($A169,LITTER_TABLE,LITTER.Stock,FALSE)*B21 -> 28 | C169: 28 | D169: 0 | E169: 28 | F169: 28 | G169: 28 | H169: 28 | I169: 0 | J169: 28 | K169: 28 | L169: 0 | M169: 28 | N169: 28 | O169: 28 | P169: 28 | Q169: 28 | R169: 0 | S169: 0 | T169: 28
A170: 16 | B170: =VLOOKUP($A170,LITTER_TABLE,LITTER.Stock,FALSE)*B22 -> 47 | C170: 47 | D170: 0 | E170: 47 | F170: 0 | G170: 47 | H170: 47 | I170: 0 | J170: 47 | K170: 0 | L170: 0 | M170: 47 | N170: 47 | O170: 47 | P170: 47 | Q170: 47 | R170: 0 | S170: 0 | T170: 47
A171: 17 | B171: =VLOOKUP($A171,LITTER_TABLE,LITTER.Stock,FALSE)*B23 -> 0 | C171: 0 | D171: 0 | E171: 0 | F171: 0 | G171: 47 | H171: 0 | I171: 0 | J171: 47 | K171: 0 | L171: 0 | M171: 0 | N171: 0 | O171: 0 | P171: 0 | Q171: 0 | R171: 0 | S171: 0 | T171: 47
A172: 18 | B172: =VLOOKUP($A172,LITTER_TABLE,LITTER.Stock,FALSE)*B24 -> 0 | C172: 0 | D172: 0 | E172: 0 | F172: 0 | G172: 0 | H172: 0 | I172: 0 | J172: 47 | K172: 0 | L172: 0 | M172: 0 | N172: 0 | O172: 0 | P172: 0 | Q172: 0 | R172: 0 | S172: 0 | T172: 0
A174: Total biomass carbon (Mg C ha-1)
A175: AEZ | B175: =B154 -> USA | C175: =C154 -> EU27 | D175: Brazil | E175: Canada | F175: Japan | G175: ChiHkg | H175: India | I175: C_C_Amer | J175: S_O_Amer | K175: E_Asia | L175: Mala_Indo | M175: R_SE_Asia | N175: R_S_Asia | O175: Russia | P175: Oth_CEE_CIS | Q175: Oth_Europe | R175: ME_N_Afr | S175: S_S_Afr | T175: Oceania
